Workbook

Sheet Carbon emissions
A1: Total number of different car types in China from 2000 to 2020（uint:Ten thousand）
A2: Year | B2: Large passenger car | C2: Medium passenger car | D2: Small passenger car | E2: Mini passenger car | F2: Heavy truck | G2: Medium truck | H2: Light truck | I2: Midget truck | J2: Other cars | K2: Battery electric vehicles | L2: Hybrid electric vehicle | M2: Fuel Cell Electric Vehicle | N2: All | O2: Small passenger car/All | Q2: passenger car | S2: truck
A3: 2000 | B3: 53.59 | C3: 74.41 | D3: 560.75 | E3: 164.97 | F3: 130.77 | G3: 192.87 | H3: 318.01 | I3: 74.66 | J3: 38.86 | N3: =SUM(B3:M3) -> 1608.89408 | O3: =D3/N3 -> 0.3485291384 | Q3: =SUM(B3:E3) -> 853.72 | R3: =Q3/N3 -> 53.06% | S3: =SUM(F3:I3) -> 716.31 | T3: =S3/N3 -> 44.52%
A4: 2001 | B4: 62.40 | C4: 86.63 | D4: 652.85 | E4: 192.07 | F4: 139.70 | G4: 206.04 | H4: 339.72 | I4: 79.76 | J4: 42.84 | N4: =SUM(B4:M4) -> 1802.022312 | O4: =D4/N4 -> 0.3622886656 | Q4: =SUM(B4:E4) -> 993.95 | R4: =Q4/N4 -> 55.16% | S4: =SUM(F4:I4) -> 765.23 | T4: =S4/N4 -> 42.47%
A5: 2002 | B5: 75.48 | C5: 104.8 | D5: 789.74 | E5: 232.34 | F5: 148.28 | G5: 218.69 | H5: 360.58 | I5: 84.66 | J5: 38.58 | N5: 2053.15 | O5: 0.3846479799 | Q5: 1202.36 | R5: 58.56% | S5: 812.21 | T5: 39.56%
A6: 2003 | B6: 76 | C6: 116 | D6: 1017 | E6: 270 | F6: 137 | G6: 244 | H6: 391 | I6: 82 | J6: 51 | N6: 2382.9254 | O6: 0.426873036 | Q6: 1478.81 | R6: 62.06% | S6: 853.51 | T6: 35.82%
A7: 2004 | B7: 78 | C7: 125 | D7: 1249 | E7: 284 | F7: 154 | G7: 234 | H7: 426 | I7: 79 | J7: 65 | N7: 2693.7137 | O7: 0.4636318255 | Q7: 1735.91 | R7: 64.44% | S7: 893.00 | T7: 33.15%
A8: 2005 | B8: 82 | C8: 132 | D8: 1618 | E8: 300 | F8: 168 | G8: 237 | H8: 485 | I8: 66 | J8: 72 | N8: 3159.66 | O8: 0.5121911851 | Q8: 2132.45 | R8: 67.49% | S8: 955.55 | T8: 30.24%
A9: 2006 | B9: 87.34 | C9: 137 | D9: 2083.4 | E9: 311.83 | F9: 174.01 | G9: 235.39 | H9: 532.13 | I9: 44.76 | J9: 91.49 | N9: 3697.35 | O9: 0.5634846579 | Q9: 2619.57 | R9: 70.85% | S9: 986.29 | T9: 26.68%
A10: 2007 | B10: 93.82 | C10: 140.52 | D10: 2646.47 | E10: 315.18 | F10: 186.74 | G10: 243.46 | H10: 587.22 | I10: 36.63 | J10: 108.31 | N10: 4358.35 | O10: 0.607218328 | Q10: 3195.99 | R10: 73.33% | S10: 1054.05 | T10: 24.18%
A11: 2008 | B11: 100.39 | C11: 143.19 | D11: 3271.14 | E11: 324.19 | F11: 200.84 | G11: 249.73 | H11: 644.96 | I11: 30.54 | J11: 134.62 | N11: 5099.6 | O11: 0.6414503098 | Q11: 3838.91 | R11: 75.28% | S11: 1126.07 | T11: 22.08%
A12: 2009 | B12: 107.95 | C12: 145.8 | D12: 4246.9 | E12: 344.44 | F12: 315.08 | G12: 262.21 | H12: 765.33 | I12: 25.97 | J12: 66.92 | N12: 6280.6 | O12: 0.6761933573 | Q12: 4845.09 | R12: 77.14% | S12: 1368.59 | T12: 21.79%
A13: 2010 | B13: 116.44 | C13: 146.07 | D13: 5498.36 | E13: 363.25 | F13: 394.8 | G13: 269.75 | H13: 911.88 | I13: 21.12 | J13: 80.14 | K13: 0.0181 | L13: 0.0328 | N13: =SUM(B13:M13) -> 7801.8609 | O13: 0.7047498117 | Q13: 6124.12 | R13: 78.50% | S13: 1597.55 | T13: 20.48%
A14: 2011 | B14: 126.54 | C14: 147.41 | D14: 6827.54 | E14: 376.88 | F14: 460.58 | G14: 267.8 | H14: 1042.07 | I14: 17.54 | J14: 89.96 | K14: 0.2703 | L14: 0.0642 | N14: =SUM(B14:M14) -> 9356.6545 | O14: 0.729698847 | Q14: 7478.37 | R14: 79.93% | S14: 1787.99 | T14: 19.11%
A15: 2012 | B15: 128.13 | C15: 131.78 | D15: 8302.63 | E15: 380.47 | F15: 472.51 | G15: 229.2 | H15: 1179.65 | I15: 13.4 | J15: 95.33 | K15: 1.0013 | L15: 0.1341 | N15: 10934.2354 | O15: 0.7593242414 | Q15: 8943.01 | R15: 81.79% | S15: 1894.76 | T15: 17.33%
A16: 2013 | B16: 131.38 | C16: 117.06 | D16: 9951.46 | E16: 361.87 | F16: 501.97 | G16: 196.4 | H16: 1300.02 | I16: 12.23 | J16: 97.75 | K16: 2.2731 | L16: 0.3419 | N16: 12672.755 | O16: 0.7852641355 | Q16: 10561.77 | R16: 83.34% | S16: 2010.62 | T16: 15.87%
A17: 2014 | B17: 139.61 | C17: 112.06 | D17: 11748.19 | E17: 326.84 | F17: 533.67 | G17: 188.09 | H17: 1385.77 | I17: 17.93 | J17: 145.95 | K17: 5.7825 | L17: 2.4096 | N17: 14606.3021 | O17: 0.8043233612 | Q17: 12326.70 | R17: 84.39% | S17: 2125.46 | T17: 14.55%
A18: 2015 | B18: 140.07 | C18: 89.66 | D18: 13580.48 | E18: 285.66 | F18: 530.05 | G18: 148.87 | H18: 1375.79 | I18: 10.9 | J18: 122.95 | K18: 31.7063 | L18: 10.6725 | M18: 0.0006 | N18: 16326.8094 | O18: 0.8317901966 | Q18: 14095.87 | R18: 86.34% | S18: 2065.61 | T18: 12.65%
A19: 2016 | B19: 146.03 | C19: 83.82 | D19: 15813.84 | E19: 234.55 | F19: 569.48 | G19: 138.69 | H19: 1455.29 | I19: 8.43 | J19: 124.41 | K19: 65.8481 | L19: 19.7454 | M19: 0.0033 | N19: 18660.1368 | O19: 0.8474664559 | Q19: 16278.24 | R19: 87.24% | S19: 2171.89 | T19: 11.64%
A20: 2017 | B20: 152.94 | C20: 78.95 | D20: 18038.69 | E20: 198.96 | F20: 635.41 | G20: 130.68 | H20: 1566.3 | I20: 6.46 | J20: 98.28 | K20: 131.4462 | L20: 30.878 | M20: 0.1131 | N20: 21069.1073 | O20: 0.8561677409 | Q20: 18469.54 | R20: 87.66% | S20: 2338.85 | T20: 11.10%
A21: 2018 | B21: 158.33 | C21: 75.4 | D21: 20135.22 | E21: 186.46 | F21: 709.53 | G21: 124.39 | H21: 1728.53 | I21: 5.37 | J21: 108 | K21: 220.8238 | L21: 52.9746 | M21: 0.1998 | N21: 23505.2282 | O21: 0.8566272928 | Q21: 20555.41 | R21: 87.45% | S21: 2567.82 | T21: 10.92%
A22: 2019 | B22: 160.58 | C22: 72.08 | D22: 22069.74 | E22: 171.88 | F22: 761.7 | G22: 116.27 | H22: 1900.76 | I22: 4.11 | J22: 119.27 | K22: 300.7497 | L22: 72.7564 | M22: 0.5188 | N22: 25750.4149 | O22: 0.857063472 | Q22: 22474.28 | R22: 87.28% | S22: 2782.84 | T22: 10.81%
A23: 2020 | B23: 157.01 | C23: 68.29 | D23: 23782.77 | E23: 158.12 | F23: 840.64 | G23: 106.19 | H23: 2092.72 | I23: 3.09 | J23: 132.09 | K23: 402.6782 | L23: 94.3983 | M23: 0.6686 | N23: 27838.6651 | O23: 0.854307127 | Q23: =SUM(B23:E23) -> 24166.19 | R23: 86.81% | S23: 3042.64 | T23: 10.93%
B24: =B23/N23 -> 0.56% | C24: =C23/N23 -> 0.25% | D24: =D23/N23 -> 85.43% | E24: =E23/N23 -> 0.57% | F24: =F23/N23 -> 3.02% | G24: =G23/N23 -> 0.38% | H24: =H23/N23 -> 7.52% | I24: =I23/N23 -> 0.01% | J24: =J23/N23 -> 0.47%
A28: Carbon emissions of different pollutants and different cars in 2020 (unit:Mt CO2e）
A29: Material composition | B29: Large passenger car | C29: Medium passenger car | D29: Small passenger car | E29: Mini passenger car | F29: Heavy truck | G29: Medium truck | H29: Light truck | I29: Midget truck | J29: Other cars | K29: Hybrid electric vehicle | L29: ALL
A30: CO | B30: 1.47 | C30: 0.76 | D30: 4.34 | E30: 0.38 | F30: 6.95 | G30: 2.58 | H30: 6.09 | I30: 0.68 | J30: 1.47 | K30: 0.00 | L30: 24.70
A31: CO2 | B31: 0.08 | C31: 0.03 | D31: 1.88 | E31: 0.03 | F31: 0.37 | G31: 0.08 | H31: 0.38 | I31: 0.01 | J31: 0.12 | K31: 0.00 | L31: 2.98
A32: NOx | B32: 0.26 | C32: 0.13 | D32: 0.26 | E32: 0.02 | F32: 1.36 | G32: 0.58 | H32: 0.48 | I32: 0.05 | J32: 0.10 | K32: 0.00 | L32: 3.25
A33: HC | B33: 0.17 | C33: 0.07 | D33: 0.50 | E33: 0.04 | F33: 0.88 | G33: 0.33 | H33: 0.66 | I33: 0.08 | J33: 0.16 | K33: 0.00 | L33: 2.90
B34: =SUM(B30:B33) -> 1.97 | C34: =SUM(C30:C33) -> 0.99 | D34: 6.98 | E34: 0.48 | F34: 9.56 | G34: 3.56 | H34: 7.61 | I34: 0.82 | J34: 1.85 | K34: 0.00

Sheet CO2e Emissions
A1: Carbon Dioxide Equivalent Emissions from Energy, Process Emissions, Methane, and Flaring | J1: Contents
AI2: Growth rate per annum | AK2: Share
A3: Million tonnes of carbon dioxide equivalent | B3: 1990 | C3: 1991 | D3: 1992 | E3: 1993 | F3: 1994 | G3: 1995 | H3: 1996 | I3: 1997 | J3: 1998 | K3: 1999 | L3: 2000 | M3: 2001 | N3: 2002 | O3: 2003 | P3: 2004 | Q3: 2005 | R3: 2006 | S3: 2007 | T3: 2008 | U3: 2009 | V3: 2010 | W3: 2011 | X3: 2012 | Y3: 2013 | Z3: 2014 | AA3: 2015 | AB3: 2016 | AC3: 2017 | AD3: 2018 | AE3: 2019 | AF3: 2020 | AG3: 2021 | AH3: 2022 | AI3: 2022 | AJ3: 2012-22 | AK3: 2022
A5: Canada | B5: 481.412412 | C5: 464.7123129 | D5: 480.363617 | E5: 477.8119404 | F5: 494.6291668 | G5: 515.888111 | H5: 525.5533335 | I5: 540.2130621 | J5: 557.6636354 | K5: 561.351539 | L5: 582.5250639 | M5: 585.0183448 | N5: 598.5869308 | O5: 608.5527014 | P5: 606.7234203 | Q5: 606.6881633 | R5: 602.2316538 | S5: 629.5091044 | T5: 611.7424694 | U5: 580.2789967 | V5: 596.6115328 | W5: 602.8131926 | X5: 600.3941793 | Y5: 615.783441 | Z5: 625.0311114 | AA5: 625.2564225 | AB5: 607.860766 | AC5: 627.9908688 | AD5: 641.1529734 | AE5: 628.3549465 | AF5: 565.7686947 | AG5: 578.8513073 | AH5: 591.448043 | AI5: 2.176% | AJ5: -0.001500130156 | AK5: 0.0150436256
A6: Mexico | B6: 330.1903069 | C6: 338.4699321 | D6: 342.7126689 | E6: 347.4535946 | F6: 373.7147214 | G6: 358.4937778 | H6: 376.5706582 | I6: 402.427756 | J6: 420.6187791 | K6: 411.5940579 | L6: 439.0569664 | M6: 437.601149 | N6: 455.4377109 | O6: 462.4915968 | P6: 483.1681533 | Q6: 526.8253475 | R6: 533.5210495 | S6: 544.5895394 | T6: 569.5096103 | U6: 555.1626284 | V6: 541.0469041 | W6: 559.3283577 | X6: 566.8724297 | Y6: 570.3121208 | Z6: 557.5975984 | AA6: 553.947447 | AB6: 563.6327812 | AC6: 569.3696425 | AD6: 554.5447693 | AE6: 544.3222258 | AF6: 487.0709319 | AG6: 523.9507894 | AH6: 577.4925076 | AI6: 10.219% | AJ6: 0.001857841839 | AK6: 0.01468866314
A7: US | B7: 5255.026615 | C7: 5206.253081 | D7: 5287.645695 | E7: 5391.046592 | F7: 5482.458299 | G7: 5521.052377 | H7: 5700.561496 | I7: 5778.451194 | J7: 5816.717663 | K7: 5854.561354 | L7: 6023.204688 | M7: 5933.135872 | N7: 5952.46312 | O7: 6015.157104 | P7: 6119.117421 | Q7: 6155.148496 | R7: 6080.916172 | S7: 6177.155352 | T7: 5999.721412 | U7: 5573.629956 | V7: 5787.923165 | W7: 5661.066647 | X7: 5433.914997 | Y7: 5609.700015 | Z7: 5647.641734 | AA7: 5540.29 | AB7: 5414.381619 | AC7: 5373.404371 | AD7: 5577.704596 | AE7: 5473.030853 | AF7: 4908.678838 | AG7: 5210.255083 | AH7: 5297.70733 | AI7: 1.678% | AJ7: -0.002535352574 | AK7: 0.1347484814
A8: Total North America | B8: 6066.629334 | C8: 6009.435325 | D8: 6110.721981 | E8: 6216.312127 | F8: 6350.802187 | G8: 6395.434265 | H8: 6602.685487 | I8: 6721.092012 | J8: 6795.000077 | K8: 6827.506951 | L8: 7044.786718 | M8: 6955.755366 | N8: 7006.487761 | O8: 7086.201402 | P8: 7209.008994 | Q8: 7288.662007 | R8: 7216.668875 | S8: 7351.253996 | T8: 7180.973491 | U8: 6709.071582 | V8: 6925.581602 | W8: 6823.208197 | X8: 6601.181606 | Y8: 6795.795576 | Z8: 6830.270444 | AA8: 6719.49387 | AB8: 6585.875166 | AC8: 6570.764883 | AD8: 6773.402339 | AE8: 6645.708025 | AF8: 5961.518465 | AG8: 6313.057179 | AH8: 6466.647881 | AI8: 0.02432905283 | AJ8: -0.002056960728 | AK8: 0.1644807701
A10: Argentina | B10: 126.7294856 | C10: 128.977452 | D10: 136.4211126 | E10: 135.8659764 | F10: 142.6097749 | G10: 149.142179 | H10: 157.6900649 | I10: 157.7843881 | J10: 164.1591746 | K10: 168.4597211 | L10: 162.2144301 | M10: 152.386681 | N10: 147.3485138 | O10: 158.7674376 | P10: 170.5949724 | Q10: 177.6309409 | R10: 184.1104674 | S10: 196.79106 | T10: 198.7272483 | U10: 188.8184899 | V10: 197.7158512 | W10: 203.6406354 | X10: 212.7489507 | Y10: 218.4108492 | Z10: 218.6231509 | AA10: 222.1429878 | AB10: 220.1834302 | AC10: 218.4160027 | AD10: 217.5712868 | AE10: 208.4031222 | AF10: 193.2793086 | AG10: 219.4564339 | AH10: 226.9464968 | AI10: 3.413% | AJ10: 0.006481057533 | AK10: 0.005772439641
A11: Brazil | B11: 227.9375491 | C11: 235.3346801 | D11: 232.2409046 | E11: 243.0481849 | F11: 254.7965267 | G11: 276.1287627 | H11: 297.8826541 | I11: 318.4232402 | J11: 331.0776474 | K11: 335.9149442 | L11: 355.6274944 | M11: 364.4940416 | N11: 363.8805381 | O11: 359.3689609 | P11: 376.6598299 | Q11: 385.5492292 | R11: 391.8938402 | S11: 414.0440042 | T11: 440.3126117 | U11: 418.6905092 | V11: 462.4472107 | W11: 481.0693699 | X11: 513.3313289 | Y11: 544.7042861 | Z11: 573.0139026 | AA11: 555.3676455 | AB11: 514.3333187 | AC11: 518.4849073 | AD11: 497.9580276 | AE11: 494.3437922 | AF11: 469.20486 | AG11: 523.9831802 | AH11: 505.9653529 | AI11: -3.439% | AJ11: -0.001444286763 | AK11: 0.01286935247
A12: Chile | B12: 33.15001684 | C12: 34.00845496 | D12: 34.81638356 | E12: 37.14788695 | F12: 40.52935074 | G12: 43.81894281 | H12: 49.15536683 | I12: 56.44061146 | J12: 58.06851415 | K12: 59.95686506 | L12: 57.20488292 | M12: 55.5613592 | N12: 56.16828542 | O12: 57.1591983 | P12: 64.65037322 | Q12: 65.66994376 | R12: 66.22333171 | S12: 76.68471863 | T12: 78.28038646 | U12: 73.28862778 | V12: 76.14824262 | W12: 84.33309931 | X12: 87.09980828 | Y12: 90.4468635 | Z12: 88.66415378 | AA12: 88.85030466 | AB12: 93.84869308 | AC12: 95.21974406 | AD12: 94.75121822 | AE12: 96.18690139 | AF12: 86.45377224 | AG12: 95.00191991 | AH12: 90.99516351 | AI12: -4.218% | AJ12: 0.004384752433 | AK12: 0.002314484234
A13: Colombia | B13: 53.54806023 | C13: 55.00211763 | D13: 63.35223438 | E13: 65.80413684 | F13: 69.87855081 | G13: 73.35395738 | H13: 73.81433859 | I13: 79.83832031 | J13: 82.3592509 | K13: 73.44394754 | L13: 73.49806024 | M13: 74.2227437 | N13: 71.3021545 | O13: 72.98692457 | P13: 75.96678877 | Q13: 74.09622629 | R13: 88.85655421 | S13: 89.93943812 | T13: 95.10767401 | U13: 96.88737697 | V13: 104.4225835 | W13: 106.4193108 | X13: 116.3792766 | Y13: 122.2457958 | Z13: 128.7889849 | AA13: 121.0752744 | AB13: 134.490689 | AC13: 127.0349979 | AD13: 127.8624224 | AE13: 130.8288755 | AF13: 112.7731491 | AG13: 121.7076266 | AH13: 129.4783812 | AI13: 6.385% | AJ13: 0.01072302824 | AK13: 0.003293314285
A14: Ecuador | B14: 22.23231431 | C14: 24.36394813 | D14: 24.66137432 | E14: 25.27959761 | F14: 27.36762432 | G14: 27.8860393 | H14: 30.95197274 | I14: 33.97010236 | J14: 33.53432576 | K14: 30.1992217 | L14: 28.55492042 | M14: 29.79216385 | N14: 28.76913043 | O14: 29.69532053 | P14: 33.55443316 | Q14: 35.69002857 | R14: 37.40780161 | S14: 37.090376 | T14: 38.33624148 | U14: 37.72675806 | V14: 41.9973452 | W14: 43.01319462 | X14: 44.3107598 | Y14: 47.70559377 | Z14: 50.5147698 | AA14: 49.16013905 | AB14: 47.22809343 | AC14: 45.62492661 | AD14: 47.93656444 | AE14: 46.6100789 | AF14: 39.03336805 | AG14: 46.34540355 | AH14: 49.08672379 | AI14: 5.915% | AJ14: 0.01028867561 | AK14: 0.001248532822
A15: Peru | B15: 22.17312791 | C15: 21.14272424 | D15: 21.7055318 | E15: 22.59887638 | F15: 24.47556519 | G15: 27.3009729 | H15: 28.44327097 | I15: 28.1819472 | J15: 28.37957962 | K15: 28.46317837 | L15: 28.66004338 | M15: 27.13969816 | N15: 27.87223747 | O15: 27.18815285 | P15: 30.88313581 | Q15: 32.20839233 | R15: 31.33797535 | S15: 34.98911182 | T15: 38.84980763 | U15: 39.49315581 | V15: 45.43327863 | W15: 50.46201606 | X15: 51.97924933 | Y15: 53.91454609 | Z15: 55.46452473 | AA15: 57.50306048 | AB15: 61.24323104 | AC15: 58.62805608 | AD15: 60.36899925 | AE15: 62.2689516 | AF15: 50.21766745 | AG15: 58.36094926 | AH15: 63.94836489 | AI15: 9.574% | AJ15: 0.02093935233 | AK15: 0.001626542298
A16: Trinidad & Tobago | B16: 21.72424208 | C16: 21.11495776 | D16: 22.14558474 | E16: 19.98588157 | F16: 18.44941256 | G16: 19.33970555 | H16: 20.04142663 | I16: 18.72479986 | J16: 18.26336833 | K16: 20.90202505 | L16: 19.03056101 | M16: 20.36529627 | N16: 22.02506261 | O16: 25.34801052 | P16: 27.09439477 | Q16: 28.28811784 | R16: 33.39352246 | S16: 34.08308921 | T16: 33.69603606 | U16: 31.95333475 | V16: 34.43305955 | W16: 34.22064521 | X16: 33.58164823 | Y16: 34.43788121 | Z16: 33.44402791 | AA16: 32.02584463 | AB16: 28.86930174 | AC16: 28.28011992 | AD16: 27.6562854 | AE16: 24.43984718 | AF16: 21.22922278 | AG16: 20.73024157 | AH16: 20.57096133 | AI16: -0.768% | AJ16: -0.04782832514 | AK16: 0.0005232274315
A17: Venezuela | B17: 225.4254519 | C17: 230.1004107 | D17: 241.7601457 | E17: 244.0541484 | F17: 257.4246046 | G17: 274.5831059 | H17: 281.046224 | I17: 305.1181159 | J17: 314.8075844 | K17: 300.8522649 | L17: 308.6657627 | M17: 318.6759713 | N17: 315.0181209 | O17: 294.5194808 | P17: 315.9836136 | Q17: 324.4655472 | R17: 327.9032077 | S17: 340.0023306 | T17: 339.3805145 | U17: 328.4299756 | V17: 325.5897783 | W17: 332.0646783 | X17: 356.5228148 | Y17: 361.6774958 | Z17: 350.9396419 | AA17: 342.8234938 | AB17: 310.3766036 | AC17: 284.2393532 | AD17: 241.452163 | AE17: 203.384416 | AF17: 149.7712279 | AG17: 167.9709443 | AH17: 185.3943544 | AI17: 10.373% | AJ17: -0.06329914244 | AK17: 0.004715550738
A18: Central America | B18: 22.93231732 | C18: 24.90638489 | D18: 28.0077456 | E18: 30.13734909 | F18: 32.87616912 | G18: 36.22794075 | H18: 35.80982879 | I18: 38.76037239 | J18: 44.48349424 | K18: 43.79697823 | L18: 45.59915674 | M18: 48.91171379 | N18: 49.70184303 | O18: 51.78848913 | P18: 53.29827279 | Q18: 52.87116392 | R18: 55.59506205 | S18: 58.31462874 | T18: 59.53471807 | U18: 57.63175204 | V18: 58.91289948 | W18: 61.10590741 | X18: 63.02954366 | Y18: 64.45254489 | Z18: 66.25118796 | AA18: 73.21854961 | AB18: 75.88198225 | AC18: 76.40253436 | AD18: 76.54603212 | AE18: 84.22017879 | AF18: 71.62726813 | AG18: 81.14265467 | AH18: 84.45312328 | AI18: 4.080% | AJ18: 0.02969156536 | AK18: 0.002148085842
A19: Other Caribbean | B19: 91.33233748 | C19: 86.40553319 | D19: 84.55403874 | E19: 85.76230929 | F19: 90.49756378 | G19: 88.74899573 | H19: 90.26432951 | I19: 96.06018003 | J19: 99.46248497 | K19: 93.17373142 | L19: 110.7277197 | M19: 121.870983 | N19: 120.6692011 | O19: 123.7746572 | P19: 126.5943916 | Q19: 126.9319768 | R19: 132.2417158 | S19: 129.0824007 | T19: 121.3570447 | U19: 114.8201234 | V19: 112.7870572 | W19: 112.8772747 | X19: 110.0561595 | Y19: 107.0500077 | Z19: 108.2927289 | AA19: 112.2366134 | AB19: 115.0709835 | AC19: 110.7740934 | AD19: 113.5156131 | AE19: 115.9413614 | AF19: 106.0045629 | AG19: 104.8828555 | AH19: 106.8057077 | AI19: 1.833% | AJ19: -0.002993451439 | AK19: 0.002716629293
A20: Other South America | B20: 19.36980056 | C20: 20.88864544 | D20: 22.08567406 | E20: 23.88826484 | F20: 25.03621927 | G20: 24.93232474 | H20: 25.77013091 | I20: 26.22051705 | J20: 26.23512414 | K20: 28.02852188 | L20: 25.12217915 | M20: 24.31192437 | N20: 24.78036287 | O20: 26.1441459 | P20: 27.9598533 | Q20: 29.32618392 | R20: 30.35241665 | S20: 32.98770262 | T20: 36.73767204 | U20: 37.23355074 | V20: 37.78276935 | W20: 41.4128824 | X20: 42.56449566 | Y20: 43.71646238 | Z20: 44.80501603 | AA20: 45.35504021 | AB20: 47.17342738 | AC20: 47.81035903 | AD20: 48.45406248 | AE20: 48.29212694 | AF20: 41.93774898 | AG20: 49.68914531 | AH20: 51.18571939 | AI20: 3.012% | AJ20: 0.01861515175 | AK20: 0.001301921289
A21: Total S. & Cent. America | B21: 866.5547033 | C21: 882.245309 | D21: 911.7507301 | E21: 933.5726123 | F21: 983.9413619 | G21: 1041.462927 | H21: 1090.869608 | I21: 1159.522595 | J21: 1200.830549 | K21: 1183.191399 | L21: 1214.905211 | M21: 1237.732576 | N21: 1227.53545 | O21: 1226.740778 | P21: 1303.240059 | Q21: 1332.727751 | R21: 1379.315895 | S21: 1444.008861 | T21: 1480.319955 | U21: 1424.973654 | V21: 1497.670076 | W21: 1550.619014 | X21: 1631.604035 | Y21: 1688.762327 | Z21: 1718.802089 | AA21: 1699.758954 | AB21: 1648.699754 | AC21: 1610.915095 | AD21: 1554.072675 | AE21: 1514.919652 | AF21: 1341.532156 | AG21: 1489.271355 | AH21: 1514.830349 | AI21: 0.0171620803 | AJ21: -0.007398510247 | AK21: 0.03853008035
A23: Austria | B23: 61.08663137 | C23: 65.96001463 | D23: 60.63056202 | E23: 61.02614735 | F23: 61.5454987 | G23: 63.70630632 | H23: 65.45586615 | I23: 66.0995611 | J23: 66.21121666 | K23: 65.59140337 | L23: 66.18577015 | M23: 70.82852001 | N23: 71.98448068 | O23: 77.72608616 | P23: 76.34237038 | Q23: 77.36513459 | R23: 75.47716098 | S23: 71.8795546 | T23: 72.62654876 | U23: 66.07364062 | V23: 70.16079657 | W23: 67.72463931 | X23: 64.67926561 | Y23: 65.0986022 | Z23: 60.85569513 | AA23: 62.8712608 | AB23: 63.80935413 | AC23: 66.57302158 | AD23: 64.55277523 | AE23: 66.15835032 | AF23: 58.51575514 | AG23: 60.71607542 | AH23: 57.83395518 | AI23: -4.747% | AJ23: -0.01112412592 | AK23: 0.001471020792
A24: Belgium | B24: 129.6565591 | C24: 133.8892763 | D24: 131.3146697 | E24: 129.27829 | F24: 132.8470658 | G24: 132.269702 | H24: 140.2717392 | I24: 139.1377919 | J24: 143.0847643 | K24: 136.4304548 | L24: 139.6165885 | M24: 139.3270219 | N24: 137.1705394 | O24: 144.201168 | P24: 142.9387585 | Q24: 139.136793 | R24: 141.3164824 | S24: 140.8292908 | T24: 142.1630681 | U24: 127.4404903 | V24: 136.0929983 | W24: 123.3758455 | X24: 118.9226167 | Y24: 119.9677899 | Z24: 111.7483442 | AA24: 117.6689677 | AB24: 119.4170409 | AC24: 121.1998654 | AD24: 128.0582013 | AE24: 124.6381879 | AF24: 108.0027161 | AG24: 116.2599261 | AH24: 110.9250908 | AI24: -4.589% | AJ24: -0.006937611475 | AK24: 0.002821406808
A25: Bulgaria | B25: 77.98833963 | C25: 62.51354562 | D25: 60.91811885 | E25: 63.06713721 | F25: 59.73940152 | G25: 62.43408388 | H25: 60.42194305 | I25: 59.16967786 | J25: 56.47543605 | K25: 48.42787587 | L25: 45.87711737 | M25: 48.89453847 | N25: 47.06634757 | O25: 50.99692636 | P25: 49.27689079 | Q25: 51.23693208 | R25: 52.08352394 | S25: 55.94397459 | T25: 53.47254449 | U25: 45.68824073 | V25: 47.7385821 | W25: 53.108912 | X25: 48.48058232 | Y25: 43.05605254 | Z25: 45.57751139 | AA25: 48.67700797 | AB25: 45.80553583 | AC25: 48.73917031 | AD25: 45.35779309 | AE25: 44.13599915 | AF25: 38.49931857 | AG25: 44.42706054 | AH25: 48.7646135 | AI25: 9.763% | AJ25: 0.0005843269935 | AK25: 0.001240339869
A26: Croatia | B26: 23.88336677 | C26: 16.97627015 | D26: 16.71458707 | E26: 17.77916141 | F26: 16.73112453 | G26: 17.23141521 | H26: 17.19634491 | I26: 18.77249229 | J26: 20.99978055 | K26: 20.89884808 | L26: 19.89451043 | M26: 21.13239939 | N26: 22.23414739 | O26: 23.57707953 | P26: 22.8900397 | Q26: 23.44562011 | R26: 23.70723461 | S26: 24.98037005 | T26: 23.8532239 | U26: 22.20213946 | V26: 21.3626674 | W26: 20.48077785 | X26: 18.63256202 | Y26: 18.18229867 | Z26: 17.93984373 | AA26: 18.33197178 | AB26: 18.66480058 | AC26: 19.22983717 | AD26: 18.26083687 | AE26: 18.10053744 | AF26: 16.67845431 | AG26: 17.08674078 | AH26: 17.24290574 | AI26: 0.914% | AJ26: -0.007721028415 | AK26: 0.0004385775238
A27: Czech Republic | B27: 168.0980592 | C27: 155.1376773 | D27: 148.0047956 | E27: 145.0193927 | F27: 138.8427573 | G27: 139.9417196 | H27: 142.8386193 | I27: 137.2022267 | J27: 131.1572659 | K27: 122.4957633 | L27: 133.1772249 | M27: 133.933862 | N27: 129.112461 | O27: 132.468092 | P27: 133.1874835 | Q27: 131.8126921 | R27: 134.5458673 | S27: 134.4092872 | T27: 128.8461035 | U27: 121.0781046 | V27: 123.9612147 | W27: 120.7510801 | X27: 116.6385513 | Y27: 111.4219606 | Z27: 108.3438265 | AA27: 109.1943931 | AB27: 111.1357263 | AC27: 110.904772 | AD27: 109.8557871 | AE27: 104.4936031 | AF27: 93.97560734 | AG27: 98.28409698 | AH27: 99.55957521 | AI27: 1.298% | AJ27: -0.01570769069 | AK27: 0.00253232214
A28: Denmark | B28: 57.61177731 | C28: 67.77974281 | D28: 62.74899301 | E28: 66.15076962 | F28: 71.09694671 | G28: 68.28895636 | H28: 82.28775043 | I28: 72.72923257 | J28: 68.40885466 | K28: 65.80586701 | L28: 61.87864619 | M28: 62.0447389 | N28: 61.14476606 | O28: 66.27098399 | P28: 60.69016893 | Q28: 56.13977336 | R28: 64.42517191 | S28: 59.42581303 | T28: 55.54568227 | U28: 51.68016971 | V28: 52.70834523 | W28: 47.30028075 | X28: 42.11190038 | Y28: 44.29118264 | Z28: 40.58768723 | AA28: 37.8776412 | AB28: 39.47207329 | AC28: 36.80770718 | AD28: 37.03127079 | AE28: 33.54358029 | AF28: 27.92189597 | AG28: 30.09671154 | AH28: 29.52474974 | AI28: -1.900% | AJ28: -0.03488706022 | AK28: 0.0007509692291
A29: Estonia | B29: 41.59315958 | C29: 38.04242247 | D29: 27.57318181 | E29: 22.92513294 | F29: 23.08733804 | G29: 20.94928515 | H29: 22.1502779 | I29: 21.87968514 | J29: 19.34504006 | K29: 17.6635027 | L29: 18.30422375 | M29: 18.88748673 | N29: 18.92354368 | O29: 20.80575345 | P29: 20.93116858 | Q29: 20.82698797 | R29: 20.40053255 | S29: 24.31506515 | T29: 22.16674872 | U29: 18.89159003 | V29: 23.79883573 | W29: 23.8933802 | X29: 23.30877161 | Y29: 24.95605649 | Z29: 24.02336486 | AA29: 21.65859953 | AB29: 22.48526274 | AC29: 24.90028652 | AD29: 24.48329081 | AE29: 18.72937343 | AF29: 15.89386143 | AG29: 16.87399921 | AH29: 17.17058763 | AI29: 1.758% | AJ29: -0.03010085343 | AK29: 0.0004367380951
A30: France | B30: 380.1979409 | C30: 403.2293074 | D30: 390.938768 | E30: 372.8158849 | F30: 359.6769077 | G30: 366.9820608 | H30: 383.1972767 | I30: 371.3481499 | J30: 395.643218 | K30: 394.8548498 | L30: 392.1901805 | M30: 394.2643718 | N30: 390.9627593 | O30: 397.979234 | P30: 400.4367913 | Q30: 401.1684421 | R30: 391.554732 | S30: 382.0773778 | T30: 380.8075798 | U30: 364.5712638 | V30: 370.5210662 | W30: 344.1490011 | X30: 345.0366862 | Y30: 344.4361026 | Z30: 310.4004712 | AA30: 316.1157319 | AB30: 321.9043053 | AC30: 326.3880828 | AD30: 315.3387361 | AE30: 307.9296836 | AF30: 259.6482484 | AG30: 282.903559 | AH30: 277.943152 | AI30: -1.753% | AJ30: -0.02139130445 | AK30: 0.007069552035
A31: Germany | B31: 1027.651093 | C31: 988.3275215 | D31: 942.9936977 | E31: 935.7553357 | F31: 917.3292948 | G31: 910.4147785 | H31: 935.6161441 | I31: 909.0208657 | J31: 900.3526975 | K31: 877.5214742 | L31: 875.4623175 | M31: 891.1750617 | N31: 877.9238108 | O31: 881.5513331 | P31: 867.4301708 | Q31: 845.2422354 | R31: 863.1265547 | S31: 831.360109 | T31: 828.5539055 | U31: 771.4764458 | V31: 800.7880713 | W31: 781.9552112 | X31: 791.0226606 | Y31: 814.98188 | Z31: 768.2088192 | AA31: 772.4729521 | AB31: 787.5795449 | AC31: 779.0337972 | AD31: 750.7697098 | AE31: 697.7860365 | AF31: 623.188255 | AG31: 660.9305396 | AH31: 652.3533458 | AI31: -1.298% | AJ31: -0.01908946947 | AK31: 0.01659276687
A32: Greece | B32: 89.55777597 | C32: 89.47883915 | D32: 92.24624139 | E32: 93.44923348 | F32: 94.83770929 | G32: 97.33213848 | H32: 98.44088356 | I32: 102.0493207 | J32: 107.5707348 | K32: 105.9875685 | L32: 111.5429654 | M32: 113.7188943 | N32: 112.5373466 | O32: 116.1934058 | P32: 116.2498465 | Q32: 117.0047046 | R32: 117.2190147 | S32: 121.5468203 | T32: 116.9842847 | U32: 110.2853519 | V32: 101.6493517 | W32: 99.98874205 | X32: 94.47040963 | Y32: 85.47025167 | Z32: 81.80499945 | AA32: 78.96547837 | AB32: 75.6525292 | AC32: 79.97342375 | AD32: 78.32217735 | AE32: 73.99837709 | AF32: 59.85318493 | AG32: 62.93384134 | AH32: 66.35634298 | AI32: 5.438% | AJ32: -0.03470809435 | AK32: 0.00168778981
A33: Hungary | B33: 75.88116433 | C33: 69.87946242 | D33: 65.88382171 | E33: 62.09028378 | F33: 62.0422432 | G33: 61.84542849 | H33: 62.575634 | I33: 61.07541172 | J33: 61.49546321 | K33: 62.22088338 | L33: 58.91883738 | M33: 60.17816961 | N33: 58.67629578 | O33: 61.38903179 | P33: 60.395717 | Q33: 60.08873903 | R33: 59.80661886 | S33: 57.70309113 | T33: 56.4152992 | U33: 50.63784669 | V33: 50.85327953 | W33: 50.61143971 | X33: 46.48555975 | Y33: 43.6676926 | Z33: 42.95214271 | AA33: 45.59664464 | AB33: 46.49242394 | AC33: 48.75915659 | AD33: 49.34456996 | AE33: 49.48007905 | AF33: 46.97877116 | AG33: 48.3379386 | AH33: 44.84974808 | AI33: -7.216% | AJ33: -0.003575965932 | AK33: 0.001140764309
A34: Ireland | B34: 33.04275224 | C34: 33.66637475 | D34: 33.63066129 | E34: 34.14850466 | F34: 35.36323756 | G34: 36.36837436 | H34: 37.9431779 | I34: 39.19406929 | J34: 41.63301044 | K34: 43.73996455 | L34: 46.03724129 | M34: 48.68009177 | N34: 47.69518661 | O34: 47.7529126 | P34: 48.26791864 | Q34: 50.42817524 | R34: 50.77598713 | S34: 50.98298137 | T34: 50.2019892 | U34: 43.42267047 | V34: 43.60595121 | W34: 39.85940053 | X34: 39.85705837 | Y34: 39.0096585 | Z34: 38.93496987 | AA34: 40.61932961 | AB34: 43.12703127 | AC34: 42.13749324 | AD34: 41.97878307 | AE34: 40.32417092 | AF34: 35.86516882 | AG34: 38.06842266 | AH34: 38.84187268 | AI34: 2.032% | AJ34: -0.002576740048 | AK34: 0.0009879525295
A35: Italy | B35: 423.9976456 | C35: 427.3748688 | D35: 424.5904844 | E35: 415.2698417 | F35: 411.8770858 | G35: 433.4225889 | H35: 426.9729556 | I35: 433.9213005 | J35: 446.2743882 | K35: 447.9653596 | L35: 455.7694033 | M35: 451.2765823 | N35: 454.7637545 | O35: 473.6199152 | P35: 491.711641 | Q35: 493.9122297 | R35: 490.6754075 | S35: 481.9592342 | T35: 464.5203264 | U35: 410.1889744 | V35: 416.0657398 | W35: 406.4888226 | X35: 386.280599 | Y35: 355.2658725 | Z35: 331.7447896 | AA35: 347.3825405 | AB35: 343.8440602 | AC35: 348.0796388 | AD35: 348.6846594 | AE35: 341.3013491 | AF35: 298.0504096 | AG35: 327.1355749 | AH35: 329.8047747 | AI35: 0.816% | AJ35: -0.01568205159 | AK35: 0.008388665089
A36: Lithuania | B36: 37.73933561 | C36: 40.52343877 | D36: 21.49122366 | E36: 16.74638292 | F36: 15.83230119 | G36: 14.64096496 | H36: 15.14646345 | I36: 14.47165419 | J36: 15.12411392 | K36: 12.95792467 | L36: 11.18878689 | M36: 12.39813813 | N36: 11.88787624 | O36: 12.06141703 | P36: 12.59013305 | Q36: 13.6273719 | R36: 13.94542532 | S36: 13.73246371 | T36: 13.74187441 | U36: 12.51952234 | V36: 13.4601111 | W36: 12.77199182 | X36: 12.84083847 | Y36: 12.13742795 | Z36: 11.40437601 | AA36: 11.8122509 | AB36: 12.13420798 | AC36: 12.30380944 | AD36: 13.0525055 | AE36: 13.02123245 | AF36: 12.64569225 | AG36: 12.83818371 | AH36: 12.28851333 | AI36: -4.282% | AJ36: -0.004386913977 | AK36: 0.0003125613414
A37: Netherlands | B37: 192.6905133 | C37: 200.5231433 | D37: 200.9686813 | E37: 205.8404551 | F37: 203.0667431 | G37: 209.3354833 | H37: 220.2257171 | I37: 217.9304571 | J37: 218.8009013 | K37: 215.9164314 | L37: 216.9488118 | M37: 226.6823153 | N37: 226.7413335 | O37: 226.1604517 | P37: 232.1749507 | Q37: 233.8205688 | R37: 232.2930984 | S37: 229.8195363 | T37: 227.9306121 | U37: 218.3866103 | V37: 230.5379437 | W37: 221.5185748 | X37: 216.3393697 | Y37: 212.0123957 | Z37: 203.1306029 | AA37: 210.4818687 | AB37: 208.5109341 | AC37: 205.0173122 | AD37: 198.4606104 | AE37: 193.8171072 | AF37: 172.9890045 | AG37: 177.2242575 | AH37: 169.2541681 | AI37: -4.497% | AJ37: -0.02424590799 | AK37: 0.004305021153
A38: North Macedonia | B38: 9.104243087 | C38: 8.90060435 | D38: 9.10530374 | E38: 9.41271322 | F38: 8.812352228 | G38: 8.814254576 | H38: 10.03400791 | I38: 8.977279808 | J38: 10.34577606 | K38: 9.473231971 | L38: 9.077150248 | M38: 9.196802117 | N38: 8.647272684 | O38: 9.380413612 | P38: 9.089701863 | Q38: 9.462127279 | R38: 9.463857014 | S38: 9.919284092 | T38: 9.803879261 | U38: 9.1611115 | V38: 8.93040595 | W38: 9.809778541 | X38: 9.352941677 | Y38: 8.267513246 | Z38: 7.801984656 | AA38: 7.479782134 | AB38: 7.27246293 | AC38: 7.780073687 | AD38: 8.466131218 | AE38: 8.356637001 | AF38: 6.878440922 | AG38: 6.885975335 | AH38: 7.351954643 | AI38: 6.767% | AJ38: -0.02378503872 | AK38: 0.0001869987641
A39: Norway | B39: 31.04172068 | C39: 29.10590033 | D39: 30.66779639 | E39: 31.85635148 | F39: 33.79015133 | G39: 34.01285851 | H39: 36.76463455 | I39: 38.06790909 | J39: 39.06023599 | K39: 39.13976829 | L39: 37.0371251 | M39: 39.11803561 | N39: 38.56775831 | O39: 40.13756944 | P39: 40.4119019 | Q39: 39.44527627 | R39: 39.7319659 | S39: 39.33598267 | T39: 38.72113864 | U39: 38.76198817 | V39: 40.09566517 | W39: 39.82511307 | X39: 39.57650254 | Y39: 39.2973031 | Z39: 38.24716323 | AA39: 38.16191586 | AB39: 37.31600531 | AC39: 37.12643653 | AD39: 37.14942862 | AE39: 36.01116845 | AF39: 34.58551011 | AG39: 34.92707438 | AH39: 33.85483977 | AI39: -3.070% | AJ39: -0.01549407298 | AK39: 0.0008611061278
A40: Poland | B40: 379.7797791 | C40: 374.6737167 | D40: 359.4387673 | E40: 358.2575161 | F40: 341.8115021 | G40: 348.9298726 | H40: 362.2223842 | I40: 358.1997752 | J40: 338.1945033 | K40: 330.9229141 | L40: 306.9958033 | M40: 303.9502615 | N40: 300.2092121 | O40: 309.2879567 | P40: 308.251817 | Q40: 313.6056751 | R40: 328.035737 | S40: 325.8398699 | T40: 327.510961 | U40: 312.3234711 | V40: 331.3572154 | W40: 332.7152852 | X40: 315.8898608 | Y40: 317.7407753 | Z40: 301.2463402 | AA40: 301.1573768 | AB40: 314.236735 | AC40: 323.9592041 | AD40: 329.2755621 | AE40: 311.1473468 | AF40: 292.9460722 | AG40: 319.0547352 | AH40: 305.0371273 | AI40: -4.393% | AJ40: -0.003489907377 | AK40: 0.007758693921
A41: Romania | B41: 200.1029069 | C41: 161.4799394 | D41: 141.4954849 | E41: 138.0425193 | F41: 132.5366105 | G41: 142.8203919 | H41: 141.1266672 | I41: 128.5392352 | J41: 114.5915415 | K41: 98.5271689 | L41: 100.9392942 | M41: 102.9760823 | N41: 106.3756801 | O41: 110.56383 | P41: 111.5965426 | Q41: 107.7213432 | R41: 113.7377562 | S41: 109.8744517 | T41: 107.4270472 | U41: 90.86326588 | V41: 87.90650177 | W41: 95.20860133 | X41: 91.78565138 | Y41: 79.34828926 | Z41: 80.94908152 | AA41: 81.97691269 | AB41: 78.97560018 | AC41: 82.75636606 | AD41: 83.35840181 | AE41: 81.75232165 | AF41: 74.32287578 | AG41: 78.8487941 | AH41: 75.58701752 | AI41: -4.137% | AJ41: -0.01922984547 | AK41: 0.001922574273
A42: Slovakia | B42: 56.80651156 | C42: 49.94990286 | D42: 47.62776661 | E42: 44.62347367 | F42: 41.46699341 | G42: 42.21008042 | H42: 42.28995903 | I42: 41.10520785 | J42: 41.31685064 | K42: 40.4367478 | L42: 37.8518461 | M42: 40.61272983 | N42: 40.03310214 | O42: 40.35593432 | P42: 39.84513695 | Q42: 40.64909982 | R42: 39.66893433 | S42: 37.522907 | T42: 38.57664128 | U42: 35.12773618 | V42: 37.29412025 | W42: 35.45618254 | X42: 33.75892322 | Y42: 33.92030517 | Z42: 31.51709592 | AA42: 31.9124113 | AB42: 32.35781334 | AC42: 34.46767874 | AD42: 33.81532575 | AE42: 31.54913579 | AF42: 29.35315785 | AG42: 32.71388018 | AH42: 31.83892318 | AI42: -2.675% | AJ42: -0.005838413166 | AK42: 0.0008098307965
A43: Slovenia | B43: 13.81037428 | C43: 12.9381841 | D43: 12.67105968 | E43: 13.31273415 | F43: 13.53570514 | G43: 14.38961889 | H43: 15.14866502 | I43: 15.71484326 | J43: 15.20090078 | K43: 14.78820916 | L43: 14.53210555 | M43: 15.23744187 | N43: 15.4346488 | O43: 15.27980821 | P43: 15.5353563 | Q43: 15.75042956 | R43: 16.2052421 | S43: 16.27944342 | T43: 17.46286337 | U43: 15.4375774 | V43: 15.64048481 | W43: 15.55509982 | X43: 15.05090669 | Y43: 14.51771091 | Z43: 13.0814768 | AA43: 13.10123845 | AB43: 14.01368949 | AC43: 14.32474886 | AD43: 14.42799393 | AE43: 13.79802753 | AF43: 12.39982698 | AG43: 12.58908442 | AH43: 12.63804282 | AI43: 0.389% | AJ43: -0.01732090787 | AK43: 0.0003214517094
A44: Spain | B44: 230.7637787 | C44: 235.7813417 | D44: 255.1361361 | E44: 239.3554616 | F44: 248.7265575 | G44: 263.3407521 | H44: 259.2921386 | I44: 279.2526739 | J44: 290.8431051 | K44: 315.7597167 | L44: 326.5061309 | M44: 331.4414035 | N44: 350.2132755 | O44: 358.276967 | P44: 380.4853107 | Q44: 393.6803172 | R44: 387.9215663 | S44: 399.0528554 | T44: 370.459863 | U44: 328.7788663 | V44: 312.3256651 | W44: 318.8376227 | X44: 315.7749057 | Y44: 283.0799701 | Z44: 281.6960392 | AA44: 297.6882 | AB44: 290.3966267 | AC44: 308.1753509 | AD44: 303.1534417 | AE44: 285.4509854 | AF44: 231.7300018 | AG44: 252.2790575 | AH44: 269.2027099 | AI44: 6.708% | AJ44: -0.01582986668 | AK44: 0.006847236754
A45: Sweden | B45: 68.67179319 | C45: 60.86114975 | D45: 62.65513191 | E45: 62.11688336 | F45: 65.38302222 | G45: 62.87427609 | H45: 68.03618876 | I45: 62.39752247 | J45: 69.58635218 | K45: 66.44363141 | L45: 59.06499517 | M45: 60.53091472 | N45: 61.15043505 | O45: 65.47241618 | P45: 63.21864817 | Q45: 61.89458671 | R45: 63.55510494 | S45: 60.17735021 | T45: 57.55618089 | U45: 54.5962011 | V45: 58.23083398 | W45: 53.35076761 | X45: 50.49899533 | Y45: 49.40587808 | Z45: 47.43420217 | AA45: 47.89786824 | AB45: 48.02312623 | AC45: 46.90264685 | AD45: 46.2602652 | AE45: 48.54020932 | AF45: 44.01327529 | AG45: 41.25866869 | AH45: 42.14006815 | AI45: 2.136% | AJ45: -0.01793270219 | AK45: 0.001071842938
A46: Turkey | B46: 151.0731364 | C46: 156.061487 | D46: 161.6584436 | E46: 165.7808776 | F46: 164.9644589 | G46: 179.675492 | H46: 194.3321253 | I46: 204.8138729 | J46: 207.1076788 | K46: 206.8788296 | L46: 225.3075658 | M46: 205.4371419 | N46: 216.3484893 | O46: 228.7298376 | P46: 237.4015013 | Q46: 247.9463609 | R46: 273.3522701 | S46: 300.5181923 | T46: 306.7221792 | U46: 308.0540803 | V46: 312.0698352 | W46: 336.1510221 | X46: 351.3978459 | Y46: 342.3722195 | Z46: 375.0708548 | AA46: 380.3548059 | AB46: 401.8403619 | AC46: 441.686849 | AD46: 435.8731791 | AE46: 425.6825346 | AF46: 424.7975776 | AG46: 463.7920136 | AH46: 453.2475206 | AI46: -2.274% | AJ46: 0.02577859938 | AK46: 0.01152846152
A47: Ukraine | B47: 785.0242142 | C47: 730.1460435 | D47: 624.3047705 | E47: 537.504483 | F47: 446.9159482 | G47: 436.4150085 | H47: 379.1271285 | I47: 364.8731548 | J47: 352.7900643 | K47: 347.0525754 | L47: 347.3883434 | M47: 341.0888605 | N47: 341.3689569 | O47: 349.58941 | P47: 331.3731972 | Q47: 330.0731667 | R47: 338.9703735 | S47: 342.6611974 | T47: 332.2813777 | U47: 282.5947427 | V47: 300.3258242 | W47: 315.088513 | X47: 309.953228 | Y47: 297.937509 | Z47: 257.4188244 | AA47: 204.8911143 | AB47: 225.6871043 | AC47: 197.4853395 | AD47: 208.8218874 | AE47: 195.5500448 | AF47: 181.3860773 | AG47: 177.7193058 | AH47: 117.7984144 | AI47: -33.717% | AJ47: -0.09221222873 | AK47: 0.002996231474
A48: United Kingdom | B48: 615.7760685 | C48: 624.5334112 | D48: 607.4958817 | E48: 594.3282139 | F48: 584.9888031 | G48: 581.2737015 | H48: 602.674764 | I48: 582.6654729 | J48: 583.3634203 | K48: 574.6510362 | L48: 589.0828946 | M48: 598.7078076 | N48: 579.0152634 | O48: 588.1472671 | P48: 595.6031651 | Q48: 599.1688716 | R48: 601.082242 | S48: 588.5277351 | T48: 577.4598795 | U48: 526.2897278 | V48: 540.3888896 | W48: 502.5704196 | X48: 521.0489102 | Y48: 509.5261168 | Z48: 468.2787658 | AA48: 451.7568192 | AB48: 428.5412711 | AC48: 417.198787 | AD48: 409.1397818 | AE48: 393.8901005 | AF48: 332.6519975 | AG48: 352.4338202 | AH48: 354.8244513 | AI48: 0.678% | AJ48: -0.03769331053 | AK48: 0.009025046683
A49: Other Europe | B49: 338.5222494 | C49: 316.7129161 | D49: 300.2388493 | E49: 282.3497351 | F49: 271.8976513 | G49: 275.300491 | H49: 284.1271079 | I49: 295.4613231 | J49: 302.2567751 | K49: 289.5799579 | L49: 299.7511936 | M49: 311.6127559 | N49: 322.6384429 | O49: 334.781755 | P49: 339.6126835 | Q49: 331.1226853 | R49: 341.9042599 | S49: 323.3466235 | T49: 318.4737471 | U49: 313.0198453 | V49: 317.0943227 | W49: 314.9240226 | X49: 299.5639254 | Y49: 301.3158442 | Z49: 280.8594292 | AA49: 292.0095244 | AB49: 297.7960818 | AC49: 306.0379255 | AD49: 301.550885 | AE49: 296.1205392 | AF49: 268.1014659 | AG49: 263.1837958 | AH49: 263.624966 | AI49: 0.168% | AJ49: -0.01269871471 | AK49: 0.006705365473
A50: Total Europe | B50: 5701.15289 | C50: 5554.446502 | D50: 5293.143879 | E50: 5118.302916 | F50: 4958.745411 | G50: 5025.220084 | H50: 5105.916564 | I50: 5044.070167 | J50: 5057.23409 | K50: 4972.131959 | L50: 5006.527073 | M50: 5053.33243 | N50: 5048.827186 | O50: 5182.756956 | P50: 5207.939012 | Q50: 5205.77634 | R50: 5284.982122 | S50: 5234.020862 | T50: 5140.285549 | U50: 4749.551675 | V50: 4864.964719 | W50: 4783.470527 | X50: 4718.760028 | Y50: 4610.684659 | Z50: 4381.258702 | AA50: 4388.114608 | AB50: 4436.491709 | AC50: 4487.948781 | AD50: 4434.84399 | AE50: 4255.306719 | AF50: 3801.872623 | AG50: 4029.803133 | AH50: 3939.859431 | AI50: -0.02231962683 | AJ50: -0.01787835288 | AK50: 0.100211288
A52: Azerbaijan | B52: 98.32730845 | C52: 93.0126515 | D52: 81.41274538 | E52: 67.72114172 | F52: 55.62379981 | G52: 52.66723303 | H52: 45.75744693 | I52: 44.25416601 | J52: 44.49940724 | K52: 44.32222796 | L52: 45.19588409 | M52: 43.38612468 | N52: 43.04911038 | O52: 38.33927919 | P52: 41.34217419 | Q52: 46.1799858 | R52: 44.33934651 | S52: 44.09975307 | T52: 44.90892289 | U52: 38.80812822 | V52: 37.13854263 | W52: 40.37919256 | X52: 40.7754608 | Y52: 41.1466746 | Z52: 41.40787123 | AA52: 43.38459352 | AB52: 42.71920141 | AC52: 41.31219013 | AD52: 43.26330846 | AE52: 44.11516693 | AF52: 44.1893097 | AG52: 47.06636295 | AH52: 47.40140123 | AI52: 0.712% | AJ52: 0.01517106379 | AK52: 0.001205666231
A53: Belarus | B53: 95.64029706 | C53: 96.46526077 | D53: 91.58994444 | E53: 78.12239882 | F53: 65.68835816 | G53: 57.9549998 | H53: 59.3873661 | I53: 60.03715924 | J53: 58.17630333 | K53: 56.64601184 | L53: 55.23514296 | M53: 52.7909544 | N53: 53.35440624 | O53: 52.28778185 | P53: 59.10811161 | Q53: 60.41715575 | R53: 62.71156392 | S53: 61.72948258 | T53: 64.54027403 | U53: 62.60326101 | V53: 65.89596817 | W53: 62.8148968 | X53: 64.576689 | Y53: 64.09380508 | Z53: 63.10880284 | AA53: 58.23902627 | AB53: 58.40831781 | AC53: 59.32201623 | AD53: 64.62949392 | AE53: 65.14912729 | AF53: 59.53321969 | AG53: 60.5774223 | AH53: 59.11969636 | AI53: -2.406% | AJ53: -0.008790074764 | AK53: 0.001503723933
A54: Kazakhstan | B54: 259.3111886 | C54: 257.5414483 | D54: 253.8807213 | E54: 225.7315508 | F54: 210.1454634 | G54: 187.5365221 | H54: 166.924723 | I54: 152.8552853 | J54: 147.9610819 | K54: 140.5212261 | L54: 131.4579371 | M54: 149.2398492 | N54: 158.1588518 | O54: 171.7732612 | P54: 189.0259193 | Q54: 196.2963269 | R54: 210.8359222 | S54: 226.3622022 | T54: 243.3851553 | U54: 226.6753787 | V54: 237.2817201 | W54: 264.6461599 | X54: 274.6697632 | Y54: 279.1382377 | Z54: 285.049876 | AA54: 239.3401519 | AB54: 258.515958 | AC54: 277.2322907 | AD54: 286.7121176 | AE54: 281.157258 | AF54: 263.2727648 | AG54: 274.8969585 | AH54: 286.8588233 | AI54: 4.351% | AJ54: 0.004351507935 | AK54: 0.007296324316
A55: Russian Federation | B55: 2723.40723 | C55: 2629.56794 | D55: 2507.519549 | E55: 2305.494542 | F55: 2115.348768 | G55: 1996.891718 | H55: 1934.238155 | I55: 1820.564706 | J55: 1806.021986 | K55: 1818.988886 | L55: 1834.594059 | M55: 1857.543179 | N55: 1875.951913 | O55: 1938.362925 | P55: 1961.252043 | Q55: 1957.377757 | R55: 2029.630351 | S55: 2032.090301 | T55: 2057.049837 | U55: 1925.515549 | V55: 1990.874293 | W55: 2067.597744 | X55: 2084.659123 | Y55: 2060.536584 | Z55: 2055.175896 | AA55: 2029.528625 | AB55: 2056.683115 | AC55: 2054.504212 | AD55: 2138.569689 | AE55: 2141.302949 | AF55: 2014.176442 | AG55: 2175.182413 | AH55: 2024.031175 | AI55: -6.949% | AJ55: -0.002947068624 | AK55: 0.05148172787
A56: Turkmenistan | B56: 95.45056331 | C56: 95.59046388 | D56: 74.78194602 | E56: 74.64355549 | F56: 62.08834537 | G56: 57.27991652 | H56: 66.9599421 | I56: 50.38290487 | J56: 56.28945085 | K56: 62.45345281 | L56: 70.30208637 | M56: 76.40413073 | N56: 73.10883272 | O56: 89.28465278 | P56: 92.29021643 | Q56: 94.17642367 | R56: 94.80582875 | S56: 96.84919503 | T56: 96.30486369 | U56: 93.64414021 | V56: 102.1569683 | W56: 122.0754574 | X56: 131.4878815 | Y56: 133.1596484 | Z56: 133.7946008 | AA56: 146.3991028 | AB56: 143.5574631 | AC56: 142.3706282 | AD56: 151.6956445 | AE56: 152.1770307 | AF56: 163.8474669 | AG56: 180.3517104 | AH56: 183.4926166 | AI56: 1.742% | AJ56: 0.03388750468 | AK56: 0.004667179572
A57: Uzbekistan | B57: 126.9590919 | C57: 126.1338833 | D57: 120.2269302 | E57: 129.8203918 | F57: 124.5140118 | G57: 126.6143437 | H57: 130.2760449 | I57: 129.9181055 | J57: 131.0292971 | K57: 145.0950949 | L57: 148.0490901 | M57: 149.2610875 | N57: 154.076161 | O57: 142.054462 | P57: 142.8247815 | Q57: 141.2338347 | R57: 136.1337732 | S57: 142.8994383 | T57: 138.8675071 | U57: 134.0601559 | V57: 134.8504382 | W57: 141.3042397 | X57: 137.9950756 | Y57: 139.5048976 | Z57: 140.3864372 | AA57: 134.3434246 | AB57: 130.205033 | AC57: 132.9436441 | AD57: 139.1039105 | AE57: 139.3516308 | AF57: 140.1284667 | AG57: 148.1545402 | AH57: 150.8648169 | AI57: 1.829% | AJ57: 0.008956489778 | AK57: 0.003837283508
A58: Other CIS | B58: 87.88585355 | C58: 70.67902828 | D58: 54.3130728 | E58: 37.41879203 | F58: 26.26332065 | G58: 21.6511345 | H58: 22.46304431 | I58: 22.28009318 | J58: 22.25621426 | K58: 18.21203551 | L58: 16.76873217 | M58: 16.83770168 | N58: 17.24211232 | O58: 17.52130741 | P58: 19.6726916 | Q58: 20.95417811 | R58: 21.91585676 | S58: 24.88115298 | T58: 26.46023149 | U58: 24.81213771 | V58: 24.56050661 | W58: 26.3707667 | X58: 28.65524649 | Y58: 27.89793717 | Z58: 30.53832613 | AA58: 31.64206319 | AB58: 32.16627917 | AC58: 33.7356457 | AD58: 38.40092837 | AE58: 36.9865569 | AF58: 37.11846279 | AG58: 39.14520486 | AH58: 37.26545387 | AI58: -4.802% | AJ58: 0.02662119606 | AK58: 0.0009478559315
A59: Total CIS | B59: 3486.981533 | C59: 3368.990676 | D59: 3183.72491 | E59: 2918.952373 | F59: 2659.672067 | G59: 2500.595868 | H59: 2426.006723 | I59: 2280.29242 | J59: 2266.233741 | K59: 2286.238935 | L59: 2301.602932 | M59: 2345.463028 | N59: 2374.941387 | O59: 2449.62367 | P59: 2505.515938 | Q59: 2516.635662 | R59: 2600.372642 | S59: 2628.911525 | T59: 2671.516792 | U59: 2506.118751 | V59: 2592.758437 | W59: 2725.188457 | X59: 2762.81924 | Y59: 2745.477785 | Z59: 2749.46181 | AA59: 2682.876987 | AB59: 2722.255367 | AC59: 2741.420627 | AD59: 2862.375092 | AE59: 2860.23972 | AF59: 2722.266133 | AG59: 2925.374612 | AH59: 2789.033983 | AI59: -0.04660621165 | AJ59: 0.0009448131842 | AK59: 0.07093976136
A61: Iran | B61: 289.1790917 | C61: 316.61502 | D61: 335.6430264 | E61: 326.0683027 | F61: 352.5899797 | G61: 363.2584954 | H61: 378.971395 | I61: 388.0541377 | J61: 392.5711715 | K61: 420.4165751 | L61: 442.5109679 | M61: 465.83989 | N61: 486.5146734 | O61: 513.3141409 | P61: 548.9886078 | Q61: 572.6025973 | R61: 621.6457317 | S61: 655.3923275 | T61: 679.6447668 | U61: 687.0286022 | V61: 706.4588964 | W61: 723.0460757 | X61: 722.2039008 | Y61: 729.2223781 | Z61: 750.8943328 | AA61: 746.1338077 | AB61: 800.1543663 | AC61: 823.4510874 | AD61: 848.1555494 | AE61: 841.0276674 | AF61: 864.5039575 | AG61: 888.3937295 | AH61: 904.7823971 | AI61: 1.845% | AJ61: 0.02279461142 | AK61: 0.02301336151
A62: Iraq | B62: 110.2741714 | C62: 45.21647273 | D62: 67.16350136 | E62: 90.21198915 | F62: 103.9976298 | G62: 103.5599307 | H62: 104.1600029 | I62: 135.8059434 | J62: 130.7272679 | K62: 121.7096381 | L62: 149.4427859 | M62: 154.8375676 | N62: 142.6517435 | O62: 124.0786762 | P62: 145.0264533 | Q62: 137.0975165 | R62: 134.3952595 | S62: 136.1817364 | T62: 153.6042358 | U62: 157.3499327 | V62: 170.4553254 | W62: 184.5970794 | X62: 207.5932933 | Y62: 226.4428743 | Z62: 232.8475044 | AA62: 251.8517378 | AB62: 282.9209645 | AC62: 302.0893555 | AD62: 307.6619419 | AE62: 315.2754311 | AF62: 281.1903518 | AG62: 291.0805953 | AH62: 314.4568444 | AI62: 8.031% | AJ62: 0.04240088956 | AK62: 0.00799828673
A63: Israel | B63: 35.74407775 | C63: 36.60406757 | D63: 42.72996104 | E63: 45.98100789 | F63: 48.28306169 | G63: 54.15821622 | H63: 56.88689193 | I63: 60.99496128 | J63: 63.91159613 | K63: 66.00943562 | L63: 62.40018902 | M63: 63.05073575 | N63: 64.67735314 | O63: 66.52773809 | P63: 66.67357853 | Q63: 67.21137022 | R63: 68.07460189 | S63: 69.94073554 | T63: 70.84670271 | U63: 68.14469243 | V63: 70.27802567 | W63: 71.2622226 | X63: 76.71714435 | Y63: 69.54245014 | Z63: 66.9182364 | AA63: 69.58613302 | AB63: 68.73161382 | AC63: 69.44038611 | AD63: 69.40855948 | AE63: 71.3629155 | AF63: 64.78463581 | AG63: 64.78260553 | AH63: 67.97726916 | AI63: 4.931% | AJ63: -0.01202233088 | AK63: 0.001729018463
A64: Kuwait | B64: 33.91979825 | C64: 43.71668343 | D64: 28.44322971 | E64: 37.8654397 | F64: 43.73609892 | G64: 51.0550081 | H64: 50.94053244 | I64: 52.55810701 | J64: 59.01904127 | K64: 59.88146203 | L64: 64.0150117 | M64: 64.25915334 | N64: 68.23252454 | O64: 82.04645301 | P64: 91.25289743 | Q64: 99.35338688 | R64: 95.77862841 | S64: 92.70179979 | T64: 98.68515807 | U64: 97.41767643 | V64: 106.7915825 | W64: 110.2117094 | X64: 113.3263804 | Y64: 119.5717711 | Z64: 121.1173518 | AA64: 123.3466451 | AB64: 123.871772 | AC64: 123.0633621 | AD64: 126.1539255 | AE64: 116.2062243 | AF64: 108.4084839 | AG64: 113.0994469 | AH64: 120.5403321 | AI64: 6.579% | AJ64: 0.006190323853 | AK64: 0.003065972822
A65: Oman | B65: 18.92344574 | C65: 22.90537076 | D65: 22.95555035 | E65: 23.50434376 | F65: 22.95511425 | G65: 25.20118948 | H65: 25.75013787 | I65: 27.85734164 | J65: 27.49319219 | K65: 31.24654759 | L65: 38.92612464 | M65: 42.32076969 | N65: 45.49426701 | O65: 46.91740806 | P65: 45.12921557 | Q65: 47.63530462 | R65: 51.18333487 | S65: 51.31334962 | T65: 57.97064673 | U65: 57.91966171 | V65: 65.67529774 | W65: 69.18905681 | X65: 76.68510937 | Y65: 87.79782543 | Z65: 87.43538683 | AA65: 91.84727394 | AB65: 94.21103678 | AC65: 95.93711946 | AD65: 99.91321062 | AE65: 99.75545815 | AF65: 94.55685082 | AG65: 102.6227331 | AH65: 106.8411562 | AI65: 4.111% | AJ65: 0.03371960698 | AK65: 0.002717530934
A66: Qatar | B66: 15.39251453 | C66: 19.37362118 | D66: 27.09803717 | E66: 29.62403256 | F66: 30.66347173 | G66: 30.97167395 | H66: 24.82183526 | I66: 28.56043186 | J66: 30.66458257 | K66: 34.05880764 | L66: 31.71253121 | M66: 30.33416802 | N66: 33.75722179 | O66: 45.15224517 | P66: 52.12197876 | Q66: 55.90731546 | R66: 57.78353393 | S66: 65.11860377 | T66: 73.82031748 | U66: 76.52235857 | V66: 81.83358321 | W66: 95.18862376 | X66: 111.9424339 | Y66: 125.1465098 | Z66: 134.4806711 | AA66: 147.9685365 | AB66: 147.8767141 | AC66: 140.0093142 | AD66: 143.3066778 | AE66: 148.7783912 | AF66: 130.4269946 | AG66: 138.3578997 | AH66: 134.6348862 | AI66: -2.691% | AJ66: 0.01862958639 | AK66: 0.003424471252
A67: Saudi Arabia | B67: 268.0753576 | C67: 303.3974572 | D67: 302.7221543 | E67: 301.8847699 | F67: 315.57126 | G67: 304.3890243 | H67: 309.3117122 | I67: 314.5733922 | J67: 329.9249294 | K67: 329.4184765 | L67: 341.7641284 | M67: 349.7207816 | N67: 357.4784855 | O67: 383.4817224 | P67: 415.2125217 | Q67: 421.1922344 | R67: 439.228234 | S67: 456.6115513 | T67: 494.2355963 | U67: 502.0378185 | V67: 544.5167567 | W67: 577.4081637 | X67: 612.284225 | Y67: 629.0840919 | Z67: 669.7186418 | AA67: 709.0010657 | AB67: 745.7757815 | AC67: 734.4876094 | AD67: 719.0529931 | AE67: 680.2806944 | AF67: 659.2530611 | AG67: 675.8339688 | AH67: 724.0185339 | AI67: 7.130% | AJ67: 0.01690331089 | AK67: 0.01841558845
A68: United Arab Emirates | B68: 99.09400204 | C68: 117.9140114 | D68: 115.7119955 | E68: 119.1597989 | F68: 129.8711842 | G68: 134.7522328 | H68: 138.0551662 | I68: 144.7713178 | J68: 147.7579286 | K68: 147.1090716 | L68: 146.7332484 | M68: 147.7065319 | N68: 154.7688104 | O68: 166.6926613 | P68: 178.2869615 | Q68: 185.8512663 | R68: 196.9146962 | S68: 214.6557821 | T68: 242.9730644 | U68: 233.9157324 | V68: 243.8986641 | W68: 251.7802665 | X68: 263.5131893 | Y68: 280.6763777 | Z68: 277.1741928 | AA68: 301.3254406 | AB68: 311.2029162 | AC68: 301.445418 | AD68: 295.9788444 | AE68: 301.6003142 | AF68: 281.1576632 | AG68: 307.6898344 | AH68: 327.7661786 | AI68: 6.525% | AJ68: 0.02205949699 | AK68: 0.008336812901
A69: Other Middle East | B69: 106.6942237 | C69: 116.8885905 | D69: 124.406111 | E69: 131.3238037 | F69: 140.8048879 | G69: 146.3286542 | H69: 149.1165829 | I69: 154.6844417 | J69: 163.6743019 | K69: 168.2851463 | L69: 170.3122565 | M69: 173.6885704 | N69: 177.6291346 | O69: 182.9063191 | P69: 179.7059972 | Q69: 194.5501997 | R69: 197.4609225 | S69: 199.5565632 | T69: 205.9147885 | U69: 209.518282 | V69: 211.8009838 | W69: 200.3377041 | X69: 180.8525801 | Y69: 174.0580687 | Z69: 169.7570676 | AA69: 148.8844454 | AB69: 141.0933253 | AC69: 150.237361 | AD69: 145.8248166 | AE69: 145.0730087 | AF69: 136.8673635 | AG69: 141.5888767 | AH69: 146.3864064 | AI69: 3.388% | AJ69: -0.02092129655 | AK69: 0.003723374043
A70: Total Middle East | B70: 977.2966826 | C70: 1022.631295 | D70: 1066.873567 | E70: 1105.623488 | F70: 1188.472688 | G70: 1213.674425 | H70: 1238.014257 | I70: 1307.860075 | J70: 1345.744011 | K70: 1378.13516 | L70: 1447.817244 | M70: 1491.758168 | N70: 1531.204214 | O70: 1611.117364 | P70: 1722.398212 | Q70: 1781.401191 | R70: 1862.464943 | S70: 1941.472449 | T70: 2077.695277 | U70: 2089.854757 | V70: 2201.709116 | W70: 2283.020902 | X70: 2365.118257 | Y70: 2441.542347 | Z70: 2510.343386 | AA70: 2589.945086 | AB70: 2715.838491 | AC70: 2740.161013 | AD70: 2755.456519 | AE70: 2719.360105 | AF70: 2621.149362 | AG70: 2723.44969 | AH70: 2847.404004 | AI70: 0.04551371544 | AJ70: 0.01873123727 | AK70: 0.07242441711
A72: Algeria | B72: 120.8074073 | C72: 121.5743821 | D72: 123.2553005 | E72: 125.9733101 | F72: 127.7720706 | G72: 134.3847947 | H72: 136.6252199 | I72: 134.2709864 | J72: 137.4593531 | K72: 138.7291777 | L72: 139.9577184 | M72: 134.7324016 | N72: 139.5197732 | O72: 148.168115 | P72: 151.4455566 | Q72: 156.8907826 | R72: 163.2369617 | S72: 170.0065152 | T72: 176.704768 | U72: 179.7240697 | V72: 177.6197554 | W72: 178.8283829 | X72: 190.2485119 | Y72: 206.6939695 | Z72: 219.0786751 | AA72: 225.73826 | AB72: 228.761105 | AC72: 231.613049 | AD72: 239.4634075 | AE72: 243.1729594 | AF72: 229.1959327 | AG72: 247.3676247 | AH72: 245.9625443 | AI72: -0.568% | AJ72: 0.02601750607 | AK72: 0.006256117458
A73: Egypt | B73: 113.1874471 | C73: 117.1624346 | D73: 112.8895716 | E73: 112.1098851 | F73: 116.0064666 | G73: 122.3190046 | H73: 128.7543775 | I73: 132.5689816 | J73: 136.9227113 | K73: 144.3244955 | L73: 150.9632327 | M73: 149.7741584 | N73: 156.6675936 | O73: 163.2997541 | P73: 171.9979425 | Q73: 179.6798332 | R73: 187.5096042 | S73: 199.018128 | T73: 207.6106292 | U73: 219.5393142 | V73: 227.3320847 | W73: 235.2342805 | X73: 244.2007811 | Y73: 248.5033597 | Z73: 248.6945129 | AA73: 251.90919 | AB73: 265.9496792 | AC73: 269.7148449 | AD73: 266.5044106 | AE73: 258.1711737 | AF73: 249.6780841 | AG73: 267.9821754 | AH73: 284.2968667 | AI73: 6.088% | AJ73: 0.01531897453 | AK73: 0.007231160323
A74: Morocco | B74: 23.17734888 | C74: 24.07711558 | D74: 27.00885153 | E74: 27.90698246 | F74: 30.02031658 | G74: 29.87485054 | H74: 30.41274422 | I74: 31.41832587 | J74: 32.99438788 | K74: 34.62719163 | L74: 34.92254464 | M74: 38.45408873 | N74: 39.52482569 | O74: 38.90275953 | P74: 44.54239829 | Q74: 48.34468028 | R74: 49.14878608 | S74: 48.92690452 | T74: 54.24185878 | U74: 50.90904406 | V74: 54.59968605 | W74: 58.28527822 | X74: 60.01166841 | Y74: 60.63617145 | Z74: 61.89677952 | AA74: 62.18904591 | AB74: 62.48972584 | AC74: 65.34205159 | AD74: 66.75815174 | AE74: 72.98308026 | AF74: 66.70140534 | AG74: 74.22326749 | AH74: 71.69196209 | AI74: -3.410% | AJ74: 0.01794303823 | AK74: 0.001823502586
A75: South Africa | B75: 352.24782 | C75: 346.8105222 | D75: 354.4914813 | E75: 358.8982043 | F75: 370.773045 | G75: 383.5480837 | H75: 389.6135971 | I75: 399.0845532 | J75: 391.1266525 | K75: 403.2962819 | L75: 404.8341822 | M75: 408.6852846 | N75: 398.944469 | O75: 434.4248936 | P75: 474.4874769 | Q75: 457.7886579 | R75: 467.3799443 | S75: 478.1526319 | T75: 513.3412979 | U75: 511.562573 | V75: 512.4134831 | W75: 503.1517994 | X75: 499.6109405 | Y75: 501.1561839 | Z75: 505.9988907 | AA75: 493.9778179 | AB75: 513.0455468 | AC75: 508.8343023 | AD75: 490.9080596 | AE75: 513.0637068 | AF75: 483.6165424 | AG75: 473.5990446 | AH75: 456.1552325 | AI75: -3.683% | AJ75: -0.009058373772 | AK75: 0.01160241988
A76: Eastern Africa | B76: 52.79241292 | C76: 49.18577187 | D76: 49.74425508 | E76: 54.53827666 | F76: 53.76138765 | G76: 54.36739385 | H76: 53.77286494 | I76: 57.23127475 | J76: 56.82622439 | K76: 57.2059461 | L76: 55.28509935 | M76: 59.48068726 | N76: 58.65963668 | O76: 58.49175863 | P76: 65.3048499 | Q76: 68.98117624 | R76: 70.86356489 | S76: 73.93197218 | T76: 73.05420809 | U76: 78.77310467 | V76: 85.59376617 | W76: 94.50029811 | X76: 96.58744756 | Y76: 109.2506661 | Z76: 123.3209916 | AA76: 128.6619386 | AB76: 127.3777181 | AC76: 137.450805 | AD76: 143.2842439 | AE76: 143.501315 | AF76: 134.7029159 | AG76: 143.7736058 | AH76: 149.4249009 | AI76: 3.931% | AJ76: 0.04460049834 | AK76: 0.003800658891
A77: Middle Africa | B77: 40.15182482 | C77: 48.90346252 | D77: 51.33770886 | E77: 51.20201644 | F77: 53.27307992 | G77: 59.13370497 | H77: 62.22546395 | I77: 65.87420435 | J77: 67.64343435 | K77: 68.39401703 | L77: 68.59309554 | M77: 69.2300418 | N77: 72.36405747 | O77: 76.28175966 | P77: 85.77269887 | Q77: 88.07550741 | R77: 90.53920205 | S77: 92.12330266 | T77: 97.85526708 | U77: 98.61863186 | V77: 102.4163863 | W77: 102.5621013 | X77: 104.0428415 | Y77: 100.0799744 | Z77: 106.5676597 | AA77: 110.3355656 | AB77: 108.9191389 | AC77: 102.1512388 | AD77: 100.801211 | AE77: 100.9004516 | AF77: 93.14822939 | AG77: 92.04933067 | AH77: 88.96476422 | AI77: -3.351% | AJ77: -0.01553431503 | AK77: 0.002262840532
A78: Western Africa | B78: 138.135759 | C78: 147.5169421 | D78: 158.499508 | E78: 157.3834359 | F78: 158.1036003 | G78: 160.7162762 | H78: 173.4321003 | I78: 164.1174516 | J78: 159.9611731 | K78: 153.1506913 | L78: 158.6813381 | M78: 164.6019504 | N78: 169.1425878 | O78: 174.6793695 | P78: 185.6118472 | Q78: 189.8356687 | R78: 179.0343475 | S78: 183.7287364 | T78: 181.8257696 | U78: 166.2965538 | V78: 181.5106947 | W78: 187.1127793 | X78: 187.5566771 | Y78: 181.7734971 | Z78: 180.2640135 | AA78: 194.6256548 | AB78: 195.5240536 | AC78: 206.7369183 | AD78: 225.5634122 | AE78: 235.2422712 | AF78: 232.0515763 | AG78: 239.7329385 | AH78: 237.2821891 | AI78: -1.022% | AJ78: 0.02379560548 | AK78: 0.006035330502
A79: Other Northern Africa | B79: 107.3496114 | C79: 112.2109544 | D79: 104.2180579 | E79: 108.0117201 | F79: 119.7621257 | G79: 126.1182466 | H79: 128.7643277 | I79: 125.2436661 | J79: 127.5895955 | K79: 122.7604373 | L79: 129.6494946 | M79: 127.0107726 | N79: 124.652245 | O79: 131.0454742 | P79: 140.3984211 | Q79: 151.3033969 | R79: 157.2703788 | S79: 154.8625826 | T79: 159.8930221 | U79: 157.4111384 | V79: 165.9991579 | W79: 94.49201282 | X79: 153.7109147 | Y79: 140.304497 | Z79: 122.9580232 | AA79: 117.567698 | AB79: 117.3810963 | AC79: 137.1606434 | AD79: 146.9729511 | AE79: 150.8576755 | AF79: 104.6546271 | AG79: 167.1474297 | AH79: 157.3255943 | AI79: -5.876% | AJ79: 0.002327088014 | AK79: 0.00400161496
A80: Other Southern Africa | B80: 6.236014043 | C80: 6.202815576 | D80: 6.89258566 | E80: 6.968098043 | F80: 7.423683424 | G80: 7.643463032 | H80: 7.296277969 | I80: 7.851367586 | J80: 8.558342874 | K80: 8.813755244 | L80: 8.945365158 | M80: 9.121357116 | N80: 8.971856295 | O80: 8.97917946 | P80: 9.145476509 | Q80: 9.639201207 | R80: 9.482612301 | S80: 9.834650877 | T80: 10.32203871 | U80: 10.9206184 | V80: 9.586443645 | W80: 11.01655012 | X80: 12.51249581 | Y80: 12.72066816 | Z80: 13.98962329 | AA80: 14.04977608 | AB80: 13.90361971 | AC80: 14.90180019 | AD80: 15.61064184 | AE80: 14.89601086 | AF80: 12.75847642 | AG80: 14.40753344 | AH80: 15.898344 | AI80: 10.347% | AJ80: 0.02423778782 | AK80: 0.0004043782671
A81: Total Africa | B81: 954.0856454 | C81: 973.6444009 | D81: 988.3373203 | E81: 1002.991929 | F81: 1036.895776 | G81: 1078.105818 | H81: 1110.896974 | I81: 1117.660811 | J81: 1119.081875 | K81: 1131.301994 | L81: 1151.832071 | M81: 1161.090743 | N81: 1168.447045 | O81: 1234.273064 | P81: 1328.706668 | Q81: 1350.538904 | R81: 1374.465402 | S81: 1410.585424 | T81: 1474.84886 | U81: 1473.755048 | V81: 1517.071458 | W81: 1465.183483 | X81: 1548.482279 | Y81: 1561.118987 | Z81: 1582.769169 | AA81: 1599.054947 | AB81: 1633.351683 | AC81: 1673.905653 | AD81: 1695.866489 | AE81: 1732.788644 | AF81: 1606.50779 | AG81: 1720.28295 | AH81: 1707.002398 | AI81: -0.007719981338 | AJ81: 0.009794007671 | AK81: 0.0434180234
A83: Australia | B83: 298.7361807 | C83: 299.6706839 | D83: 304.0416164 | E83: 309.4587473 | F83: 319.9839007 | G83: 335.7330653 | H83: 346.4351038 | I83: 357.7709525 | J83: 369.2593297 | K83: 384.9782482 | L83: 389.6640341 | M83: 394.0092017 | N83: 400.9929081 | O83: 407.3587006 | P83: 420.8767956 | Q83: 422.9351726 | R83: 439.2990685 | S83: 450.1550929 | T83: 460.910319 | U83: 452.9652537 | V83: 450.5276111 | W83: 453.728414 | X83: 446.6237664 | Y83: 448.2651869 | Z83: 456.4179358 | AA83: 467.0092829 | AB83: 464.4501357 | AC83: 464.2706725 | AD83: 462.9025757 | AE83: 472.4828231 | AF83: 441.1372133 | AG83: 431.0729 | AH83: 436.9745271 | AI83: 1.369% | AJ83: -0.002181781561 | AK83: 0.01111455395
A84: Bangladesh | B84: 14.56257913 | C84: 13.84351104 | D84: 15.10285707 | E84: 16.38905491 | F84: 17.20934439 | G84: 20.76704132 | H84: 21.24694683 | I84: 23.67590947 | J84: 24.20215896 | K84: 25.35816344 | L84: 27.4465973 | M84: 32.23054163 | N84: 34.21434947 | O84: 35.53099725 | P84: 38.07679695 | Q84: 41.90388608 | R84: 46.44753131 | S84: 47.20444545 | T84: 51.10133626 | U84: 56.53980906 | V84: 58.6449741 | W84: 64.49483597 | X84: 69.96886835 | Y84: 73.84265678 | Z84: 76.58762944 | AA84: 94.90068587 | AB84: 95.37048966 | AC84: 100.4081699 | AD84: 107.2911799 | AE84: 119.5645809 | AF84: 114.0758552 | AG84: 119.0014064 | AH84: 124.9067588 | AI84: 4.962% | AJ84: 0.05966382589 | AK84: 0.003177033953
A85: China | B85: 2521.583228 | C85: 2670.327959 | D85: 2817.350985 | E85: 3050.662049 | F85: 3234.483568 | G85: 3361.319023 | H85: 3521.687934 | I85: 3514.196649 | J85: 3519.180117 | K85: 3663.216921 | L85: 3748.781171 | M85: 3948.565125 | N85: 4289.342843 | O85: 5078.526671 | P85: 5952.082518 | Q85: 6790.664115 | R85: 7456.766593 | S85: 8087.535893 | T85: 8247.917008 | U85: 8659.153906 | V85: 9188.581685 | W85: 9966.931691 | X85: 10156.86971 | Y85: 10443.65265 | Z85: 10502.11458 | AA85: 10374.11669 | AB85: 10202.72482 | AC85: 10482.68439 | AD85: 10876.13753 | AE85: 11258.09863 | AF85: 11499.69047 | AG85: 11969.25226 | AH85: 11876.85732 | AI85: -0.772% | AJ85: 0.01576715507 | AK85: 0.30209077
A86: China Hong Kong SAR | B86: 42.01027364 | C86: 43.73104842 | D86: 50.80873582 | E86: 55.7676962 | F86: 49.21519634 | G86: 52.98927875 | H86: 50.53632835 | I86: 49.82212944 | J86: 51.42986445 | K86: 50.73984756 | L86: 53.9096682 | M86: 70.52190767 | N86: 67.67459539 | O86: 71.73748773 | P86: 78.87532172 | Q86: 76.16431356 | R86: 80.32051071 | S86: 86.00426693 | T86: 79.71642096 | U86: 86.90234124 | V86: 88.87878923 | W86: 92.56874678 | X86: 89.33347867 | Y86: 92.20575335 | Z86: 90.38149569 | AA86: 91.25686958 | AB86: 93.38256111 | AC86: 99.51563472 | AD86: 100.7520999 | AE86: 95.23358971 | AF86: 68.66399516 | AG86: 65.14265872 | AH86: 58.62613493 | AI86: -10.003% | AJ86: -0.0412448678 | AK86: 0.001491170078
A87: India | B87: 683.0496962 | C87: 719.7903411 | D87: 748.2236868 | E87: 770.0127076 | F87: 801.9574821 | G87: 857.3602386 | H87: 899.5782956 | I87: 948.2711853 | J87: 988.5717286 | K87: 1012.948445 | L87: 1056.852628 | M87: 1066.810176 | N87: 1112.711537 | O87: 1156.62629 | P87: 1225.641448 | Q87: 1319.436487 | R87: 1378.213164 | S87: 1495.384205 | T87: 1602.804893 | U87: 1746.673335 | V87: 1806.311125 | W87: 1880.500121 | X87: 2009.745978 | Y87: 2087.461634 | Z87: 2248.102373 | AA87: 2321.363327 | AB87: 2425.21548 | AC87: 2493.637853 | AD87: 2613.172551 | AE87: 2645.402089 | AF87: 2450.261262 | AG87: 2700.486141 | AH87: 2865.236394 | AI87: 6.101% | AJ87: 0.03610060922 | AK87: 0.07287798831
A88: Indonesia | B88: 185.4888957 | C88: 204.3344833 | D88: 220.7945422 | E88: 236.1916091 | F88: 244.983544 | G88: 263.7639483 | H88: 279.5631261 | I88: 307.4990358 | J88: 302.1001533 | K88: 322.6688512 | L88: 340.736433 | M88: 367.2443757 | N88: 374.606017 | O88: 411.9104886 | P88: 405.332344 | Q88: 417.2796358 | R88: 446.7763514 | S88: 477.9297124 | T88: 475.943739 | U88: 495.6145699 | V88: 536.9092183 | W88: 584.5032357 | X88: 609.2461406 | Y88: 578.8342168 | Z88: 586.3705054 | AA88: 595.6846877 | AB88: 595.9921002 | AC88: 617.1064971 | AD88: 663.8630677 | AE88: 712.4333387 | AF88: 651.5082926 | AG88: 657.3457129 | AH88: 839.6001647 | AI88: 27.726% | AJ88: 0.03259013786 | AK88: 0.02135543549
A89: Japan | B89: 1126.322528 | C89: 1144.827393 | D89: 1158.596383 | E89: 1152.354679 | F89: 1217.536774 | G89: 1233.356541 | H89: 1254.965579 | I89: 1251.176535 | J89: 1214.866604 | K89: 1246.840573 | L89: 1268.954685 | M89: 1261.796715 | N89: 1270.491834 | O89: 1310.205035 | P89: 1293.60605 | Q89: 1327.878454 | R89: 1305.301845 | S89: 1317.901368 | T89: 1326.159976 | U89: 1153.896199 | V89: 1224.889186 | W89: 1237.76841 | X89: 1324.891532 | Y89: 1314.64541 | Z89: 1280.821019 | AA89: 1240.413705 | AB89: 1220.645188 | AC89: 1214.381327 | AD89: 1192.746967 | AE89: 1150.712372 | AF89: 1061.132804 | AG89: 1095.871568 | AH89: 1093.272768 | AI89: -0.237% | AJ89: -0.019032045 | AK89: 0.02780766019
A90: Malaysia | B90: 64.63556311 | C90: 78.05154045 | D90: 86.37539323 | E90: 85.00344368 | F90: 91.59872342 | G90: 97.79754209 | H90: 112.6900931 | I90: 129.1336315 | J90: 123.7433048 | K90: 129.1879983 | L90: 148.8607437 | M90: 154.5678887 | N90: 164.4053277 | O90: 180.0607572 | P90: 195.0651506 | Q90: 208.8365012 | R90: 208.9127198 | S90: 220.7110583 | T90: 230.6204373 | U90: 221.1461967 | V90: 233.324624 | W90: 229.8129069 | X90: 248.5079378 | Y90: 260.1966221 | Z90: 271.4616955 | AA90: 275.5196354 | AB90: 280.0699025 | AC90: 267.1350687 | AD90: 276.3513486 | AE90: 281.527439 | AF90: 273.7848216 | AG90: 281.7073414 | AH90: 298.5317127 | AI90: 5.972% | AJ90: 0.01850935115 | AK90: 0.00759322711
A91: New Zealand | B91: 26.70320811 | C91: 27.28645226 | D91: 28.96806045 | E91: 28.42320227 | F91: 29.27297332 | G91: 29.55430831 | H91: 30.70022959 | I91: 32.89613554 | J91: 31.42521245 | K91: 32.75053259 | L91: 33.38297663 | M91: 35.80055422 | N91: 35.72061603 | O91: 37.77890979 | P91: 36.77457276 | Q91: 38.96446672 | R91: 38.90069712 | S91: 38.08096868 | T91: 39.26460779 | U91: 36.24161181 | V91: 36.27354171 | W91: 35.98349572 | X91: 37.43970162 | Y91: 36.96385703 | Z91: 36.94347238 | AA91: 37.47858954 | AB91: 36.40113271 | AC91: 38.35187811 | AD91: 38.09574182 | AE91: 39.49171299 | AF91: 34.49223228 | AG91: 33.76725592 | AH91: 31.62783488 | AI91: -6.336% | AJ91: -0.01672791811 | AK91: 0.000804461714
A92: Pakistan | B92: 66.33938077 | C92: 71.07759085 | D92: 74.39461415 | E92: 81.60130652 | F92: 85.13560166 | G92: 89.56795063 | H92: 94.74638378 | I92: 95.24704098 | J92: 98.7772231 | K92: 105.4038677 | L92: 109.4407786 | M92: 111.385513 | N92: 114.6943603 | O92: 122.3373232 | P92: 134.5311894 | Q92: 138.5710856 | R92: 149.7888305 | S92: 163.4629735 | T92: 168.1532967 | U92: 169.9463517 | V92: 169.4911571 | W92: 168.3870596 | X92: 168.6564507 | Y92: 171.2845916 | Z92: 177.5752483 | AA92: 186.1527466 | AB92: 203.2095489 | AC92: 214.9985274 | AD92: 223.1179078 | AE92: 222.5603785 | AF92: 237.4277339 | AG92: 263.0996141 | AH92: 237.0280309 | AI92: -9.909% | AJ92: 0.0346171551 | AK92: 0.006028865926
A93: Philippines | B93: 43.96066819 | C93: 44.57989911 | D93: 48.4948347 | E93: 53.78946039 | F93: 55.73109296 | G93: 64.51047506 | H93: 70.11823082 | I93: 78.36041131 | J93: 77.08059386 | K93: 74.54508852 | L93: 74.64792413 | M93: 73.61259819 | N93: 75.4157644 | O93: 76.93145877 | P93: 78.59038037 | Q93: 80.60163301 | R93: 73.50319052 | S93: 77.94398718 | T93: 80.22577666 | U93: 81.642172 | V93: 87.35245448 | W93: 88.23120941 | X93: 91.95089091 | Y93: 100.7366926 | Z93: 106.9864486 | AA93: 117.2668824 | AB93: 127.2744904 | AC93: 140.8947971 | AD93: 146.5442297 | AE93: 153.1809034 | AF93: 138.045302 | AG93: 145.6157939 | AH93: 156.4312854 | AI93: 7.427% | AJ93: 0.05457328959 | AK93: 0.003978867996
A94: South Korea | B94: 265.7422013 | C94: 295.3679104 | D94: 318.5835377 | E94: 350.1357476 | F94: 376.4446543 | G94: 405.9650216 | H94: 446.6273941 | I94: 472.0535762 | J94: 403.7869378 | K94: 438.5215684 | L94: 469.7167341 | M94: 483.5840741 | N94: 499.9322211 | O94: 510.121222 | P94: 517.9265337 | Q94: 523.587534 | R94: 528.4966096 | S94: 543.7440689 | T94: 555.9910156 | U94: 558.5890842 | V94: 614.9712817 | W94: 642.3663786 | X94: 641.5210429 | Y94: 649.0122731 | Z94: 644.114895 | AA94: 652.0944131 | AB94: 663.4569318 | AC94: 671.7233565 | AD94: 687.2912716 | AE94: 663.7374038 | AF94: 614.4252811 | AG94: 630.3244228 | AH94: 618.2261667 | AI94: -1.919% | AJ94: -0.00369193102 | AK94: 0.01572473372
A95: Taiwan | B95: 129.5230582 | C95: 138.193495 | D95: 148.8607723 | E95: 161.5797563 | F95: 169.8241184 | G95: 180.0783708 | H95: 187.5331662 | I95: 202.6698907 | J95: 214.1089249 | K95: 224.2431489 | L95: 240.5035714 | M95: 238.317808 | N95: 249.6235073 | O95: 258.4862912 | P95: 268.6114666 | Q95: 274.2758198 | R95: 283.1966479 | S95: 284.7282282 | T95: 270.5842744 | U95: 256.3880169 | V95: 276.2611512 | W95: 281.6810032 | X95: 274.976395 | Y95: 276.6756695 | Z95: 282.6211223 | AA95: 282.1262099 | AB95: 286.4208329 | AC95: 292.3459846 | AD95: 290.3084929 | AE95: 284.8405566 | AF95: 271.5553598 | AG95: 286.2179345 | AH95: 278.2099177 | AI95: -2.798% | AJ95: 0.001169750711 | AK95: 0.007076337286
A96: Thailand | B96: 97.94038898 | C96: 107.5754988 | D96: 119.5914831 | E96: 137.6403055 | F96: 154.2759305 | G96: 173.1784874 | H96: 193.8323945 | I96: 203.3230707 | J96: 181.4067668 | K96: 190.7913436 | L96: 191.9083693 | M96: 201.4746724 | N96: 215.5052441 | O96: 223.4074693 | P96: 243.3303105 | Q96: 254.0344522 | R96: 257.3269655 | S96: 267.5307127 | T96: 267.280393 | U96: 266.2061099 | V96: 280.1022899 | W96: 279.8697763 | X96: 299.7354332 | Y96: 300.3984174 | Z96: 309.1619463 | AA96: 316.4144785 | AB96: 325.1373256 | AC96: 324.5018019 | AD96: 330.0464451 | AE96: 325.3443068 | AF96: 308.4693283 | AG96: 304.6743178 | AH96: 307.1080148 | AI96: 0.799% | AJ96: 0.002432887601 | AK96: 0.007811367453
A97: Vietnam | B97: 21.48587985 | C97: 22.50582404 | D97: 24.05292579 | E97: 26.73326873 | F97: 29.24656633 | G97: 33.85807861 | H97: 38.613324 | I97: 46.04127085 | J97: 51.05669487 | K97: 50.6136349 | L97: 58.96475441 | M97: 64.81872408 | N97: 73.14470808 | O97: 80.17550413 | P97: 104.408909 | Q97: 111.3691921 | R97: 98.45898505 | S97: 107.3926872 | T97: 132.9811553 | U97: 136.1782839 | V97: 160.4256506 | W97: 174.4297188 | X97: 171.5250109 | Y97: 179.2536116 | Z97: 197.8168209 | AA97: 231.3092283 | AB97: 248.0874889 | AC97: 255.4249194 | AD97: 303.6638182 | AE97: 361.8803043 | AF97: 358.7651862 | AG97: 349.6978363 | AH97: 353.0730858 | AI97: 0.965% | AJ97: 0.07486449074 | AK97: 0.008980500272
A98: Other Asia Pacific | B98: 240.5912204 | C98: 236.296971 | D98: 225.6460791 | E98: 224.935781 | F98: 230.2309196 | G98: 229.3957859 | H98: 221.1231504 | I98: 224.8888566 | J98: 218.3030471 | K98: 225.706515 | L98: 242.5372002 | M98: 256.4481898 | N98: 248.1301061 | O98: 246.6866622 | P98: 261.3541489 | Q98: 280.4160896 | R98: 299.9389626 | S98: 303.848235 | T98: 321.127279 | U98: 319.2926987 | V98: 337.196313 | W98: 341.7509739 | X98: 347.4201245 | Y98: 338.0227204 | Z98: 353.5070635 | AA98: 378.4425744 | AB98: 411.1481137 | AC98: 467.7907591 | AD98: 470.7022005 | AE98: 484.6802963 | AF98: 478.1963745 | AG98: 481.4278987 | AH98: 475.0371534 | AI98: -1.327% | AJ98: 0.03178036911 | AK98: 0.01208268616
A99: Total Asia Pacific | B99: 5828.67495 | C99: 6117.460602 | D99: 6389.886507 | E99: 6740.678816 | F99: 7107.13039 | G99: 7429.195157 | H99: 7769.99768 | I99: 7937.026281 | J99: 7869.298662 | K99: 8178.514748 | L99: 8456.308269 | M99: 8761.188065 | N99: 9226.605939 | O99: 10207.88127 | P99: 11255.08394 | Q99: 12306.91884 | R99: 13091.64867 | S99: 13969.5579 | T99: 14310.78193 | U99: 14697.37594 | V99: 15550.14105 | W99: 16523.00798 | X99: 16988.41246 | Y99: 17351.45197 | Z99: 17620.98425 | AA99: 17661.55001 | AB99: 17678.98655 | AC99: 18145.17164 | AD99: 18782.98743 | AE99: 19271.17072 | AF99: 19001.63151 | AG99: 19814.70506 | AH99: 20050.74727 | AI99: 0.01191247627 | AJ99: 0.01671159538 | AK99: 0.5099956597
A101: Total World | B101: 23881.37574 | C101: 23928.85411 | D101: 23944.43889 | E101: 24036.43426 | F101: 24285.65988 | G101: 24683.68854 | H101: 25344.38729 | I101: 25567.52436 | J101: 25653.423 | K101: 25957.02115 | L101: 26623.77952 | M101: 27006.32038 | N101: 27584.04898 | O101: 28998.5945 | P101: 30531.89282 | Q101: 31782.66069 | R101: 32809.91855 | S101: 33979.81102 | T101: 34336.42185 | U101: 33650.70141 | V101: 35149.89646 | W101: 36153.69856 | X101: 36616.37791 | Y101: 37194.83365 | Z101: 37393.88985 | AA101: 37340.79446 | AB101: 37421.49872 | AC101: 37970.28769 | AD101: 38859.00454 | AE101: 38999.49359 | AF101: 37056.47804 | AG101: 39015.94398 | AH101: 39315.52531 | AI101: 0.007678433507 | AJ101: 0.007137739386 | AK101: 1
A102: of which: OECD | B102: 12354.35871 | C102: 12343.56316 | D102: 12383.36262 | E102: 12453.78003 | F102: 12660.88735 | G102: 12837.80767 | H102: 13264.62595 | I102: 13389.09745 | J102: 13410.43644 | K102: 13484.9786 | L102: 13777.40516 | M102: 13744.75678 | N102: 13813.75411 | O102: 14064.07005 | P102: 14240.61194 | Q102: 14366.84429 | R102: 14367.90392 | S102: 14509.61403 | T102: 14299.89201 | U102: 13327.3638 | V102: 13779.32706 | W102: 13614.16732 | X102: 13450.85198 | Y102: 13569.17919 | Z102: 13394.09405 | AA102: 13302.81414 | AB102: 13202.72971 | AC102: 13253.78911 | AD102: 13389.14326 | AE102: 13049.63178 | AF102: 11733.40781 | AG102: 12368.77212 | AH102: 12486.09072 | AI102: 0.009485064207 | AJ102: -0.007415088177 | AK102: 0.3175867707
A103: Non-OECD | B103: 11527.01703 | C103: 11585.29095 | D103: 11561.07628 | E103: 11582.65423 | F103: 11624.77253 | G103: 11845.88088 | H103: 12079.76134 | I103: 12178.42691 | J103: 12242.98657 | K103: 12472.04254 | L103: 12846.37436 | M103: 13261.56359 | N103: 13770.29487 | O103: 14934.52445 | P103: 16291.28088 | Q103: 17415.8164 | R103: 18442.01463 | S103: 19470.19699 | T103: 20036.52984 | U103: 20323.33761 | V103: 21370.5694 | W103: 22539.53124 | X103: 23165.52592 | Y103: 23625.65446 | Z103: 23999.7958 | AA103: 24037.98032 | AB103: 24218.76901 | AC103: 24716.49858 | AD103: 25469.86127 | AE103: 25949.86181 | AF103: 25323.07022 | AG103: 26647.17186 | AH103: 26829.43459 | AI103: 0.006839852829 | AJ103: 0.01479176809 | AK103: 0.6824132293
A104: European Union# | B104: 3908.575451 | C104: 3829.224502 | D104: 3697.864693 | E104: 3634.228696 | F104: 3590.561397 | G104: 3653.806566 | H104: 3746.821437 | I104: 3694.866008 | J104: 3710.646898 | K104: 3659.423823 | L104: 3653.441897 | M104: 3708.380141 | N104: 3709.43654 | O104: 3805.480125 | P104: 3826.64703 | Q104: 3813.343404 | R104: 3850.110825 | S104: 3796.5671 | T104: 3715.044209 | U104: 3424.550955 | V104: 3504.470606 | W104: 3414.605835 | X104: 3328.764637 | Y104: 3251.166222 | Z104: 3088.618614 | AA104: 3149.248047 | AB104: 3176.610346 | AC104: 3223.847625 | AD104: 3175.557847 | AE104: 3035.248688 | AF104: 2668.100356 | AG104: 2843.729578 | AH104: 2822.570558 | AI104: -0.007440588071 | AJ104: -0.01636002113 | AK104: 0.07179277233
A106: w Less than 0.05%.
A107: n/a not available.
A108: USSR includes CIS, Georgia, Ukraine and the Baltic States.
A109: #Excludes Estonia, Latvia and Lithuania prior to 1985 and Croatia and Slovenia prior to 1990.
A110: Notes: The emissions above are the sum of carbon dioxide emissions from energy, carbon dioxide emissions from flaring, methane emissions, in carbon dioxide equivalent, associated with the production, transportation and distribution of fossil fuels, and carbon dioxide emissions from industrial processes.
A111: Data is shown only from 1990 to avoid structural breaks in the series. Data prior to 1990 can be found in the individual component emissions tables where available.
A115: https://www.energyinst.org/statistical-review/resources-and-data-downloads

Sheet 2000-2020car ownership
A1: Total number of different car types in China from 2000 to 2020（uint:）
A2: Year | B2: Large passenger car | C2: Medium passenger car | D2: Small passenger car | E2: Mini passenger car | F2: Heavy truck | G2: Medium truck | H2: Light truck | I2: Midget truck | J2: Other cars | K2: Battery electric vehicles | L2: Hybrid electric vehicle | M2: Fuel Cell Electric Vehicle | N2: All
A3: 2000 | B3: 535937.6931 | C3: 744121.2272 | D3: 5607464.676 | E3: 1649705.4 | F3: 1307723.641 | G3: 1928689.527 | H3: 3180057.935 | I3: 746640.7033 | J3: 388600 | N3: =SUM(B3:M3) -> 16088940.8 | O3: 1608.89 | P3: 16.09 | W3: 2011 | X3: =(K14-K13)/K13 -> 1393.37% | Y3: =(L14-L13)/L13 -> 95.73% | Z3: =(M14-M13)/M13 -> 
A4: 2001 | B4: 623968.5022 | C4: 866347.364 | D4: 6528522.588 | E4: 1920678.879 | F4: 1397032.666 | G4: 2060406.486 | H4: 3397235.222 | I4: 797631.4102 | J4: 428400 | N4: =SUM(B4:M4) -> 18020223.12 | R4: =(N4-N3)/N3 -> 0.1200378781 | W4: 2012 | X4: =(K15-K14)/K14 -> 270.44% | Y4: 108.88%
A5: 2002 | B5: 754800 | C5: 1048000 | D5: 7897400 | E5: 2323400 | F5: 1482800 | G5: 2186900 | H5: 3605800 | I5: 846600 | J5: 385800 | N5: 20531500 | W5: 2013 | X5: 127.01% | Y5: 154.96%
A6: 2003 | B6: 757612 | C6: 1159575 | D6: 10172100 | E6: 2698829 | F6: 1367943 | G6: 2436994 | H6: 3907917 | I6: 822212 | J6: 506106 | N6: 23829288 | P6: =POWER(P23/P3,1/20)-1 -> 15.32% | W6: 2014 | X6: 154.39% | Y6: 604.77%
A7: 2004 | B7: 780558 | C7: 1245380 | D7: 12488900 | E7: 2844203 | F7: 1539013 | G7: 2339396 | H7: 4257389 | I7: 794250 | J7: 648034 | N7: 26937123 | W7: 2015 | X7: 448.31% | Y7: 342.92%
A8: 2005 | B8: 821300 | C8: 1316500 | D8: 16183500 | E8: 3003200 | F8: 1680700 | G8: 2366600 | H8: 4845100 | I8: 663100 | J8: 716600 | N8: 31596600 | W8: 2016 | X8: 107.68% | Y8: 85.01%
A9: 2006 | B9: 873400 | C9: 1370000 | D9: 20834000 | E9: 3118300 | F9: 1740100 | G9: 2353900 | H9: 5321300 | I9: 447600 | J9: 914900 | N9: 36973500 | W9: 2017 | X9: 99.62% | Y9: 56.38%
A10: 2007 | B10: 938200 | C10: 1405200 | D10: 26464700 | E10: 3151800 | F10: 1867400 | G10: 2434600 | H10: 5872200 | I10: 366300 | J10: 1083100 | N10: 43583500 | W10: 2018 | X10: 68.00% | Y10: 71.56%
A11: 2008 | B11: 1003900 | C11: 1431900 | D11: 32711400 | E11: 3241900 | F11: 2008400 | G11: 2497300 | H11: 6449600 | I11: 305400 | J11: 1346200 | N11: 50996000 | W11: 2019 | X11: 36.19% | Y11: 37.34%
A12: 2009 | B12: 1079500 | C12: 1458000 | D12: 42469000 | E12: 3444400 | F12: 3150800 | G12: 2622100 | H12: 7653300 | I12: 259700 | J12: 669200 | N12: 62806000 | W12: 2020 | X12: 33.89% | Y12: 29.75%
A13: 2010 | B13: 1164400 | C13: 1460700 | D13: 54983600 | E13: 3632500 | F13: 3948000 | G13: 2697500 | H13: 9118800 | I13: 211200 | J13: 801400 | K13: 181 | L13: 328 | N13: =SUM(B13:M13) -> 78018609
A14: 2011 | B14: 1265400 | C14: 1474100 | D14: 68275400 | E14: 3768800 | F14: 4605800 | G14: 2678000 | H14: 10420700 | I14: 175400 | J14: 899600 | K14: 2703 | L14: 642 | N14: =SUM(B14:M14) -> 93566545
A15: 2012 | B15: 1281300 | C15: 1317800 | D15: 83026300 | E15: 3804700 | F15: 4725100 | G15: 2292000 | H15: 11796500 | I15: 134000 | J15: 953300 | K15: 10013 | L15: 1341 | N15: 109342354 | Q15: =POWER(K23/K13,1/10)-1 -> 172.10%
A16: 2013 | B16: 1313800 | C16: 1170600 | D16: 99514600 | E16: 3618700 | F16: 5019700 | G16: 1964000 | H16: 13000200 | I16: 122300 | J16: 977500 | K16: 22731 | L16: 3419 | N16: 126727550
A17: 2014 | B17: 1396100 | C17: 1120600 | D17: 117482000 | E17: 3268400 | F17: 5336700 | G17: 1880900 | H17: 13857700 | I17: 179300 | J17: 1459500 | K17: 57825 | L17: 24096 | N17: 146063121
A18: 2015 | B18: 1400700 | C18: 896600 | D18: 135805000 | E18: 2856600 | F18: 5300500 | G18: 1488700 | H18: 13757900 | I18: 109000 | J18: 1229500 | K18: 317063 | L18: 106725 | M18: 6 | N18: 163268294
A19: 2016 | B19: 1460300 | C19: 838200 | D19: 158138000 | E19: 2345500 | F19: 5694800 | G19: 1386900 | H19: 14552900 | I19: 84300 | J19: 1244100 | K19: 658481 | L19: 197454 | M19: 33 | N19: 186600968 | O19: =POWER(B23/B3,1/20)-1 -> 5.52% | P19: -0.43% | Q19: 20.61% | R19: -0.21% | S19: 9.75% | T19: -2.94% | U19: 9.88% | V19: -14.72% | W19: 6.31%
A20: 2017 | B20: 1529400 | C20: 789500 | D20: 180387000 | E20: 1989600 | F20: 6354100 | G20: 1306800 | H20: 15663000 | I20: 64600 | J20: 982800 | K20: 1314462 | L20: 308780 | M20: 1131 | N20: 210691173
A21: 2018 | B21: 1583300 | C21: 754000 | D21: 201352000 | E21: 1864600 | F21: 7095300 | G21: 1243900 | H21: 17285300 | I21: 53700 | J21: 1080000 | K21: 2208238 | L21: 529746 | M21: 1998 | N21: 235052082
A22: 2019 | B22: 1605800 | C22: 720800 | D22: 220697000 | E22: 1718800 | F22: 7617000 | G22: 1162700 | H22: 19007600 | I22: 41100 | J22: 1192700 | K22: 3007497 | L22: 727564 | M22: 5188 | N22: 257503749
A23: 2020 | B23: 1570100 | C23: 682900 | D23: 237828000 | E23: 1581200 | F23: 8406400 | G23: 1061900 | H23: 20927200 | I23: 30900 | J23: 1320900 | K23: 4026782 | L23: 943983 | M23: 6686 | N23: 278386951 | O23: 27838.6951 | P23: 278.39 | R23: =H23/N23 -> 7.52%
K24: 402.67 | L24: 4.03 | S24: =K13+L13+M13 -> 509
B25: Large passenger car | C25: Medium passenger car | D25: Small passenger car | E25: Mini passenger car | F25: Heavy truck | G25: Medium truck | H25: Light truck | I25: Midget truck | J25: Other cars | K25: Battery electric vehicles | L25: Hybrid electric vehicle | M25: Fuel Cell Electric Vehicle | N25: All | S25: =K14+L14+M14 -> 3345 | T25: =(S25-S24)/S24 -> 557.17%
B26: 535937.6931 | C26: 744121.2272 | D26: 5607464.676 | E26: 1649705.4 | F26: 1307723.641 | G26: 1928689.527 | H26: 3180057.935 | I26: 746640.7033 | J26: 388600 | N26: =SUM(B26:M26) -> 16088940.8 | O26: =D26/N26 -> 0.3485291384 | S26: 11354 | T26: =(S26-S25)/S25 -> 239.43%
B27: 623968.5022 | C27: 866347.364 | D27: 6528522.588 | E27: 1920678.879 | F27: 1397032.666 | G27: 2060406.486 | H27: 3397235.222 | I27: 797631.4102 | J27: 428400 | N27: 18020223.12 | S27: 26150 | T27: 130.32%
B28: 754800 | C28: 1048000 | D28: 7897400 | E28: 2323400 | F28: 1482800 | G28: 2186900 | H28: 3605800 | I28: 846600 | J28: 385800 | N28: 20531500 | S28: 81921 | T28: 213.27%
B29: 757612 | C29: 1159575 | D29: 10172100 | E29: 2698829 | F29: 1367943 | G29: 2436994 | H29: 3907917 | I29: 822212 | J29: 506106 | N29: 23829288 | S29: 423794 | T29: 417.32%
B30: 780558 | C30: 1245380 | D30: 12488900 | E30: 2844203 | F30: 1539013 | G30: 2339396 | H30: 4257389 | I30: 794250 | J30: 648034 | N30: 26937123 | S30: 855968 | T30: 101.98%
B31: 821300 | C31: 1316500 | D31: 16183500 | E31: 3003200 | F31: 1680700 | G31: 2366600 | H31: 4845100 | I31: 663100 | J31: 716600 | N31: 31596600 | S31: 1624373 | T31: 89.77%
B32: 873400 | C32: 1370000 | D32: 20834000 | E32: 3118300 | F32: 1740100 | G32: 2353900 | H32: 5321300 | I32: 447600 | J32: 914900 | N32: 36973500 | S32: 2739982 | T32: 68.68%
B33: 938200 | C33: 1405200 | D33: 26464700 | E33: 3151800 | F33: 1867400 | G33: 2434600 | H33: 5872200 | I33: 366300 | J33: 1083100 | N33: 43583500 | S33: 3740249 | T33: 36.51%
B34: 1003900 | C34: 1431900 | D34: 32711400 | E34: 3241900 | F34: 2008400 | G34: 2497300 | H34: 6449600 | I34: 305400 | J34: 1346200 | N34: 50996000 | S34: 4977451 | T34: 33.08%
B35: 1079500 | C35: 1458000 | D35: 42469000 | E35: 3444400 | F35: 3150800 | G35: 2622100 | H35: 7653300 | I35: 259700 | J35: 669200 | N35: 62806000
B36: 1164400 | C36: 1460700 | D36: 54983600 | E36: 3632500 | F36: 3948000 | G36: 2697500 | H36: 9118800 | I36: 211200 | J36: 801400 | K36: 181 | L36: 328 | N36: 78018609
B37: 1265400 | C37: 1474100 | D37: 68275400 | E37: 3768800 | F37: 4605800 | G37: 2678000 | H37: 10420700 | I37: 175400 | J37: 899600 | K37: 2703 | L37: 642 | N37: 93566545
B38: 1281300 | C38: 1317800 | D38: 83026300 | E38: 3804700 | F38: 4725100 | G38: 2292000 | H38: 11796500 | I38: 134000 | J38: 953300 | K38: 10013 | L38: 1341 | N38: 109342354
B39: 1313800 | C39: 1170600 | D39: 99514600 | E39: 3618700 | F39: 5019700 | G39: 1964000 | H39: 13000200 | I39: 122300 | J39: 977500 | K39: 22731 | L39: 3419 | N39: 126727550
B40: 1396100 | C40: 1120600 | D40: 117482000 | E40: 3268400 | F40: 5336700 | G40: 1880900 | H40: 13857700 | I40: 179300 | J40: 1459500 | K40: 57825 | L40: 24096 | N40: 146063121
B41: 1400700 | C41: 896600 | D41: 135805000 | E41: 2856600 | F41: 5300500 | G41: 1488700 | H41: 13757900 | I41: 109000 | J41: 1229500 | K41: 317063 | L41: 106725 | M41: 6 | N41: 163268294
B42: 1460300 | C42: 838200 | D42: 158138000 | E42: 2345500 | F42: 5694800 | G42: 1386900 | H42: 14552900 | I42: 84300 | J42: 1244100 | K42: 658481 | L42: 197454 | M42: 33 | N42: 186600968
B43: 1529400 | C43: 789500 | D43: 180387000 | E43: 1989600 | F43: 6354100 | G43: 1306800 | H43: 15663000 | I43: 64600 | J43: 982800 | K43: 1314462 | L43: 308780 | M43: 1131 | N43: 210691173
B44: 1583300 | C44: 754000 | D44: 201352000 | E44: 1864600 | F44: 7095300 | G44: 1243900 | H44: 17285300 | I44: 53700 | J44: 1080000 | K44: 2208238 | L44: 529746 | M44: 1998 | N44: 235052082
B45: 1605800 | C45: 720800 | D45: 220697000 | E45: 1718800 | F45: 7617000 | G45: 1162700 | H45: 19007600 | I45: 41100 | J45: 1192700 | K45: 3007497 | L45: 727564 | M45: 5188 | N45: 257503749
B46: 1570100 | C46: 682900 | D46: 237828000 | E46: 1581200 | F46: 8406400 | G46: 1061900 | H46: 20927200 | I46: 30900 | J46: 1320900 | K46: 4026782 | L46: 943983 | M46: 6686 | N46: 278386951 | O46: =POWER(K46/K36,1/10)-1 -> 172.10%
O49: 318034
O50: 1590276 | P50: =O49/O50 -> 20.00%

Sheet Number of newly registered cars
A1: Number of newly registered cars
A3: Year | B3: city | C3: car | D3: passenger car | E3: Large passenger car | F3: Medium passenger car | G3: Small passenger car | H3: Mini passenger car | I3: truck | J3: Heavy truck | K3: Medium truck | L3: Light truck | M3: Midget truck | N3: Other cars
A4: 2005 | B4: Beijing | C4: 342176 | D4: 325191 | E4: 6425 | F4: 3742 | G4: 307111 | H4: 7913 | I4: 13354 | J4: 1673 | K4: 2523 | L4: 9158 | N4: 3631
A5: 2006 | B5: Beijing | C5: 349197 | D5: 336758 | E5: 5933 | F5: 2985 | G5: 327721 | H5: 119 | I5: 9274 | J5: 1540 | K5: 2160 | L5: 5574 | N5: 3165
A6: 2007 | B6: Beijing | C6: 406610 | D6: 394396 | E6: 4672 | F6: 2908 | G6: 386709 | H6: 107 | I6: 7792 | J6: 1055 | K6: 1588 | L6: 5149 | N6: 4422
A7: 2008 | B7: Beijing | C7: 468445 | D7: 432670 | E7: 8907 | F7: 2716 | G7: 420724 | H7: 323 | I7: 28346 | J7: 4593 | K7: 8420 | L7: 15333 | N7: 7429
A8: 2009 | B8: Beijing | C8: 674873 | D8: 624532 | E8: 4210 | F8: 2725 | G8: 611361 | H8: 6236 | I8: 44921 | J8: 12874 | K8: 7459 | L8: 24588 | N8: 5420
A9: 2010 | B9: Beijing | C9: 869532 | D9: 832899 | E9: 4957 | F9: 2777 | G9: 812607 | H9: 12558 | I9: 31363 | J9: 9677 | K9: 3647 | L9: 18039 | N9: 5270
A10: 2011 | B10: Beijing | C10: 400722 | D10: 365137 | E10: 3968 | F10: 7109 | G10: 350724 | H10: 3336 | I10: 31414 | J10: 7205 | K10: 2174 | L10: 22035 | N10: 4171
A11: 2012 | B11: Beijing | C11: 588464 | D11: 552351 | E11: 3819 | F11: 7717 | G11: 536753 | H11: 4062 | I11: 32704 | J11: 6698 | K11: 1706 | L11: 24300 | N11: 3409
A12: 2013 | B12: Beijing | C12: 589346 | D12: 552069 | E12: 3681 | F12: 10377 | G12: 535611 | H12: 2400 | I12: 34144 | J12: 7884 | K12: 1533 | L12: 24727 | N12: 3133
A13: 2014 | B13: Beijing | C13: 503348 | D13: 460588 | E13: 3852 | F13: 10396 | G13: 444693 | H13: 1647 | I13: 40805 | J13: 7836 | K13: 1435 | L13: 31534 | N13: 1955
A14: 2015 | B14: Beijing | C14: 543464 | D14: 502020 | E14: 5421 | F14: 6048 | G14: 489500 | H14: 1051 | I14: 39103 | J14: 5383 | K14: 1580 | L14: 32139 | M14: 1 | N14: 2341
A15: 2016 | B15: Beijing | C15: 573493 | D15: 533119 | E15: 6849 | F15: 4857 | G15: 520121 | H15: 1292 | I15: 36350 | J15: 4908 | K15: 1042 | L15: 30399 | M15: 1 | N15: 4024
A16: 2017 | B16: Beijing | C16: 625962 | D16: 567230 | E16: 6414 | F16: 3856 | G16: 555659 | H16: 1301 | I16: 49962 | J16: 8626 | K16: 1893 | L16: 38154 | M16: 1289 | N16: 8770
A17: 2018 | B17: Beijing | C17: 547747 | D17: 454570 | E17: 2800 | F17: 3709 | G17: 447449 | H17: 612 | I17: 84253 | J17: 18751 | K17: 2702 | L17: 62800 | N17: 8924
A18: 2019 | B18: Beijing | C18: 582708 | D18: 458135 | E18: 5771 | F18: 6620 | G18: 445254 | H18: 490 | I18: 119479 | J18: 9677 | K18: 2441 | L18: 107361 | N18: 5094
A19: 2020 | B19: Beijing | C19: 498928 | D19: 429534 | E19: 3826 | F19: 3836 | G19: 421865 | H19: 7 | I19: 62556 | J19: 10617 | K19: 1541 | L19: 50393 | M19: 5 | N19: 6838
A20: 2000 | B20: Tianjin
A21: 2001 | B21: Tianjin
A22: 2002 | B22: Tianjin
A23: 2003 | B23: Tianjin
A24: 2004 | B24: Tianjin
A25: 2005 | B25: Tianjin | C25: 121316 | D25: 109269 | E25: 1900 | F25: 1171 | G25: 105227 | H25: 971 | I25: 10334 | J25: 470 | K25: 1004 | L25: 8743 | M25: 117 | N25: 1713
A26: 2006 | B26: Tianjin | C26: 129326 | D26: 115154 | E26: 1825 | F26: 1284 | G26: 111400 | H26: 645 | I26: 12574 | J26: 531 | K26: 1146 | L26: 10647 | M26: 250 | N26: 1598
A27: 2007 | B27: Tianjin | C27: 159244 | D27: 139312 | E27: 2738 | F27: 1384 | G27: 134810 | H27: 380 | I27: 16705 | J27: 798 | K27: 1202 | L27: 14689 | M27: 16 | N27: 3227
A28: 2008 | B28: Tianjin | C28: 184153 | D28: 164757 | E28: 2783 | F28: 896 | G28: 160432 | H28: 646 | I28: 16486 | J28: 820 | K28: 2004 | L28: 13603 | M28: 59 | N28: 2910
A29: 2009 | B29: Tianjin | C29: 241770 | D29: 217746 | E29: 1924 | F29: 878 | G29: 211679 | H29: 3265 | I29: 22789 | J29: 3221 | K29: 1150 | L29: 18182 | M29: 236 | N29: 1235
A30: 2010 | B30: Tianjin | C30: 310934 | D30: 273846 | E30: 2767 | F30: 1304 | G30: 265011 | H30: 4764 | I30: 35388 | J30: 8437 | K30: 1946 | L30: 24969 | M30: 36 | N30: 1700
A31: 2011 | B31: Tianjin | C31: 326849 | D31: 297220 | E31: 2781 | F31: 1191 | G31: 289983 | H31: 3265 | I31: 27912 | J31: 7414 | K31: 1097 | L31: 19379 | M31: 22 | N31: 1717
A32: 2012 | B32: Tianjin | C32: 342453 | D32: 312561 | E32: 3112 | F32: 1162 | G32: 306080 | H32: 2207 | I32: 28926 | J32: 6250 | K32: 1010 | L32: 21666 | N32: 966
A33: 2013 | B33: Tianjin | C33: 421659 | D33: 386280 | E33: 2976 | F33: 1088 | G33: 379104 | H33: 3112 | I33: 34326 | J33: 8596 | K33: 1419 | L33: 24303 | M33: 8 | N33: 1053
A34: 2014 | B34: Tianjin | C34: 235406 | D34: 188104 | E34: 4002 | F34: 1443 | G34: 181228 | H34: 1431 | I34: 46139 | J34: 9700 | K34: 1511 | L34: 34629 | M34: 299 | N34: 1163
A35: 2015 | B35: Tianjin | C35: 226070 | D35: 181034 | E35: 4009 | F35: 1133 | G35: 174943 | H35: 949 | I35: 42938 | J35: 7200 | K35: 893 | L35: 33513 | M35: 1332 | N35: 2098
A36: 2016 | B36: Tianjin | C36: 303950 | D36: 262849 | E36: 2925 | F36: 763 | G36: 258204 | H36: 957 | I36: 39561 | J36: 7055 | K36: 599 | L36: 31011 | M36: 896 | N36: 1540
A37: 2017 | B37: Tianjin | C37: 291436 | D37: 249617 | E37: 2439 | F37: 782 | G37: 242181 | H37: 4215 | I37: 39354 | J37: 9416 | K37: 507 | L37: 29253 | M37: 178 | N37: 2465
A38: 2018 | B38: Tianjin | C38: 273321 | D38: 237368 | E38: 1963 | F38: 624 | G38: 231915 | H38: 2866 | I38: 33881 | J38: 9293 | K38: 359 | L38: 24194 | M38: 35 | N38: 2072
A39: 2019 | B39: Tianjin | C39: 248718 | D39: 210253 | E39: 1113 | F39: 435 | G39: 207023 | H39: 1682 | I39: 35883 | J39: 10904 | K39: 470 | L39: 24509 | N39: 2582
A40: 2020 | B40: Tianjin | C40: 312203 | D40: 266726 | E40: 2522 | F40: 296 | G40: 263692 | H40: 216 | I40: 42993 | J40: 17755 | K40: 562 | L40: 24673 | M40: 3 | N40: 2484
A41: 2000 | B41: Hebei
A42: 2001 | B42: 河北
A43: 2002 | B43: 河北
A44: 2003 | B44: 河北
A45: 2004 | B45: 河北
A46: 2005 | B46: 河北 | C46: 585438 | D46: 399056 | E46: 8565 | F46: 6741 | G46: 314168 | H46: 69582 | I46: 170052 | J46: 42800 | K46: 24787 | L46: 92012 | M46: 10453 | N46: 16330
A47: 2006 | B47: 河北 | C47: 344248 | D47: 264115 | E47: 3522 | F47: 2979 | G47: 245405 | H47: 12209 | I47: 63378 | J47: 15384 | K47: 7029 | L47: 38531 | M47: 2434 | N47: 16755
A48: 2007 | B48: 河北 | C48: 54771 | D48: 45144 | E48: 603 | F48: 362 | G48: 42318 | H48: 1861 | I48: 6995 | J48: 1780 | K48: 713 | L48: 4382 | M48: 120 | N48: 2632
A49: 2008 | B49: 河北 | C49: 397745 | D49: 303852 | E49: 3791 | F49: 1728 | G49: 281250 | H49: 17083 | I49: 63257 | J49: 17947 | K49: 5902 | L49: 38732 | M49: 676 | N49: 30636
A50: 2009 | B50: 河北 | C50: 813186 | D50: 640076 | E50: 4232 | F50: 1826 | G50: 582714 | H50: 51304 | I50: 168807 | J50: 49806 | K50: 10081 | L50: 108126 | M50: 794 | N50: 4303
A51: 2010 | B51: 河北 | C51: 132658 | D51: 108756 | E51: 601 | F51: 332 | G51: 100992 | H51: 6831 | I51: 23381 | J51: 5487 | K51: 681 | L51: 17156 | M51: 57 | N51: 521
A52: 2011 | B52: 河北 | C52: 1116874 | D52: 906238 | E52: 4979 | F52: 2583 | G52: 863013 | H52: 35663 | I52: 204034 | J52: 75918 | K52: 6262 | L52: 121630 | M52: 224 | N52: 6602
A53: 2012 | B53: 河北 | C53: 1215307 | D53: 1016845 | E53: 5815 | F53: 2576 | G53: 988906 | H53: 19548 | I53: 193626 | J53: 60838 | K53: 4695 | L53: 128054 | M53: 39 | N53: 4836
A54: 2013 | B54: 河北 | C54: 1385247 | D54: 1156968 | E54: 6111 | F54: 2836 | G54: 1133185 | H54: 14836 | I54: 223647 | J54: 86440 | K54: 4316 | L54: 132886 | M54: 5 | N54: 4632
A55: 2014 | B55: 河北 | C55: 1542425 | D55: 1324915 | E55: 7679 | F55: 2940 | G55: 1301295 | H55: 13001 | I55: 212874 | J55: 67912 | K55: 4241 | L55: 140719 | M55: 2 | N55: 4636
A56: 2015 | B56: 河北 | C56: 1636383 | D56: 1473438 | E56: 14514 | F56: 2604 | G56: 1445635 | H56: 10685 | I56: 159075 | J56: 55562 | K56: 2502 | L56: 101003 | M56: 8 | N56: 3870
A57: 2016 | B57: 河北 | C57: 1841866 | D57: 1644579 | E57: 10895 | F57: 1335 | G57: 1628062 | H57: 4287 | I57: 192356 | J57: 79666 | K57: 2569 | L57: 110120 | M57: 1 | N57: 4931
A58: 2017 | B58: 河北 | C58: 1811156 | D58: 1584117 | E58: 5781 | F58: 1287 | G58: 1572993 | H58: 4056 | I58: 220795 | J58: 89070 | K58: 2246 | L58: 129479 | N58: 6244
A59: 2018 | B59: 河北 | C59: 1666401 | D59: 1395631 | E59: 4735 | F59: 1443 | G59: 1383844 | H59: 5609 | I59: 261494 | J59: 91185 | K59: 2503 | L59: 167805 | M59: 1 | N59: 9276
A60: 2019 | B60: 河北 | C60: 1552974 | D60: 1249172 | E60: 4395 | F60: 1430 | G60: 1236440 | H60: 6907 | I60: 292741 | J60: 111915 | K60: 2741 | L60: 178083 | M60: 2 | N60: 11061
A61: 2020 | B61: 河北 | C61: 1493376 | D61: 1066419 | E61: 3022 | F61: 829 | G61: 1062192 | H61: 376 | I61: 413589 | J61: 174391 | K61: 3248 | L61: 235922 | M61: 28 | N61: 13368
A62: 2000 | B62: 山西
A63: 2001 | B63: 山西
A64: 2002 | B64: 山西
A65: 2003 | B65: 山西
A66: 2004 | B66: 山西
A67: 2005 | B67: 山西 | C67: 178795 | D67: 144871 | E67: 1931 | F67: 2422 | G67: 126507 | H67: 14011 | I67: 32192 | J67: 5674 | K67: 4427 | L67: 20196 | M67: 1895 | N67: 1732
A68: 2006 | B68: 山西 | C68: 188309 | D68: 153559 | E68: 2004 | F68: 1904 | G68: 138996 | H68: 10655 | I68: 31784 | J68: 6819 | K68: 4371 | L68: 18858 | M68: 1736 | N68: 2966
A69: 2007 | B69: 山西 | C69: 221225 | D69: 177491 | E69: 2006 | F69: 1662 | G69: 164154 | H69: 9669 | I69: 37172 | J69: 10562 | K69: 6510 | L69: 19656 | M69: 444 | N69: 6562
A70: 2008 | B70: 山西 | C70: 328673 | D70: 252328 | E70: 2145 | F70: 1326 | G70: 233593 | H70: 15264 | I70: 60336 | J70: 26177 | K70: 6299 | L70: 26244 | M70: 1616 | N70: 16009
A71: 2009 | B71: 山西 | C71: 371059 | D71: 304443 | E71: 2000 | F71: 1161 | G71: 280565 | H71: 20717 | I71: 64367 | J71: 24465 | K71: 2788 | L71: 36711 | M71: 403 | N71: 2249
A72: 2010 | B72: 山西 | C72: 477054 | D72: 373873 | E72: 2851 | F72: 1563 | G72: 353130 | H72: 16329 | I72: 100540 | J72: 54566 | K72: 2748 | L72: 43026 | M72: 200 | N72: 2641
A73: 2011 | B73: 山西 | C73: 516291 | D73: 431586 | E73: 4174 | F73: 1823 | G73: 412244 | H73: 13345 | I73: 81633 | J73: 38673 | K73: 1516 | L73: 41365 | M73: 79 | N73: 3072
A74: 2012 | B74: 山西 | C74: 566133 | D74: 493403 | E74: 4484 | F74: 1715 | G74: 475347 | H74: 11857 | I74: 69818 | J74: 26198 | K74: 1314 | L74: 42236 | M74: 70 | N74: 2912
A75: 2013 | B75: 山西 | C75: 590604 | D75: 518234 | E75: 3511 | F75: 1546 | G75: 506180 | H75: 6997 | I75: 70090 | J75: 26754 | K75: 1008 | L75: 42318 | M75: 10 | N75: 2280
A76: 2014 | B76: 山西 | C76: 584150 | D76: 520937 | E76: 2720 | F76: 1275 | G76: 510866 | H76: 6076 | I76: 61463 | J76: 23373 | K76: 796 | L76: 37293 | M76: 1 | N76: 1750
A77: 2015 | B77: 山西 | C77: 602358 | D77: 550473 | E77: 2771 | F77: 1087 | G77: 542404 | H77: 4211 | I77: 50693 | J77: 19677 | K77: 552 | L77: 30463 | M77: 1 | N77: 1192
A78: 2016 | B78: 山西 | C78: 691635 | D78: 617665 | E78: 5831 | F78: 680 | G78: 607038 | H78: 4116 | I78: 72588 | J78: 37354 | K78: 584 | L78: 34646 | M78: 4 | N78: 1382
A79: 2017 | B79: 山西 | C79: 736892 | D79: 626320 | E79: 4991 | F79: 669 | G79: 618171 | H79: 2489 | I79: 108473 | J79: 55738 | K79: 2595 | L79: 50139 | M79: 1 | N79: 2099
A80: 2018 | B80: 山西 | C80: 664948 | D80: 560538 | E80: 2967 | F80: 658 | G80: 555546 | H80: 1367 | I80: 101301 | J80: 52712 | K80: 473 | L80: 48113 | M80: 3 | N80: 3109
A81: 2019 | B81: 山西 | C81: 638800 | D81: 516754 | E81: 2807 | F81: 796 | G81: 512778 | H81: 373 | I81: 117805 | J81: 58026 | K81: 934 | L81: 58842 | M81: 3 | N81: 4241
A82: 2020 | B82: 山西 | C82: 622823 | D82: 472799 | E82: 2611 | F82: 481 | G82: 469654 | H82: 53 | I82: 144850 | J82: 76821 | K82: 1084 | L82: 66936 | M82: 9 | N82: 5174
A83: 2000 | B83: 内蒙古
A84: 2001 | B84: 内蒙古
A85: 2002 | B85: 内蒙古
A86: 2003 | B86: 内蒙古
A87: 2004 | B87: 内蒙古
A88: 2005 | B88: 内蒙古 | C88: 112964 | D88: 78522 | E88: 1507 | F88: 885 | G88: 70253 | H88: 5877 | I88: 27302 | J88: 12168 | K88: 2684 | L88: 5012 | M88: 7438 | N88: 7140
A89: 2006 | B89: 内蒙古 | C89: 24006 | D89: 16647 | E89: 292 | F89: 163 | G89: 15711 | H89: 481 | I89: 5087 | J89: 2337 | K89: 333 | L89: 2291 | M89: 126 | N89: 2272
A90: 2007 | B90: 内蒙古 | C90: 59035 | D90: 44065 | E90: 663 | F90: 353 | G90: 41649 | H90: 1400 | I90: 12600 | J90: 4588 | K90: 717 | L90: 7062 | M90: 233 | N90: 2370
A91: 2008 | B91: 内蒙古 | C91: 214529 | D91: 160052 | E91: 2801 | F91: 992 | G91: 152275 | H91: 3984 | I91: 41479 | J91: 15255 | K91: 2214 | L91: 23589 | M91: 421 | N91: 12998
A92: 2009 | B92: 内蒙古 | C92: 297461 | D92: 243774 | E92: 2542 | F92: 716 | G92: 234252 | H92: 6264 | I92: 51839 | J92: 15914 | K92: 2000 | L92: 33858 | M92: 67 | N92: 1848
A93: 2010 | B93: 内蒙古 | C93: 398478 | D93: 313464 | E93: 2527 | F93: 907 | G93: 302596 | H93: 7434 | I93: 81041 | J93: 34941 | K93: 2142 | L93: 43734 | M93: 224 | N93: 3973
A94: 2011 | B94: 内蒙古 | C94: 463634 | D94: 383335 | E94: 3090 | F94: 1109 | G94: 372535 | H94: 6601 | I94: 75904 | J94: 27739 | K94: 1668 | L94: 46330 | M94: 167 | N94: 4395
A95: 2012 | B95: 内蒙古 | C95: 454619 | D95: 390983 | E95: 3294 | F95: 918 | G95: 383159 | H95: 3612 | I95: 60878 | J95: 14764 | K95: 1218 | L95: 44863 | M95: 33 | N95: 2758
A96: 2013 | B96: 内蒙古 | C96: 433257 | D96: 380093 | E96: 3164 | F96: 777 | G96: 373408 | H96: 2744 | I96: 51275 | J96: 10690 | K96: 1015 | L96: 39569 | M96: 1 | N96: 1889
A97: 2014 | B97: 内蒙古 | C97: 404470 | D97: 362041 | E97: 2229 | F97: 769 | G97: 356867 | H97: 2176 | I97: 41135 | J97: 6640 | K97: 824 | L97: 33671 | N97: 1294
A98: 2015 | B98: 内蒙古 | C98: 395279 | D98: 365614 | E98: 1588 | F98: 748 | G98: 361901 | H98: 1377 | I98: 28686 | J98: 3117 | K98: 408 | L98: 25161 | N98: 979
A99: 2016 | B99: 内蒙古 | C99: 467746 | D99: 426252 | E99: 2427 | F99: 616 | G99: 422117 | H99: 1092 | I99: 39852 | J99: 5914 | K99: 625 | L99: 33313 | N99: 1642
A100: 2017 | B100: 内蒙古 | C100: 534088 | D100: 474792 | E100: 3053 | F100: 580 | G100: 470240 | H100: 919 | I100: 57304 | J100: 15128 | K100: 2361 | L100: 39814 | M100: 1 | N100: 1992
A101: 2018 | B101: 内蒙古 | C101: 426794 | D101: 372085 | E101: 2212 | F101: 458 | G101: 368925 | H101: 490 | I101: 52612 | J101: 12342 | K101: 384 | L101: 39875 | M101: 11 | N101: 2097
A102: 2019 | B102: 内蒙古 | C102: 382731 | D102: 320919 | E102: 1863 | F102: 401 | G102: 318528 | H102: 127 | I102: 59267 | J102: 13399 | K102: 522 | L102: 45332 | M102: 14 | N102: 2545
A103: 2020 | B103: 内蒙古 | C103: 363341 | D103: 291915 | E103: 2009 | F103: 289 | G103: 289608 | H103: 9 | I103: 68580 | J103: 13816 | K103: 547 | L103: 54216 | M103: 1 | N103: 2846
A104: 2000 | B104: 辽宁
A105: 2001 | B105: 辽宁
A106: 2002 | B106: 辽宁
A107: 2003 | B107: 辽宁
A108: 2004 | B108: 辽宁
A109: 2005 | B109: 辽宁 | C109: 179705 | D109: 140576 | E109: 3662 | F109: 4418 | G109: 127558 | H109: 4938 | I109: 35499 | J109: 6468 | K109: 3414 | L109: 24724 | M109: 893 | N109: 3630
A110: 2006 | B110: 辽宁 | C110: 180106 | D110: 142991 | E110: 4138 | F110: 3867 | G110: 132324 | H110: 2662 | I110: 33864 | J110: 6403 | K110: 3105 | L110: 23847 | M110: 509 | N110: 3251
A111: 2007 | B111: 辽宁 | C111: 168834 | D111: 131082 | E111: 3566 | F111: 2706 | G111: 123507 | H111: 1303 | I111: 32181 | J111: 7612 | K111: 3555 | L111: 20451 | M111: 563 | N111: 5571
A112: 2008 | B112: 辽宁 | C112: 186477 | D112: 144877 | E112: 3499 | F112: 2217 | G112: 137904 | H112: 1257 | I112: 33600 | J112: 6948 | K112: 2725 | L112: 23736 | M112: 191 | N112: 8000
A113: 2009 | B113: 辽宁 | C113: 425028 | D113: 331244 | E113: 5270 | F113: 3521 | G113: 318686 | H113: 3767 | I113: 91330 | J113: 18559 | K113: 6789 | L113: 65917 | M113: 65 | N113: 2454
A114: 2010 | B114: 辽宁 | C114: 545807 | D114: 423135 | E114: 6115 | F114: 3880 | G114: 405856 | H114: 7284 | I114: 118568 | J114: 35690 | K114: 6977 | L114: 75772 | M114: 129 | N114: 4104
A115: 2011 | B115: 辽宁 | C115: 609866 | D115: 502539 | E115: 6947 | F115: 3483 | G115: 486013 | H115: 6096 | I115: 103132 | J115: 33716 | K115: 5427 | L115: 63918 | M115: 71 | N115: 4195
A116: 2012 | B116: 辽宁 | C116: 447773 | D116: 373918 | E116: 6234 | F116: 2167 | G116: 362665 | H116: 2852 | I116: 71359 | J116: 19945 | K116: 4463 | L116: 46926 | M116: 25 | N116: 2496
A117: 2013 | B117: 辽宁 | C117: 634207 | D117: 548340 | E117: 8661 | F117: 2364 | G117: 533848 | H117: 3467 | I117: 83032 | J117: 22832 | K117: 4286 | L117: 55906 | M117: 8 | N117: 2835
A118: 2014 | B118: 辽宁 | C118: 501724 | D118: 441182 | E118: 4829 | F118: 1387 | G118: 433192 | H118: 1774 | I118: 58743 | J118: 17796 | K118: 2683 | L118: 38262 | M118: 2 | N118: 1799
A119: 2015 | B119: 辽宁 | C119: 673188 | D119: 626409 | E119: 7193 | F119: 1415 | G119: 616561 | H119: 1240 | I119: 45190 | J119: 11709 | K119: 1762 | L119: 31716 | M119: 3 | N119: 1589
A120: 2016 | B120: 辽宁 | C120: 764999 | D120: 696611 | E120: 6988 | F120: 1694 | G120: 687235 | H120: 694 | I120: 66475 | J120: 22078 | K120: 2250 | L120: 42145 | M120: 2 | N120: 1913
A121: 2017 | B121: 辽宁 | C121: 739376 | D121: 654997 | E121: 8217 | F121: 1389 | G121: 644930 | H121: 461 | I121: 81973 | J121: 35275 | K121: 2341 | L121: 44357 | N121: 2406
A122: 2018 | B122: 辽宁 | C122: 632638 | D122: 566363 | E122: 3598 | F122: 1101 | G122: 561299 | H122: 365 | I122: 63574 | J122: 24441 | K122: 1634 | L122: 37499 | N122: 2701
A123: 2019 | B123: 辽宁 | C123: 578507 | D123: 505767 | E123: 3265 | F123: 761 | G123: 501583 | H123: 158 | I123: 69930 | J123: 27878 | K123: 1375 | L123: 40677 | N123: 2810
A124: 2020 | B124: 辽宁 | C124: 613034 | D124: 510271 | E124: 1981 | F124: 489 | G124: 507760 | H124: 41 | I124: 99977 | J124: 43440 | K124: 1420 | L124: 55116 | M124: 1 | N124: 2786
A125: 2000 | B125: 吉林
A126: 2001 | B126: 吉林
A127: 2002 | B127: 吉林
A128: 2003 | B128: 吉林
A129: 2004 | B129: 吉林
A130: 2005 | B130: 吉林 | C130: 90881 | D130: 77769 | E130: 2037 | F130: 1232 | G130: 66353 | H130: 8147 | I130: 11886 | J130: 2147 | K130: 1598 | L130: 7452 | M130: 689 | N130: 1226
A131: 2006 | B131: 吉林 | C131: 105765 | D131: 89676 | E131: 1936 | F131: 1215 | G131: 79244 | H131: 7281 | I131: 12459 | J131: 3052 | K131: 1157 | L131: 7734 | M131: 516 | N131: 3630
A132: 2007 | B132: 吉林 | C132: 118615 | D132: 97652 | E132: 1974 | F132: 1361 | G132: 89448 | H132: 4869 | I132: 17186 | J132: 3295 | K132: 2621 | L132: 10913 | M132: 357 | N132: 3777
A133: 2008 | B133: 吉林 | C133: 85150 | D133: 69712 | E133: 1547 | F133: 820 | G133: 64219 | H133: 3126 | I133: 12938 | J133: 2244 | K133: 1333 | L133: 9085 | M133: 276 | N133: 2500
A134: 2009 | B134: 吉林 | C134: 248771 | D134: 201639 | E134: 3107 | F134: 1226 | G134: 192457 | H134: 4849 | I134: 45920 | J134: 11621 | K134: 5771 | L134: 28457 | M134: 71 | N134: 1212
A135: 2010 | B135: 吉林 | C135: 309763 | D135: 248520 | E135: 3639 | F135: 1494 | G135: 238474 | H135: 4913 | I135: 59367 | J135: 20679 | K135: 5013 | L135: 33627 | M135: 48 | N135: 1876
A136: 2011 | B136: 吉林 | C136: 310168 | D136: 257880 | E136: 4323 | F136: 1469 | G136: 248391 | H136: 3697 | I136: 49805 | J136: 16297 | K136: 2990 | L136: 30442 | M136: 76 | N136: 2483
A137: 2012 | B137: 吉林 | C137: 324849 | D137: 279711 | E137: 5656 | F137: 1655 | G137: 270018 | H137: 2382 | I137: 43587 | J137: 11924 | K137: 1360 | L137: 30276 | M137: 27 | N137: 1551
A138: 2013 | B138: 吉林 | C138: 352333 | D138: 303426 | E138: 4146 | F138: 1480 | G138: 296362 | H138: 1438 | I138: 47472 | J138: 14372 | K138: 1608 | L138: 31492 | N138: 1435
A139: 2014 | B139: 吉林 | C139: 387872 | D139: 343813 | E139: 3397 | F139: 1065 | G139: 338402 | H139: 949 | I139: 42984 | J139: 11471 | K139: 1183 | L139: 30330 | N139: 1075
A140: 2015 | B140: 吉林 | C140: 392291 | D140: 364273 | E140: 2475 | F140: 916 | G140: 360031 | H140: 851 | I140: 26672 | J140: 5918 | K140: 469 | L140: 20282 | M140: 3 | N140: 1346
A141: 2016 | B141: 吉林 | C141: 428903 | D141: 393831 | E141: 3627 | F141: 854 | G141: 388765 | H141: 585 | I141: 33552 | J141: 9995 | K141: 541 | L141: 23013 | M141: 3 | N141: 1520
A142: 2017 | B142: 吉林 | C142: 440605 | D142: 392182 | E142: 3397 | F142: 601 | G142: 387941 | H142: 243 | I142: 46650 | J142: 17676 | K142: 635 | L142: 28338 | M142: 1 | N142: 1773
A143: 2018 | B143: 吉林 | C143: 346739 | D143: 301993 | E143: 2633 | F143: 445 | G143: 298785 | H143: 130 | I143: 42428 | J143: 17049 | K143: 524 | L143: 24852 | M143: 3 | N143: 2318
A144: 2019 | B144: 吉林 | C144: 322328 | D144: 283522 | E144: 2472 | F144: 439 | G144: 280566 | H144: 45 | I144: 36828 | J144: 10828 | K144: 541 | L144: 25458 | M144: 1 | N144: 1978
A145: 2020 | B145: 吉林 | C145: 325737 | D145: 277044 | E145: 1940 | F145: 292 | G145: 274811 | H145: 1 | I145: 46225 | J145: 15748 | K145: 729 | L145: 29747 | M145: 1 | N145: 2468
A146: 2000 | B146: 黑龙江
A147: 2001 | B147: 黑龙江
A148: 2002 | B148: 黑龙江
A149: 2003 | B149: 黑龙江
A150: 2004 | B150: 黑龙江
A151: 2005 | B151: 黑龙江 | C151: 91195 | D151: 72552 | E151: 2711 | F151: 1897 | G151: 64561 | H151: 3383 | I151: 16772 | J151: 2867 | K151: 1812 | L151: 11297 | M151: 796 | N151: 1871
A152: 2006 | B152: 黑龙江 | C152: 117365 | D152: 95294 | E152: 2938 | F152: 1559 | G152: 86709 | H152: 4088 | I152: 19007 | J152: 3129 | K152: 2188 | L152: 13069 | M152: 621 | N152: 3064
A153: 2007 | B153: 黑龙江 | C153: 24069 | D153: 17798 | E153: 590 | F153: 297 | G153: 16262 | H153: 649 | I153: 4894 | J153: 841 | K153: 1099 | L153: 2819 | M153: 135 | N153: 1377
A154: 2008 | B154: 黑龙江 | C154: 181002 | D154: 141861 | E154: 3204 | F154: 1552 | G154: 134736 | H154: 2369 | I154: 30476 | J154: 4266 | K154: 5829 | L154: 19985 | M154: 396 | N154: 8665
A155: 2009 | B155: 黑龙江 | C155: 336609 | D155: 258917 | E155: 4270 | F155: 2050 | G155: 247502 | H155: 5095 | I155: 75768 | J155: 17998 | K155: 12186 | L155: 45489 | M155: 95 | N155: 1924
A156: 2010 | B156: 黑龙江 | C156: 363133 | D156: 274432 | E156: 5159 | F156: 2106 | G156: 261103 | H156: 6064 | I156: 85893 | J156: 27712 | K156: 8701 | L156: 49384 | M156: 96 | N156: 2808
A157: 2011 | B157: 黑龙江 | C157: 367182 | D157: 291175 | E157: 5383 | F157: 2151 | G157: 280819 | H157: 2822 | I157: 72711 | J157: 24816 | K157: 5646 | L157: 42182 | M157: 67 | N157: 3296
A158: 2012 | B158: 黑龙江 | C158: 355835 | D158: 293793 | E158: 5224 | F158: 1775 | G158: 285528 | H158: 1266 | I158: 59448 | J158: 13938 | K158: 3590 | L158: 41892 | M158: 28 | N158: 2594
A159: 2013 | B159: 黑龙江 | C159: 373898 | D159: 315841 | E159: 5354 | F159: 1820 | G159: 307728 | H159: 939 | I159: 56135 | J159: 12595 | K159: 3451 | L159: 40089 | N159: 1922
A160: 2014 | B160: 黑龙江 | C160: 393088 | D160: 353580 | E160: 4658 | F160: 1193 | G160: 346908 | H160: 821 | I160: 38146 | J160: 6374 | K160: 3283 | L160: 28489 | N160: 1362
A161: 2015 | B161: 黑龙江 | C161: 422355 | D161: 380193 | E161: 3861 | F161: 1598 | G161: 374211 | H161: 523 | I161: 40565 | J161: 8047 | K161: 1478 | L161: 31039 | M161: 1 | N161: 1597
A162: 2016 | B162: 黑龙江 | C162: 501015 | D162: 448751 | E162: 3739 | F162: 1332 | G162: 443370 | H162: 310 | I162: 50337 | J162: 11645 | K162: 1775 | L162: 36916 | M162: 1 | N162: 1927
A163: 2017 | B163: 黑龙江 | C163: 497943 | D163: 436207 | E163: 5337 | F163: 811 | G163: 429898 | H163: 161 | I163: 60062 | J163: 22518 | K163: 1611 | L163: 35933 | N163: 1674
A164: 2018 | B164: 黑龙江 | C164: 414445 | D164: 364621 | E164: 4796 | F164: 904 | G164: 358769 | H164: 152 | I164: 47667 | J164: 14180 | K164: 1138 | L164: 32349 | N164: 2157
A165: 2019 | B165: 黑龙江 | C165: 371713 | D165: 320713 | E165: 3495 | F165: 479 | G165: 316679 | H165: 60 | I165: 48881 | J165: 15027 | K165: 815 | L165: 33039 | N165: 2119
A166: 2020 | B166: 黑龙江 | C166: 355188 | D166: 286555 | E166: 1427 | F166: 231 | G166: 284894 | H166: 3 | I166: 66555 | J166: 23489 | K166: 1316 | L166: 41745 | M166: 5 | N166: 2078
A167: 2000 | B167: 上海
A168: 2001 | B168: 上海
A169: 2002 | B169: 上海
A170: 2003 | B170: 上海
A171: 2004 | B171: 上海
A172: 2005 | B172: 上海 | C172: 169715 | D172: 150646 | E172: 4745 | F172: 9773 | G172: 134182 | H172: 1946 | I172: 19069 | J172: 1706 | K172: 6690 | L172: 10456 | M172: 217
A173: 2006 | B173: 上海 | C173: 205156 | D173: 184239 | E173: 6505 | F173: 8187 | G173: 168554 | H173: 993 | I173: 20917 | J173: 2361 | K173: 6682 | L173: 11811 | M173: 63
A174: 2007 | B174: 上海 | C174: 200732 | D174: 182252 | E174: 5374 | F174: 5360 | G174: 171044 | H174: 474 | I174: 18480 | J174: 2821 | K174: 6059 | L174: 9563 | M174: 37
A175: 2008 | B175: 上海 | C175: 185955 | D175: 173366 | E175: 3914 | F175: 3016 | G175: 165870 | H175: 566 | I175: 12589 | J175: 2371 | K175: 3123 | L175: 7087 | M175: 8
A176: 2009 | B176: 上海 | C176: 224996 | D176: 209940 | E176: 5666 | F176: 3065 | G176: 199658 | H176: 1551 | I176: 15056 | J176: 4812 | K176: 3999 | L176: 6245
A177: 2010 | B177: 上海 | C177: 345693 | D177: 312169 | E177: 6533 | F177: 3798 | G177: 298781 | H177: 3057 | I177: 25609 | J177: 11190 | K177: 6668 | L177: 7751 | N177: 7915
A178: 2011 | B178: 上海 | C178: 311060 | D178: 281002 | E178: 3670 | F178: 2998 | G178: 272528 | H178: 1806 | I178: 23053 | J178: 10729 | K178: 5518 | L178: 6806 | N178: 7005
A179: 2012 | B179: 上海 | C179: 329988 | D179: 303252 | E179: 3590 | F179: 2667 | G179: 296076 | H179: 919 | I179: 22623 | J179: 10723 | K179: 5473 | L179: 6427 | N179: 4113
A180: 2013 | B180: 上海 | C180: 349923 | D180: 303841 | E180: 4677 | F180: 2629 | G180: 295822 | H180: 713 | I180: 36186 | J180: 17291 | K180: 8080 | L180: 10815 | N180: 9896
A181: 2014 | B181: 上海 | C181: 371994 | D181: 320434 | E181: 7717 | F181: 3474 | G181: 308765 | H181: 478 | I181: 32513 | J181: 15129 | K181: 5663 | L181: 11721 | N181: 19047
A182: 2015 | B182: 上海 | C182: 449341 | D182: 412236 | E182: 6084 | F182: 2100 | G182: 403587 | H182: 465 | I182: 30554 | J182: 14682 | K182: 4420 | L182: 11451 | M182: 1 | N182: 6551
A183: 2016 | B183: 上海 | C183: 547912 | D183: 506874 | E183: 6450 | F183: 1822 | G183: 498036 | H183: 566 | I183: 32604 | J183: 17214 | K183: 4667 | L183: 10723 | N183: 8434
A184: 2017 | B184: 上海 | C184: 536770 | D184: 487588 | E184: 5871 | F184: 1370 | G184: 479259 | H184: 1088 | I184: 46554 | J184: 29062 | K184: 3882 | L184: 13610 | N184: 2628
A185: 2018 | B185: 上海 | C185: 503658 | D185: 467164 | E185: 3838 | F185: 1203 | G185: 461458 | H185: 665 | I185: 34041 | J185: 22187 | K185: 2026 | L185: 9828 | N185: 2453
A186: 2019 | B186: 上海 | C186: 467437 | D186: 435515 | E186: 3497 | F186: 981 | G186: 430644 | H186: 393 | I186: 29539 | J186: 19662 | K186: 2824 | L186: 7053 | N186: 2383
A187: 2020 | B187: 上海 | C187: 561330 | D187: 509649 | E187: 4371 | F187: 955 | G187: 504184 | H187: 139 | I187: 49043 | J187: 36257 | K187: 2893 | L187: 9893 | N187: 2638
A188: 2000 | B188: 江苏
A189: 2001 | B189: 江苏
A190: 2002 | B190: 江苏
A191: 2003 | B191: 江苏
A192: 2004 | B192: 江苏
A193: 2005 | B193: 江苏 | C193: 381620 | D193: 334787 | E193: 6075 | F193: 8133 | G193: 311244 | H193: 9335 | I193: 39968 | J193: 6093 | K193: 9988 | L193: 23255 | M193: 632 | N193: 6865
A194: 2006 | B194: 江苏 | C194: 478682 | D194: 425631 | E194: 6605 | F194: 6482 | G194: 405048 | H194: 7496 | I194: 43569 | J194: 9975 | K194: 9461 | L194: 23573 | M194: 560 | N194: 9482
A195: 2007 | B195: 江苏 | C195: 560286 | D195: 495968 | E195: 8960 | F195: 5765 | G195: 476277 | H195: 4966 | I195: 49764 | J195: 13454 | K195: 10483 | L195: 25340 | M195: 487 | N195: 14554
A196: 2008 | B196: 江苏 | C196: 561834 | D196: 502950 | E196: 9405 | F196: 3385 | G196: 485202 | H196: 4958 | I196: 46183 | J196: 10681 | K196: 9044 | L196: 26230 | M196: 228 | N196: 12701
A197: 2009 | B197: 江苏 | C197: 863865 | D197: 781324 | E197: 9040 | F197: 3565 | G197: 758106 | H197: 10613 | I197: 80866 | J197: 25444 | K197: 13094 | L197: 42111 | M197: 217 | N197: 1675
A198: 2010 | B198: 江苏 | C198: 1222552 | D198: 1085981 | E198: 12360 | F198: 4838 | G198: 1053775 | H198: 15008 | I198: 122918 | J198: 44562 | K198: 17733 | L198: 60461 | M198: 162 | N198: 13653
A199: 2011 | B199: 江苏 | C199: 1311206 | D199: 1187725 | E199: 11616 | F199: 4887 | G199: 1157369 | H199: 13853 | I199: 116062 | J199: 50109 | K199: 13710 | L199: 52191 | M199: 52 | N199: 7419
A200: 2012 | B200: 江苏 | C200: 1374738 | D200: 1269666 | E200: 9969 | F200: 4050 | G200: 1246713 | H200: 8934 | I200: 98765 | J200: 35586 | K200: 11104 | L200: 52069 | M200: 6 | N200: 6307
A201: 2013 | B201: 江苏 | C201: 1568341 | D201: 1448610 | E201: 10638 | F201: 3920 | G201: 1428330 | H201: 5722 | I201: 112613 | J201: 45590 | K201: 11329 | L201: 55691 | M201: 3 | N201: 7118
... 531 more rows

Sheet 2000-2020CO
A1: 2000-2020CO
B2: Year | C2: Large passenger car | D2: Medium passenger car | E2: Small passenger car | F2: Mini passenger car | G2: Heavy truck | H2: Medium truck | I2: Light truck | J2: Midget truck | K2: Other cars | L2: Hybrid electric vehicle | M2: ALL
A3: 中国 | B3: 2000 | C3: 517244.1863 | D3: 357982.5841 | E3: 677269.5835 | F3: 199251.4182 | G3: 2287208.649 | H3: 1574196.392 | I3: 2495709.467 | J3: 585963.6239 | K3: 320072.333 | M3: =SUM(C3:K3) -> 9014898.238
A4: 中国 | B4: 2001 | C4: 602204.4809 | D4: 416783.2562 | E4: 788514.9582 | F4: 231979.595 | G4: 2443410.133 | H4: 1681703.774 | I4: 2666150.202 | J4: 625981.1307 | K4: 352853.802 | M4: =SUM(C4:K4) -> 9809581.332
A5: 中国 | B5: 2002 | C5: 728472.576 | D5: 504172.888 | E5: 953847.972 | F5: 280620.252 | G5: 2593417.2 | H5: 1784947.78 | I5: 2829831.84 | J5: 664411.68 | K5: 317766.099 | M5: 10657488.29
A6: 中国 | B6: 2003 | C6: 731186.4934 | D6: 557849.5006 | E6: 1228582.131 | F6: 325964.5666 | G6: 2392532.307 | H6: 1989074.503 | I6: 3066933.262 | J6: 645271.9776 | K6: 416856.7374 | M6: 11354251.48
A7: 中国 | B7: 2004 | C7: 753332.137 | D7: 599128.6558 | E7: 1508411.033 | F7: 343522.8383 | G7: 2691733.737 | H7: 1909415.015 | I7: 3341198.887 | J7: 623327.4 | K7: 533756.4443 | M7: 12303826.15
B8: 2005 | C8: 849350.9606 | D8: 649793.2202 | E8: 1676789.893 | F8: 354438.4955 | G8: 2976574.128 | H8: 2052720.146 | I8: 3754478.036 | J8: 652889.7576 | K8: 606533.6271 | M8: 13573568.26
B9: 2006 | C9: 941450.432 | D9: 689606.5216 | E9: 1875566.757 | F9: 359803.4495 | G9: 3219895.008 | H9: 2173263.908 | I9: 4153125.278 | J9: 666831.5226 | K9: 694402.7533 | M9: 14773945.63
B10: 2007 | C10: 984879.092 | D10: 699345.229 | E10: 1976657.454 | F10: 361170.7321 | G10: 3343905.562 | H10: 2232287.039 | I10: 4251991.598 | J10: 669098.5236 | K10: 775990.4952 | M10: 15295325.73
B11: 2008 | C11: 1045918.466 | D11: 706258.1567 | E11: 2120422.709 | F11: 364909.3331 | G11: 3589688.817 | H11: 2309459.658 | I11: 4390045.9 | J11: 670916.8368 | K11: 927068.481 | M11: 16124688.36
B12: 2009 | C12: 1092132.953 | D12: 717096.8174 | E12: 2307119.59 | F12: 369449.3407 | G12: 3930903.794 | H12: 2391353.138 | I12: 4604599.116 | J12: 673469.4429 | K12: 924273.607 | M12: 17010397.8
B13: 2010 | C13: 1163170.106 | D13: 727473.4597 | E13: 2455296.896 | F13: 372296.6462 | G13: 4546794.125 | H13: 2479645.307 | I13: 4718899.547 | J13: 674502.8103 | K13: 976613.2853 | L13: 0.4186901045 | M13: 18114692.18
B14: 2011 | C14: 1160292.774 | D14: 726581.0704 | E14: 2617412.93 | F14: 374867.4868 | G14: 4434994.469 | H14: 2455720.238 | I14: 4828079.996 | J14: 675001.719 | K14: 1015864.745 | L14: 0.81950929 | M14: 18288815.43
B15: 2012 | C15: 1196047.401 | D15: 730982.0301 | E15: 2799493.75 | F15: 376561.3437 | G15: 4624015.732 | H15: 2477737.635 | I15: 4947663.655 | J15: 675315.1989 | K15: 1055225.883 | L15: 1.711778751 | M15: 18883042.63
B16: 2013 | C16: 1232989.133 | D16: 736011.84 | E16: 3009700.964 | F16: 377773.9238 | G16: 4873437.344 | H16: 2498748.45 | I16: 5076666.428 | J16: 675534.4713 | K16: 1097425.978 | L16: 4.364333742 | M16: 19578288.53
B17: 2014 | C17: 1266046.371 | D17: 740945.0323 | E17: 3242640.147 | F17: 378854.5077 | G17: 5087238.194 | H17: 2515676.55 | I17: 5205547.479 | J17: 675664.7265 | K17: 1141783.052 | L17: 30.75840475 | M17: 20254396.06
B18: 2015 | C18: 1307817.865 | D18: 745102.2482 | E18: 3415377.523 | F18: 379539.2554 | G18: 5240793.607 | H18: 2527059.705 | I18: 5313176.739 | J18: 675823.3506 | K18: 1172803.968 | L18: 134.9252645 | M18: 20777494.26
B19: 2016 | C19: 1348813.772 | D19: 748641.7073 | E19: 3605105.741 | F19: 379961.8169 | G19: 5452411.169 | H19: 2538624.773 | I19: 5431934.713 | J19: 675906.5376 | K19: 1209196.604 | L19: 246.7407871 | M19: 21390596.83
B20: 2017 | C20: 1386308.277 | D20: 751533.2283 | E20: 3808026.798 | F20: 380598.64 | G20: 5783184.119 | H20: 2549220.428 | I20: 5576829.83 | J20: 676093.3173 | K20: 1258685.898 | L20: 385.4066627 | M20: 22170480.54
B21: 2018 | C21: 1420366.759 | D21: 753982.0689 | E21: 3997443.87 | F21: 381158.8069 | G21: 6109576.657 | H21: 2557031.01 | I21: 5734706.811 | J21: 676212.4098 | K21: 1320739.456 | L21: 658.7453981 | M21: 22951217.85
B22: 2019 | C22: 1449526.601 | D22: 756203.4649 | E22: 4176690.453 | F22: 381395.0518 | G22: 6461056.244 | H22: 2565815.73 | I22: 5900901.07 | J22: 676227.1986 | K22: 1392475.136 | L22: 904.0505279 | M22: 23760290.95
B23: 2020 | C23: 1468528.592 | D23: 757655.1439 | E23: 4339052.12 | F23: 381438.2817 | G23: 6945950.257 | H23: 2575082.242 | I23: 6086204.805 | J23: 676262.322 | K23: 1468308.434 | L23: 1171.343717 | M23: 24698482.2
C24: 1e-06 | D24: 1e-06 | E24: 1e-06 | F24: 1e-06 | G24: 1e-06 | H24: 1e-06 | I24: 1e-06 | J24: 1e-06 | K24: 1e-06 | L24: 1e-06 | M24: 1e-06
C25: =C23*C24 -> 1.468528592 | D25: =D23*D24 -> 0.7576551439 | E25: 4.33905212 | F25: 0.3814382817 | G25: 6.945950257 | H25: 2.575082242 | I25: 6.086204805 | J25: 0.676262322 | K25: 1.468308434 | L25: 0.001171343717 | M25: 24.6984822

Sheet 2020
A1: Carbon emissions from vehicles in Chinese provinces and cities in 2020 | V1: Car carbon emissions per unit area of provinces and cities in China in 2020
A2: city | B2: car | C2: passenger car | D2: Large passenger car | E2: Medium passenger car | F2: Small passenger car | G2: Mini passenger car | H2: truck | I2: Heavy truck | J2: Medium truck | K2: Light truck | L2: Midget truck | M2: Other cars | N2: CO | O2: CO2 | P2: HC | Q2: NOx | R2: 市 | S2: total carbon emission | V2: city | W2: Area (square kilometers) | X2: total carbon emission | Y2: t per square kilometer | AE2: Beijing
A3: 北京 | B3: 0 | C3: 0 | D3: 142119.965 | E3: 78257.19618 | F3: 293643.075 | G3: 36034.50988 | H3: 0 | I3: 208120.6665 | J3: 115937.13 | K3: 147878.3884 | L3: 4850.972492 | M3: 55905.77011 | N3: =SUM(D3:M3) -> 1082747.674 | O3: 125137.5053 | P3: 113146.1336 | Q3: 75543.72861 | R3: 北京 | S3: =SUM(N3:Q3) -> 1396575.041 | T3: 0.0001 | U3: =S3*T3 -> 139.66 | V3: 北京 | W3: 16410 | X3: 1396575.041 | Y3: =X3/W3 -> 85.10512134 | AE3: Tianjin
A4: 天津 | B4: 0 | C4: 0 | D4: 25384.33858 | E4: 14330.15318 | F4: 94591.60184 | G4: 14968.28105 | H4: 0 | I4: 57030.7494 | J4: 30740.8674 | K4: 91456.5816 | L4: 13007.0322 | M4: 24902.91374 | N4: =SUM(D4:M4) -> 366412.519 | O4: 46151.37808 | P4: 59931.88495 | Q4: 43079.73798 | R4: 天津 | S4: =SUM(N4:Q4) -> 515575.52 | T4: 0.0001 | U4: =S4*T4 -> 51.56 | V4: 天津 | W4: 11934 | X4: 515575.52 | Y4: =X4/W4 -> 43.20223898 | AE4: Hebei
A5: 石家庄市 | B5: nan | C5: nan | D5: 446.0465157 | E5: 44.28850938 | F5: 5947.128 | G5: 10.06562085 | H5: nan | I5: 7160.0175 | J5: 75.21883853 | K5: 663.7730517 | L5: 0.2968434616 | M5: 2107.984036 | N5: 342019.348 | O5: 32460.50151 | P5: 39864.19483 | Q5: 46314.51409 | R5: 石家庄市 | S5: 460658.5584 | T5: 0.0001 | U5: 46.07 | V5: 石家庄市 | W5: 14530 | X5: 460658.5584 | Y5: 31.70396135 | AE5: Shanxi
A6: 唐山市 | B6: nan | C6: nan | D6: 350.3899616 | E6: 34.790652 | F6: 4546.735768 | G6: 7.907006062 | H6: nan | I6: 5617.483299 | J6: 97.5829558 | K6: 861.1265159 | L6: 0.3851011656 | M6: 123.34554 | N6: 355499.4875 | O6: 34975.6866 | P6: 43225.62294 | Q6: 47654.85141 | R6: 唐山市 | S6: 481355.6485 | T6: 0.0001 | U6: 48.14 | V6: 唐山市 | W6: 13472 | X6: 481355.6485 | Y6: 35.7300808 | AE6: Inner Mongolia
A7: 秦皇岛市 | B7: nan | C7: nan | D7: 119.9893025 | E7: 11.91388602 | F7: 1557.007086 | G7: 2.707714963 | H7: nan | I7: 2074.735081 | J7: 36.04083375 | K7: 318.044451 | L7: 0.1422314683 | M7: 42.06913066 | N7: 86732.61789 | O7: 8770.754677 | P7: 10362.91726 | Q7: 12618.34198 | R7: 秦皇岛市 | S7: 118484.6318 | T7: 0.0001 | U7: 11.85 | V7: 秦皇岛市 | W7: 7813 | X7: 118484.6318 | Y7: 15.16506231 | AE7: Liaoning
A8: 邯郸市 | B8: nan | C8: nan | D8: 259.2471437 | E8: 25.74096905 | F8: 3364.046891 | G8: 5.850249611 | H8: nan | I8: 5334.868796 | J8: 92.67357607 | K8: 817.8034067 | L8: 0.3657268001 | M8: 407.289825 | N8: 827383.9918 | O8: 79272.00196 | P8: 109644.9927 | Q8: 96099.23179 | R8: 邯郸市 | S8: 1112400.218 | T8: 0.0001 | U8: 111.24 | V8: 邯郸市 | W8: 12047 | X8: 1112400.218 | Y8: 92.33835962 | AE8: Jilin
A9: 邢台市 | B9: nan | C9: nan | D9: 236.6619283 | E9: 23.49845512 | F9: 2741.904 | G9: 5.340584795 | H9: nan | I9: 4092.121505 | J9: 71.08544709 | K9: 627.2976965 | L9: 0.2805314546 | M9: 82.97541012 | N9: 345422.1462 | O9: 41899.06157 | P9: 38870.17016 | Q9: 37509.11973 | R9: 邢台市 | S9: 463700.4977 | T9: 0.0001 | U9: 46.37 | V9: 邢台市 | W9: 12143 | X9: 463700.4977 | Y9: 38.18665055 | AE9: Heilongjiang
A10: 保定市 | B10: nan | C10: nan | D10: 417.6842807 | E10: 41.47238804 | F10: 5419.961377 | G10: 9.42559006 | H10: nan | I10: 7222.17908 | J10: 125.4585985 | K10: 1107.11676 | L10: 0.4951095417 | M10: 146.4431763 | N10: 380495.665 | O10: 34292.35224 | P10: 45732.00388 | Q10: 55745.5295 | R10: 保定市 | S10: 516265.5506 | T10: 0.0001 | U10: 51.63 | V10: 保定市 | W10: 22135 | X10: 516265.5506 | Y10: 23.32349449 | AE10: Shanghai
A11: 张家口市 | B11: nan | C11: nan | D11: 154.9848908 | E11: 15.3886412 | F11: 2011.117394 | G11: 3.497436015 | H11: nan | I11: 2679.843814 | J11: 46.55235566 | K11: 410.8039925 | L11: 0.1837141157 | M11: 54.33884094 | N11: 112124.002 | O11: 11349.7067 | P11: 13395.86652 | Q11: 16311.88638 | R11: 张家口市 | S11: 153181.4616 | T11: 0.0001 | U11: 15.32 | V11: 张家口市 | W11: 36303 | X11: 153181.4616 | Y11: 4.219526255 | AE11: Jiangsu
A12: 承德市 | B12: nan | C12: nan | D12: 144.2112 | E12: 14.470303 | F12: 998.46648 | G12: 2.011162109 | H12: nan | I12: 1344.2325 | J12: 86.1665 | K12: 183.71655 | L12: 0.08915992083 | M12: 123.773328 | N12: 87099.75336 | O12: 8197.966229 | P12: 9953.799057 | Q12: 11139.73481 | R12: 承德市 | S12: 116391.2535 | T12: 0.0001 | U12: 11.64 | V12: 承德市 | W12: 39719 | X12: 116391.2535 | Y12: 2.930367166 | AE12: Zhejiang
A13: 沧州市 | B13: nan | C13: nan | D13: 336.317213 | E13: 33.39335141 | F13: 4364.124745 | G13: 7.589436152 | H13: nan | I13: 5443.334231 | J13: 94.55776107 | K13: 834.4305077 | L13: 0.3731625437 | M13: 332.503859 | N13: 248163.2181 | O13: 24379.63415 | P13: 29511.90233 | Q13: 34035.47491 | R13: 沧州市 | S13: 336090.2295 | T13: 0.0001 | U13: 33.61 | V13: 沧州市 | W13: 13488 | X13: 336090.2295 | Y13: 24.91772164 | AE13: Anhui
A14: 廊坊市 | B14: nan | C14: nan | D14: 231.8573966 | E14: 23.02140724 | F14: 3008.631621 | G14: 5.232164278 | H14: nan | I14: 4009.046346 | J14: 69.64232407 | K14: 614.5627728 | L14: 0.274836317 | M14: 81.29090605 | N14: 166281.346 | O14: 16556.95934 | P14: 19756.11451 | Q14: 23835.52474 | R14: 廊坊市 | S14: 226429.9445 | T14: 0.0001 | U14: 22.64 | V14: 廊坊市 | W14: 6420 | X14: 226429.9445 | Y14: 35.26946177 | AE14: Fujian
A15: 衡水市 | B15: nan | C15: nan | D15: 10.63016703 | E15: 0.9040875499 | F15: 1180.728639 | G15: 1.483035105 | H15: nan | I15: 1846.512848 | J15: 18.42080945 | K15: 739.2202955 | L15: 0.3235832109 | M15: 21.97367516 | N15: 112263.0893 | O15: 11064.32317 | P15: 13346.11758 | Q15: 16373.52205 | R15: 衡水市 | S15: 153047.052 | T15: 0.0001 | U15: 15.30 | V15: 衡水市 | W15: 8758 | X15: 153047.052 | Y15: 17.47511442 | AE15: Jiangxi
A16: 太原市 | B16: nan | C16: nan | D16: 360.3752156 | E16: 36.54249698 | F16: 3809.44221 | G16: 7.388812362 | H16: nan | I16: 3588.949464 | J16: 45.39305458 | K16: 398.2663033 | L16: 0.2182538179 | M16: 99.57954 | N16: 232578.4244 | O16: 23133.72994 | P16: 28214.28352 | Q16: 33813.08891 | R16: 太原市 | S16: 317739.5267 | T16: 0.0001 | U16: 31.77 | V16: 太原市 | W16: 6909 | X16: 317739.5267 | Y16: 45.98922083 | AE16: Shandong
A17: 阳泉市 | B17: nan | C17: nan | D17: 89.1982 | E17: 6.546708 | F17: 575.246232 | G17: 0.678888 | H17: nan | I17: 706.095 | J17: 11.172 | K17: 44.82846 | L17: 0.02568 | M17: 19.072215 | N17: 52574.21097 | O17: 4522.153102 | P17: 6266.428504 | Q17: 7534.80794 | R17: 阳泉市 | S17: 70897.60051 | T17: 0.0001 | U17: 7.09 | V17: 阳泉市 | W17: 14056 | X17: 70897.60051 | Y17: 5.043938568 | AE17: Henan
A18: 长治市 | B18: nan | C18: nan | D18: 121.0286 | E18: 8.4821435 | F18: 1287.395208 | G18: 2.158632 | H18: nan | I18: 1194.165 | J18: 15.827 | K18: 203.87457 | L18: 0.01605 | M18: 6.785193 | N18: 138584.6022 | O18: 12462.94146 | P18: 16339.25522 | Q18: 17866.72734 | R18: 长治市 | S18: 185253.5262 | T18: 0.0001 | U18: 18.53 | V18: 长治市 | W18: 4559 | X18: 185253.5262 | Y18: 40.6346844 | AE18: Hubei
A19: 晋城市 | B19: nan | C19: nan | D19: 95.0852 | E19: 10.157789 | F19: 1068.89112 | G19: 1.777356 | H19: nan | I19: 752.76 | J19: 24.549 | K19: 125.74674 | L19: 0.05778 | M19: 37.467099 | N19: 81720.15086 | O19: 8091.365861 | P19: 9366.693473 | Q19: 10175.48618 | R19: 晋城市 | S19: 109353.6964 | T19: 0.0001 | U19: 10.94 | V19: 晋城市 | W19: 13954 | X19: 109353.6964 | Y19: 7.83672756 | AE19: Hunan
A20: 朔州市 | B20: nan | C20: nan | D20: 55.32204674 | E20: 5.609724638 | F20: 584.7964314 | G20: 1.13427396 | H20: nan | I20: 786.0707522 | J20: 9.942227639 | K20: 87.23039869 | L20: 0.04780310911 | M20: 14.73199121 | N20: 28857.74048 | O20: 3118.78333 | P20: 3448.10292 | Q20: 4179.985571 | R20: 朔州市 | S20: 39604.6123 | T20: 0.0001 | U20: 3.96 | V20: 朔州市 | W20: 9425 | X20: 39604.6123 | Y20: 4.202080881 | AE20: Guangdong
A21: 忻州市 | B21: nan | C21: nan | D21: 84.526703 | E21: 8.571113 | F21: 586.872 | G21: 1.73306 | I21: 1201.039596 | J21: 15.190756 | K21: 133.279559 | L21: 0.07038 | M21: 22.509049 | N21: 71885.30195 | O21: 6113.887787 | P21: 8625.661034 | Q21: 10999.05175 | R21: 忻州市 | S21: 97623.90253 | T21: 0.0001 | U21: 9.76 | V21: 忻州市 | W21: 10626 | X21: 97623.90253 | Y21: 9.187267319 | AE21: Guangxi
A22: 吕梁市 | B22: nan | C22: nan | D22: 107.3464 | E22: 8.8458495 | F22: 748.323576 | G22: 1.950487214 | H22: nan | I22: 2100.88125 | J22: 14.602 | K22: 192.4837637 | L22: 0.1054829795 | M22: 30.135288 | N22: 71168.26189 | O22: 5932.653635 | P22: 8559.555092 | Q22: 10136.27337 | R22: 吕梁市 | S22: 95796.74398 | T22: 0.0001 | U22: 9.58 | V22: 吕梁市 | W22: 21140 | X22: 95796.74398 | Y22: 4.531539451 | AE22: Hainan
A23: 晋中市 | B23: nan | C23: nan | D23: 147.2156 | E23: 10.079852 | F23: 1423.166976 | G23: 4.841424 | H23: nan | I23: 2852.0475 | J23: 19.7715 | K23: 207.88137 | L23: 0.24396 | M23: 29.636202 | N23: 114803.2109 | O23: 12145.17402 | P23: 13348.16974 | Q23: 14624.33258 | R23: 晋中市 | S23: 154920.8873 | T23: 0.0001 | U23: 15.49 | V23: 晋中市 | W23: 16391 | X23: 154920.8873 | Y23: 9.451582409 | AE23: Chongqing
A24: 临汾市 | B24: nan | C24: nan | D24: 106.6562 | E24: 11.872403 | F24: 1595.34144 | G24: 4.507776 | H24: nan | I24: 2627.52 | J24: 71.981 | K24: 252.3807 | L24: 0.0642 | M24: 94.125243 | N24: 165256.8566 | O24: 13475.94883 | P24: 19769.83742 | Q24: 24224.87476 | R24: 临汾市 | S24: 222727.5176 | T24: 0.0001 | U24: 22.27 | V24: 临汾市 | W24: 20301 | X24: 222727.5176 | Y24: 10.97125844 | AE24: Sichuan
A25: 运城市 | B25: nan | C25: nan | D25: 150.017 | E25: 11.1060225 | F25: 1941.339312 | G25: 4.467204 | H25: nan | I25: 3152.9475 | J25: 42.8505 | K25: 433.37358 | L25: 0.36915 | M25: 4.539306 | N25: 121594.9156 | O25: 14615.51918 | P25: 14123.89451 | Q25: 17824.38473 | R25: 运城市 | S25: 168158.714 | T25: 0.0001 | U25: 16.82 | V25: 运城市 | W25: 14183 | X25: 168158.714 | Y25: 11.85635719 | AE25: Guizhou
A26: 大同市 | B26: nan | C26: nan | D26: 141.578443 | E26: 14.356231 | F26: 1024.056 | G26: 2.902798 | I26: 2250.223611 | J26: 28.460842 | K26: 249.707679 | L26: 0.136842 | M26: 42.172126 | N26: 130023.4719 | O26: 12567.51902 | P26: 15723.97481 | Q26: 18950.06627 | R26: 大同市 | S26: 177265.032 | T26: 0.0001 | U26: 17.73 | V26: 大同市 | W26: 14056 | X26: 177265.032 | Y26: 12.61134263 | AE26: Yunnan
A27: 呼和浩特市 | B27: nan | C27: nan | D27: 259.028 | E27: 24.3293335 | F27: 2728.721952 | G27: 3.000564 | H27: nan | I27: 1905.67875 | J27: 89.2045 | K27: 203.04936 | L27: 0.36594 | M27: 73.543887 | N27: 174510.9657 | O27: 19852.28033 | P27: 21879.29136 | Q27: 21803.54221 | R27: 呼和浩特市 | S27: 238046.0796 | T27: 0.0001 | U27: 23.80 | V27: 呼和浩特市 | W27: 17420 | X27: 238046.0796 | Y27: 13.66510216 | AE27: Tibet
A28: 包头市 | B28: nan | C28: nan | D28: 156.4796217 | E28: 19.24278024 | F28: 1586.041851 | G28: 1.591336061 | H28: nan | I28: 1599.513699 | J28: 39.6318357 | K28: 269.7343082 | L28: 0.1473072139 | M28: 46.712073 | N28: 183335.8222 | O28: 13226.96198 | P28: 21996.18028 | Q28: 28855.92999 | R28: 包头市 | S28: 247414.8945 | T28: 0.0001 | U28: 24.74 | V28: 包头市 | W28: 27768 | X28: 247414.8945 | Y28: 8.910072546 | AE28: Shaanxi
A29: 乌海市 | B29: nan | C29: nan | D29: 41.74602772 | E29: 5.133637393 | F29: 383.4864 | G29: 0.4245406436 | H29: nan | I29: 466.960043 | J29: 11.5700689 | K29: 78.74589897 | L29: 0.04300468509 | M29: 12.89501511 | N29: 28537.74644 | O29: 2432.432643 | P29: 3372.775151 | Q29: 4218.694237 | R29: 乌海市 | S29: 38561.64847 | T29: 0.0001 | U29: 3.86 | V29: 乌海市 | W29: 1754 | X29: 38561.64847 | Y29: 21.98497632 | AE29: Gansu
A30: 赤峰市 | B30: nan | C30: nan | D30: 312.2118599 | E30: 41.92675412 | F30: 2839.549568 | G30: 1.689103044 | H30: nan | I30: 3556.48965 | J30: 52.72683743 | K30: 697.0350541 | L30: 0.04945820598 | M30: 0 | N30: 56421.7043 | O30: 10118.71077 | P30: 6534.00169 | Q30: 7649.76575 | R30: 赤峰市 | S30: 80724.18251 | T30: 0.0001 | U30: 8.07 | V30: 赤峰市 | W30: 90021 | X30: 80724.18251 | Y30: 0.8967261251 | AE30: Qinghai
A31: 通辽市 | B31: nan | C31: nan | D31: 111.7508428 | E31: 13.74234476 | F31: 1132.681123 | G31: 1.136462014 | H31: nan | I31: 1250.01542 | J31: 30.9721672 | K31: 210.7965969 | L31: 0.1151201699 | M31: 34.51894433 | N31: 59224.01088 | O31: 5624.546597 | P31: 7143.485855 | Q31: 9340.677798 | R31: 通辽市 | S31: 81332.72113 | T31: 0.0001 | U31: 8.13 | V31: 通辽市 | W31: 58863 | X31: 81332.72113 | Y31: 1.381729119 | AE31: Ningxia
A32: 鄂尔多斯市 | B32: nan | C32: nan | D32: 130.732 | E32: 15.7822425 | F32: 1428.42744 | G32: 2.46834 | H32: nan | I32: 2680.49625 | J32: 16.3415 | K32: 300.40983 | L32: 0.36594 | M32: 65.225787 | N32: 134954.7072 | O32: 12510.39938 | P32: 16009.22512 | Q32: 19096.0988 | R32: 鄂尔多斯市 | S32: 182570.4305 | T32: 0.0001 | U32: 18.26 | V32: 鄂尔多斯市 | W32: 87123 | X32: 182570.4305 | Y32: 2.095548024 | AE32: Xinjiang
A33: 呼伦贝尔市 | B33: nan | C33: nan | D33: 77.18772639 | E33: 9.492012057 | F33: 782.357237 | G33: 0.7849687462 | H33: nan | I33: 1186.991163 | J33: 29.41058821 | K33: 200.1684889 | L33: 0.109315951 | M33: 31.145343 | N33: 60344.89501 | O33: 4588.261239 | P33: 7088.882316 | Q33: 9081.8227 | R33: 呼伦贝尔市 | S33: 81103.86126 | T33: 0.0001 | U33: 8.11 | V33: 呼伦贝尔市 | W33: 260239 | X33: 81103.86126 | Y33: 0.3116514483
A34: 巴彦淖尔市 | B34: nan | C34: nan | D34: 77.79390451 | E34: 9.566555646 | F34: 788.5013206 | G34: 0.7911333387 | H34: nan | I34: 870.1820742 | J34: 21.56087379 | K34: 146.7433258 | L34: 0.08013941801 | M34: 24.02991684 | N34: 37167.03961 | O34: 3542.50905 | P34: 4481.65447 | Q34: 5858.510789 | R34: 巴彦淖尔市 | S34: 51049.71392 | T34: 0.0001 | U34: 5.10 | V34: 巴彦淖尔市 | W34: 65139 | X34: 51049.71392 | Y34: 0.7837042926
A35: 乌兰察布市 | B35: nan | C35: nan | D35: 69.44085979 | E35: 8.539356051 | F35: 703.8367593 | G35: 0.7061861671 | H35: nan | I35: 776.7471216 | J35: 19.24579597 | K35: 130.9869041 | L35: 0.07153452606 | M35: 21.44972792 | N35: 37843.27277 | O35: 3564.557004 | P35: 4566.679185 | Q35: 5974.875245 | R35: 乌兰察布市 | S35: 51949.3842 | T35: 0.0001 | U35: 5.19 | V35: 乌兰察布市 | W35: 54606 | X35: 51949.3842 | Y35: 0.9513493792
A36: 锡林郭勒盟 | B36: nan | C36: nan | D36: 39.991 | E36: 9.586251 | F36: 652.677696 | G36: 0.556416 | H36: nan | I36: 283.36875 | J36: 25.0635 | K36: 160.57251 | L36: 0.02247 | M36: 21.009144 | N36: 41929.02103 | O36: 3559.601866 | P36: 4954.694975 | Q36: 6240.50898 | R36: 锡林郭勒盟 | S36: 56683.82685 | T36: 0.0001 | U36: 5.67 | V36: 锡林郭勒盟 | W36: 58385 | X36: 56683.82685 | Y36: 0.970862839
A37: 兴安盟 | B37: nan | C37: nan | D37: 65.0412 | E37: 7.1831935 | F37: 572.074272 | G37: 0.531972 | H37: nan | I37: 296.11875 | J37: 33.2955 | K37: 105.79383 | L37: 0.02247 | M37: 94.850106 | N37: 39489.60466 | O37: 3519.348 | P37: 4378.685449 | Q37: 4820.851452 | R37: 兴安盟 | S37: 52208.48956 | T37: 0.0001 | U37: 5.22 | V37: 兴安盟 | W37: 199885 | X37: 52208.48956 | Y37: 0.2611926336
A38: 阿拉善盟 | B38: nan | C38: nan | D38: 16.7678 | E38: 2.493984 | F38: 167.755104 | G38: 0.13104 | H38: nan | I38: 319.57875 | J38: 7.399 | K38: 57.89349 | L38: 0.00642 | M38: 1.319013 | N38: 21336.12415 | O38: 1411.210027 | P38: 2605.174596 | Q38: 3538.133057 | R38: 阿拉善盟 | S38: 28890.64183 | T38: 0.0001 | U38: 2.89 | V38: 阿拉善盟 | W38: 268461 | X38: 28890.64183 | Y38: 0.1076157871
A39: 沈阳市 | B39: nan | C39: nan | D39: 688.576 | E39: 143.5080127 | F39: 5651.431901 | G39: 3.537966909 | H39: nan | I39: 3076.89375 | J39: 194.1757674 | K39: 588.9502933 | L39: 0.1177823533 | M39: 124.640787 | N39: 219338.5538 | O39: 23408.6179 | P39: 25754.40045 | Q39: 29593.02063 | R39: 沈阳市 | S39: 298094.5928 | T39: 0.0001 | U39: 29.81 | V39: 沈阳市 | W39: 12860 | X39: 298094.5928 | Y39: 23.17998389
A40: 大连市 | B40: nan | C40: nan | D40: 784.7574 | E40: 95.60582168 | F40: 3765.014793 | G40: 2.357012875 | H40: nan | I40: 3623.735367 | J40: 163.8859535 | K40: 497.0789179 | L40: 0.09940928018 | M40: 88.730361 | N40: 240065.933 | O40: 23462.17256 | P40: 29274.25463 | Q40: 32191.10242 | R40: 大连市 | S40: 324993.4626 | T40: 0.0001 | U40: 32.50 | V40: 大连市 | W40: 13238 | X40: 324993.4626 | Y40: 24.5500425
A41: 鞍山市 | B41: nan | C41: nan | D41: 237.3882 | E41: 27.8624775 | F41: 1382.278392 | G41: 0.9198 | H41: nan | I41: 2770.25625 | J41: 55.5905 | K41: 182.87226 | L41: 0.07383 | M41: 55.291599 | N41: 84850.13755 | O41: 8173.922972 | P41: 9872.343973 | Q41: 11120.33891 | R41: 鞍山市 | S41: 114016.7434 | T41: 0.0001 | U41: 11.40 | V41: 鞍山市 | W41: 9252 | X41: 114016.7434 | Y41: 12.32346989
A42: 抚顺市 | B42: nan | C42: nan | D42: 125.2916 | E42: 16.8993395 | F42: 565.269408 | G42: 0.445536 | H42: nan | I42: 761.36625 | J42: 32.4625 | K42: 94.923 | L42: 0.05136 | M42: 24.348267 | N42: 63890.47432 | O42: 5118.603407 | P42: 7122.042416 | Q42: 8300.907014 | R42: 抚顺市 | S42: 84432.02715 | T42: 0.0001 | U42: 8.44 | V42: 抚顺市 | W42: 11278 | X42: 84432.02715 | Y42: 7.486436173
A43: 本溪市 | B43: nan | C43: nan | D43: 85.26 | E43: 12.184151 | F43: 371.59452 | G43: 0.244944 | H43: nan | I43: 484.81875 | J43: 23.2995 | K43: 76.02903 | L43: 0.01284 | M43: 14.057589 | N43: 36411.98843 | O43: 2733.201112 | P43: 4297.151733 | Q43: 5073.565949 | R43: 本溪市 | S43: 48515.90723 | T43: 0.0001 | U43: 4.85 | V43: 本溪市 | W43: 8413 | X43: 48515.90723 | Y43: 5.766778465
A44: 丹东市 | B44: nan | C44: nan | D44: 114.8897204 | E44: 18.57804639 | F44: 731.6146472 | G44: 0.4580128465 | H44: nan | I44: 1339.020626 | J44: 60.55813953 | K44: 183.6775748 | L44: 0.03673311185 | M44: 1675.503 | N44: 45482.52986 | O44: 3903.022809 | P44: 5184.952216 | Q44: 5798.636916 | R44: 丹东市 | S44: 60369.1418 | T44: 0.0001 | U44: 6.04 | V44: 丹东市 | W44: 15047 | X44: 60369.1418 | Y44: 4.0120384
A45: 锦州市 | B45: nan | C45: nan | D45: 145.754 | E45: 25.01912607 | F45: 983.371752 | G45: 0.6168076508 | H45: nan | I45: 2183.82 | J45: 91.98195349 | K45: 278.9884608 | L45: 0.05579404208 | M45: 26.487207 | N45: 87746.36238 | O45: 7355.592253 | P45: 9821.222418 | Q45: 10578.98129 | R45: 锦州市 | S45: 115502.1583 | T45: 0.0001 | U45: 11.55 | V45: 锦州市 | W45: 10059 | X45: 115502.1583 | Y45: 11.48246927
A46: 营口市 | B46: nan | C46: nan | D46: 152.5764758 | E46: 24.67211893 | F46: 971.6028913 | G46: 0.6082527293 | H46: nan | I46: 2047.405731 | J46: 92.59534884 | K46: 280.8489369 | L46: 0.05616611296 | M46: 26.1426 | N46: 83545.12468 | O46: 7983.57911 | P46: 10391.02751 | Q46: 11222.28909 | R46: 营口市 | S46: 113142.0204 | T46: 0.0001 | U46: 11.31 | V46: 营口市 | W46: 5525 | X46: 113142.0204 | Y46: 20.47819373
A47: 阜新市 | B47: nan | C47: nan | D47: 97.47331689 | E47: 15.76175656 | F47: 620.7074586 | G47: 0.3885815997 | H47: nan | I47: 939.4741487 | J47: 42.48837209 | K47: 128.8705565 | L47: 0.02577242525 | M47: 16.6362 | N47: 37348.73797 | O47: 3370.54621 | P47: 4463.769385 | Q47: 5424.54758 | R47: 阜新市 | S47: 50607.60115 | T47: 0.0001 | U47: 5.06 | V47: 阜新市 | W47: 10445 | X47: 50607.60115 | Y47: 4.8451509
A48: 辽阳市 | B48: nan | C48: nan | D48: 100.2540872 | E48: 16.21141628 | F48: 638.4153291 | G48: 0.399667261 | H48: nan | I48: 853.0857212 | J48: 38.58139535 | K48: 117.0203904 | L48: 0.02340254707 | M48: 17.8245 | N48: 29534.84083 | O48: 2838.20907 | P48: 3515.936839 | Q48: 4254.78904 | R48: 辽阳市 | S48: 40143.77578 | T48: 0.0001 | U48: 4.01 | V48: 辽阳市 | W48: 4736 | X48: 40143.77578 | Y48: 8.476304008
A49: 盘锦市 | B49: nan | C49: nan | D49: 118.7144 | E49: 20.445473 | F49: 786.37284 | G49: 0.349272 | H49: nan | I49: 848.44875 | J49: 26.46 | K49: 143.27649 | L49: 0.00963 | M49: 47.65083 | N49: 39420.04768 | O49: 4107.200266 | P49: 4561.030367 | Q49: 4937.071439 | R49: 盘锦市 | S49: 53025.34975 | T49: 0.0001 | U49: 5.30 | V49: 盘锦市 | W49: 4121 | X49: 53025.34975 | Y49: 12.86710744
A50: 铁岭市 | B50: nan | C50: nan | D50: 107.6925089 | E50: 35.43848814 | F50: 766.5216266 | G50: 0.3963468802 | H50: nan | I50: 1741.284302 | J50: 97.44162791 | K50: 189.9038871 | L50: 0.02796633998 | M50: -1695.490206 | N50: 43946.18196 | O50: 3759.002395 | P50: 5201.115129 | Q50: 6367.131068 | R50: 铁岭市 | S50: 59273.43055 | T50: 0.0001 | U50: 5.93 | V50: 铁岭市 | W50: 13006 | X50: 59273.43055 | Y50: 4.557391247
A51: 朝阳市 | B51: nan | C51: nan | D51: 91.0252 | E51: 8.6120385 | F51: 912.317472 | G51: 0.638064 | H51: nan | I51: 1057.16625 | J51: 63.0875 | K51: 217.88883 | L51: 0.07383 | M51: 57.15723 | N51: 66145.43277 | O51: 6441.588788 | P51: 7780.535644 | Q51: 7188.716279 | R51: 朝阳市 | S51: 87556.27348 | T51: 0.0001 | U51: 8.76 | V51: 朝阳市 | W51: 19701 | X51: 87556.27348 | Y51: 4.444255291
A52: 葫芦岛市 | B52: nan | C52: nan | D52: 146.6270909 | E52: 23.71008379 | F52: 933.7173685 | G52: 0.5845352487 | H52: nan | I52: 1675.849104 | J52: 75.79144186 | K52: 229.8813724 | L52: 0.04597326689 | M52: 67.400376 | N52: 56624.54892 | O52: 4939.624989 | P52: 6531.539457 | Q52: 7287.774863 | R52: 葫芦岛市 | S52: 75383.48823 | T52: 0.0001 | U52: 7.54 | V52: 葫芦岛市 | W52: 10440 | X52: 75383.48823 | Y52: 7.220640635
A53: 吉林省长春市 | B53: nan | C53: nan | D53: 648.2817867 | E53: 72.76547547 | F53: 4416.418128 | G53: 3.33465579 | H53: nan | I53: 4281.432145 | J53: 167.3631341 | K53: 606.0352532 | L53: 0.1274882915 | M53: 118.996362 | N53: 342526.0021 | O53: 42729.32485 | P53: 39409.12983 | Q53: 39734.03394 | R53: 吉林省长春市 | S53: 464398.4907 | T53: 0.0001 | U53: 46.44 | V53: 吉林省长春市 | W53: 24592 | X53: 464398.4907 | Y53: 18.88412861
A54: 吉林市 | B54: nan | C54: nan | D54: 200.6407966 | E54: 22.52064343 | F54: 1366.864949 | G54: 1.032063537 | H54: nan | I54: 1252.606664 | J54: 48.96496544 | K54: 177.306044 | L54: 0.03729889394 | M54: 33.308049 | N54: 158413.658 | O54: 16766.84083 | P54: 18236.55941 | Q54: 19335.85807 | R54: 吉林市 | S54: 212752.9163 | T54: 0.0001 | U54: 21.28 | V54: 吉林市 | W54: 27722 | X54: 212752.9163 | Y54: 7.674515415
A55: 四平市 | B55: nan | C55: nan | D55: 92.93653515 | E55: 10.43153041 | F55: 633.1299244 | G55: 0.4780503809 | H55: nan | I55: 1034.981426 | J55: 40.45789571 | K55: 146.5012663 | L55: 0.03081866285 | M55: 12.845523 | N55: 92220.27493 | O55: 10430.00759 | P55: 10506.48852 | Q55: 11515.78948 | R55: 四平市 | S55: 124672.5605 | T55: 0.0001 | U55: 12.47 | V55: 四平市 | W55: 10296 | X55: 124672.5605 | Y55: 12.10883455
A56: 辽源市 | B56: nan | C56: nan | D56: 49.39784759 | E56: 5.544591782 | F56: 336.5227191 | G56: 0.2540944723 | H56: nan | I56: 409.018766 | J56: 15.98873 | K56: 57.89646619 | L56: 0.01217936006 | M56: 6.713895 | N56: 57339.34758 | O56: 6107.946063 | P56: 6693.127682 | Q56: 6227.2032 | R56: 辽源市 | S56: 76367.62452 | T56: 0.0001 | U56: 7.64 | V56: 辽源市 | W56: 5125 | X56: 76367.62452 | Y56: 14.90099991
A57: 通化市 | B57: nan | C57: nan | D57: 82.85401425 | E57: 9.299832056 | F57: 564.4427747 | G57: 0.4261875376 | H57: nan | I57: 656.9637702 | J57: 25.68101323 | K57: 92.99299657 | L57: 0.01956242346 | M57: 13.0713 | N57: 73334.27898 | O57: 7642.888299 | P57: 8285.833019 | Q57: 8370.787576 | R57: 通化市 | S57: 97633.78787 | T57: 0.0001 | U57: 9.76 | V57: 通化市 | W57: 15698 | X57: 97633.78787 | Y57: 6.219504897
A58: 白山市 | B58: nan | C58: nan | D58: 46.28955532 | E58: 5.195705897 | F58: 315.3474854 | G58: 0.2381059237 | H58: nan | I58: 439.2107812 | J58: 17.16894963 | K58: 62.17013558 | L58: 0.01307838831 | M58: 8.838110134 | N58: 34548.29169 | O58: 3200.946995 | P58: 4138.635016 | Q58: 4949.9138 | R58: 白山市 | S58: 46837.7875 | T58: 0.0001 | U58: 4.68 | V58: 白山市 | W58: 17485 | X58: 46837.7875 | Y58: 2.678741064
A59: 松原市 | B59: nan | C59: nan | D59: 145.7220413 | E59: 16.35636515 | F59: 992.7310593 | G59: 0.7495704163 | H59: nan | I59: 1280.22235 | J59: 50.04447521 | K59: 181.215035 | L59: 0.03812120679 | M59: 27.59841142 | N59: 72585.27214 | O59: 8629.504507 | P59: 8554.450673 | Q59: 10190.71996 | R59: 松原市 | S59: 99959.94728 | T59: 0.0001 | U59: 10.00 | V59: 松原市 | W59: 20159 | X59: 99959.94728 | Y59: 4.95857668
A60: 白城市 | B60: nan | C60: nan | D60: 91.80777212 | E60: 10.30483399 | F60: 625.4402289 | G60: 0.4722442079 | H60: nan | I60: 772.8985532 | J60: 30.21295675 | K60: 109.4035254 | L60: 0.02301461584 | M60: 14.390313 | N60: 79489.5832 | O60: 9088.094639 | P60: 9400.496124 | Q60: 9013.320393 | R60: 白城市 | S60: 106991.4944 | T60: 0.0001 | U60: 10.70 | V60: 白城市 | W60: 25683 | X60: 106991.4944 | Y60: 4.165848785
A61: 延边朝鲜族自治州 | B61: nan | C61: nan | D61: 103.7219225 | E61: 11.642121 | F61: 706.6053497 | G61: 0.5335286543 | H61: nan | I61: 824.787087 | J61: 32.24130318 | K61: 116.7483295 | L61: 0.02455970176 | M61: 22.470753 | N61: 90456.14257 | O61: 9123.581759 | P61: 10731.94707 | Q61: 11502.28683 | R61: 延边朝鲜族自治州 | S61: 121813.9582 | T61: 0.0001 | U61: 12.18 | V61: 延边朝鲜族自治州 | W61: 43474 | X61: 121813.9582 | Y61: 2.801995635
A62: 黑龙江省哈尔滨市 | B62: nan | C62: nan | D62: 82.06982666 | E62: 10.89111453 | F62: 462.1636425 | G62: 0.2750963389 | H62: nan | I62: 36040.27396 | J62: 2457.295691 | K62: 5703.874608 | L62: 1.613813957 | M62: 793.618038 | N62: 275486.653 | O62: 27808.71631 | P62: 33496.63498 | Q62: 38199.43044 | R62: 黑龙江省哈尔滨市 | S62: 374991.4348 | T62: 0.0001 | U62: 37.50 | V62: 黑龙江省哈尔滨市 | W62: 53186 | X62: 374991.4348 | Y62: 7.050566592
A63: 齐齐哈尔市 | B63: nan | C63: nan | D63: 13.7228 | E63: 11.0540645 | F63: 1060.815096 | G63: 0.882 | H63: nan | I63: 25.3725 | J63: 6.9335 | K63: 62.74458 | L63: 0.07383 | M63: 20.902197 | N63: 162266.4948 | O63: 29015.61051 | P63: 19722.86986 | Q63: 22367.79902 | R63: 齐齐哈尔市 | S63: 233372.7742 | T63: 0.0001 | U63: 23.34 | V63: 齐齐哈尔市 | W63: 44287 | X63: 233372.7742 | Y63: 5.269554818
A64: 鸡西市 | B64: nan | C64: nan | D64: 83.67037617 | E64: 11.1035162 | F64: 471.1768916 | G64: 0.2804613473 | H64: nan | I64: 606.7172897 | J64: 41.36716007 | K64: 96.02144941 | L64: 0.02716763006 | M64: 15.63879234 | N64: 29653.96566 | O64: 2974.758101 | P64: 3560.01159 | Q64: 4201.480772 | R64: 鸡西市 | S64: 40390.21613 | T64: 0.0001 | U64: 4.04 | V64: 鸡西市 | W64: 22551 | X64: 40390.21613 | Y64: 1.791060979
A65: 鹤岗市 | B65: nan | C65: nan | D65: 43.43738678 | E65: 5.764378622 | F65: 244.610982 | G65: 0.1456012101 | H65: nan | I65: 314.9766355 | J65: 21.47571714 | K65: 49.84943331 | L65: 0.01410404624 | M65: 8.118862406 | N65: 14440.59009 | O65: 1400.21351 | P65: 1736.283394 | Q65: 2052.707186 | R65: 鹤岗市 | S65: 19629.79418 | T65: 0.0001 | U65: 1.96 | V65: 鹤岗市 | W65: 14665 | X65: 19629.79418 | Y65: 1.338547165
A66: 双鸭山市 | B66: nan | C66: nan | D66: 67.64838925 | E66: 8.977310968 | F66: 380.9515294 | G66: 0.2267559829 | H66: nan | I66: 490.5373832 | J66: 33.44578899 | K66: 77.63436335 | L66: 0.02196531792 | M66: 12.64412998 | N66: 22743.68076 | O66: 2249.454014 | P66: 2728.764352 | Q66: 3231.214781 | R66: 双鸭山市 | S66: 30953.11391 | T66: 0.0001 | U66: 3.10 | V66: 双鸭山市 | W66: 22802 | X66: 30953.11391 | Y66: 1.357473639
A67: 大庆市 | B67: nan | C67: nan | D67: 275.5781751 | E67: 36.57072994 | F67: 1551.87623 | G67: 0.9237322673 | H67: nan | I67: 1998.294393 | J67: 136.2475825 | K67: 316.2578802 | L67: 0.08947976879 | M67: 51.67381384 | N67: 94274.73602 | O67: 9281.065122 | P67: 11327.23521 | Q67: 13381.49215 | R67: 大庆市 | S67: 128264.5285 | T67: 0.0001 | U67: 12.83 | V67: 大庆市 | W67: 21643 | X67: 128264.5285 | Y67: 5.92637474
A68: 伊春市 | B68: nan | C68: nan | D68: 32.45593294 | E68: 4.307079681 | F68: 182.7706089 | G68: 0.108791607 | H68: nan | I68: 270.062179 | J68: 18.41336249 | K68: 42.74109589 | L68: 0.01209286351 | M68: 6.200123278 | N68: 40407.92646 | O68: 3028.426783 | P68: 4719.310242 | Q68: 5632.702506 | R68: 伊春市 | S68: =SUM(N68:Q68) -> 53788.36599 | T68: 0.0001 | U68: =S68*T68 -> 5.38 | V68: 伊春市 | W68: 32825 | X68: 53788.36599 | Y68: =X68/W68 -> 1.638640244
A69: 佳木斯市 | B69: nan | C69: nan | D69: 28.48566858 | E69: 3.780203902 | F69: 160.412674 | G69: 0.09548336405 | H69: nan | I69: 206.5575467 | J69: 14.08349365 | K69: 32.6906046 | L69: 0.009249248555 | M69: 5.324243489 | N69: 9592.451926 | O69: 936.8534499 | P69: 1152.989576 | Q69: 1362.521311 | R69: 佳木斯市 | S69: 13044.81626 | T69: 0.0001 | U69: 1.30 | V69: 佳木斯市 | W69: 32470 | X69: 13044.81626 | Y69: 0.4017498079
A70: 七台河市 | B70: nan | C70: nan | D70: 43.43738678 | E70: 5.764378622 | F70: 244.610982 | G70: 0.1456012101 | H70: nan | I70: 314.9766355 | J70: 21.47571714 | K70: 49.84943331 | L70: 0.01410404624 | M70: 8.118862406 | N70: 15234.56349 | O70: 1482.588388 | P70: 1835.058415 | Q70: 2160.554133 | R70: 七台河市 | S70: 20712.76442 | T70: 0.0001 | U70: 2.07 | V70: 七台河市 | W70: 6221 | X70: 20712.76442 | Y70: 3.329491147
A71: 牡丹江市 | B71: nan | C71: nan | D71: 199.89921 | E71: 26.52771767 | F71: 1125.701744 | G71: 0.6700579623 | H71: nan | I71: 1449.525058 | J71: 98.83142631 | K71: 229.4075007 | L71: 0.06490693642 | M71: 37.36307134 | N71: 64206.74072 | O71: 6147.554875 | P71: 7721.990481 | Q71: 9137.413599 | R71: 牡丹江市 | S71: 87213.69967 | T71: 0.0001 | U71: 8.72 | V71: 牡丹江市 | W71: 38827 | X71: 87213.69967 | Y71: 2.246212679
A72: 黑河市 | B72: nan | C72: nan | D72: 83.67037617 | E72: 11.1035162 | F72: 471.1768916 | G72: 0.2804613473 | H72: nan | I72: 606.7172897 | J72: 41.36716007 | K72: 96.02144941 | L72: 0.02716763006 | M72: 15.63879234 | N72: 28175.71436 | O72: 2751.800624 | P72: 3386.65288 | Q72: 4002.106193 | R72: 黑河市 | S72: 38316.27405 | T72: 0.0001 | U72: 3.83 | V72: 黑河市 | W72: 68285 | X72: 38316.27405 | Y72: 0.5611228535
A73: 绥化市 | B73: nan | C73: nan | D73: 166.2380836 | E73: 22.06070223 | F73: 936.1442732 | G73: 0.5572265721 | H73: nan | I73: 1205.43882 | J73: 82.18915377 | K73: 190.7774587 | L73: 0.05397722543 | M73: 31.07148536 | N73: 49472.17798 | O73: 4452.192091 | P73: 5972.241545 | Q73: 7076.617224 | R73: 绥化市 | S73: 66973.22884 | T73: 0.0001 | U73: 6.70 | V73: 绥化市 | W73: 35211 | X73: 66973.22884 | Y73: 1.902054155
A74: 大兴安岭地区 | B74: nan | C74: nan | D74: 28.48353231 | E74: 3.779920408 | F74: 160.4006439 | G74: 0.09547620334 | H74: nan | I74: 206.5420561 | J74: 14.08243747 | K74: 32.68815299 | L74: 0.009248554913 | M74: 5.323844201 | N74: 50223.05902 | O74: 3137.974989 | P74: 6149.281451 | Q74: 7403.963071 | R74: 大兴安岭地区 | S74: 66914.27853 | T74: 0.0001 | U74: 6.69 | V74: 大兴安岭地区 | W74: 46755 | X74: 66914.27853 | Y74: 1.4311684
A75: 上海市 | B75: 0 | C75: 0 | D75: 219480.0678 | E75: 105997.7011 | F75: 159012.864 | G75: 7365.75842 | H75: 0 | I75: 299989.4078 | J75: 373954.8353 | K75: 76097.10813 | L75: 18595.32892 | M75: 8542.896216 | N75: =SUM(D75:M75) -> 1269035.968 | O75: 81443.98748 | P75: 101548.2564 | Q75: 84782.96122 | R75: 上海市 | S75: 1536811.173 | T75: 0.0001 | U75: 153.68 | V75: 上海市 | W75: 6340 | X75: 1536811.173 | Y75: 242.3992386
A76: 江苏省南京市 | B76: nan | C76: nan | D76: 865.9168 | E76: 66.12377166 | F76: 4257.217008 | G76: 2.708086037 | H76: nan | I76: 4190.5425 | J76: 104.1985 | K76: 202.8681 | L76: 147.57333 | M76: 194.726721 | N76: 207796.9717 | O76: 27197.85841 | P76: 24488.60526 | Q76: 27615.15776 | R76: 南京市 | S76: 287098.5931 | T76: 0.0001 | U76: 28.71 | V76: 南京市 | W76: 6586 | X76: 287098.5931 | Y76: 43.59225526
A77: 无锡市 | B77: nan | C77: nan | D77: 501.5719672 | E77: 52.20798326 | F77: 4864.58206 | G77: 2.138167665 | H77: nan | I77: 3089.609799 | J77: 227.1195906 | K77: 295.2341205 | L77: 0.05486582183 | M77: 88.017381 | N77: 334016.2822 | O77: 32661.50644 | P77: 39382.01612 | Q77: 47502.42886 | R77: 无锡市 | S77: 453562.2336 | T77: 0.0001 | U77: 45.36 | V77: 无锡市 | W77: 4572 | X77: 453562.2336 | Y77: 99.20433807
A78: 徐州市 | B78: nan | C78: nan | D78: 372.4205164 | E78: 38.76477427 | F78: 3611.984484 | G78: 1.587603691 | H78: nan | I78: 2946.448389 | J78: 216.5956853 | K78: 281.5540327 | L78: 0.0523235369 | M78: 0.083181 | N78: 271749.6173 | O78: 27344.12898 | P78: 31297.51633 | Q78: 37369.6695 | R78: 徐州市 | S78: 367760.9321 | T78: 0.0001 | U78: 36.78 | V78: 徐州市 | W78: 11445 | X78: 367760.9321 | Y78: 32.13289053
A79: 常州市 | B79: nan | C79: nan | D79: 259.1498 | E79: 27.251971 | F79: 3332.544336 | G79: 1.243368 | H79: nan | I79: 2021.895 | J79: 236.621 | K79: 250.15788 | L79: 0.27285 | M79: 64.893063 | N79: 119285.9413 | O79: 17077.56905 | P79: 14144.61153 | Q79: 14792.79147 | R79: 常州市 | S79: 165300.9133 | T79: 0.0001 | U79: 16.53 | V79: 常州市 | W79: 4372 | X79: 165300.9133 | Y79: 37.80899206
A80: 苏州市 | B80: nan | C80: nan | D80: 886.4306576 | E80: 92.26743112 | F80: 8597.200315 | G80: 3.778794458 | H80: nan | I80: 709.4213862 | J80: 52.15011125 | K80: 67.79024298 | L80: 0.01259802691 | M80: 8806.942854 | N80: 560798.9426 | O80: 66910.00059 | P80: 61731.37068 | Q80: 44032.65285 | R80: 苏州市 | S80: 733472.9667 | T80: 0.0001 | U80: 73.35 | V80: 苏州市 | W80: 8395 | X80: 733472.9667 | Y80: 87.37021641
A81: 南通市 | B81: nan | C81: nan | D81: 263.8188 | E81: 38.994479 | F81: 4173.379848 | G81: 2.905308 | H81: nan | I81: 3241.1775 | J81: 285.1065 | K81: 307.72224 | L81: 4.2372 | M81: 208.986321 | N81: 137335.971 | O81: 20909.92858 | P81: 15778.40694 | Q81: 15645.39622 | R81: 南通市 | S81: 189669.7027 | T81: 0.0001 | U81: 18.97 | V81: 南通市 | W81: 8397 | X81: 189669.7027 | Y81: 22.58779359
A82: 连云港市 | B82: nan | C82: nan | D82: 169.5862 | E82: 18.652922 | F82: 1569.944376 | G82: 0.890568 | H82: nan | I82: 3048.84375 | J82: 194.1625 | K82: 234.19746 | L82: 0.02247 | M82: 163.284303 | N82: 99204.84966 | O82: 10136.14404 | P82: 11279.48375 | Q82: 12462.70269 | R82: 连云港市 | S82: 133083.1801 | T82: 0.0001 | U82: 13.31 | V82: 连云港市 | W82: 7614 | X82: 133083.1801 | Y82: 17.47874706
A83: 淮安市 | B83: nan | C83: nan | D83: 154.5381977 | E83: 16.08568295 | F83: 1498.815312 | G83: 0.658785975 | H83: nan | I83: 1222.646991 | J83: 89.87771983 | K83: 116.8325881 | L83: 0.0217119754 | M83: 66.27351916 | N83: 78018.51243 | O83: 8831.834219 | P83: 9031.061598 | Q83: 10315.91449 | R83: 淮安市 | S83: 106197.3227 | T83: 0.0001 | U83: 10.62 | V83: 淮安市 | W83: 9816 | X83: 106197.3227 | Y83: 10.81879816
A84: 盐城市 | B84: nan | C84: nan | D84: 246.5638 | E84: 25.86760964 | F84: 1649.785104 | G84: 1.059402855 | H84: nan | I84: 3276.75 | J84: 209.2078791 | K84: 271.9505791 | L84: 0.05053884691 | M84: 126.292524 | N84: 206923.499 | O84: 23074.9076 | P84: 23356.00539 | Q84: 22249.5023 | R84: 盐城市 | S84: 275603.9143 | T84: 0.0001 | U84: 27.56 | V84: 盐城市 | W84: 16723 | X84: 275603.9143 | Y84: 16.48053066
A85: 扬州市 | B85: nan | C85: nan | D85: 194.6144182 | E85: 20.25716538 | F85: 1887.501434 | G85: 0.8296282159 | H85: nan | I85: 1539.714687 | J85: 113.1856099 | K85: 147.1306544 | L85: 0.02734251805 | M85: 83.46015785 | N85: 65566.38026 | O85: 9519.099369 | P85: 7760.479106 | Q85: 8791.613786 | R85: 扬州市 | S85: 91637.57252 | T85: 0.0001 | U85: 9.16 | V85: 扬州市 | W85: 6504 | X85: 91637.57252 | Y85: 14.08941767
A86: 镇江市 | B86: nan | C86: nan | D86: 205.436 | E86: 17.3409825 | F86: 1507.674168 | G86: 0.848736 | H86: nan | I86: 908.9475 | J86: 70.707 | K86: 112.31442 | L86: 0.13161 | M86: 36.849183 | N86: 74190.10366 | O86: 9200.530975 | P86: 8982.782932 | Q86: 9613.666215 | R86: 镇江市 | S86: 101987.0838 | T86: 0.0001 | U86: 10.20 | V86: 镇江市 | W86: 3631 | X86: 101987.0838 | Y86: 28.08787766
A87: 泰州市 | B87: nan | C87: nan | D87: 187.1043178 | E87: 19.47544865 | F87: 1814.663433 | G87: 0.7976131613 | H87: nan | I87: 1480.297651 | J87: 108.8178179 | K87: 141.4529353 | L87: 0.02628738011 | M87: 80.23946036 | N87: 64417.33927 | O87: 9279.044397 | P87: 7623.780286 | Q87: 8666.599114 | R87: 泰州市 | S87: 89986.76306 | T87: 0.0001 | U87: 9.00 | V87: 泰州市 | W87: 5788 | X87: 89986.76306 | Y87: 15.54712562
A88: 宿迁市 | B88: nan | C88: nan | D88: 181.4972232 | E88: 18.8920912 | F88: 1760.349503 | G88: 0.7737401364 | H88: nan | I88: 1435.930856 | J88: 105.5579891 | K88: 137.2161177 | L88: 0.02550001691 | M88: 77.83485885 | N88: 41389.20021 | O88: 7201.517006 | P88: 4879.155184 | Q88: 5334.794715 | R88: 宿迁市 | S88: 58804.66712 | T88: 0.0001 | U88: 5.88 | V88: 宿迁市 | W88: 8405 | X88: 58804.66712 | Y88: 6.996391091
A89: 杭州市 | B89: 0 | C89: 0 | D89: 573.16 | E89: 122.7404 | F89: 16182.5928 | G89: 12.1296 | H89: nan | I89: 2349.111 | J89: 148.365 | K89: 1290.88284 | L89: 0.4066 | M89: 169.035675 | N89: 330755.0287 | O89: 38793.06755 | P89: 38863.0219 | Q89: 38662.24619 | R89: 杭州市 | S89: 447073.3643 | T89: 0.0001 | U89: 44.71 | V89: 杭州市 | W89: 16596 | X89: 447073.3643 | Y89: 26.93862162
A90: 宁波市 | B90: nan | C90: nan | D90: 502.7302828 | E90: 66.60064501 | F90: 6315.214723 | G90: 3.901549187 | H90: nan | I90: 3223.769625 | J90: 152.301636 | K90: 1016.726647 | L90: 1.721153424 | M90: 119.6644485 | N90: 231546.8475 | O90: 31269.04814 | P90: 26886.62484 | Q90: 26291.56695 | R90: 宁波市 | S90: 315994.0874 | T90: 0.0001 | U90: 31.60 | V90: 宁波市 | W90: 9365 | X90: 315994.0874 | Y90: 33.74202748
A91: 温州市 | B91: nan | C91: nan | D91: 420.6150554 | E91: 55.72219329 | F91: 5283.696809 | G91: 3.264275863 | H91: nan | I91: 2697.203821 | J91: 127.42491 | K91: 850.6560073 | L91: 1.440022747 | M91: 100.1186329 | N91: 198463.6765 | O91: 26126.5986 | P91: 23113.25389 | Q91: 22590.55223 | R91: 温州市 | S91: 270294.0812 | T91: 0.0001 | U91: 27.03 | V91: 温州市 | W91: 11784 | X91: 270294.0812 | Y91: 22.9373796
A92: 嘉兴市 | B92: nan | C92: nan | D92: 268.7346226 | E92: 35.60139465 | F92: 3375.799914 | G92: 2.085574282 | H92: nan | I92: 1723.267015 | J92: 81.41288494 | K92: 543.4915326 | L92: 0.9200430762 | M92: 63.96666663 | N92: 170050.3486 | O92: 16101.20864 | P92: 20071.35869 | Q92: 21657.8765 | R92: 嘉兴市 | S92: 227880.7924 | T92: 0.0001 | U92: 22.79 | V92: 嘉兴市 | W92: 3915 | X92: 227880.7924 | Y92: 58.20709895
A93: 湖州市 | B93: nan | C93: nan | D93: 160.7775039 | E93: 21.29946381 | F93: 2019.660432 | G93: 1.247749263 | H93: nan | I93: 1030.989482 | J93: 48.70738389 | K93: 325.1579985 | L93: 0.5504397902 | M93: 38.26972831 | N93: 56072.10992 | O93: 8288.253255 | P93: 6514.647626 | Q93: 6496.47636 | R93: 湖州市 | S93: 77371.48716 | T93: 0.0001 | U93: 7.74 | V93: 湖州市 | W93: 5794 | X93: 77371.48716 | Y93: 13.35372578
A94: 绍兴市 | B94: nan | C94: nan | D94: 269.8276 | E94: 23.2641945 | F94: 3511.043712 | G94: 0.798084 | H94: nan | I94: 1374.3225 | J94: 95.452 | K94: 440.07066 | L94: 0.29211 | M94: 51.57222 | N94: 108677.1988 | O94: 15398.09927 | P94: 12707.34399 | Q94: 12885.85304 | R94: 绍兴市 | S94: 149668.4951 | T94: 0.0001 | U94: 14.97 | V94: 绍兴市 | W94: 8256 | X94: 149668.4951 | Y94: 18.12845145
A95: 金华市 | B95: nan | C95: nan | D95: 378.4756559 | E95: 50.13965473 | F95: 4754.348636 | G95: 2.937243763 | H95: nan | I95: 2426.983942 | J95: 114.6588211 | K95: 765.432873 | L95: 1.295753794 | M95: 90.08822858 | N95: 152312.353 | O95: 20607.44272 | P95: 17707.02145 | Q95: 17336.168 | R95: 金华市 | S95: 207962.9851 | T95: 0.0001 | U95: 20.80 | V95: 金华市 | W95: 10919 | X95: 207962.9851 | Y95: 19.04597355
A96: 衢州市 | B96: nan | C96: nan | D96: 84.50364946 | E96: 11.19486483 | F96: 1061.520878 | G96: 0.6558092006 | H96: nan | I96: 541.8816166 | J96: 25.60029603 | K96: 170.9010083 | L96: 0.2893077075 | M96: 20.1143296 | N96: 29449.0428 | O96: 4378.509801 | P96: 3409.550555 | Q96: 3343.37642 | R96: 衢州市 | S96: 40580.47958 | T96: 0.0001 | U96: 4.06 | V96: 衢州市 | W96: 8837 | X96: 40580.47958 | Y96: 4.592110397
A97: 舟山市 | B97: nan | C97: nan | D97: 35.6859057 | E97: 4.727593341 | F97: 448.2804494 | G97: 0.2769483382 | H97: nan | I97: 228.8366999 | J97: 10.81100941 | K97: 72.17152518 | L97: 0.1221746947 | M97: 8.49428485 | N97: 19971.15988 | O97: 2206.015057 | P97: 2354.614979 | Q97: 2676.473133 | R97: 舟山市 | S97: 27208.26305 | T97: 0.0001 | U97: 2.72 | V97: 舟山市 | W97: 1440 | X97: 27208.26305 | Y97: 18.89462712
A98: 台州市 | B98: nan | C98: nan | D98: 316.2802444 | E98: 41.90013811 | F98: 3973.060157 | G98: 2.454562561 | H98: nan | I98: 2028.15442 | J98: 95.81678347 | K98: 639.6482637 | L98: 1.082820837 | M98: 75.28390931 | N98: 145204.279 | O98: 18928.65563 | P98: 16913.59833 | Q98: 16530.73697 | R98: 台州市 | S98: 197577.2699 | T98: 0.0001 | U98: 19.76 | V98: 台州市 | W98: 9413 | X98: 197577.2699 | Y98: 20.98983002
A99: 丽水市 | B99: nan | C99: nan | D99: 76.08143785 | E99: 10.07910804 | F99: 955.848168 | G99: 0.5904467707 | H99: nan | I99: 610.412984 | J99: 28.83794653 | K99: 192.5147324 | L99: 0.3258962394 | M99: 16.648083 | N99: 47523.21904 | O99: 5801.287385 | P99: 5571.235372 | Q99: 5211.86339 | R99: 丽水市 | S99: 64107.60519 | T99: 0.0001 | U99: 6.41 | V99: 丽水市 | W99: 17298 | X99: 64107.60519 | Y99: 3.706070366
A100: 合肥市 | B100: 0 | C100: 0 | D100: 572.3892552 | E100: 80.1957748 | F100: 6477.673755 | G100: 1.789633827 | H100: nan | I100: 3647.088938 | J100: 133.3100906 | K100: 468.5879538 | L100: 0.08194115501 | M100: 134.420496 | N100: 151686.2408 | O100: 23081.0561 | P100: 17716.88801 | Q100: 20135.255 | R100: 合肥市 | S100: 212619.4399 | T100: 0.0001 | U100: 21.26 | V100: 合肥市 | W100: 11496 | X100: 212619.4399 | Y100: 18.49508002
A101: 淮北市 | B101: 0 | C101: 0 | D101: 78.40665974 | E101: 10.2333547 | F101: 694.4247964 | G101: 0.2398172078 | H101: nan | I101: 1033.120547 | J101: 30.28659375 | K101: 142.1644837 | L101: 0.02287125 | M101: 36.647172 | N101: 38229.27959 | O101: 4620.195417 | P101: 4206.909538 | Q101: 4296.357164 | R101: 淮北市 | S101: 51352.74171 | T101: 0.0001 | U101: 5.14 | V101: 淮北市 | W101: 2732 | X101: 51352.74171 | Y101: 18.79675758
A102: 亳州市 | B102: 0 | C102: 0 | D102: 137.691004 | E102: 17.9709337 | F102: 1219.488852 | G102: 0.4211462678 | H102: nan | I102: 3813.273672 | J102: 111.7885719 | K102: 524.7326506 | L102: 0.08441835344 | M102: 146.291613 | N102: 116401.0066 | O102: 12167.26897 | P102: 12805.56799 | Q102: 13371.90175 | R102: 亳州市 | S102: 154745.7453 | T102: 0.0001 | U102: 15.47 | V102: 亳州市 | W102: 8429 | X102: 154745.7453 | Y102: 18.3587312
A103: 宿州市 | B103: 0 | C103: 0 | D103: 142.1923984 | E103: 18.55843947 | F103: 1259.356382 | G103: 0.4349143818 | H103: nan | I103: 2473.625496 | J103: 72.51592344 | K103: 340.3878595 | L103: 0.05476118667 | M103: 101.540235 | N103: 118890.6663 | O103: 13043.31245 | P103: 13045.03263 | Q103: 12907.93891 | R103: 宿州市 | S103: 157886.9503 | T103: 0.0001 | U103: 15.79 | V103: 宿州市 | W103: 9787 | X103: 157886.9503 | Y103: 16.1323133
A104: 蚌埠市 | B104: 0 | C104: 0 | D104: 104.3213382 | E104: 13.61564516 | F104: 923.9435054 | G104: 0.3190807021 | H104: nan | I104: 2250.179535 | J104: 65.96546129 | K104: 309.6401605 | L104: 0.04981453408 | M104: 35.946075 | N104: 52927.91867 | O104: 5708.222926 | P104: 6224.879372 | Q104: 7695.391485 | R104: 蚌埠市 | S104: 72556.41245 | T104: 0.0001 | U104: 7.26 | V104: 蚌埠市 | W104: 5959 | X104: 72556.41245 | Y104: 12.17593765
A105: 阜阳市 | B105: 0 | C105: 0 | D105: 208.4150897 | E105: 27.20158652 | F105: 1845.871342 | G105: 0.6374653 | H105: nan | I105: 5148.592856 | J105: 150.9343132 | K105: 708.4817426 | L105: 0.1139796849 | M105: 236.566764 | N105: 182378.5081 | O105: 17383.3154 | P105: 20348.8518 | Q105: 21801.04985 | R105: 阜阳市 | S105: 241911.7251 | T105: 0.0001 | U105: 24.19 | V105: 阜阳市 | W105: 10119 | X105: 241911.7251 | Y105: 23.90668299
A106: 淮南市 | B106: 0 | C106: 0 | D106: 92.24493696 | E106: 12.03947678 | F106: 816.9863603 | G106: 0.282143421 | H106: nan | I106: 1046.020069 | J106: 30.66475155 | K106: 143.9395466 | L106: 0.02315681996 | M106: 34.22304 | N106: 42418.5147 | O106: 4772.329061 | P106: 4973.045215 | Q106: 5862.927186 | R106: 淮南市 | S106: 58026.81616 | T106: 0.0001 | U106: 5.80 | V106: 淮南市 | W106: 5650 | X106: 58026.81616 | Y106: 10.27023295
A107: 滁州市 | B107: 0 | C107: 0 | D107: 119.7304669 | E107: 15.62678912 | F107: 1060.417641 | G107: 0.3662115739 | H107: nan | I107: 1685.552144 | J107: 49.41304591 | K107: 231.943553 | L107: 0.03731479795 | M107: 44.596899 | N107: 75829.70907 | O107: 7487.897601 | P107: 8839.855759 | Q107: 10294.61617 | R107: 滁州市 | S107: 102452.0786 | T107: 0.0001 | U107: 10.25 | V107: 滁州市 | W107: 13433 | X107: 102452.0786 | Y107: 7.626894856
A108: 六安市 | B108: 0 | C108: 0 | D108: 138.6257256 | E108: 18.09293019 | F108: 1227.767406 | G108: 0.4240052381 | H108: nan | I108: 2431.210118 | J108: 71.27248933 | K108: 334.5512122 | L108: 0.05382219391 | M108: 45.713901 | N108: 117243.4806 | O108: 11025.93564 | P108: 13763.81898 | Q108: 16208.14027 | R108: 六安市 | S108: 158241.3755 | T108: 0.0001 | U108: 15.82 | V108: 六安市 | W108: 15351 | X108: 158241.3755 | Y108: 10.30821285
A109: 马鞍山市 | B109: 0 | C109: 0 | D109: 82.18025363 | E109: 10.72587058 | F109: 727.8464111 | G109: 0.2513592471 | H109: nan | I109: 525.2729168 | J109: 15.39871362 | K109: 72.28116145 | L109: 0.01162850573 | M109: 26.950644 | N109: 28667.32184 | O109: 3854.097737 | P109: 3352.610204 | Q109: 3790.992903 | R109: 马鞍山市 | S109: 39665.02268 | T109: 0.0001 | U109: 3.97 | V109: 马鞍山市 | W109: 4049 | X109: 39665.02268 | Y109: 9.796251589
A110: 巢湖市 | B110: nan | C110: nan | D110: 0 | E110: 0 | F110: 0 | G110: 0 | H110: nan | I110: 0 | J110: 0 | K110: 0 | L110: 0 | M110: 0 | N110: 37855.02944 | O110: 2733.699295 | P110: 4374.931622 | Q110: 4681.113572 | R110: 巢湖市 | S110: 49644.77393 | T110: 0.0001 | U110: 4.96 | V110: 巢湖市 | X110: 49644.77393
A111: 芜湖市 | B111: 0 | C111: 0 | D111: 160.5045159 | E111: 20.94847106 | F111: 1421.541437 | G111: 0.4909244311 | H111: nan | I111: 1102.275104 | J111: 32.3139041 | K111: 151.6806258 | L111: 0.02440219542 | M111: 34.413168 | N111: 48148.88093 | O111: 7320.801529 | P111: 5566.006843 | Q111: 6149.492372 | R111: 芜湖市 | S111: 67185.18167 | T111: 0.0001 | U111: 6.72 | V111: 芜湖市 | W111: 6026 | X111: 67185.18167 | Y111: 11.14921701
A112: 宣城市 | B112: 0 | C112: 0 | D112: 111.9771529 | E112: 14.61485451 | F112: 991.7488117 | G112: 0.3424970307 | H112: nan | I112: 1134.633228 | J112: 33.26250332 | K112: 156.1333259 | L112: 0.02511854041 | M112: 93.970764 | N112: 76759.75 | O112: 7398.529795 | P112: 8780.096078 | Q112: 9559.954839 | R112: 宣城市 | S112: 102498.3307 | T112: 0.0001 | U112: 10.25 | V112: 宣城市 | W112: 12340 | X112: 102498.3307 | Y112: 8.306185633
A113: 铜陵市 | B113: nan | C113: nan | D113: 51.94169309 | E113: 6.779242618 | F113: 460.0323464 | G113: 0.1588705838 | H113: nan | I113: 426.7774125 | J113: 12.51125452 | K113: 58.7275035 | L113: 0.00944800965 | M113: 28.388487 | N113: 19373.35957 | O113: 2363.916686 | P113: 2244.665834 | Q113: 2527.460852 | R113: 铜陵市 | S113: 26509.40294 | T113: 0.0001 | U113: 2.65 | V113: 铜陵市 | W113: 2992 | X113: 26509.40294 | Y113: 8.860094565
A114: 池州市 | B114: nan | C114: nan | D114: 47.32531312 | E114: 6.176729339 | F114: 419.1464225 | G114: 0.144750771 | H114: nan | I114: 501.1355058 | J114: 14.69110988 | K114: 68.95968789 | L114: 0.01109415109 | M114: 21.211155 | N114: 21569.82301 | O114: 2519.192791 | P114: 2483.942398 | Q114: 2806.201618 | R114: 池州市 | S114: 29379.15981 | T114: 0.0001 | U114: 2.94 | V114: 池州市 | W114: 8399 | X114: 29379.15981 | Y114: 3.497935446
A115: 安庆市 | B115: nan | C115: nan | D115: 146.1477437 | E115: 19.07467689 | F115: 1294.387715 | G115: 0.447012332 | H115: nan | I115: 1351.782472 | J115: 39.62837319 | K115: 186.0145536 | L115: 0.02992579614 | M115: 34.840956 | N115: 66913.00314 | O115: 8303.928193 | P115: 7657.802391 | Q115: 8435.559242 | R115: 安庆市 | S115: 91310.29297 | T115: 0.0001 | U115: 9.13 | V115: 安庆市 | W115: 13528 | X115: 91310.29297 | Y115: 6.749725973
A116: 黄山市 | B116: nan | C116: nan | D116: 55.15811027 | E116: 7.199037798 | F116: 488.5192102 | G116: 0.1687084239 | H116: nan | I116: 374.7201882 | J116: 10.98516349 | K116: 51.56407185 | L116: 0.00829556544 | M116: 44.787027 | N116: 58773.91263 | O116: 5540.903897 | P116: 6398.626676 | Q116: 5984.289199 | R116: 黄山市 | S116: 76697.7324 | T116: 0.0001 | U116: 7.67 | V116: 黄山市 | W116: 9678 | X116: 76697.7324 | Y116: 7.92495685
A117: 福州市 | B117: nan | C117: nan | D117: 379.1228 | E117: 55.6080495 | F117: 3164.176224 | G117: 0.908712 | H117: nan | I117: 1977.525 | J117: 51.2785 | K117: 519.6438 | L117: 0.04173 | M117: 91.26144 | N117: 133452.7144 | O117: 16940.37661 | P117: 15517.16923 | Q117: 15519.46284 | R117: 福州市 | S117: 181429.7231 | T117: 0.0001 | U117: 18.14 | V117: 福州市 | W117: 11974 | X117: 181429.7231 | Y117: 15.15197287
A118: 厦门市 | B118: nan | C118: nan | D118: 329.9156 | E118: 38.4619095 | F118: 3123.886392 | G118: 1.462104 | H118: nan | I118: 2037.13125 | J118: 59.437 | K118: 443.58615 | L118: 0.52002 | M118: 70.929627 | N118: 124442.6917 | O118: 16234.91415 | P118: 14540.73203 | Q118: 14608.8027 | R118: 厦门市 | S118: 169827.1406 | T118: 0.0001 | U118: 16.98 | V118: 厦门市 | W118: 1701 | X118: 169827.1406 | Y118: 99.83958884
A119: 泉州市 | B119: nan | C119: nan | D119: 223.503 | E119: 50.2563755 | F119: 3615.47604 | G119: 2.136204 | H119: nan | I119: 1617.5925 | J119: 136.171 | K119: 688.83093 | L119: 0.55854 | M119: 53.782458 | N119: 146503.8877 | O119: 18386.2609 | P119: 17135.95916 | Q119: 15559.84811 | R119: 泉州市 | S119: 197585.9559 | T119: 0.0001 | U119: 19.76 | V119: 泉州市 | W119: 11015 | X119: 197585.9559 | Y119: 17.93789885
A120: 漳州市 | B120: nan | C120: nan | D120: 22.6548 | E120: 4.182619 | F120: 0.042768 | G120: nan | H120: nan | I120: 1162.4175 | J120: 6.615 | K120: 3.45348 | L120: nan | M120: nan | N120: 32016.68138 | O120: 1509.446355 | P120: 3823.374055 | Q120: 4698.358375 | R120: 漳州市 | S120: 42047.86017 | T120: 0.0001 | U120: 4.20 | V120: 漳州市 | W120: 12882 | X120: 42047.86017 | Y120: 3.264078572
A121: 莆田市 | B121: nan | C121: nan | D121: 192.6956947 | E121: 54.28476005 | F121: 2281.167906 | G121: 0.9870155317 | H121: nan | I121: 274.5733362 | J121: 78.55483481 | K121: 681.2005075 | L121: 0.7153142126 | M121: 38.12759435 | N121: 98836.77976 | O121: 13074.54722 | P121: 11894.05443 | Q121: 10726.41987 | R121: 莆田市 | S121: 134531.8013 | T121: 0.0001 | U121: 13.45 | V121: 莆田市 | W121: 4132 | X121: 134531.8013 | Y121: 32.55851919
A122: 宁德市 | B122: nan | C122: nan | D122: 60.81070528 | E122: 11.44210995 | F122: 650.0581501 | G122: 0.3178404683 | H122: nan | I122: 431.5216638 | J122: 19.81266519 | K122: 139.7260325 | L122: 0.1064457874 | M122: 15.03694765 | N122: 24951.95982 | O122: 3071.950856 | P122: 2927.221606 | Q122: 2936.373015 | R122: 宁德市 | S122: 33887.5053 | T122: 0.0001 | U122: 3.39 | V122: 宁德市 | W122: 13433 | X122: 33887.5053 | Y122: 2.522705672
A123: 龙岩市 | B123: nan | C123: nan | D123: 60.5346 | E123: 14.963904 | F123: 949.333176 | G123: 1.108548 | H123: nan | I123: 1025.41875 | J123: 34.1775 | K123: 363.94623 | L123: 0.45582 | M123: 30.598725 | N123: 53113.22221 | O123: 5815.732356 | P123: 6139.292714 | Q123: 6670.608504 | R123: 龙岩市 | S123: 71738.85579 | T123: 0.0001 | U123: 7.17 | V123: 龙岩市 | W123: 19028 | X123: 71738.85579 | Y123: 3.770173207
A124: 三明市 | B124: nan | C124: nan | D124: 66.178 | E124: 13.7039225 | F124: 661.673232 | G124: 0.295344 | H124: nan | I124: 716.9325 | J124: 32.487 | K124: 193.97682 | L124: 0.06099 | M124: 25.881174 | N124: 37467.46511 | O124: 3833.592191 | P124: 4351.520968 | Q124: 4872.94158 | R124: 三明市 | S124: 50525.51985 | T124: 0.0001 | U124: 5.05 | V124: 三明市 | W124: 22965 | X124: 50525.51985 | Y124: 2.200109726
A125: 南平市 | B125: nan | C125: nan | D125: 72.9582 | E125: 22.0951395 | F125: 609.505776 | G125: 0.145404 | H125: nan | I125: 750.91125 | J125: 40.327 | K125: 201.68514 | L125: 0.00642 | M125: 22.637115 | N125: 39388.92889 | O125: 3698.381854 | P125: 4613.702942 | Q125: 5375.474871 | R125: 南平市 | S125: 53076.48855 | T125: 0.0001 | U125: 5.31 | V125: 南平市 | W125: 26337 | X125: 53076.48855 | Y125: 2.015282248
A126: 南昌市 | B126: nan | C126: nan | D126: 253.0266408 | E126: 35.11535014 | F126: 2750.646809 | G126: 0.9464664024 | H126: nan | I126: 1779.546426 | J126: 83.79665156 | K126: 245.1363807 | L126: 0.03110218552 | M126: 66.18831 | N126: 153766.8885 | O126: 18163.16183 | P126: 18523.19093 | Q126: 21602.18211 | R126: 南昌市 | S126: 212055.4234 | T126: 0.0001 | U126: 21.21 | V126: 南昌市 | W126: 7195 | X126: 212055.4234 | Y126: 29.47260923
A127: 景德镇市 | B127: nan | C127: nan | D127: 48.63749138 | E127: 6.749971207 | F127: 528.7370534 | G127: 0.1819324295 | H127: nan | I127: 528.2322611 | J127: 24.87380721 | K127: 72.7651399 | L127: 0.009232227688 | M127: 14.960697 | N127: 28307.02566 | O127: 3325.155213 | P127: 3362.075666 | Q127: 3993.822305 | R127: 景德镇市 | S127: 38988.07884 | T127: 0.0001 | U127: 3.90 | V127: 景德镇市 | W127: 5262 | X127: 38988.07884 | Y127: 7.40936504
A128: 萍乡市 | B128: nan | C128: nan | D128: 51.55761743 | E128: 7.15522991 | F128: 560.4816766 | G128: 0.1928553947 | H128: nan | I128: 663.0437768 | J128: 31.22191561 | K128: 91.33571865 | L128: 0.01158840829 | M128: 13.617918 | N128: 36075.50061 | O128: 3560.792408 | P128: 4304.663137 | Q128: 5311.79623 | R128: 萍乡市 | S128: 49252.75238 | T128: 0.0001 | U128: 4.93 | V128: 萍乡市 | W128: 3830 | X128: 49252.75238 | Y128: 12.85972647
A129: 九江市 | B129: nan | C129: nan | D129: 130.7365529 | E129: 18.14378051 | F129: 1421.234069 | G129: 0.4890305406 | H129: nan | I129: 1663.428257 | J129: 78.32878988 | K129: 229.140851 | L129: 0.02907271961 | M129: 35.898543 | N129: 74250.34816 | O129: 8992.423284 | P129: 8645.924595 | Q129: 8591.221189 | R129: 九江市 | S129: 100479.9172 | T129: 0.0001 | U129: 10.05 | V129: 九江市 | W129: 19077 | X129: 100479.9172 | Y129: 5.267071197
A130: 新余市 | B130: nan | C130: nan | D130: 37.93158766 | E130: 5.264192647 | F130: 412.3534195 | G130: 0.1418861397 | H130: nan | I130: 694.902059 | J130: 32.72208292 | K130: 95.72426614 | L130: 0.01214521434 | M130: 13.570386 | N130: 34295.45853 | O130: 3275.069598 | P130: 4165.50361 | Q130: 5317.707964 | R130: 新余市 | S130: 47053.7397 | T130: 0.0001 | U130: 4.71 | V130: 新余市 | W130: 3160 | X130: 47053.7397 | Y130: 14.89042396
A131: 鹰潭市 | B131: nan | C131: nan | D131: 29.10635147 | E131: 4.039415454 | F131: 316.4144793 | G131: 0.1088746374 | H131: nan | I131: 478.1108582 | J131: 22.51365203 | K131: 65.86080793 | L131: 0.008356226283 | M131: 10.09202229 | N131: 17633.4727 | O131: 1997.366002 | P131: 2065.992703 | Q131: 2645.416882 | R131: 鹰潭市 | S131: 24342.24829 | T131: 0.0001 | U131: 2.43 | V131: 鹰潭市 | W131: 3560 | X131: 24342.24829 | Y131: 6.837710194
A132: 赣州市 | B132: nan | C132: nan | D132: 213.3527494 | E132: 29.60935843 | F132: 2319.352846 | G132: 0.7980630363 | H132: nan | I132: 3843.257543 | J132: 180.9742688 | K132: 529.4170641 | L132: 0.06717088545 | M132: 74.8821232 | N132: 89539.80741 | O132: 11384.25939 | P132: 10105.10409 | Q132: 11552.96003 | R132: 赣州市 | S132: =SUM(N132:Q132) -> 122582.1309 | T132: 0.0001 | U132: =S132*T132 -> 12.26 | V132: 赣州市 | W132: 39363 | X132: 122582.1309 | Y132: =X132/W132 -> 3.114146049
A133: 吉安市 | B133: nan | C133: nan | D133: 102.7053319 | E133: 14.25357298 | F133: 1116.507308 | G133: 0.3841775147 | H133: nan | I133: 1901.386608 | J133: 89.53395584 | K133: 261.9201301 | L133: 0.03323165847 | M133: 31.668195 | N133: 69760.37363 | O133: 6848.520273 | P133: 8218.748846 | Q133: 10186.96538 | R133: 吉安市 | S133: 95014.60813 | T133: 0.0001 | U133: 9.50 | V133: 吉安市 | W133: 25285 | X133: 95014.60813 | Y133: 3.757746021
A134: 宜春市 | B134: nan | C134: nan | D134: 140.5917351 | E134: 19.51149488 | F134: 1528.369528 | G134: 0.5258946384 | H134: nan | I134: 4377.87867 | J134: 206.1489198 | K134: 603.062284 | L134: 0.07651477512 | M134: 54.495438 | N134: 110060.1765 | O134: 12039.64755 | P134: 13261.67656 | Q134: 16143.22775 | R134: 宜春市 | S134: 151504.7284 | T134: 0.0001 | U134: 15.15 | V134: 宜春市 | W134: 19668 | X134: 151504.7284 | Y134: 7.703108012
A135: 抚州市 | B135: nan | C135: nan | D135: 75.09655305 | E135: 10.42199251 | F135: 816.3729059 | G135: 0.2809046675 | H135: nan | I135: 1516.011101 | J135: 71.38709739 | K135: 208.833818 | L135: 0.02649622277 | M135: 27.651741 | N135: 77293.69918 | O135: 6695.813268 | P135: 9126.761127 | Q135: 10786.17892 | R135: 抚州市 | S135: 103902.4525 | T135: 0.0001 | U135: 10.39 | V135: 抚州市 | W135: 18798 | X135: 103902.4525 | Y135: 5.527314209
A136: 上饶市 | B136: nan | C136: nan | D136: 141.2643132 | E136: 19.6048361 | F136: 1535.681109 | G136: 0.5284104705 | H136: nan | I136: 2128.998009 | J136: 100.2518966 | K136: 293.2740944 | L136: 0.03720975755 | M136: 32.927793 | N136: 87921.08469 | O136: 9422.647346 | P136: 10247.5914 | Q136: 12253.61071 | R136: 上饶市 | S136: 119844.9341 | T136: 0.0001 | U136: 11.98 | V136: 上饶市 | W136: 22737 | X136: 119844.9341 | Y136: 5.270921148
A137: 济南市 | B137: 0 | C137: 0 | D137: 552.12808 | E137: 46.021176 | F137: 4855.5309 | G137: 5.8376472 | H137: nan | I137: 2942.89125 | J137: 76.8124 | K137: 799.20396 | L137: 0.14445 | M137: 161.703864 | N137: 246764.7416 | O137: 31357.09597 | P137: 30425.33954 | Q137: 28134.70882 | R137: 济南市 | S137: 336681.886 | T137: 0.0001 | U137: 33.67 | V137: 济南市 | W137: 10244 | X137: 336681.886 | Y137: 32.86625205
A138: 青岛市 | B138: nan | C138: nan | D138: 731.12648 | E138: 52.201356 | F138: 5301.010572 | G138: 7.7666904 | H138: nan | I138: 4701.0525 | J138: 214.032 | K138: 1009.11258 | L138: 0.45582 | M138: 144.02196 | N138: 341355.9575 | O138: 41413.52698 | P138: 42373.75266 | Q138: 41064.56523 | R138: 青岛市 | S138: 466207.8024 | T138: 0.0001 | U138: 46.62 | V138: 青岛市 | W138: 11290 | X138: 466207.8024 | Y138: 41.29387089
A139: 淄博市 | B139: nan | C139: nan | D139: 238.30016 | E139: 18.311958 | F139: 2053.084638 | G139: 2.3271948 | H139: nan | I139: 2246.4225 | J139: 48.8236 | K139: 349.34049 | L139: 1.31289 | M139: 65.23767 | N139: 185955.7564 | O139: 18673.25155 | P139: 23181.82522 | Q139: 22659.23194 | R139: 淄博市 | S139: 250470.0651 | T139: 0.0001 | U139: 25.05 | V139: 淄博市 | W139: 5964 | X139: 250470.0651 | Y139: 41.9969928
A140: 枣庄市 | B140: nan | C140: nan | D140: 143.57448 | E140: 9.718968 | F140: 1553.639736 | G140: 3.6099252 | H140: nan | I140: 2257.1325 | J140: 30.1056 | K140: 257.40351 | L140: 0.03531 | M140: 29.398542 | N140: 108288.6252 | O140: 12042.93304 | P140: 13778.60161 | Q140: 14344.17071 | R140: 枣庄市 | S140: 148454.3305 | T140: 0.0001 | U140: 14.85 | V140: 枣庄市 | W140: 4564 | X140: 148454.3305 | Y140: 32.52724157
A141: 东营市 | B141: nan | C141: nan | D141: 139.95352 | E141: 15.128742 | F141: 1324.501398 | G141: 1.3652772 | H141: nan | I141: 1660.11375 | J141: 25.8132 | K141: 260.85699 | L141: 0.1284 | M141: 79.521036 | N141: 142288.4023 | O141: 15974.08948 | P141: 18334.81262 | Q141: 16974.45525 | R141: 东营市 | S141: 193571.7596 | T141: 0.0001 | U141: 19.36 | V141: 东营市 | W141: 8617 | X141: 193571.7596 | Y141: 22.46393868
A142: 烟台市 | B142: nan | C142: nan | D142: 367.5616 | E142: 35.210094 | F142: 3167.097714 | G142: 4.2098868 | H142: nan | I142: 3028.125 | J142: 125.9496 | K142: 561.49101 | L142: 0.10914 | M142: 73.306227 | N142: 303522.8115 | O142: 33761.84863 | P142: 38755.53084 | Q142: 36422.10645 | R142: 烟台市 | S142: 412462.2975 | T142: 0.0001 | U142: 41.25 | V142: 烟台市 | W142: 13865 | X142: 412462.2975 | Y142: 29.74845276
A143: 潍坊市 | B143: nan | C143: nan | D143: 410.73984 | E143: 29.326224 | F143: 4277.721096 | G143: 7.52556 | H143: nan | I143: 5723.28375 | J143: 234.808 | K143: 1226.43855 | L143: 0.33705 | M143: 124.474425 | N143: 312311.0941 | O143: 39936.79796 | P143: 39410.97673 | Q143: 35876.05288 | R143: 潍坊市 | S143: 427534.9216 | T143: 0.0001 | U143: 42.75 | V143: 潍坊市 | W143: 16142 | X143: 427534.9216 | Y143: 26.4858705
A144: 济宁市 | B144: nan | C144: nan | D144: 365.78528 | E144: 17.829396 | F144: 2682.69111 | G144: 6.0615912 | H144: nan | I144: 9246.3 | J144: 62.9944 | K144: 656.14689 | L144: 0.34989 | M144: 139.066749 | N144: 281139.7261 | O144: 30583.98334 | P144: 36477.49608 | Q144: 36398.67634 | R144: 济宁市 | S144: 384599.8819 | T144: 0.0001 | U144: 38.46 | V144: 济宁市 | W144: 11187 | X144: 384599.8819 | Y144: 34.37917957
A145: 泰安市 | B145: nan | C145: nan | D145: 213.3292 | E145: 12.936048 | F145: 1554.256044 | G145: 1.9941432 | H145: nan | I145: 1728.07125 | J145: 54.1156 | K145: 345.03795 | L145: 0.0321 | M145: 42.517374 | N145: 95552.07087 | O145: 12063.65062 | P145: 12139.90423 | Q145: 10991.1164 | R145: 泰安市 | S145: 130746.7421 | T145: 0.0001 | U145: 13.07 | V145: 泰安市 | W145: 7762 | X145: 130746.7421 | Y145: 16.84446562
A146: 威海市 | B146: nan | C146: nan | D146: 188.2216 | E146: 20.623176 | F146: 1457.602872 | G146: 1.2361188 | H146: nan | I146: 1115.625 | J146: 45.178 | K146: 378.50427 | L146: 0.0321 | M146: 46.474413 | N146: 132584.3135 | O146: 14495.90128 | P146: 16640.37826 | Q146: 15204.87998 | R146: 威海市 | S146: 178925.473 | T146: 0.0001 | U146: 17.89 | V146: 威海市 | W146: 5799 | X146: 178925.473 | Y146: 30.85453923
A147: 日照市 | B147: nan | C147: nan | D147: 128.40744 | E147: 6.916722 | F147: 1247.126034 | G147: 2.2675632 | H147: nan | I147: 1704.99375 | J147: 28.2044 | K147: 341.78481 | L147: 0.06741 | M147: 42.636204 | N147: 77669.74317 | O147: 9249.415813 | P147: 9670.48329 | Q147: 10324.29668 | R147: 日照市 | S147: 106913.939 | T147: 0.0001 | U147: 10.69 | V147: 日照市 | W147: 5359 | X147: 106913.939 | Y147: 19.95035248
A148: 莱芜市 | B148: nan | C148: nan | D148: nan | E148: nan | F148: nan | G148: nan | H148: nan | I148: nan | J148: nan | K148: nan | L148: nan | M148: nan | N148: 43854.56888 | O148: 4472.233241 | P148: 5600.515627 | Q148: 5377.563251 | R148: 莱芜市 | S148: 59304.881 | T148: 0.0001 | U148: 5.93 | V148: 莱芜市 | X148: 59304.881
A149: 临沂市 | B149: nan | C149: nan | D149: 278.81392 | E149: 24.25509 | F149: 4516.990236 | G149: 14.6889036 | H149: nan | I149: 11621.115 | J149: 256.0936 | K149: 1188.7794 | L149: 0.74793 | M149: 111.676434 | N149: 284776.6723 | O149: 37701.80477 | P149: 36434.26367 | Q149: 35960.93744 | R149: 临沂市 | S149: 394873.6781 | T149: 0.0001 | U149: 39.49 | V149: 临沂市 | W149: 17191 | X149: 394873.6781 | Y149: 22.96979106
A150: 德州市 | B150: nan | C150: nan | D150: 138.96288 | E150: 10.396248 | F150: 1965.739248 | G150: 3.5953428 | H150: nan | I150: 2574.92625 | J150: 36.1424 | K150: 420.99066 | L150: 0.19902 | M150: 65.629809 | N150: 213331.4744 | O150: 25059.11003 | P150: 28326.15239 | Q150: 24782.6684 | R150: 德州市 | S150: 291499.4052 | T150: 0.0001 | U150: 29.15 | V150: 德州市 | W150: 10361 | X150: 291499.4052 | Y150: 28.13429256
A151: 聊城市 | B151: nan | C151: nan | D151: 197.20568 | E151: 7.1961 | F151: 1939.986378 | G151: 3.9531324 | H151: nan | I151: 4487.80875 | J151: 28.9492 | K151: 403.85205 | L151: 0.13161 | M151: 57.525603 | N151: 278043.1015 | O151: 32106.58392 | P151: 37609.39786 | Q151: 32256.04417 | R151: 聊城市 | S151: 380015.1274 | T151: 0.0001 | U151: 38.00 | V151: 聊城市 | W151: 8720 | X151: 380015.1274 | Y151: 43.57971645
A152: 滨州市 | B152: nan | C152: nan | D152: 167.75976 | E152: 8.161224 | F152: 1694.064174 | G152: 2.4448956 | H152: nan | I152: 3067.395 | J152: 42.0224 | K152: 408.81762 | L152: 0.04815 | M152: 51.655401 | N152: 180716.226 | O152: 21698.2585 | P152: 23944.53375 | Q152: 20899.06327 | R152: 滨州市 | S152: 247258.0815 | T152: 0.0001 | U152: 24.73 | V152: 滨州市 | W152: 9664 | X152: 247258.0815 | Y152: 25.58548029
A153: 菏泽市 | B153: nan | C153: nan | D153: 219.06808 | E153: 12.724398 | F153: 2233.47531 | G153: 4.8957804 | H153: nan | I153: 2987.00625 | J153: 51.0188 | K153: 582.47901 | L153: 0.26001 | M153: 74.827251 | N153: 199041.5067 | O153: 22768.8112 | P153: 26222.13034 | Q153: 23544.92688 | R153: 菏泽市 | S153: 271577.3751 | T153: 0.0001 | U153: 27.16 | V153: 菏泽市 | W153: 12159 | X153: 271577.3751 | Y153: 22.33550252
A154: 郑州市 | B154: nan | C154: nan | D154: 816.3008 | E154: 109.1094835 | F154: 5433.332256 | G154: 7.573505773 | H154: nan | I154: 5752.936 | J154: 104.0390888 | K154: 1039.277576 | L154: 0.2909924823 | M154: 247.154517 | N154: 236248.212 | O154: 31260.87469 | P154: 27731.95367 | Q154: 33062.44861 | R154: 郑州市 | S154: 328303.489 | T154: 0.0001 | U154: 32.83 | V154: 郑州市 | W154: 7568 | X154: 328303.489 | Y154: 43.38048216
A155: 开封市 | B155: nan | C155: nan | D155: 132.5184 | E155: 18.23631045 | F155: 907.102152 | G155: 1.265818497 | H155: nan | I155: 913.036 | J155: 31.60770019 | K155: 315.738771 | L155: 0.08840526423 | M155: 52.487211 | N155: 47044.30325 | O155: 5441.191838 | P155: 5498.384954 | Q155: 6294.843494 | R155: 开封市 | S155: 64278.72353 | T155: 0.0001 | U155: 6.43 | V155: 开封市 | W155: 6239 | X155: 64278.72353 | Y155: 10.30272857
A156: 洛阳市 | B156: nan | C156: nan | D156: 289.9904 | E156: 33.88087353 | F156: 1686.123648 | G156: 2.351738667 | H156: nan | I156: 2077.128 | J156: 52.03553287 | K156: 519.7985014 | L156: 0.1455409601 | M156: 99.983562 | N156: 151738.177 | O156: 12312.74294 | P156: 18279.0697 | Q156: 24036.307 | R156: 洛阳市 | S156: 206366.2966 | T156: 0.0001 | U156: 20.64 | V156: 洛阳市 | W156: 15236 | X156: 206366.2966 | Y156: 13.54465061
A157: 平顶山市 | B157: nan | C157: nan | D157: 172.3008 | E157: 20.09551234 | F157: 881.857152 | G157: 1.39486939 | H157: nan | I157: 1359.796 | J157: 33.25762455 | K157: 332.2203589 | L157: 0.09302002576 | M157: 142.322691 | N157: 101392.5804 | O157: 8353.021012 | P157: 12317.2441 | Q157: 16158.41526 | R157: 平顶山市 | S157: 138221.2608 | T157: 0.0001 | U157: 13.82 | V157: 平顶山市 | W157: 7910 | X157: 138221.2608 | Y157: 17.47424283
A158: 安阳市 | B158: nan | C158: nan | D158: 163.52 | E158: 24.74128537 | F158: 1369.543032 | G158: 1.717341715 | H158: nan | I158: 2262.768 | J158: 37.83654879 | K158: 377.9606026 | L158: 0.1058270634 | M158: 67.554855 | N158: 81798.57609 | O158: 8567.754499 | P158: 9751.089992 | Q158: 12179.71193 | R158: 安阳市 | S158: 112297.1325 | T158: 0.0001 | U158: 11.23 | V158: 安阳市 | W158: 7352 | X158: 112297.1325 | Y158: 15.27436514
A159: 鹤壁市 | B159: nan | C159: nan | D159: 83.1488 | E159: 7.845091165 | F159: 433.955016 | G159: 0.5445433459 | H159: nan | I159: 905.08 | J159: 12.88627054 | K159: 128.7248107 | L159: 0.03604229808 | M159: 60.472587 | N159: 33630.48315 | O159: 3514.703779 | P159: 4121.80429 | Q159: 4551.060564 | R159: 鹤壁市 | S159: 45818.05178 | T159: 0.0001 | U159: 4.58 | V159: 鹤壁市 | W159: 2140 | X159: 45818.05178 | Y159: 21.41030457
A160: 新乡市 | B160: nan | C160: nan | D160: 195.2384 | E160: 29.48583249 | F160: 1564.959528 | G160: 2.046670146 | H160: nan | I160: 2970.104 | J160: 56.99485748 | K160: 569.3386783 | L160: 0.1594119599 | M160: 89.348277 | N160: 85077.60596 | O160: 9532.372063 | P160: 10035.63806 | Q160: 12420.11456 | R160: 新乡市 | S160: 117065.7306 | T160: 0.0001 | U160: 11.71 | V160: 新乡市 | W160: 8291 | X160: 117065.7306 | Y160: 14.11961532
A161: 焦作市 | B161: nan | C161: nan | D161: 113.3888 | E161: 15.73394667 | F161: 855.15804 | G161: 1.092124462 | H161: nan | I161: 3629.296 | J161: 38.57450891 | K161: 385.332307 | L161: 0.1078911035 | M161: 92.841879 | N161: 119604.9354 | O161: 8967.541011 | P161: 14686.46401 | Q161: 19722.1193 | R161: 焦作市 | S161: 162981.0597 | T161: 0.0001 | U161: 16.30 | V161: 焦作市 | W161: 3972 | X161: 162981.0597 | Y161: 41.03249238
A162: 濮阳市 | B162: nan | C162: nan | D162: 122.3936 | E162: 19.12976959 | F162: 1034.282304 | G162: 1.327835269 | H162: nan | I162: 2268.072 | J162: 39.47526047 | K162: 394.3301837 | L162: 0.1104104636 | M162: 60.353757 | N162: 80341.67867 | O162: 7357.074696 | P162: 9561.609825 | Q162: 12449.01837 | R162: 濮阳市 | S162: 109709.3816 | T162: 0.0001 | U162: 10.97 | V162: 濮阳市 | W162: 4271 | X162: 109709.3816 | Y162: 25.6870479
A163: 许昌市 | B163: nan | C163: nan | D163: 139.1936 | E163: 19.67415739 | F163: 973.295136 | G163: 1.365622307 | H163: nan | I163: 1409.912 | J163: 33.24142847 | K163: 332.0585713 | L163: 0.09297472606 | M163: 55.517376 | N163: 72200.52312 | O163: 6928.664013 | P163: 8599.569417 | Q163: 10610.58338 | R163: 许昌市 | S163: 98339.33993 | T163: 0.0001 | U163: 9.83 | V163: 许昌市 | W163: 4979 | X163: 98339.33993 | Y163: 19.75082144
A164: 漯河市 | B164: nan | C164: nan | D164: 82.0736 | E164: 10.23772528 | F164: 541.832544 | G164: 0.7106208283 | H164: nan | I164: 1386.452 | J164: 21.72601126 | K164: 217.0276247 | L164: 0.06076664087 | M164: 19.416822 | N164: 37349.32078 | O164: 3830.607604 | P164: 4425.760379 | Q164: 5343.395709 | R164: 漯河市 | S164: 50949.08447 | T164: 0.0001 | U164: 5.09 | V164: 漯河市 | W164: 2692 | X164: 50949.08447 | Y164: 18.92610864
A165: 三门峡市 | B165: nan | C165: nan | D165: 77.8176 | E165: 9.132922067 | F165: 456.386832 | G165: 0.6339342445 | H165: nan | I165: 795.668 | J165: 15.0453334 | K165: 150.2923353 | L165: 0.04208109626 | M165: 35.458872 | N165: 52802.97843 | O165: 5108.446431 | P165: 6502.927547 | Q165: 7165.972695 | R165: 三门峡市 | S165: 71580.32511 | T165: 0.0001 | U165: 7.16 | V165: 三门峡市 | W165: 9936 | X165: 71580.32511 | Y165: 7.204139
A166: 南阳市 | B166: nan | C166: nan | D166: 239.456 | E166: 31.92936077 | F166: 1510.420824 | G166: 2.216280293 | H166: nan | I166: 2464.932 | J166: 63.81340972 | K166: 637.451236 | L166: 0.1784831327 | M166: 117.962541 | N166: 94607.42697 | O166: 9809.356955 | P166: 11094.34831 | Q166: 14045.7313 | R166: 南阳市 | S166: 129556.8635 | T166: 0.0001 | U166: 12.96 | V166: 南阳市 | W166: 26511 | X166: 129556.8635 | Y166: 4.886909718
A167: 商丘市 | B167: nan | C167: nan | D167: 321.3952 | E167: 30.23910082 | F167: 1596.41064 | G167: 2.098955996 | H167: nan | I167: 3737.348 | J167: 76.06512591 | K167: 759.8372935 | L167: 0.2127506118 | M167: 164.638965 | N167: 86002.58394 | O167: 9737.095178 | P167: 9920.880404 | Q167: 12046.31268 | R167: 商丘市 | S167: 117706.8722 | T167: 0.0001 | U167: 11.77 | V167: 商丘市 | W167: 10703 | X167: 117706.8722 | Y167: 10.99755883
A168: 信阳市 | B168: nan | C168: nan | D168: 161.5936 | E168: 18.93222142 | F168: 878.47848 | G168: 1.314123058 | H168: nan | I168: 894.88 | J168: 34.95696774 | K168: 349.1956062 | L168: 0.09777300944 | M168: 237.220329 | N168: 58559.89784 | O168: 5712.053262 | P168: 6811.22132 | Q168: 8061.27946 | R168: 信阳市 | S168: 79144.45188 | T168: 0.0001 | U168: 7.91 | V168: 信阳市 | W168: 18916 | X168: 79144.45188 | Y168: 4.18399513
A169: 周口市 | B169: nan | C169: nan | D169: 198.1056 | E169: 26.13348408 | F169: 1199.350152 | G169: 1.81397699 | H169: nan | I169: 5248.172 | J169: 81.65692845 | K169: 815.6954816 | L169: 0.2283906229 | M169: 130.855596 | N169: 109775.719 | O169: 10509.11247 | P169: 12790.01621 | Q169: 16097.97844 | R169: 周口市 | S169: 149172.8262 | T169: 0.0001 | U169: 14.92 | V169: 周口市 | W169: 11961 | X169: 149172.8262 | Y169: 12.47160155
A170: 驻马店市 | B170: nan | C170: nan | D170: 124.2752 | E170: 20.54318386 | F170: 964.185552 | G170: 1.425943158 | H170: nan | I170: 2137.512 | J170: 48.91923979 | K170: 488.6689178 | L170: 0.1368248336 | M170: 100.827255 | N170: 56457.862 | O170: 5959.130718 | P170: 6585.856525 | Q170: 8013.308751 | R170: 驻马店市 | S170: 77016.15799 | T170: 0.0001 | U170: 7.70 | V170: 驻马店市 | W170: 15086 | X170: 77016.15799 | Y170: 5.105141057
A171: 济源市 | B171: nan | C171: nan | D171: 33.0624 | E171: 4.66293097 | F171: 280.802808 | G171: 0.323663292 | H171: nan | I171: 537.948 | J171: 6.992556344 | K171: 69.85073676 | L171: 0.01955785417 | M171: 21.959784 | N171: 25139.65561 | O171: 2265.871824 | P171: 3057.752623 | Q171: 4022.376477 | R171: 济源市 | S171: 34485.65654 | T171: 0.0001 | U171: 3.45 | V171: 济源市 | W171: 1899 | X171: 34485.65654 | Y171: 18.15990339
A172: 武汉市 | B172: nan | C172: nan | D172: 844.1552 | E172: 71.208439 | F172: 8102.252664 | G172: 1.634472 | H172: nan | I172: 5895.40875 | J172: 225.302 | K172: 486.10593 | L172: 0.03852 | M172: 280.723992 | N172: 301973.5059 | O172: 39940.70968 | P172: 35610.66917 | Q172: 38584.02436 | R172: 武汉市 | S172: 416108.9091 | T172: 0.0001 | U172: 41.61 | V172: 武汉市 | W172: 8483 | X172: 416108.9091 | Y172: 49.05209349
A173: 黄石市 | B173: nan | C173: nan | D173: 144.7796 | E173: 10.7423165 | F173: 544.046976 | G173: 0.135828 | H173: nan | I173: 395.76 | J173: 38.122 | K173: 76.33431 | L173: 0 | M173: 26.000004 | N173: 36731.52001 | O173: 3812.929329 | P173: 4377.943356 | Q173: 4912.155433 | R173: 黄石市 | S173: 49834.54812 | T173: 0.0001 | U173: 4.98 | V173: 黄石市 | W173: 4583 | X173: 49834.54812 | Y173: 10.87378314
A174: 襄阳市 | B174: nan | C174: nan | D174: 183.1466 | E174: 20.705263 | F174: 1657.578384 | G174: 0.471744 | H174: nan | I174: 3115.90875 | J174: 127.4 | K174: 463.57722 | L174: 0.04173 | M174: 140.421411 | N174: 156908.6455 | O174: 15011.71806 | P174: 18554.90617 | Q174: 22188.01948 | R174: 襄阳市 | S174: 212663.2892 | T174: 0.0001 | U174: 21.27 | V174: 襄阳市 | W174: 19626 | X174: 212663.2892 | Y174: 10.83579381
A175: 荆州市 | B175: nan | C175: nan | D175: 181.1166 | E175: 33.668784 | F175: 1167.60204 | G175: 0.227052 | H175: nan | I175: 953.63625 | J175: 100.1315 | K175: 286.5816 | L175: 0.23754 | M175: 16.065816 | N175: 71825.87759 | O175: 7248.484002 | P175: 8388.222368 | Q175: 9025.745021 | R175: 荆州市 | S175: 96488.32898 | T175: 0.0001 | U175: 9.65 | V175: 荆州市 | W175: 14456 | X175: 96488.32898 | Y175: 6.67462154
A176: 宜昌市 | B176: nan | C176: nan | D176: 143.3992 | E176: 23.485016 | F176: 1527.848784 | G176: 0.320292 | H176: nan | I176: 1057.3575 | J176: 171.5245 | K176: 304.7011128 | L176: 0.013482 | M176: 77.47716 | N176: 99850.9275 | O176: 9721.155764 | P176: 11938.05975 | Q176: 13358.95513 | R176: 宜昌市 | S176: 134869.0982 | T176: 0.0001 | U176: 13.49 | V176: 宜昌市 | W176: 21081 | X176: 134869.0982 | Y176: 6.397661314
A177: 十堰市 | B177: nan | C177: nan | D177: 143.8864 | E177: 645.9186316 | F177: 574.881612 | G177: 3.741400196 | H177: nan | I177: 134.6931521 | J177: 905.8774737 | K177: 116.6044488 | L177: 9.874596777 | M177: 23.361978 | N177: 66431.26258 | O177: 5967.117841 | P177: 7917.066132 | Q177: 8662.471962 | R177: 十堰市 | S177: 88977.91852 | T177: 0.0001 | U177: 8.90 | V177: 十堰市 | W177: 23698 | X177: 88977.91852 | Y177: 3.754659402
A178: 孝感市 | B178: nan | C178: nan | D178: 99.1858 | E178: 29.771934 | F178: 698.677056 | G178: 0.146664 | H178: nan | I178: 280.43625 | J178: 58.996 | K178: 102.76965 | L178: 0.08988 | M178: 0.106947 | N178: 41818.93028 | O178: 5395.252121 | P178: 5001.106502 | Q178: 4583.521346 | R178: 孝感市 | S178: 56798.81025 | T178: 0.0001 | U178: 5.68 | V178: 孝感市 | W178: 8941 | X178: 56798.81025 | Y178: 6.352623895
A179: 荆门市 | B179: nan | C179: nan | D179: 90.944 | E179: 16.5875915 | F179: 814.36212 | G179: 0.183204 | H179: nan | I179: 1074.57 | J179: 64.778 | K179: 198.03609 | L179: 1.92279 | M179: 35.019201 | N179: 62190.37488 | O179: 6766.895277 | P179: 7506.169498 | Q179: 7648.322587 | R179: 荆门市 | S179: 84111.76224 | T179: 0.0001 | U179: 8.41 | V179: 荆门市 | W179: 12100 | X179: 84111.76224 | Y179: 6.951385309
A180: 鄂州市 | B180: nan | C180: nan | D180: 37.3114 | E180: 7.53391 | F180: 166.358016 | G180: 0 | H180: nan | I180: 77.83875 | J180: 4.4835 | K180: 32.25951 | L180: 0 | M180: 2.578611 | N180: 11159.29033 | O180: 1228.277301 | P180: 1319.20837 | Q180: 1372.799807 | R180: 鄂州市 | S180: 15079.57581 | T180: 0.0001 | U180: 1.51 | V180: 鄂州市 | W180: 1582 | X180: 15079.57581 | Y180: 9.531969536
A181: 黄冈市 | B181: nan | C181: nan | D181: 148.8396 | E181: 41.956085 | F181: 1058.301288 | G181: 0.254772 | H181: nan | I181: 849.15 | J181: 190.855 | K181: 217.68372 | L181: 0.01926 | M181: 137.914098 | N181: 57410.16435 | O181: 7141.224668 | P181: 6629.727395 | Q181: 6347.029467 | R181: 黄冈市 | S181: 77528.14589 | T181: 0.0001 | U181: 7.75 | V181: 黄冈市 | W181: 17453 | X181: 77528.14589 | Y181: 4.442110003
A182: 咸宁市 | B182: nan | C182: nan | D182: 90.944 | E182: 16.5875915 | F182: 814.36212 | G182: 0.183204 | H182: nan | I182: 1074.57 | J182: 64.778 | K182: 198.03609 | L182: 1.92279 | M182: 35.019201 | N182: 51773.30633 | O182: 6219.40776 | P182: 6118.988724 | Q182: 6043.07633 | R182: 咸宁市 | S182: 70154.77915 | T182: 0.0001 | U182: 7.02 | V182: 咸宁市 | W182: 10019 | X182: 70154.77915 | Y182: 7.002173784
A183: 随州市 | B183: nan | C183: nan | D183: 62.4022 | E183: 8.6639965 | F183: 472.866768 | G183: 0.12222 | H183: nan | I183: 1113.52125 | J183: 60.515 | K183: 146.03355 | L183: 0.0321 | M183: 84.214821 | N183: 31907.34449 | O183: 3506.937457 | P183: 3733.670606 | Q183: 4009.499575 | R183: 随州市 | S183: 43157.45213 | T183: 0.0001 | U183: 4.32 | V183: 随州市 | W183: 9616 | X183: 43157.45213 | Y183: 4.488087784
A184: 恩施土家族苗族自治州 | B184: nan | C184: nan | D184: 187.2878 | E184: 0 | F184: 940.071528 | G184: 0 | H184: nan | I184: 408.8177629 | J184: 151.102176 | K184: 441.314625 | L184: 0.2405807652 | M184: 22.613349 | N184: 57272.94389 | O184: 6410.313655 | P184: 6627.101794 | Q184: 5995.224573 | R184: 恩施土家族苗族自治州 | S184: 76305.58391 | T184: 0.0001 | U184: 7.63 | V184: 恩施土家族苗族自治州 | W184: 24111 | X184: 76305.58391 | Y184: 3.164762304
A185: 长沙市 | B185: nan | C185: nan | D185: 359.3545119 | E185: 55.07367238 | F185: 174.2712786 | G185: 2.472241192 | H185: nan | I185: 489.1276996 | J185: 444.3518961 | K185: 85.75885372 | L185: 9.186567461 | M185: 111.617019 | N185: 164842.5886 | O185: 38258.10682 | P185: 18860.38701 | Q185: 19570.28279 | R185: 长沙市 | S185: 241531.3653 | T185: 0.0001 | U185: 24.15 | V185: 长沙市 | W185: 11816 | X185: 241531.3653 | Y185: 20.4410431
A186: 株洲市 | B186: nan | C186: nan | D186: 123.7082 | E186: 34.474133 | F186: 1277.991 | G186: 0.523656 | H186: nan | I186: 485.3925 | J186: 67.326 | K186: 177.99255 | L186: 0.11556 | M186: 36.991779 | N186: 70911.10756 | O186: 21290.39195 | P186: 8298.164937 | Q186: 7773.071135 | R186: 株洲市 | S186: 108272.7356 | T186: 0.0001 | U186: 10.83 | V186: 株洲市 | W186: 11248 | X186: 108272.7356 | Y186: 9.625954444
A187: 湘潭市 | B187: nan | C187: nan | D187: 78.5204 | E187: 14.496282 | F187: 904.41252 | G187: 0.643104 | H187: nan | I187: 443.76375 | J187: 14.3815 | K187: 103.32774 | L187: 0.01926 | M187: 28.388487 | N187: 48512.29564 | O187: 15600.3359 | P187: 5690.940654 | Q187: 4956.224457 | R187: 湘潭市 | S187: 74759.79665 | T187: 0.0001 | U187: 7.48 | V187: 湘潭市 | W187: 5005 | X187: 74759.79665 | Y187: 14.93702231
A188: 衡阳市 | B188: nan | C188: nan | D188: 85.12722551 | E188: 13.04636167 | F188: 41.28299478 | G188: 0.5856473942 | H188: nan | I188: 208.0512637 | J188: 189.0058028 | K188: 36.47766812 | L188: 3.907521433 | M188: 106.59051 | N188: 66008.01281 | O188: 6927.174809 | P188: 7809.960022 | Q188: 9588.477762 | R188: 衡阳市 | S188: 90333.6254 | T188: 0.0001 | U188: 9.03 | V188: 衡阳市 | W188: 15300 | X188: 90333.6254 | Y188: 5.904158523
A189: 邵阳市 | B189: nan | C189: nan | D189: 153.2244 | E189: 51.5553255 | F189: 1375.772904 | G189: 0.19656 | H189: nan | I189: 945.34875 | J189: 146.657 | K189: 315.60705 | L189: 0.06741 | M189: 77.061255 | N189: 89481.7787 | O189: 23582.30761 | P189: 10387.70906 | Q189: 11212.51865 | R189: 邵阳市 | S189: 134664.314 | T189: 0.0001 | U189: 13.47 | V189: 邵阳市 | W189: 20822 | X189: 134664.314 | Y189: 6.467405342
A190: 岳阳市 | B190: nan | C190: nan | D190: 146.4848 | E190: 43.1381295 | F190: 1505.666448 | G190: 0.468468 | H190: nan | I190: 760.7925 | J190: 72.5445 | K190: 230.80599 | L190: 0.0321 | M190: 65.748639 | N190: 69247.79982 | O190: 23787.71796 | P190: 8001.445748 | Q190: 7329.9015 | R190: 岳阳市 | S190: 108366.865 | T190: 0.0001 | U190: 10.84 | V190: 岳阳市 | W190: 14858 | X190: 108366.865 | Y190: 7.293502829
A191: 常德市 | B191: nan | C191: nan | D191: 83.37725961 | E191: 12.77816676 | F191: 40.43433757 | G191: 0.5736082027 | H191: nan | I191: 211.7664649 | J191: 192.3809064 | K191: 37.12905505 | L191: 3.977298601 | M191: 224.541168 | N191: 50573.46 | O191: 6381.163046 | P191: 5811.376292 | Q191: 6717.809915 | R191: 常德市 | S191: 69483.80925 | T191: 0.0001 | U191: 6.95 | V191: 常德市 | W191: 18176 | X191: 69483.80925 | Y191: 3.822832815
A192: 张家界市 | B192: nan | C192: nan | D192: 22.28751603 | E192: 3.415722679 | F192: 10.80847405 | G192: 0.1533308012 | H192: nan | I192: 68.20847918 | J192: 61.96452803 | K192: 11.95900578 | L192: 1.281059723 | M192: 5.489946 | N192: 13697.05813 | O192: 1744.854528 | P192: 1601.705337 | Q192: 1958.300827 | R192: 张家界市 | S192: 19001.91882 | T192: 0.0001 | U192: 1.90 | V192: 张家界市 | W192: 9534 | X192: 19001.91882 | Y192: 1.993068892
A193: 益阳市 | B193: nan | C193: nan | D193: 150.22 | E193: 33.9155845 | F193: 1043.581968 | G193: 0.382284 | H193: nan | I193: 824.7975 | J193: 51.4745 | K193: 176.2515 | L193: 0.0642 | M193: 90.976248 | N193: 53563.63174 | O193: 17382.90751 | P193: 6087.560035 | Q193: 5595.24054 | R193: 益阳市 | S193: 82629.33983 | T193: 0.0001 | U193: 8.26 | V193: 益阳市 | W193: 12320 | X193: 82629.33983 | Y193: 6.706926934
A194: 郴州市 | B194: nan | C194: nan | D194: 179.7768 | E194: 22.8225515 | F194: 1127.953728 | G194: 0.224028 | H194: nan | I194: 1360.23375 | J194: 144.599 | K194: 207.97677 | L194: 0.09309 | M194: 49.19562 | N194: 93713.41118 | O194: 18559.17026 | P194: 11075.45947 | Q194: 12746.7043 | R194: 郴州市 | S194: 136094.7452 | T194: 0.0001 | U194: 13.61 | V194: 郴州市 | W194: 19342 | X194: 136094.7452 | Y194: 7.036229201
A195: 永州市 | B195: nan | C195: nan | D195: 61.98866716 | E195: 9.50021061 | F195: 30.06180229 | G195: 0.426461701 | H195: nan | I195: 227.8065502 | J195: 206.9526477 | K195: 39.94136629 | L195: 4.278555974 | M195: 56.658144 | N195: 36297.15202 | O195: 4709.295999 | P195: 4201.182906 | Q195: 5083.026311 | R195: 永州市 | S195: 50290.65724 | T195: 0.0001 | U195: 5.03 | V195: 永州市 | W195: 22259 | X195: 50290.65724 | Y195: 2.259340368
A196: 怀化市 | B196: nan | C196: nan | D196: 122.7744 | E196: 35.643188 | F196: 918.951264 | G196: 0.157752 | H196: nan | I196: 661.53375 | J196: 103.7575 | K196: 234.43119 | L196: 0.04815 | M196: 29.885745 | N196: 62346.89673 | O196: 15689.41522 | P196: 7199.112562 | Q196: 7529.949648 | R196: 怀化市 | S196: =SUM(N196:Q196) -> 92765.37416 | T196: 0.0001 | U196: =S196*T196 -> 9.28 | V196: 怀化市 | W196: 27573 | X196: 92765.37416 | Y196: =X196/W196 -> 3.364355499
A197: 娄底市 | B197: nan | C197: nan | D197: 69.7914 | E197: 34.6170175 | F197: 925.245288 | G197: 0.219996 | H197: nan | I197: 908.37375 | J197: 82.614 | K197: 212.2173 | L197: 0.0321 | M197: 32.476239 | N197: 78075.18426 | O197: 17567.64701 | P197: 8979.521506 | Q197: 9572.363361 | R197: 娄底市 | S197: 114194.7161 | T197: 0.0001 | U197: 11.42 | V197: 娄底市 | W197: 8110 | X197: 114194.7161 | Y197: 14.08072949
A198: 湘西州 | B198: nan | C198: nan | D198: 64.0262 | E198: 28.9535955 | F198: 419.10264 | G198: 0.072324 | H198: nan | I198: 121.635 | J198: 22.2215 | K198: 139.49865 | L198: 0.07383 | M198: 13.380258 | N198: 31491.24789 | O198: 7435.320435 | P198: 3526.803717 | Q198: 3507.768663 | R198: 湘西州 | S198: 45961.1407 | T198: 0.0001 | U198: 4.60 | V198: 湘西州 | W198: 15470 | X198: 45961.1407 | Y198: 2.970985178
A199: 广州 | B199: 0 | C199: 0 | D199: 1487.9088 | E199: 110.4497185 | F199: 5870.340432 | G199: 4.288603514 | H199: 0 | I199: 5746.10625 | J199: 511.8785 | K199: 1674.048108 | L199: 11.14421277 | M199: 213.311733 | N199: 1980349.136 | O199: 82207.01811 | P199: 247929.3147 | Q199: 258644.3613 | R199: 广州 | S199: 2569129.831 | T199: 0.0001 | U199: 256.91 | V199: 广州 | W199: 7249 | X199: 2569129.831 | Y199: 354.4116196
A200: 深圳 | B200: 0 | C200: 0 | D200: 1340.9774 | E200: 77.4044305 | F200: 9014.744145 | G200: 3.151842792 | H200: 0 | I200: 6738.12 | J200: 425.978322 | K200: 1743.815166 | L200: 4.065827837 | M200: 207.370233 | N200: 1391359.589 | O200: 76207.1181 | P200: 172311.2286 | Q200: 164177.0042 | R200: 深圳 | S200: 1804054.94 | T200: 0.0001 | U200: 180.41 | V200: 深圳 | W200: 1998 | X200: 1804054.94 | Y200: 902.9304004
... 143 more rows

Sheet 00-20CO2
A1: 2000-2020CO2
B2: Year | C2: Large passenger car | D2: Medium passenger car | E2: Small passenger car | F2: Mini passenger car | G2: Heavy truck | H2: Medium truck | I2: Light truck | J2: Midget truck | K2: Other cars | L2: Hybrid electric vehicle | M2: ALL
A3: 中国 | B3: 2000 | C3: 16474.72468 | D3: 12344.22704 | E3: 60156.88104 | F3: 11818.48949 | G3: 51982.01474 | H3: 35777.19073 | I3: 56859.43588 | J3: 8914.889997 | K3: 33501.206 | M3: =SUM(C3:K3) -> 287829.0596
A4: 中国 | B4: 2001 | C4: 19180.79176 | D4: 14371.83642 | E4: 70037.99032 | F4: 13759.74349 | G4: 55532.04847 | H4: 38220.54031 | I4: 60742.56577 | J4: 9523.719038 | K4: 36932.364 | M4: =SUM(C4:K4) -> 318301.5996
A5: 中国 | B5: 2002 | C5: 23202.552 | D5: 17385.272 | E5: 84723.3072 | F5: 16644.8376 | G5: 58941.3 | H5: 40566.995 | I5: 64471.704 | J5: 10108.404 | K5: 33259.818 | M5: 349304.1898
A6: 中国 | B6: 2003 | C6: 23288.99288 | D6: 19236.18967 | E6: 109125.924 | F6: 19334.41096 | G6: 54375.73425 | H6: 45206.2387 | I6: 69873.55596 | J6: 9817.21128 | K6: 43631.39826 | M6: 393889.656
A7: 中国 | B7: 2004 | C7: 23994.35292 | D7: 20659.60882 | E7: 133981.0694 | F7: 20375.87029 | G7: 61175.76675 | H7: 43395.7958 | I7: 76122.11532 | J7: 9483.345 | K7: 55867.01114 | M7: 445054.9354
B8: 2005 | C8: 27052.64478 | D8: 22406.66277 | E8: 169394.0836 | F8: 22099.85107 | G8: 67649.412 | H8: 46652.7306 | I8: 86291.00802 | J8: 10029.57612 | K8: 64897.42243 | M8: 516473.3914
B9: 2006 | C9: 29986.1015 | D9: 23779.53523 | E9: 211200.3289 | F9: 22947.17317 | G9: 73179.432 | H9: 49392.36155 | I9: 96099.87702 | J9: 10287.18162 | K9: 75800.48734 | M9: 592672.4783
B10: 2007 | C10: 32428.63462 | D10: 24823.12881 | E10: 250951.2469 | F10: 23408.34134 | G10: 78552.0648 | H10: 51949.47947 | I10: 104277.0557 | J10: 10448.01342 | K10: 83810.41274 | M10: 660648.3779
B11: 2008 | C11: 35861.63699 | D11: 25563.91367 | E11: 307482.6693 | F11: 24669.32713 | G11: 89200.3776 | H11: 55292.90571 | I11: 115695.4508 | J11: 10577.01318 | K11: 98642.58444 | M11: 762985.8788
B12: 2009 | C12: 38460.85177 | D12: 26725.37755 | E12: 380895.6802 | F12: 26200.6178 | G12: 103983.174 | H12: 58840.85851 | I12: 133441.0287 | J12: 10758.10716 | K12: 98368.19601 | M12: 877673.8917
B13: 2010 | C13: 42456.15347 | D13: 27837.33183 | E13: 467622.9854 | F13: 27867.12898 | G13: 130666.0044 | H13: 62666.02811 | I13: 152635.7846 | J13: 10931.64312 | K13: 103593.0613 | L13: 0.08944640988 | M13: 1026276.121
B14: 2011 | C14: 46849.75276 | D14: 28947.94998 | E14: 562508.5464 | F14: 29371.82688 | G14: 155960.5236 | H14: 65477.82171 | I14: 170970.7292 | J14: 11015.4261 | K14: 108875.8536 | L14: 0.1750749852 | M14: 1179978.43
B15: 2012 | C15: 51250.32227 | D15: 29979.28598 | E15: 669079.3793 | F15: 30363.23135 | G15: 175450.716 | H15: 67748.06003 | I15: 191052.7108 | J15: 11068.06956 | K15: 113391.5017 | L15: 0.3656940111 | M15: 1339383.277
B16: 2013 | C16: 53331.07981 | D16: 30527.48814 | E16: 792112.4252 | F16: 31072.94734 | G16: 187345.0302 | H16: 68339.37726 | I16: 212716.4677 | J16: 11104.89252 | K16: 104482.1705 | L16: 0.932369742 | M16: 1491031.879
B17: 2014 | C17: 56820.94201 | D17: 31519.10964 | E17: 928450.3588 | F17: 31705.40675 | G17: 206254.5276 | H17: 69836.57366 | I17: 234359.7833 | J17: 11126.7666 | K17: 106048.4096 | L17: 6.571038697 | M17: 1676121.878
B18: 2015 | C18: 61230.77087 | D18: 32354.75203 | E18: 1077905.741 | F18: 32297.86238 | G18: 219835.6507 | H18: 70843.35048 | I18: 252434.2329 | J18: 11153.40474 | K18: 107151.0981 | L18: 29.64194029 | M18: 1865206.863
B19: 2016 | C19: 65558.72078 | D19: 33066.21906 | E19: 1242061.895 | F19: 32663.46996 | G19: 238552.0485 | H19: 71866.21645 | I19: 272377.5552 | J19: 11167.37454 | K19: 108444.733 | L19: 54.40686962 | M19: 2075758.233
B20: 2017 | C20: 69517.02659 | D20: 33647.44397 | E20: 1417632.722 | F20: 33214.46036 | G20: 267807.0783 | H20: 72803.34327 | I20: 296710.1528 | J20: 11198.74092 | K20: 110203.9098 | L20: 85.11862169 | M20: 2312734.878
B21: 2018 | C21: 73112.59043 | D21: 34139.68568 | E21: 1581519.667 | F21: 33699.12646 | G21: 296674.6849 | H21: 73494.1459 | I21: 323222.8273 | J21: 11218.74042 | K21: 112409.7036 | L21: 145.6577517 | M21: 2539491.172
B22: 2019 | C22: 76191.00342 | D22: 34586.20872 | E22: 1736606.928 | F22: 33903.5297 | G22: 327761.1018 | H22: 74271.10558 | I22: 351132.243 | J22: 11221.22394 | K22: 114959.6641 | L22: 199.987992 | M22: 2760633.008
B23: 2020 | C23: 78197.04919 | D23: 34878.01086 | E23: 1877085.066 | F23: 33940.93295 | G23: 370647.2833 | H23: 75090.67713 | I23: 382250.7605 | J23: 11227.1223 | K23: 117655.281 | L23: 259.1881529 | M23: 2980972.184
C24: 1e-06 | D24: 1e-06 | E24: 1e-06 | F24: 1e-06 | G24: 1e-06 | H24: 1e-06 | I24: 1e-06 | J24: 1e-06 | K24: 1e-06 | L24: 1e-06
C25: =C23*C24 -> 0.07819704919 | D25: =D23*D24 -> 0.03487801086 | E25: 1.877085066 | F25: 0.03394093295 | G25: 0.3706472833 | H25: 0.07509067713 | I25: 0.3822507605 | J25: 0.0112271223 | K25: 0.117655281 | L25: 0.0002591881529

Sheet 00-20HC
A1: 2000-2020HC
B2: Year | C2: Large passenger car | D2: Medium passenger car | E2: Small passenger car | F2: Mini passenger car | G2: Heavy truck | H2: Medium truck | I2: Light truck | J2: Midget truck | K2: Other cars | L2: Hybrid electric vehicle | M2: ALL
A3: 中国 | B3: 2000 | C3: 61547.08467 | D3: 33608.90494 | E3: 66919.48344 | F3: 19687.58425 | G3: 294826.2949 | H3: 204064.9955 | I3: 317115.3773 | J3: 74455.01093 | K3: 60879.38752 | M3: =SUM(C3:K3) -> 1133104.123
A4: 中国 | B4: 2001 | C4: 71656.54279 | D4: 39129.35841 | E4: 77911.38856 | F4: 22921.38174 | G4: 314961.0146 | H4: 218001.3082 | I4: 338772.2963 | J4: 79539.80423 | K4: 67114.58985 | M4: =SUM(C4:K4) -> 1230007.685
A5: 中国 | B5: 2002 | C5: 86681.232 | D5: 47333.8632 | E5: 94247.5716 | F5: 27727.4556 | G5: 334297.26 | H5: 231384.9545 | I5: 359570.376 | J5: 84422.952 | K5: 60440.73007 | M5: 1326106.395
A6: 中国 | B6: 2003 | C6: 87004.16208 | D6: 52373.24849 | E6: 121393.4356 | F6: 32207.82529 | G6: 308402.7493 | H6: 257846.1502 | I6: 389697.4832 | J6: 81990.98064 | K6: 79288.27407 | M6: 1410204.309
A7: 中国 | B7: 2004 | C7: 89639.28072 | D7: 56248.70854 | E7: 149042.6997 | F7: 33942.7186 | G7: 346970.4808 | H7: 247519.7938 | I7: 424546.8311 | J7: 79202.61 | K7: 101523.1936 | M7: 1528636.317
B8: 2005 | C8: 101064.5975 | D8: 61005.31013 | E8: 170023.2402 | F8: 35302.84414 | G8: 383687.0424 | H8: 266096.6125 | I8: 466949.195 | J8: 82235.7024 | K8: 105256.5529 | M8: 1671621.097
B9: 2006 | C9: 112023.549 | D9: 64743.14969 | E9: 194791.4685 | F9: 35971.33444 | G9: 415051.6464 | H9: 281722.8471 | I9: 507850.328 | J9: 83666.1249 | K9: 114378.6611 | M9: 1810199.109
B10: 2007 | C10: 116598.0345 | D10: 65582.07298 | E10: 211154.4542 | F10: 36192.64882 | G10: 430729.5447 | H10: 289278.4692 | I10: 518600.4983 | J10: 83912.6259 | K10: 106842.4948 | M10: 1858890.843
B11: 2008 | C11: 123027.5152 | D11: 66177.5746 | E11: 234424.9319 | F11: 36797.79526 | G11: 461802.423 | H11: 299157.4291 | I11: 533611.7504 | J11: 84110.3391 | K11: 121196.6261 | M11: 1960306.385
B12: 2009 | C12: 127895.4412 | D12: 67111.25138 | E12: 264644.5118 | F12: 37532.66089 | G12: 504940.1521 | H12: 309640.712 | I12: 556941.0662 | J12: 84387.8952 | K12: 120931.0812 | M12: 2074024.772
B13: 2010 | C13: 131494.657 | D13: 67367.67187 | E13: 280987.597 | F13: 37846.70194 | G13: 536856.0376 | H13: 314364.4667 | I13: 565091.6032 | J13: 84461.58258 | K13: 119108.3825 | L13: 0.03164335304 | M13: 2137578.7
B14: 2011 | C14: 135452.6839 | D14: 67623.78425 | E14: 298868.0419 | F14: 38130.25054 | G14: 567111.3354 | H14: 317836.7894 | I14: 572877.0445 | J14: 84497.15877 | K14: 123257.614 | L14: 0.06193607516 | M14: 2205654.703
B15: 2012 | C15: 139416.9901 | D15: 67861.61388 | E15: 318950.4853 | F15: 38317.07299 | G15: 590423.9578 | H15: 320640.3381 | I15: 581404.3181 | J15: 84519.5124 | K15: 126804.3121 | L15: 0.1293711477 | M15: 2268338.601
B16: 2013 | C16: 143512.9169 | D16: 68133.42684 | E16: 342135.1045 | F16: 38450.81344 | G16: 621185.9566 | H16: 323315.7152 | I16: 590603.2501 | J16: 84535.14828 | K16: 130606.819 | L16: 0.329843366 | M16: 2342479.151
B17: 2014 | C17: 147178.1491 | D17: 68400.01855 | E17: 367826.9261 | F17: 38569.99549 | G17: 647554.7281 | H17: 325471.2266 | I17: 599793.5022 | J17: 84544.43652 | K17: 134603.6839 | L17: 2.324628765 | M17: 2413942.667
B18: 2015 | C18: 151809.5773 | D18: 68624.67618 | E18: 388855.8242 | F18: 38653.35608 | G18: 666493.229 | H18: 326920.6816 | I18: 607468.3313 | J18: 84555.74769 | K18: 137208.0748 | L18: 10.15598255 | M18: 2470589.498
B19: 2016 | C19: 156355.0122 | D19: 68815.94998 | E19: 411953.1724 | F19: 38704.79835 | G19: 692592.7284 | H19: 328393.3002 | I19: 615936.7269 | J19: 84561.67959 | K19: 140484.8765 | L19: 18.56236936 | M19: 2537798.245
B20: 2017 | C20: 160512.2278 | D20: 68972.20894 | E20: 436656.6054 | F20: 38782.32464 | G20: 733388.0589 | H20: 329742.4803 | I20: 626268.9104 | J20: 84574.99848 | K20: 144940.9045 | L20: 28.98738872 | M20: 2623838.719
B21: 2018 | C21: 164288.4733 | D21: 69104.54527 | E21: 459716.0751 | F21: 38850.51886 | G21: 773643.1385 | H21: 330737.0278 | I21: 637526.8048 | J21: 84583.49073 | K21: 150528.2219 | L21: 49.5372291 | M21: 2708978.296
B22: 2019 | C22: 167521.5804 | D22: 69224.59041 | E22: 481537.3982 | F22: 38879.27912 | G22: 816992.2876 | H22: 331855.6155 | I22: 649377.7878 | J22: 84584.54529 | K22: 156987.3198 | L22: 67.97947898 | M22: 2796960.404
B23: 2020 | C23: 169628.4325 | D23: 69303.03973 | E23: 501303.1664 | F23: 38884.54189 | G23: 876795.8825 | H23: 333035.5514 | I23: 662591.4297 | J23: 84587.04987 | K23: 163815.3682 | L23: 88.07480999 | M23: 2899944.462
C24: 1e-06 | D24: 1e-06 | E24: 1e-06 | F24: 1e-06 | G24: 1e-06 | H24: 1e-06 | I24: 1e-06 | J24: 1e-06 | K24: 1e-06 | L24: 1e-06
C25: =C23*C24 -> 0.1696284325 | D25: =D23*D24 -> 0.06930303973 | E25: 0.5013031664 | F25: 0.03888454189 | G25: 0.8767958825 | H25: 0.3330355514 | I25: 0.6625914297 | J25: 0.08458704987 | K25: 0.1638153682 | L25: 8.807480999e-05

Sheet 00-20NOx
A1: 2000-2020NOx
B2: Year | C2: Large passenger car | D2: Medium passenger car | E2: Small passenger car | F2: Mini passenger car | G2: Heavy truck | H2: Medium truck | I2: Light truck | J2: Midget truck | K2: Other cars | L2: Hybrid electric vehicle | M2: ALL
A3: 中国 | B3: 2000 | C3: 91325.92665 | D3: 68428.94158 | E3: 41282.15494 | F3: 12145.13116 | G3: 569546.3389 | H3: 391996.503 | I3: 191375.8865 | J3: 44932.83752 | K3: 34932.92984 | M3: =SUM(C3:K3) -> 1445966.65
A4: 中国 | B4: 2001 | C4: 106326.7287 | D4: 79668.78378 | E4: 48062.98329 | F4: 14140.03791 | G4: 608442.6519 | H4: 418767.3162 | I4: 204445.6157 | J4: 48001.45827 | K4: 38510.72347 | M4: =SUM(C4:K4) -> 1566366.299
A5: 中国 | B5: 2002 | C5: 128620.9392 | D5: 96373.4512 | E5: 58140.6588 | F5: 17104.8708 | G5: 645796.47 | H5: 444476.4905 | I5: 216997.044 | J5: 50948.388 | K5: 34681.22576 | M5: 1693139.538
A6: 中国 | B6: 2003 | C6: 129100.1152 | D6: 106633.8213 | E6: 74886.74989 | F6: 19868.7791 | G6: 595773.3751 | H6: 495306.8455 | I6: 235178.4451 | J6: 49480.71816 | K6: 45496.05092 | M6: 1751724.9
A7: 中国 | B7: 2004 | C7: 133010.2054 | D7: 114524.3976 | E7: 91943.38487 | F7: 20939.02249 | G7: 670278.6368 | H7: 475470.54 | I7: 256209.67 | J7: 47797.965 | K7: 58254.57091 | M7: 1868428.393
B8: 2005 | C8: 147793.8729 | D8: 119340.3331 | E8: 113592.0955 | F8: 22342.46413 | G8: 705761.5414 | H8: 493322.2298 | I8: 287982.6631 | J8: 50070.72564 | K8: 63794.85027 | M8: 2004000.776
B9: 2006 | C9: 161974.092 | D9: 123124.7985 | E9: 139149.1209 | F9: 23032.24393 | G9: 736072.3114 | H9: 508338.5089 | I9: 318630.7519 | J9: 51142.57164 | K9: 70484.02793 | M9: 2131948.427
B10: 2007 | C10: 169975.4936 | D10: 124190.8833 | E10: 147716.1291 | F10: 23148.11533 | G10: 755907.0528 | H10: 517778.9033 | I10: 328041.5567 | J10: 51358.36104 | K10: 75098.34035 | M10: 2193214.835
B11: 2008 | C11: 181221.5358 | D11: 124947.6334 | E11: 159899.6253 | F11: 23464.94593 | G11: 795218.6041 | H11: 530122.1989 | I11: 341182.5544 | J11: 51531.44112 | K11: 83642.77376 | M11: 2291231.313
B12: 2009 | C12: 189736.2049 | D12: 126134.1288 | E12: 175721.3949 | F12: 23849.69233 | G12: 849793.8848 | H12: 543220.5677 | I12: 361605.2669 | J12: 51774.41646 | K12: 83484.70563 | M12: 2405320.262
B13: 2010 | C13: 196409.392 | D13: 126603.8336 | E13: 182694.4445 | F13: 23983.68317 | G13: 901951.9175 | H13: 550697.785 | I13: 372649.4858 | J13: 51874.26504 | K13: 85123.16512 | L13: 0.09074990027 | M13: 2491987.972
B14: 2011 | C14: 203747.8391 | D14: 127072.974 | E14: 190323.4343 | F14: 24104.66391 | G14: 951396.1609 | H14: 556194.1143 | I14: 383198.9891 | J14: 51922.47183 | K14: 86779.78988 | L14: 0.1776263292 | M14: 2574740.437
B15: 2012 | C15: 211097.9283 | D15: 127508.6246 | E15: 198891.9435 | F15: 24184.37482 | G15: 989494.4464 | H15: 560631.8431 | I15: 394753.6971 | J15: 51952.76166 | K15: 88195.8468 | L15: 0.3710232203 | M15: 2646711.466
B16: 2013 | C16: 218692.051 | D16: 128006.525 | E16: 208784.0477 | F16: 24241.43741 | G16: 1039766.758 | H16: 564866.6896 | I16: 407218.522 | J16: 51973.94874 | K16: 89714.0381 | L16: 0.9459570398 | M16: 2733264.018
B17: 2014 | C17: 225487.6369 | D17: 128494.8612 | E17: 219745.8916 | F17: 24292.28842 | G17: 1082859.507 | H17: 568278.6422 | I17: 419671.5855 | J17: 51986.53458 | K17: 91309.82889 | L17: 6.666797552 | M17: 2812126.777
B18: 2015 | C18: 234074.6152 | D18: 128906.3836 | E18: 226129.6642 | F18: 24317.59432 | G18: 1113809.454 | H18: 570572.9803 | I18: 427482.6542 | J18: 51998.04654 | K18: 92391.71196 | L18: 16.51540605 | M18: 2869683.104
B19: 2016 | C19: 242502.1559 | D19: 129256.7543 | E19: 233141.3592 | F19: 24333.21072 | G19: 1156462.149 | H19: 572903.9839 | I19: 436101.3764 | J19: 52004.08374 | K19: 93660.93869 | L19: 27.08716859 | M19: 2940366.012
B20: 2017 | C20: 244053.2681 | D20: 129280.9545 | E20: 240640.6157 | F20: 24356.74549 | G20: 1188024.669 | H20: 573347.4948 | I20: 446616.9714 | J20: 52017.63906 | K20: 94395.0918 | L20: 40.19753713 | M20: 2992733.45
B21: 2018 | C21: 249311.1027 | D21: 129462.7624 | E21: 247640.8118 | F21: 24377.4473 | G21: 1237346.208 | H21: 574527.7606 | I21: 458074.7101 | J21: 52026.28206 | K21: 96032.78967 | L21: 66.04074867 | M21: 3068799.875
B22: 2019 | C22: 253812.7016 | D22: 129627.6842 | E22: 254265.1421 | F22: 24386.1781 | G22: 1290458.679 | H22: 575855.2294 | I22: 470136.0656 | J22: 52027.35534 | K22: 97926.01502 | L22: 89.23348187 | M22: 3148495.051
B23: 2020 | C23: 256746.1655 | D23: 129735.4604 | E23: 260265.4645 | F23: 24387.77572 | G23: 1363731.552 | H23: 577255.5024 | I23: 483584.2692 | J23: 52029.90438 | K23: 99927.38341 | L23: 114.5051084 | M23: 3247663.478
C24: 1e-06 | D24: 1e-06 | E24: 1e-06 | F24: 1e-06 | G24: 1e-06 | H24: 1e-06 | I24: 1e-06 | J24: 1e-06 | K24: 1e-06 | L24: 1e-06
C25: =C23*C24 -> 0.2567461655 | D25: =D23*D24 -> 0.1297354604 | E25: 0.2602654645 | F25: 0.02438777572 | G25: 1.363731552 | H25: 0.5772555024 | I25: 0.4835842692 | J25: 0.05202990438 | K25: 0.09992738341 | L25: 0.0001145051084
B27: Carbon emissions of different pollutants and different cars in 2020
B28: Material composition | C28: Large passenger car | D28: Medium passenger car | E28: Small passenger car | F28: Mini passenger car | G28: Heavy truck | H28: Medium truck | I28: Light truck | J28: Midget truck | K28: Other cars | L28: Hybrid electric vehicle | M28: Sum
B29: CO | C29: 1.468528592 | D29: 0.7576551439 | E29: 4.33905212 | F29: 0.3814382817 | G29: 6.945950257 | H29: 2.575082242 | I29: 6.086204805 | J29: 0.676262322 | K29: 1.468308434 | L29: 0.001171343717 | M29: 24.6984822
B30: CO2 | C30: 0.07819704919 | D30: 0.03487801086 | E30: 1.877085066 | F30: 0.03394093295 | G30: 0.3706472833 | H30: 0.07509067713 | I30: 0.3822507605 | J30: 0.0112271223 | K30: 0.117655281 | L30: 0.0002591881529 | M30: =SUM(C30:L30) -> 2.981231372
B31: NOx | C31: 0.2567461655 | D31: 0.1297354604 | E31: 0.2602654645 | F31: 0.02438777572 | G31: 1.363731552 | H31: 0.5772555024 | I31: 0.4835842692 | J31: 0.05202990438 | K31: 0.09992738341 | L31: 0.0001145051084 | M31: =SUM(C31:L31) -> 3.247777983
B32: HC | C32: 0.1696284325 | D32: 0.06930303973 | E32: 0.5013031664 | F32: 0.03888454189 | G32: 0.8767958825 | H32: 0.3330355514 | I32: 0.6625914297 | J32: 0.08458704987 | K32: 0.1638153682 | L32: 8.807480999e-05 | M32: =SUM(C32:L32) -> 2.900032537

Sheet New Energy Vehicle Ownership
A1: The total number of new energy vehicles in China（uint:） | L1: 2020保有量 | M1: 2021 | P1: 2020保有量 | Q1: 2021 | T1: 2020保有量 | U1: 2021
L2: 607 | M2: 390 | N2: =SUM(L2:M2) -> 997 | P2: 3256 | Q2: 3605 | R2: =SUM(P2:Q2) -> 6861 | T2: 6 | U2: 9 | V2: =SUM(T2:U2) -> 15
B3: Year | C3: Battery electric vehicles | D3: Hybrid electric vehicle | E3: Fuel Cell Electric Vehicle | F3: All | L3: 442 | M3: 331 | N3: =SUM(L3:M3) -> 773 | P3: 2676 | Q3: 2492 | R3: =SUM(P3:Q3) -> 5168 | T3: 14 | U3: 0 | V3: =SUM(T3:U3) -> 14
L4: 627 | M4: 329 | N4: 956 | P4: 4716 | Q4: 4705 | R4: 9421 | T4: 2 | U4: 14 | V4: 16
A5: China | B5: 2010 | C5: 181 | D5: 328 | E5: 0 | F5: =SUM(C5:E5) -> 509 | L5: 190 | M5: 96 | N5: 286 | P5: 822 | Q5: 984 | R5: 1806 | T5: 387 | U5: 468 | V5: 855
B6: 2011 | C6: 2703 | D6: 642 | E6: 0 | F6: =SUM(C6:E6) -> 3345 | L6: 528 | M6: 559 | N6: 1087 | P6: 3131 | Q6: 2684 | R6: 5815 | T6: 2 | U6: 0 | V6: 2
B7: 2012 | C7: 10013 | D7: 1341 | E7: 0 | F7: 11354 | L7: 1028 | M7: 889 | N7: 1917 | P7: 9025 | Q7: 7635 | R7: 16660 | T7: 3 | U7: 0 | V7: 3
B8: 2013 | C8: 22731 | D8: 3419 | E8: 0 | F8: 26150 | L8: 3605 | M8: 3912 | N8: 7517 | P8: 67928 | Q8: 21026 | R8: 88954 | T8: 532 | U8: 23 | V8: 555
B9: 2014 | C9: 57825 | D9: 24096 | E9: 0 | F9: 81921 | L9: 220 | M9: 201 | N9: 421 | P9: 1302 | Q9: 2016 | R9: 3318 | T9: 709 | U9: 113 | V9: 822
B10: 2015 | C10: 317063 | D10: 106725 | E10: 6 | F10: 423794 | L10: 350 | M10: 205 | N10: 555 | P10: 1104 | Q10: 2240 | R10: 3344 | T10: 1 | U10: 0 | V10: 1
B11: 2016 | C11: 658481 | D11: 197454 | E11: 33 | F11: 855968 | L11: 196 | M11: 81 | N11: 277 | P11: 1015 | Q11: 1172 | R11: 2187 | T11: 2 | U11: 0 | V11: 2
B12: 2017 | C12: 1314462 | D12: 308780 | E12: 1131 | F12: 1624373 | L12: 915 | M12: 349 | N12: 1264 | P12: 3452 | Q12: 2865 | R12: 6317 | T12: 1 | U12: 0 | V12: 1
B13: 2018 | C13: 2208238 | D13: 529746 | E13: 1998 | F13: 2739982 | L13: 414 | M13: 383 | N13: 797 | P13: 2818 | Q13: 3028 | R13: 5846 | T13: 1 | U13: 0 | V13: 1
B14: 2019 | C14: 3007497 | D14: 727564 | E14: 5188 | F14: 3740249 | L14: 235 | M14: 0 | N14: 235 | P14: 382 | Q14: 0 | R14: 382 | T14: 1 | U14: 0 | V14: 1
B15: 2020 | C15: 4026782 | D15: 943983 | E15: 6686 | F15: 4977451 | L15: 400 | M15: 295 | N15: 695 | P15: 4486 | Q15: 4096 | R15: 8582 | T15: 1 | U15: 0 | V15: 1
C16: 6530108 | D16: 1465053 | E16: 8526 | F16: 8003687 | L16: 324 | M16: 239 | N16: 563 | P16: 1195 | Q16: 1391 | R16: 2586 | T16: 1292 | U16: 4 | V16: 1296
A17: Beijing | B17: 2010 | C17: 3 | D17: 5 | E17: 0 | F17: 8 | L17: 1679 | M17: 712 | N17: 2391 | P17: 38932 | Q17: 6108 | R17: 45040 | T17: 2 | U17: 0 | V17: 2
B18: 2011 | C18: 178 | D18: 5 | E18: 0 | F18: 183 | L18: 435 | M18: 173 | N18: 608 | P18: 2300 | Q18: 2789 | R18: 5089 | T18: 29 | U18: 0 | V18: 29
B19: 2012 | C19: 1705 | D19: 6 | E19: 0 | F19: 1711 | L19: 12056 | M19: 8917 | N19: 20973 | P19: 403567 | Q19: 122292 | R19: 525859 | T19: 1 | U19: 0 | V19: 1
B20: 2013 | C20: 4267 | D20: 6 | E20: 0 | F20: 4273 | L20: 2657 | M20: 2552 | N20: 5209 | P20: 30964 | Q20: 15013 | R20: 45977 | T20: 11 | U20: 0 | V20: 11
B21: 2014 | C21: 10591 | D21: 129 | E21: 0 | F21: 10720 | L21: 178 | M21: 303 | N21: 481 | P21: 4114 | Q21: 2454 | R21: 6568 | T21: 2 | U21: 0 | V21: 2
B22: 2015 | C22: 32812 | D22: 389 | E22: 0 | F22: 33201 | L22: 149 | M22: 99 | N22: 248 | P22: 7503 | Q22: 1405 | R22: 8908 | T22: 1 | U22: 3 | V22: 4
B23: 2016 | C23: 99711 | D23: 741 | E23: 5 | F23: 100457 | L23: 357 | M23: 199 | N23: 556 | P23: 4680 | Q23: 4141 | R23: 8821 | T23: 0 | U23: 0 | V23: 0
B24: 2017 | C24: 161336 | D24: 1456 | E24: 35 | F24: 162827 | L24: 220 | M24: 203 | N24: 423 | P24: 10231 | Q24: 2820 | R24: 13051 | T24: 0 | U24: 1 | V24: 1
B25: 2018 | C25: 236531 | D25: 2674 | E25: 128 | F25: 239333 | L25: 1716 | M25: 1613 | N25: 3329 | P25: 23450 | Q25: 12909 | R25: 36359 | T25: 0 | U25: 98 | V25: 98
A26: Tianjin | B26: 2010 | C26: 5 | D26: 1 | E26: 0 | F26: 6 | L26: 253 | M26: 291 | N26: 544 | P26: 3095 | Q26: 1600 | R26: 4695 | T26: 0 | U26: 20 | V26: 20
B27: 2011 | C27: 182 | D27: 1 | E27: 0 | F27: 183 | L27: 4431 | M27: 2662 | N27: 7093 | P27: 45341 | Q27: 23036 | R27: 68377 | T27: 305 | U27: 140 | V27: 445
B28: 2012 | C28: 280 | D28: 1 | E28: 0 | F28: 281 | L28: 504 | M28: 404 | N28: 908 | P28: 1 | Q28: 0 | R28: 1 | T28: 95 | U28: 0 | V28: 95
B29: 2013 | C29: 285 | D29: 1 | E29: 0 | F29: 286 | L29: 121 | M29: 39 | N29: 160 | P29: 6536 | Q29: 3862 | R29: 10398 | T29: 223 | U29: 0 | V29: 223
B30: 2014 | C30: 1148 | D30: 725 | E30: 0 | F30: 1873 | L30: 144 | M30: 52 | N30: 196 | P30: 833 | Q30: 591 | R30: 1424 | T30: 0 | U30: 2 | V30: 2
B31: 2015 | C31: 10332 | D31: 3135 | E31: 0 | F31: 13467 | L31: 19 | M31: 0 | N31: 19 | P31: 794 | Q31: 494 | R31: 1288 | T31: 30 | U31: 0 | V31: 30
B32: 2016 | C32: 27576 | D32: 7603 | E32: 0 | F32: 35179 | L32: 28 | M32: 25 | N32: 53 | P32: 51 | Q32: 7 | R32: 58 | T32: 7 | U32: 0 | V32: 7
B33: 2017 | C33: 61062 | D33: 12081 | E33: 0 | F33: 73143 | L33: 34 | M33: 21 | N33: 55 | P33: 200 | Q33: 117 | R33: 317 | T33: 166 | U33: 40 | V33: 206
B34: 2018 | C34: 104968 | D34: 20389 | E34: 0 | F34: 125357 | L34: 148 | M34: 129 | N34: 277 | P34: 225 | Q34: 245 | R34: 470 | T34: 2 | U34: 11 | V34: 13
A35: Hebei | B35: 2010 | C35: 1 | D35: 4 | E35: 0 | F35: 5 | L35: 2508 | M35: 1954 | N35: 4462 | P35: 642 | Q35: 335 | R35: 977 | T35: 0 | U35: 42 | V35: 42
B36: 2011 | C36: 49 | D36: 3 | E36: 0 | F36: 52 | L36: 23 | M36: 42 | N36: 65 | P36: 11655 | Q36: 3728 | R36: 15383 | T36: 15 | U36: 10 | V36: 25
B37: 2012 | C37: 52 | D37: 34 | E37: 0 | F37: 86 | L37: 33 | M37: 23 | N37: 56 | P37: 647 | Q37: 323 | R37: 970 | T37: 0 | U37: 1 | V37: 1
B38: 2013 | C38: 68 | D38: 34 | E38: 0 | F38: 102 | L38: 120 | M38: 157 | N38: 277 | P38: 461 | Q38: 190 | R38: 651 | T38: 5 | U38: 0 | V38: 5
B39: 2014 | C39: 273 | D39: 784 | E39: 0 | F39: 1057 | L39: 302 | M39: 191 | N39: 493 | P39: 844 | Q39: 712 | R39: 1556 | T39: 0 | U39: 11 | V39: 11
B40: 2015 | C40: 19058 | D40: 1342 | E40: 0 | F40: 20400 | L40: 269 | M40: 80 | N40: 349 | P40: 1083 | Q40: 919 | R40: 2002 | T40: 13 | U40: 0 | V40: 13
B41: 2016 | C41: 24724 | D41: 1752 | E41: 0 | F41: 26476 | L41: 87 | M41: 139 | N41: 226 | P41: 5 | Q41: 0 | R41: 5 | T41: 328 | U41: 59 | V41: 387
B42: 2017 | C42: 42037 | D42: 2715 | E42: 0 | F42: 44752 | L42: 122 | M42: 148 | N42: 270 | P42: 843 | Q42: 617 | R42: 1460 | T42: 9 | U42: 1 | V42: 10
B43: 2018 | C43: 77369 | D43: 7639 | E43: 75 | F43: 85083 | L43: 326 | M43: 280 | N43: 606 | P43: 1045 | Q43: 357 | R43: 1402 | T43: 0 | U43: 1 | V43: 1
A44: Shanxi | B44: 2010 | C44: 0 | D44: 4 | E44: 0 | F44: 4 | L44: 6460 | M44: 5767 | N44: 12227 | P44: 371 | Q44: 270 | R44: 641 | T44: 11 | U44: 0 | V44: 11
B45: 2011 | C45: 4 | D45: 4 | E45: 0 | F45: 8 | L45: 4865 | M45: 5801 | N45: 10666 | P45: 1566 | Q45: 3063 | R45: 4629 | T45: 19 | U45: 21 | V45: 40
B46: 2012 | C46: 9 | D46: 4 | E46: 0 | F46: 13 | L46: 60291 | M46: 20919 | N46: 81210 | P46: 42964 | Q46: 27028 | R46: 69992 | T46: 40 | U46: 0 | V46: 40
B47: 2013 | C47: 18 | D47: 4 | E47: 0 | F47: 22 | L47: 309 | M47: 469 | N47: 778 | P47: 22763 | Q47: 27965 | R47: 50728 | T47: 0 | U47: 18 | V47: 18
B48: 2014 | C48: 218 | D48: 19 | E48: 0 | F48: 237 | L48: 3043 | M48: 2196 | N48: 5239 | P48: 187538 | Q48: 100993 | R48: 288531 | T48: 0 | U48: 30 | V48: 30
B49: 2015 | C49: 2040 | D49: 111 | E49: 0 | F49: 2151 | L49: 999 | M49: 891 | N49: 1890 | P49: 2044 | Q49: 3200 | R49: 5244 | T49: 1 | U49: 50 | V49: 51
B50: 2016 | C50: 29965 | D50: 2587 | E50: 0 | F50: 32552 | L50: 305 | M50: 284 | N50: 589 | P50: 8895 | Q50: 9725 | R50: 18620 | T50: 0 | U50: 0 | V50: 0
B51: 2017 | C51: 37500 | D51: 3949 | E51: 0 | F51: 41449 | L51: 364 | M51: 508 | N51: 872 | P51: 6123 | Q51: 6662 | R51: 12785 | T51: 10 | U51: 0 | V51: 10
B52: 2018 | C52: 51345 | D52: 6368 | E52: 40 | F52: 57753 | L52: 226 | M52: 232 | N52: 458 | P52: 1556 | Q52: 2524 | R52: 4080 | T52: 40 | U52: 3 | V52: 43
A53: Inner Mongolia | B53: 2010 | C53: 1 | D53: 2 | E53: 0 | F53: 3 | L53: 557 | M53: 545 | N53: 1102 | P53: 2062 | Q53: 2644 | R53: 4706 | T53: 6 | U53: 16 | V53: 22
B54: 2011 | C54: 3 | D54: 1 | E54: 0 | F54: 4 | L54: 382 | M54: 1092 | N54: 1474 | P54: 3543 | Q54: 2119 | R54: 5662 | T54: 31 | U54: 0 | V54: 31
B55: 2012 | C55: 6 | D55: 1 | E55: 0 | F55: 7 | L55: 69 | M55: 243 | N55: 312 | P55: 3811 | Q55: 3413 | R55: 7224 | T55: 30 | U55: 274 | V55: 304
B56: 2013 | C56: 20 | D56: 1 | E56: 0 | F56: 21 | L56: 129 | M56: 220 | N56: 349 | P56: 5082 | Q56: 5829 | R56: 10911 | T56: 140 | U56: 1 | V56: 141
B57: 2014 | C57: 22 | D57: 24 | E57: 0 | F57: 46 | L57: 147448 | M57: 42190 | N57: 189638 | P57: 940 | Q57: 557 | R57: 1497 | T57: 50 | U57: 50 | V57: 100
B58: 2015 | C58: 175 | D58: 330 | E58: 0 | F58: 505 | L58: 81 | M58: 0 | N58: 81 | P58: 1658 | Q58: 1277 | R58: 2935 | T58: 123 | U58: 0 | V58: 123
B59: 2016 | C59: 3599 | D59: 595 | E59: 0 | F59: 4194 | L59: 152 | M59: 198 | N59: 350 | P59: 301416 | Q59: 116197 | R59: 417613 | T59: 2 | U59: 52 | V59: 54
B60: 2017 | C60: 6608 | D60: 1518 | E60: 0 | F60: 8126 | L60: 131 | M60: 267 | N60: 398 | P60: 2385 | Q60: 0 | R60: 2385 | T60: 5 | U60: 0 | V60: 5
B61: 2018 | C61: 9120 | D61: 2509 | E61: 0 | F61: 11629 | L61: 424 | M61: 477 | N61: 901 | P61: 921 | Q61: 1241 | R61: 2162 | T61: 3 | U61: 0 | V61: 3
A62: Liaoning | B62: 2010 | C62: 0 | D62: 8 | E62: 0 | F62: 8 | L62: 332 | M62: 551 | N62: 883 | P62: 1164 | Q62: 1809 | R62: 2973 | T62: 401 | U62: 2 | V62: 403
B63: 2011 | C63: 108 | D63: 8 | E63: 0 | F63: 116 | L63: 1579 | M63: 2034 | N63: 3613 | P63: 2042 | Q63: 2218 | R63: 4260 | T63: 1254 | U63: 118 | V63: 1372
B64: 2012 | C64: 146 | D64: 13 | E64: 0 | F64: 159 | L64: 896 | M64: 1047 | N64: 1943 | P64: 2721 | Q64: 4424 | R64: 7145 | T64: 220 | U64: 22 | V64: 242
B65: 2013 | C65: 172 | D65: 138 | E65: 0 | F65: 310 | L65: 183 | M65: 349 | N65: 532 | P65: 13027 | Q65: 10727 | R65: 23754 | T65: 0 | U65: 10 | V65: 10
B66: 2014 | C66: 528 | D66: 854 | E66: 0 | F66: 1382 | L66: 264 | M66: 277 | N66: 541 | P66: 8346 | Q66: 8267 | R66: 16613 | T66: 0 | U66: 9 | V66: 9
B67: 2015 | C67: 4797 | D67: 2816 | E67: 0 | F67: 7613 | L67: 41 | M67: 4 | N67: =SUM(L67:M67) -> 45 | P67: 1876 | Q67: 2315 | R67: =SUM(P67:Q67) -> 4191 | T67: 0 | U67: 3 | V67: =SUM(T67:U67) -> 3
B68: 2016 | C68: 7649 | D68: 4603 | E68: 0 | F68: 12252 | L68: 26 | M68: 93 | N68: 119 | P68: 2323 | Q68: 4019 | R68: 6342 | T68: 0 | U68: 7 | V68: 7
B69: 2017 | C69: 9863 | D69: 6898 | E69: 40 | F69: 16801 | L69: 155 | M69: 432 | N69: 587 | P69: 729 | Q69: 1316 | R69: 2045 | T69: 0 | U69: 2 | V69: 2
B70: 2018 | C70: 13942 | D70: 9684 | E70: 40 | F70: =SUM(C70:E70) -> 23666 | L70: 811 | M70: 1037 | N70: 1848 | P70: 841 | Q70: 1381 | R70: 2222 | T70: 1 | U70: 1 | V70: 2
A71: Jilin | B71: 2010 | C71: 0 | D71: 0 | E71: 0 | F71: 0 | L71: 140 | M71: 225 | N71: 365 | P71: 2490 | Q71: 2141 | R71: 4631 | T71: 100 | U71: 23 | V71: 123
B72: 2011 | C72: 0 | D72: 0 | E72: 0 | F72: 0 | L72: 79 | M72: 189 | N72: 268 | P72: 9513 | Q72: 9121 | R72: 18634 | T72: 3 | U72: 20 | V72: 23
B73: 2012 | C73: 2 | D73: 0 | E73: 0 | F73: 2 | L73: 41 | M73: 130 | N73: 171 | P73: 3316 | Q73: 3526 | R73: 6842 | T73: 0 | U73: 2 | V73: 2
B74: 2013 | C74: 3 | D74: 51 | E74: 0 | F74: 54 | L74: 784 | M74: 1136 | N74: 1920 | P74: 1618 | Q74: 2545 | R74: 4163 | T74: 0 | U74: 0 | V74: 0
B75: 2014 | C75: 3 | D75: 90 | E75: 0 | F75: 93 | L75: 3327 | M75: 5290 | N75: 8617 | P75: 2422 | Q75: 2134 | R75: 4556 | T75: 0 | U75: 2 | V75: 2
B76: 2015 | C76: 187 | D76: 522 | E76: 0 | F76: 709 | L76: 120 | M76: 481 | N76: 601 | P76: 81656 | Q76: 26048 | R76: 107704 | T76: 0 | U76: 31 | V76: 31
B77: 2016 | C77: 962 | D77: 1147 | E77: 0 | F77: 2109 | L77: 27 | M77: 0 | N77: 27 | P77: 23683 | Q77: 30057 | R77: 53740 | V77: =SUM(V2:V76) -> 8526
B78: 2017 | C78: 2534 | D78: 1845 | E78: 0 | F78: 4379 | L78: 215 | M78: 305 | N78: 520 | P78: 1941 | Q78: 2865 | R78: 4806
B79: 2018 | C79: 8822 | D79: 2770 | E79: 0 | F79: 11592 | L79: 211 | M79: 380 | N79: 591 | P79: 93 | Q79: 0 | R79: 93
A80: Heilongjiang | B80: 2010 | C80: 0 | D80: 0 | E80: 0 | F80: 0 | L80: 409 | M80: 224 | N80: 633 | P80: 2030 | Q80: 2150 | R80: 4180
B81: 2011 | C81: 8 | D81: 0 | E81: 0 | F81: 8 | L81: 446 | M81: 345 | N81: 791 | P81: 2694 | Q81: 3711 | R81: 6405
B82: 2012 | C82: 8 | D82: 0 | E82: 0 | F82: 8 | L82: 4358 | M82: 3950 | N82: 8308 | P82: 894 | Q82: 2067 | R82: 2961
B83: 2013 | C83: 12 | D83: 0 | E83: 0 | F83: 12 | L83: 365 | M83: 323 | N83: 688 | P83: 1342 | Q83: 1941 | R83: 3283
B84: 2014 | C84: 13 | D84: 45 | E84: 0 | F84: 58 | L84: 293 | M84: 320 | N84: 613 | P84: 21596 | Q84: 10891 | R84: 32487
B85: 2015 | C85: 282 | D85: 696 | E85: 0 | F85: 978 | L85: 323 | M85: 289 | N85: 612 | P85: 2059 | Q85: 2036 | R85: 4095
B86: 2016 | C86: 1157 | D86: 1187 | E86: 0 | F86: 2344 | L86: 396 | M86: 391 | N86: 787 | P86: 1460 | Q86: 1719 | R86: 3179
B87: 2017 | C87: 4650 | D87: 1762 | E87: 0 | F87: 6412 | L87: 17 | M87: 0 | N87: 17 | P87: 2781 | Q87: 2096 | R87: 4877
B88: 2018 | C88: 8601 | D88: 2687 | E88: 0 | F88: 11288 | L88: 330 | M88: 263 | N88: 593 | P88: 2819 | Q88: 3136 | R88: 5955
A89: Shanghai | B89: 2010 | C89: 1 | D89: 1 | E89: 0 | F89: 2 | L89: 1199 | M89: 966 | N89: 2165 | P89: 139 | Q89: 0 | R89: 139
B90: 2011 | C90: 24 | D90: 3 | E90: 0 | F90: 27 | L90: 44 | M90: 40 | N90: 84 | P90: 2166 | Q90: 1576 | R90: 3742
B91: 2012 | C91: 123 | D91: 3 | E91: 0 | F91: 126 | L91: 7572 | M91: 6335 | N91: 13907 | P91: 3837 | Q91: 4237 | R91: 8074
B92: 2013 | C92: 518 | D92: 3 | E92: 0 | F92: 521 | L92: 1 | M92: 0 | N92: 1 | P92: 347 | Q92: 1141 | R92: 1488
B93: 2014 | C93: 2858 | D93: 8905 | E93: 0 | F93: 11763 | L93: 1 | M93: 5 | N93: 6 | P93: 34530 | Q93: 35602 | R93: 70132
B94: 2015 | C94: 12975 | D94: 44573 | E94: 6 | F94: 57554 | L94: 2845 | M94: 1562 | N94: 4407 | P94: 2 | Q94: 0 | R94: 2
B95: 2016 | C95: 27347 | D95: 77519 | E95: 6 | F95: 104872 | L95: 440 | M95: 190 | N95: 630 | P95: 34 | Q95: 0 | R95: 34
B96: 2017 | C96: 54468 | D96: 118563 | E96: 596 | F96: 173627 | L96: 3391 | M96: 2411 | N96: 5802 | P96: 15 | Q96: 117 | R96: 132
B97: 2018 | C97: 82493 | D97: 171880 | E97: 640 | F97: 255013 | L97: 1417 | M97: 1506 | N97: 2923 | P97: 9912 | Q97: 12053 | R97: 21965
A98: Jiangsu | B98: 2010 | C98: 0 | D98: 6 | E98: 0 | F98: 6 | L98: 320 | M98: 265 | N98: 585 | P98: 3105 | Q98: 3577 | R98: 6682
B99: 2011 | C99: 37 | D99: 6 | E99: 0 | F99: 43 | L99: 1735 | M99: 2084 | N99: 3819 | P99: 36645 | Q99: 11053 | R99: 47698
B100: 2012 | C100: 160 | D100: 7 | E100: 0 | F100: 167 | L100: 1033 | M100: 953 | N100: 1986 | P100: 11561 | Q100: 8187 | R100: 19748
B101: 2013 | C101: 292 | D101: 7 | E101: 0 | F101: 299 | L101: 2116 | M101: 1182 | N101: 3298 | P101: 2076 | Q101: 675 | R101: 2751
B102: 2014 | C102: 4965 | D102: 1153 | E102: 0 | F102: 6118 | L102: 1399 | M102: 876 | N102: 2275 | P102: 12713 | Q102: 10689 | R102: 23402
B103: 2015 | C103: 25139 | D103: 4133 | E103: 0 | F103: 29272 | L103: 6 | M103: 0 | N103: 6 | P103: 4234 | Q103: 2256 | R103: 6490
B104: 2016 | C104: 34619 | D104: 6572 | E104: 0 | F104: 41191 | L104: 7587 | M104: 6691 | N104: 14278 | P104: 8712 | Q104: 8957 | R104: 17669
B105: 2017 | C105: 63415 | D105: 10100 | E105: 3 | F105: 73518 | L105: 1729 | M105: 2375 | N105: 4104 | P105: 2210 | Q105: 2444 | R105: 4654
B106: 2018 | C106: 99906 | D106: 15630 | E106: 29 | F106: 115565 | L106: 1397 | M106: 1200 | N106: 2597 | P106: 211 | Q106: 0 | R106: 211
A107: Zhejiang | B107: 2010 | C107: 91 | D107: 6 | E107: 0 | F107: 97 | L107: 356 | M107: 346 | N107: 702 | P107: 23767 | Q107: 17421 | R107: 41188
B108: 2011 | C108: 363 | D108: 6 | E108: 0 | F108: 369 | L108: 881 | M108: 1141 | N108: 2022 | P108: 15047 | Q108: 15854 | R108: 30901
B109: 2012 | C109: 1162 | D109: 37 | E109: 0 | F109: 1199 | L109: 477 | M109: 374 | N109: 851 | P109: 16757 | Q109: 5297 | R109: 22054
B110: 2013 | C110: 4937 | D110: 37 | E110: 0 | F110: 4974 | L110: 591 | M110: 644 | N110: 1235 | P110: 2791 | Q110: 1515 | R110: 4306
B111: 2014 | C111: 12621 | D111: 346 | E111: 0 | F111: 12967 | L111: 765 | M111: 729 | N111: 1494 | P111: 12143 | Q111: 6686 | R111: 18829
B112: 2015 | C112: 34687 | D112: 2379 | E112: 0 | F112: 37066 | L112: 1553 | M112: 2113 | N112: 3666 | P112: 1918 | Q112: 2265 | R112: 4183
B113: 2016 | C113: 55950 | D113: 5468 | E113: 0 | F113: 61418 | L113: 446 | M113: 670 | N113: 1116 | P113: 8934 | Q113: 9013 | R113: 17947
B114: 2017 | C114: 118433 | D114: 16667 | E114: 0 | F114: 135100 | L114: 1388 | M114: 1449 | N114: 2837 | P114: 11439 | Q114: 7539 | R114: 18978
B115: 2018 | C115: 187678 | D115: 40738 | E115: 4 | F115: 228420 | L115: 757 | M115: 801 | N115: 1558 | P115: 17264 | Q115: 23551 | R115: 40815
A116: Anhui | B116: 2010 | C116: 19 | D116: 3 | E116: 0 | F116: 22 | L116: 923 | M116: 1365 | N116: 2288 | P116: 3463 | Q116: 4850 | R116: 8313
B117: 2011 | C117: 1413 | D117: 3 | E117: 0 | F117: 1416 | L117: 205 | M117: 385 | N117: 590 | P117: 7236 | Q117: 9668 | R117: 16904
B118: 2012 | C118: 4013 | D118: 3 | E118: 0 | F118: 4016 | L118: 496 | M118: 898 | N118: 1394 | P118: 5607 | Q118: 5870 | R118: 11477
B119: 2013 | C119: 6748 | D119: 13 | E119: 0 | F119: 6761 | L119: 137 | M119: 123 | N119: 260 | P119: 7374 | Q119: 11403 | R119: 18777
B120: 2014 | C120: 9034 | D120: 165 | E120: 0 | F120: 9199 | L120: 972 | M120: 1389 | N120: 2361 | P120: 4358 | Q120: 2433 | R120: 6791
B121: 2015 | C121: 14981 | D121: 1397 | E121: 0 | F121: 16378 | L121: 717 | M121: 815 | N121: 1532 | P121: 14079 | Q121: 12271 | R121: 26350
B122: 2016 | C122: 29743 | D122: 4708 | E122: 0 | F122: 34451 | L122: 854 | M122: 1018 | N122: 1872 | P122: 8329 | Q122: 2187 | R122: 10516
B123: 2017 | C123: 53097 | D123: 6236 | E123: 0 | F123: 59333 | L123: 14509 | M123: 17186 | N123: 31695 | P123: 11150 | Q123: 10677 | R123: 21827
B124: 2018 | C124: 89623 | D124: 8214 | E124: 0 | F124: 97837 | L124: 436 | M124: 926 | N124: 1362 | P124: 3418 | Q124: 3010 | R124: 6428
A125: Fujian | B125: 2010 | C125: 2 | D125: 2 | E125: 0 | F125: 4 | L125: 581 | M125: 743 | N125: 1324 | P125: 9196 | Q125: 8033 | R125: 17229
B126: 2011 | C126: 47 | D126: 2 | E126: 0 | F126: 49 | L126: 313 | M126: 342 | N126: 655 | P126: 112197 | Q126: 63461 | R126: 175658
B127: 2012 | C127: 66 | D127: 4 | E127: 0 | F127: 70 | L127: 5 | M127: 4 | N127: 9 | P127: 5560 | Q127: 8378 | R127: 13938
B128: 2013 | C128: 94 | D128: 4 | E128: 0 | F128: 98 | L128: 3080 | M128: 2335 | N128: 5415 | P128: 10356 | Q128: 13708 | R128: 24064
B129: 2014 | C129: 344 | D129: 15 | E129: 0 | F129: 359 | L129: 46 | M129: 14 | N129: 60 | P129: 723 | Q129: 172 | R129: 895
B130: 2015 | C130: 5525 | D130: 1119 | E130: 0 | F130: 6644 | L130: 39 | M130: 8 | N130: 47 | P130: 102 | Q130: 1 | R130: 103
B131: 2016 | C131: 11861 | D131: 1666 | E131: 0 | F131: 13527 | L131: 42 | M131: 28 | N131: =SUM(L131:M131) -> 70 | P131: 6500 | Q131: 2517 | R131: =SUM(P131:Q131) -> 9017
B132: 2017 | C132: 34509 | D132: 2898 | E132: 0 | F132: 37407 | L132: 271 | M132: 112 | N132: 383 | P132: 381 | Q132: 34 | R132: 415
B133: 2018 | C133: 70727 | D133: 4827 | E133: 0 | F133: 75554 | L133: 301 | M133: 116 | N133: 417 | P133: 320 | Q133: 16 | R133: 336
A134: Jiangxi | B134: 2010 | C134: 0 | D134: 1 | E134: 0 | F134: =SUM(C134:E134) -> 1 | L134: 133 | M134: 30 | N134: 163 | P134: 514 | Q134: 71 | R134: 585
B135: 2011 | C135: 1 | D135: 1 | E135: 0 | F135: 2 | L135: 305 | M135: 103 | N135: 408 | P135: 566 | Q135: 76 | R135: 642
B136: 2012 | C136: 26 | D136: 1 | E136: 0 | F136: 27 | L136: 62 | M136: 0 | N136: 62 | P136: 641 | Q136: 104 | R136: 745
B137: 2013 | C137: 43 | D137: 1 | E137: 0 | F137: 44 | L137: 66 | M137: 48 | N137: 114 | P137: 149 | Q137: 66 | R137: 215
B138: 2014 | C138: 421 | D138: 81 | E138: 0 | F138: 502 | L138: 258 | M138: 101 | N138: 359 | P138: 1581 | Q138: 83 | R138: 1664
B139: 2015 | C139: 6412 | D139: 809 | E139: 0 | F139: 7221 | L139: 44 | M139: 7 | N139: 51 | P139: 143 | Q139: 0 | R139: 143
B140: 2016 | C140: 16150 | D140: 1114 | E140: 0 | F140: 17264 | L140: 57 | M140: 40 | N140: 97 | P140: 537 | Q140: 104 | R140: 641
B141: 2017 | C141: 34597 | D141: 1565 | E141: 0 | F141: 36162 | L141: 341 | M141: 227 | N141: 568 | P141: 1054 | Q141: 93 | R141: 1147
B142: 2018 | C142: 65679 | D142: 2586 | E142: 0 | F142: 68265 | L142: 603 | M142: 559 | N142: 1162 | P142: 244 | Q142: 5 | R142: 249
A143: Shandong | B143: 2010 | C143: 4 | D143: 3 | E143: 0 | F143: 7 | L143: 488 | M143: 444 | N143: 932 | P143: 1493 | Q143: 679 | R143: 2172
B144: 2011 | C144: 92 | D144: 3 | E144: 0 | F144: 95 | L144: 200 | M144: 183 | N144: 383 | P144: 1873 | Q144: 2525 | R144: 4398
B145: 2012 | C145: 537 | D145: 4 | E145: 0 | F145: 541 | L145: 229 | M145: 509 | N145: 738 | P145: 2528 | Q145: 2980 | R145: 5508
B146: 2013 | C146: 695 | D146: 24 | E146: 0 | F146: 719 | L146: 276 | M146: 325 | N146: 601 | P146: 3023 | Q146: 1439 | R146: 4462
B147: 2014 | C147: 1805 | D147: 812 | E147: 0 | F147: 2617 | L147: 303 | M147: 312 | N147: 615 | P147: 1304 | Q147: 1042 | R147: 2346
B148: 2015 | C148: 29929 | D148: 4188 | E148: 0 | F148: 34117 | L148: 262 | M148: 143 | N148: 405 | P148: 1787 | Q148: 2794 | R148: 4581
B149: 2016 | C149: 71030 | D149: 5898 | E149: 0 | F149: 76928 | L149: 6059 | M149: 7173 | N149: 13232 | P149: 2490 | Q149: 2538 | R149: 5028
B150: 2017 | C150: 134030 | D150: 9593 | E150: 0 | F150: 143623 | L150: 276 | M150: 313 | N150: 589 | P150: 6279 | Q150: 1918 | R150: 8197
B151: 2018 | C151: 220057 | D151: 15458 | E151: 0 | F151: 235515 | L151: 1080 | M151: 620 | N151: 1700 | P151: 584 | Q151: 461 | R151: 1045
A152: Henan | B152: 2010 | C152: 2 | D152: 0 | E152: 0 | F152: 2 | L152: 253 | M152: 394 | N152: 647 | P152: 72803 | Q152: 40143 | R152: 112946
B153: 2011 | C153: 52 | D153: 0 | E153: 0 | F153: 52 | L153: 589 | M153: 777 | N153: 1366 | P153: 1858 | Q153: 1328 | R153: 3186
B154: 2012 | C154: 66 | D154: 1 | E154: 0 | F154: 67 | L154: 525 | M154: 708 | N154: 1233 | P154: 24398 | Q154: 3820 | R154: 28218
B155: 2013 | C155: 174 | D155: 914 | E155: 0 | F155: 1088 | L155: 600 | M155: 815 | N155: 1415 | P155: 1886 | Q155: 1611 | R155: 3497
B156: 2014 | C156: 831 | D156: 1455 | E156: 0 | F156: 2286 | L156: 790 | M156: 1139 | N156: 1929 | P156: 5736 | Q156: 4087 | R156: 9823
B157: 2015 | C157: 11319 | D157: 3208 | E157: 0 | F157: 14527 | L157: 438 | M157: 435 | N157: 873 | P157: 3683 | Q157: 2736 | R157: 6419
B158: 2016 | C158: 20146 | D158: 3908 | E158: 0 | F158: 24054 | L158: 466 | M158: 382 | N158: 848 | P158: 2709 | Q158: 2549 | R158: 5258
B159: 2017 | C159: 63248 | D159: 4948 | E159: 1 | F159: 68197 | L159: 553 | M159: 906 | N159: 1459 | P159: 3796 | Q159: 3013 | R159: 6809
B160: 2018 | C160: 132689 | D160: 9794 | E160: 23 | F160: 142506 | L160: 792 | M160: 444 | N160: 1236 | P160: 2890 | Q160: 1522 | R160: 4412
A161: Hubei | B161: 2010 | C161: 4 | D161: 0 | E161: 0 | F161: 4 | L161: 228 | M161: 284 | N161: 512 | P161: 2028 | Q161: 1186 | R161: 3214
B162: 2011 | C162: 8 | D162: 0 | E162: 0 | F162: 8 | L162: 376 | M162: 510 | N162: 886 | P162: 3085 | Q162: 2765 | R162: 5850
B163: 2012 | C163: 98 | D163: 1 | E163: 0 | F163: 99 | L163: 457 | M163: 252 | N163: 709 | P163: 134 | Q163: 0 | R163: 134
B164: 2013 | C164: 474 | D164: 51 | E164: 0 | F164: 525 | L164: 764 | M164: 890 | N164: 1654 | P164: 3587 | Q164: 2134 | R164: 5721
B165: 2014 | C165: 2155 | D165: 136 | E165: 0 | F165: 2291 | L165: 226 | M165: 139 | N165: 365 | P165: 1112 | Q165: 1286 | R165: 2398
B166: 2015 | C166: 10779 | D166: 1298 | E166: 0 | F166: 12077 | L166: 10876 | M166: 8498 | N166: 19374 | P166: 3243 | Q166: 1194 | R166: 4437
B167: 2016 | C167: 20581 | D167: 1809 | E167: 0 | F167: 22390 | L167: 729 | M167: 725 | N167: 1454 | P167: 2301 | Q167: 1801 | R167: 4102
B168: 2017 | C168: 46099 | D168: 2669 | E168: 5 | F168: 48773 | L168: 38 | M168: 26 | N168: 64 | P168: 3935 | Q168: 2457 | R168: 6392
B169: 2018 | C169: 72052 | D169: 4941 | E169: 52 | F169: 77045 | L169: 97 | M169: 21 | N169: 118 | P169: 1010 | Q169: 551 | R169: 1561
A170: Hunan | B170: 2010 | C170: 1 | D170: 0 | E170: 0 | F170: 1 | L170: 429 | M170: 228 | N170: 657 | P170: 85991 | Q170: 39440 | R170: 125431
B171: 2011 | C171: 10 | D171: 0 | E171: 0 | F171: 10 | L171: 27 | M171: 14 | N171: 41 | P171: 6162 | Q171: 2310 | R171: 8472
B172: 2012 | C172: 10 | D172: 1 | E172: 0 | F172: 11 | L172: 158 | M172: 2072 | N172: 2230 | P172: 301 | Q172: 181 | R172: 482
B173: 2013 | C173: 115 | D173: 1 | E173: 0 | F173: 116 | L173: 280 | M173: 69 | N173: 349 | P173: 438 | Q173: 343 | R173: 781
B174: 2014 | C174: 2699 | D174: 774 | E174: 0 | F174: 3473 | L174: 123 | M174: 86 | N174: 209 | P174: 1301 | Q174: 416 | R174: 1717
B175: 2015 | C175: 17211 | D175: 3748 | E175: 0 | F175: 20959 | L175: 226 | M175: 204 | N175: 430 | P175: 234 | Q175: 62 | R175: 296
B176: 2016 | C176: 30034 | D176: 5790 | E176: 0 | F176: 35824 | L176: 3424 | M176: 2515 | N176: 5939 | P176: 3 | Q176: 0 | R176: 3
B177: 2017 | C177: 54275 | D177: 6823 | E177: 0 | F177: 61098 | L177: 2137 | M177: 2501 | N177: 4638 | P177: 269 | Q177: 173 | R177: 442
B178: 2018 | C178: 79748 | D178: 8983 | E178: 0 | F178: 88731 | L178: 753 | M178: 705 | N178: 1458 | P178: 415 | Q178: 400 | R178: 815
A179: Guangdong | B179: 2010 | C179: 42 | D179: 273 | E179: 0 | F179: 315 | L179: 547 | M179: 496 | N179: 1043 | P179: 533 | Q179: 218 | R179: 751
B180: 2011 | C180: 53 | D180: 587 | E180: 0 | F180: 640 | L180: 6274 | M180: 6757 | N180: 13031 | P180: 878 | Q180: 197 | R180: 1075
B181: 2012 | C181: 858 | D181: 769 | E181: 0 | F181: 1627 | L181: 1724 | M181: 1722 | N181: 3446 | P181: 9414 | Q181: 6825 | R181: 16239
B182: 2013 | C182: 2496 | D182: 1204 | E182: 0 | F182: 3700 | L182: 1 | M182: 0 | N182: 1 | P182: 12273 | Q182: 14805 | R182: 27078
B183: 2014 | C183: 4328 | D183: 5111 | E183: 0 | F183: 9439 | L183: 10590 | M183: 8038 | N183: 18628 | P183: 6710 | Q183: 6626 | R183: 13336
B184: 2015 | C184: 48199 | D184: 20613 | E184: 0 | F184: 68812 | L184: 987 | M184: 496 | N184: 1483 | P184: 5456 | Q184: 7865 | R184: 13321
B185: 2016 | C185: 89186 | D185: 44482 | E185: 22 | F185: 133690 | L185: 1110 | M185: 658 | N185: 1768 | P185: 50964 | Q185: 34807 | R185: 85771
B186: 2017 | C186: 180678 | D186: 68208 | E186: 50 | F186: 248936 | L186: 3926 | M186: 3673 | N186: 7599 | P186: 14443 | Q186: 18285 | R186: 32728
B187: 2018 | C187: 310628 | D187: 143571 | E187: 556 | F187: 454755 | L187: 1530 | M187: 1411 | N187: 2941 | P187: 30 | Q187: 0 | R187: 30
A188: Guangxi | B188: 2010 | C188: 0 | D188: 0 | E188: 0 | F188: 0 | L188: 3017 | M188: 743 | N188: 3760 | P188: 39939 | Q188: 58247 | R188: 98186
B189: 2011 | C189: 12 | D189: 0 | E189: 0 | F189: 12 | L189: 1547 | M189: 615 | N189: 2162 | P189: 4125 | Q189: 5403 | R189: 9528
B190: 2012 | C190: 12 | D190: 0 | E190: 0 | F190: 12 | L190: 1035 | M190: 566 | N190: 1601 | P190: 6464 | Q190: 8041 | R190: 14505
B191: 2013 | C191: 33 | D191: 15 | E191: 0 | F191: 48 | L191: 348 | M191: 344 | N191: 692 | P191: 17423 | Q191: 29701 | R191: 47124
B192: 2014 | C192: 35 | D192: 17 | E192: 0 | F192: 52 | L192: 890 | M192: 796 | N192: 1686 | P192: 20853 | Q192: 15862 | R192: 36715
B193: 2015 | C193: 666 | D193: 405 | E193: 0 | F193: 1071 | L193: 363 | M193: 484 | N193: 847 | P193: 10062 | Q193: 7208 | R193: 17270
B194: 2016 | C194: 1579 | D194: 1305 | E194: 0 | F194: 2884 | L194: 132 | M194: 108 | N194: 240 | P194: 5960 | Q194: 9206 | R194: 15166
B195: 2017 | C195: 18224 | D195: 2248 | E195: 0 | F195: 20472 | L195: 483 | M195: 512 | N195: =SUM(L195:M195) -> 995 | P195: 5827 | Q195: 5764 | R195: =SUM(P195:Q195) -> 11591
B196: 2018 | C196: 48018 | D196: 3114 | E196: 0 | F196: 51132 | L196: 2381 | M196: 2772 | N196: 5153 | P196: 3951 | Q196: 2251 | R196: 6202
A197: Hainan | B197: 2010 | C197: 1 | D197: 0 | E197: 0 | F197: 1 | L197: 252 | M197: 240 | N197: 492 | P197: 11706 | Q197: 6073 | R197: 17779
B198: 2011 | C198: 4 | D198: 0 | E198: 0 | F198: =SUM(C198:E198) -> 4 | L198: 557 | M198: 349 | N198: 906 | P198: 3925 | Q198: 2038 | R198: 5963
B199: 2012 | C199: 303 | D199: 0 | E199: 0 | F199: 303 | L199: 137 | M199: 143 | N199: 280 | P199: 1200 | Q199: 1335 | R199: 2535
B200: 2013 | C200: 303 | D200: 0 | E200: 0 | F200: 303 | L200: 490 | M200: 453 | N200: 943 | P200: 6913 | Q200: 5153 | R200: 12066
... 168 more rows

Sheet VKT2000
A1: Car Kilometers Travel in China/km
A3: Year | B3: 2000 | C3: Passenger Vehicles | H3: Trucks | M3: Others
A4: region | D4: Large | E4: Medium | F4: Small | G4: Minicar | I4: Heavy | J4: Medium | K4: Light | L4: Mini
A5: Beijing | D5: 45251 | E5: 45251 | F5: 30578 | G5: 30578 | I5: 75000 | J5: 35000 | K5: 23977 | L5: 23977 | M5: 58250
A6: Tianjin | D6: 58000 | E6: 31300 | F6: 20150 | G6: 20150 | I6: 60000 | J6: 35000 | K6: 30000 | L6: 30000 | M6: 58250
A7: Shijiazhuang City, Hebei Province | D7: 58000 | E7: 31300 | F7: 20000 | G7: 20000 | I7: 60000 | J7: 35000 | K7: 30000 | L7: 30000 | M7: 58250
A8: Tangshan City | D8: 58000 | E8: 31300 | F8: 20000 | G8: 20000 | I8: 60000 | J8: 35000 | K8: 30000 | L8: 30000 | M8: 58250
A9: Qinhuangdao City | D9: 58000 | E9: 31300 | F9: 20000 | G9: 20000 | I9: 60000 | J9: 35000 | K9: 30000 | L9: 30000 | M9: 58250
A10: Handan City | D10: 58000 | E10: 31300 | F10: 20000 | G10: 20000 | I10: 60000 | J10: 35000 | K10: 30000 | L10: 30000 | M10: 58250
A11: Xingtai City | D11: 58000 | E11: 31300 | F11: 20000 | G11: 20000 | I11: 60000 | J11: 35000 | K11: 30000 | L11: 30000 | M11: 58250
A12: Baoding City | D12: 58000 | E12: 31300 | F12: 20000 | G12: 20000 | I12: 60000 | J12: 35000 | K12: 30000 | L12: 30000 | M12: 58250
A13: Zhangjiakou City | D13: 58000 | E13: 31300 | F13: 20000 | G13: 20000 | I13: 60000 | J13: 35000 | K13: 30000 | L13: 30000 | M13: 58250
A14: Chengde City | D14: 58000 | E14: 31300 | F14: 20000 | G14: 20000 | I14: 60000 | J14: 35000 | K14: 30000 | L14: 30000 | M14: 58250
A15: Cangzhou City | D15: 58000 | E15: 31300 | F15: 20000 | G15: 20000 | I15: 60000 | J15: 35000 | K15: 30000 | L15: 30000 | M15: 58250
A16: Langfang City | D16: 58000 | E16: 31300 | F16: 20000 | G16: 20000 | I16: 60000 | J16: 35000 | K16: 30000 | L16: 30000 | M16: 58250
A17: Hengshui City | D17: 58000 | E17: 31300 | F17: 20000 | G17: 20000 | I17: 60000 | J17: 35000 | K17: 30000 | L17: 30000 | M17: 58250
A18: Taiyuan City, Shanxi Province | D18: 58000 | E18: 31300 | F18: 18000 | G18: 18000 | I18: 75000 | J18: 35000 | K18: 30000 | L18: 30000 | M18: 58250
A19: Yangquan City | D19: 58000 | E19: 31300 | F19: 18000 | G19: 18000 | I19: 75000 | J19: 35000 | K19: 30000 | L19: 30000 | M19: 58250
A20: Changzhi City | D20: 58000 | E20: 31300 | F20: 18000 | G20: 18000 | I20: 75000 | J20: 35000 | K20: 30000 | L20: 30000 | M20: 58250
A21: Jincheng City | D21: 58000 | E21: 31300 | F21: 18000 | G21: 18000 | I21: 75000 | J21: 35000 | K21: 30000 | L21: 30000 | M21: 58250
A22: Shuozhou City | D22: 58000 | E22: 31300 | F22: 18000 | G22: 18000 | I22: 75000 | J22: 35000 | K22: 30000 | L22: 30000 | M22: 58250
A23: Qizhou City | D23: 58000 | E23: 31300 | F23: 18000 | G23: 18000 | I23: 75000 | J23: 35000 | K23: 30000 | L23: 30000 | M23: 58250
A24: Luliang City | D24: 58000 | E24: 31300 | F24: 18000 | G24: 18000 | I24: 75000 | J24: 35000 | K24: 30000 | L24: 30000 | M24: 58250
A25: Jinzhong City | D25: 58000 | E25: 31300 | F25: 18000 | G25: 18000 | I25: 75000 | J25: 35000 | K25: 30000 | L25: 30000 | M25: 58250
A26: Linfen City | D26: 58000 | E26: 31300 | F26: 18000 | G26: 18000 | I26: 75000 | J26: 35000 | K26: 30000 | L26: 30000 | M26: 58250
A27: Yuncheng City | D27: 58000 | E27: 31300 | F27: 18000 | G27: 18000 | I27: 75000 | J27: 35000 | K27: 30000 | L27: 30000 | M27: 58250
A28: Datong City | D28: 58000 | E28: 31300 | F28: 18000 | G28: 18000 | I28: 75000 | J28: 35000 | K28: 30000 | L28: 30000 | M28: 58250
A29: Hohhot, Inner Mongolia Autonomous Region | D29: 36100 | E29: 31700 | F29: 18000 | G29: 18000 | I29: 75000 | J29: 35000 | K29: 30000 | L29: 30000 | M29: 58250
A30: Baotou City | D30: 58000 | E30: 31300 | F30: 18000 | G30: 18000 | I30: 75000 | J30: 35000 | K30: 30000 | L30: 30000 | M30: 58250
A31: Wuhai City | D31: 58000 | E31: 31300 | F31: 18000 | G31: 18000 | I31: 75000 | J31: 35000 | K31: 30000 | L31: 30000 | M31: 58250
A32: Chifeng City | D32: 58000 | E32: 31300 | F32: 18000 | G32: 18000 | I32: 75000 | J32: 35000 | K32: 30000 | L32: 30000 | M32: 58250
A33: Tongliao City | D33: 58000 | E33: 31300 | F33: 18000 | G33: 18000 | I33: 75000 | J33: 35000 | K33: 30000 | L33: 30000 | M33: 58250
A34: Ordos City | D34: 58000 | E34: 31300 | F34: 18000 | G34: 18000 | I34: 75000 | J34: 35000 | K34: 30000 | L34: 30000 | M34: 58250
A35: Hulun Buir City | D35: 58000 | E35: 31300 | F35: 18000 | G35: 18000 | I35: 75000 | J35: 35000 | K35: 30000 | L35: 30000 | M35: 58250
A36: Bayannaoer City | D36: 58000 | E36: 31300 | F36: 18000 | G36: 18000 | I36: 75000 | J36: 35000 | K36: 30000 | L36: 30000 | M36: 58250
A37: Ulanqab City | D37: 58000 | E37: 31300 | F37: 18000 | G37: 18000 | I37: 75000 | J37: 35000 | K37: 30000 | L37: 30000 | M37: 58250
A38: Xilin Gol League | D38: 58000 | E38: 31300 | F38: 18000 | G38: 18000 | I38: 75000 | J38: 35000 | K38: 30000 | L38: 30000 | M38: 58250
A39: Xing'an League | D39: 58000 | E39: 31300 | F39: 18000 | G39: 18000 | I39: 75000 | J39: 35000 | K39: 30000 | L39: 30000 | M39: 58250
A40: Alxa League | D40: 58000 | E40: 31300 | F40: 18000 | G40: 18000 | I40: 75000 | J40: 35000 | K40: 30000 | L40: 30000 | M40: 58250
A41: Shenyang City, Liaoning Province | D41: 58000 | E41: 31300 | F41: 18000 | G41: 18000 | I41: 75000 | J41: 35000 | K41: 30000 | L41: 30000 | M41: 58250
A42: Dalian City | D42: 58000 | E42: 31300 | F42: 18000 | G42: 18000 | I42: 75000 | J42: 35000 | K42: 30000 | L42: 30000 | M42: 58250
A43: Anshan City | D43: 58000 | E43: 31300 | F43: 18000 | G43: 18000 | I43: 75000 | J43: 35000 | K43: 30000 | L43: 30000 | M43: 58250
A44: Fushun City | D44: 58000 | E44: 31300 | F44: 18000 | G44: 18000 | I44: 75000 | J44: 35000 | K44: 30000 | L44: 30000 | M44: 58250
A45: Benxi City | D45: 58000 | E45: 31300 | F45: 18000 | G45: 18000 | I45: 75000 | J45: 35000 | K45: 30000 | L45: 30000 | M45: 58250
A46: Dandong City | D46: 58000 | E46: 31300 | F46: 18000 | G46: 18000 | I46: 75000 | J46: 35000 | K46: 30000 | L46: 30000 | M46: 58250
A47: Jinzhou City | D47: 58000 | E47: 31300 | F47: 18000 | G47: 18000 | I47: 75000 | J47: 35000 | K47: 30000 | L47: 30000 | M47: 58250
A48: Yingkou City | D48: 58000 | E48: 31300 | F48: 18000 | G48: 18000 | I48: 75000 | J48: 35000 | K48: 30000 | L48: 30000 | M48: 58250
A49: Fuxin City | D49: 58000 | E49: 31300 | F49: 18000 | G49: 18000 | I49: 75000 | J49: 35000 | K49: 30000 | L49: 30000 | M49: 58250
A50: Liaoyang City | D50: 58000 | E50: 31300 | F50: 18000 | G50: 18000 | I50: 75000 | J50: 35000 | K50: 30000 | L50: 30000 | M50: 58250
A51: Panjin City | D51: 58000 | E51: 31300 | F51: 18000 | G51: 18000 | I51: 75000 | J51: 35000 | K51: 30000 | L51: 30000 | M51: 58250
A52: Tieling City | D52: 58000 | E52: 31300 | F52: 18000 | G52: 18000 | I52: 75000 | J52: 35000 | K52: 30000 | L52: 30000 | M52: 58250
A53: Chaoyang City | D53: 58000 | E53: 31300 | F53: 18000 | G53: 18000 | I53: 75000 | J53: 35000 | K53: 30000 | L53: 30000 | M53: 58250
A54: Huludao City | D54: 58000 | E54: 31300 | F54: 18000 | G54: 18000 | I54: 75000 | J54: 35000 | K54: 30000 | L54: 30000 | M54: 58250
A55: Changchun City, Jilin Province | D55: 58000 | E55: 31300 | F55: 18000 | G55: 18000 | I55: 75000 | J55: 35000 | K55: 30000 | L55: 30000 | M55: 58250
A56: Jilin City | D56: 58000 | E56: 31300 | F56: 18000 | G56: 18000 | I56: 75000 | J56: 35000 | K56: 30000 | L56: 30000 | M56: 58250
A57: Siping City | D57: 58000 | E57: 31300 | F57: 18000 | G57: 18000 | I57: 75000 | J57: 35000 | K57: 30000 | L57: 30000 | M57: 58250
A58: Liaoyuan City | D58: 58000 | E58: 31300 | F58: 18000 | G58: 18000 | I58: 75000 | J58: 35000 | K58: 30000 | L58: 30000 | M58: 58250
A59: Tonghua City | D59: 58000 | E59: 31300 | F59: 18000 | G59: 18000 | I59: 75000 | J59: 35000 | K59: 30000 | L59: 30000 | M59: 58250
A60: Baishan City | D60: 58000 | E60: 31300 | F60: 18000 | G60: 18000 | I60: 75000 | J60: 35000 | K60: 30000 | L60: 30000 | M60: 58250
A61: Songyuan City | D61: 58000 | E61: 31300 | F61: 18000 | G61: 18000 | I61: 75000 | J61: 35000 | K61: 30000 | L61: 30000 | M61: 58250
A62: Baicheng City | D62: 58000 | E62: 31300 | F62: 18000 | G62: 18000 | I62: 75000 | J62: 35000 | K62: 30000 | L62: 30000 | M62: 58250
A63: Yanbian Korean Autonomous Prefecture | D63: 58000 | E63: 31300 | F63: 18000 | G63: 18000 | I63: 75000 | J63: 35000 | K63: 30000 | L63: 30000 | M63: 58250
A64: Harbin City, Heilongjiang Province | D64: 58000 | E64: 31300 | F64: 18000 | G64: 18000 | I64: 75000 | J64: 35000 | K64: 30000 | L64: 30000 | M64: 58250
A65: Qiqihar City | D65: 58000 | E65: 31300 | F65: 18000 | G65: 18000 | I65: 75000 | J65: 35000 | K65: 30000 | L65: 30000 | M65: 58250
A66: Jixi City | D66: 58000 | E66: 31300 | F66: 18000 | G66: 18000 | I66: 75000 | J66: 35000 | K66: 30000 | L66: 30000 | M66: 58250
A67: Hegang City | D67: 58000 | E67: 31300 | F67: 18000 | G67: 18000 | I67: 75000 | J67: 35000 | K67: 30000 | L67: 30000 | M67: 58250
A68: Shuangyashan City | D68: 58000 | E68: 31300 | F68: 18000 | G68: 18000 | I68: 75000 | J68: 35000 | K68: 30000 | L68: 30000 | M68: 58250
A69: Daqing City | D69: 58000 | E69: 31300 | F69: 18000 | G69: 18000 | I69: 75000 | J69: 35000 | K69: 30000 | L69: 30000 | M69: 58250
A70: Yichun City | D70: 58000 | E70: 31300 | F70: 18000 | G70: 18000 | I70: 75000 | J70: 35000 | K70: 30000 | L70: 30000 | M70: 58250
A71: Jiamusi City | D71: 58000 | E71: 31300 | F71: 18000 | G71: 18000 | I71: 75000 | J71: 35000 | K71: 30000 | L71: 30000 | M71: 58250
A72: Qitaihe City | D72: 58000 | E72: 31300 | F72: 18000 | G72: 18000 | I72: 75000 | J72: 35000 | K72: 30000 | L72: 30000 | M72: 58250
A73: Mudanjiang City | D73: 58000 | E73: 31300 | F73: 18000 | G73: 18000 | I73: 75000 | J73: 35000 | K73: 30000 | L73: 30000 | M73: 58250
A74: Heihe City | D74: 58000 | E74: 31300 | F74: 18000 | G74: 18000 | I74: 75000 | J74: 35000 | K74: 30000 | L74: 30000 | M74: 58250
A75: Suihua City | D75: 58000 | E75: 31300 | F75: 18000 | G75: 18000 | I75: 75000 | J75: 35000 | K75: 30000 | L75: 30000 | M75: 58250
A76: Daxing'anling region | D76: 58000 | E76: 31300 | F76: 18000 | G76: 18000 | I76: 75000 | J76: 35000 | K76: 30000 | L76: 30000 | M76: 58250
A77: Shanghai | D77: 37729 | E77: 37729 | F77: 30578 | G77: 30578 | I77: 75000 | J77: 35000 | K77: 25274 | L77: 25274 | M77: 58250
A78: Nanjing City, Jiangsu Province | D78: 58000 | E78: 31300 | F78: 18000 | G78: 18000 | I78: 75000 | J78: 35000 | K78: 30000 | L78: 30000 | M78: 58250
A79: Wuxi City | D79: 58000 | E79: 31300 | F79: 18000 | G79: 18000 | I79: 75000 | J79: 35000 | K79: 30000 | L79: 30000 | M79: 58250
A80: Xuzhou City | D80: 58000 | E80: 31300 | F80: 18000 | G80: 18000 | I80: 75000 | J80: 35000 | K80: 30000 | L80: 30000 | M80: 58250
A81: Changzhou | D81: 58000 | E81: 31300 | F81: 18000 | G81: 18000 | I81: 75000 | J81: 35000 | K81: 30000 | L81: 30000 | M81: 58250
A82: Suzhou City | D82: 58000 | E82: 31300 | F82: 18000 | G82: 18000 | I82: 75000 | J82: 35000 | K82: 30000 | L82: 30000 | M82: 58250
A83: Nantong City | D83: 58000 | E83: 31300 | F83: 18000 | G83: 18000 | I83: 75000 | J83: 35000 | K83: 30000 | L83: 30000 | M83: 58250
A84: Lianyungang City | D84: 58000 | E84: 31300 | F84: 18000 | G84: 18000 | I84: 75000 | J84: 35000 | K84: 30000 | L84: 30000 | M84: 58250
A85: Huai'an City | D85: 58000 | E85: 31300 | F85: 18000 | G85: 18000 | I85: 75000 | J85: 35000 | K85: 30000 | L85: 30000 | M85: 58250
A86: Yancheng City | D86: 58000 | E86: 31300 | F86: 18000 | G86: 18000 | I86: 75000 | J86: 35000 | K86: 30000 | L86: 30000 | M86: 58250
A87: Yangzhou City | D87: 58000 | E87: 31300 | F87: 18000 | G87: 18000 | I87: 75000 | J87: 35000 | K87: 30000 | L87: 30000 | M87: 58250
A88: Zhenjiang City | D88: 58000 | E88: 31300 | F88: 18000 | G88: 18000 | I88: 75000 | J88: 35000 | K88: 30000 | L88: 30000 | M88: 58250
A89: Taizhou City | D89: 58000 | E89: 31300 | F89: 18000 | G89: 18000 | I89: 75000 | J89: 35000 | K89: 30000 | L89: 30000 | M89: 58250
A90: Suqian City | D90: 58000 | E90: 31300 | F90: 18000 | G90: 18000 | I90: 75000 | J90: 35000 | K90: 30000 | L90: 30000 | M90: 58250
A91: Hangzhou City, Zhejiang Province | D91: 40000 | E91: 40000 | F91: 18000 | G91: 18000 | I91: 75000 | J91: 30000 | K91: 40 000 | L91: 40 000 | M91: 58250
A92: Ningbo City | D92: 58000 | E92: 31300 | F92: 18000 | G92: 18000 | I92: 75000 | J92: 35000 | K92: 30000 | L92: 30000 | M92: 58250
A93: Wenzhou City | D93: 58000 | E93: 31300 | F93: 18000 | G93: 18000 | I93: 75000 | J93: 35000 | K93: 30000 | L93: 30000 | M93: 58250
A94: Jiaxing City | D94: 58000 | E94: 31300 | F94: 18000 | G94: 18000 | I94: 75000 | J94: 35000 | K94: 30000 | L94: 30000 | M94: 58250
A95: Huzhou City | D95: 58000 | E95: 31300 | F95: 18000 | G95: 18000 | I95: 75000 | J95: 35000 | K95: 30000 | L95: 30000 | M95: 58250
A96: Shaoxing City | D96: 58000 | E96: 31300 | F96: 18000 | G96: 18000 | I96: 75000 | J96: 35000 | K96: 30000 | L96: 30000 | M96: 58250
A97: Jinhua City | D97: 58000 | E97: 31300 | F97: 18000 | G97: 18000 | I97: 75000 | J97: 35000 | K97: 30000 | L97: 30000 | M97: 58250
A98: Quzhou City | D98: 58000 | E98: 31300 | F98: 18000 | G98: 18000 | I98: 75000 | J98: 35000 | K98: 30000 | L98: 30000 | M98: 58250
A99: Zhoushan City | D99: 58000 | E99: 31300 | F99: 18000 | G99: 18000 | I99: 75000 | J99: 35000 | K99: 30000 | L99: 30000 | M99: 58250
A100: Taizhou City | D100: 58000 | E100: 31300 | F100: 18000 | G100: 18000 | I100: 75000 | J100: 35000 | K100: 30000 | L100: 30000 | M100: 58250
A101: Lishui City | D101: 58000 | E101: 31300 | F101: 18000 | G101: 18000 | I101: 75000 | J101: 35000 | K101: 30000 | L101: 30000 | M101: 58250
A102: Hefei City, Anhui Province | D102: 58000 | E102: 33600 | F102: 23000 | G102: 18400 | I102: 73900 | J102: 43000 | K102: 27600 | L102: 30000 | M102: 58250
A103: Wuhu City | D103: 58000 | E103: 31300 | F103: 18000 | G103: 18000 | I103: 75000 | J103: 35000 | K103: 30000 | L103: 30000 | M103: 58250
A104: Bengbu City | D104: 58000 | E104: 31300 | F104: 18000 | G104: 18000 | I104: 75000 | J104: 35000 | K104: 30000 | L104: 30000 | M104: 58250
A105: Huainan City | D105: 58000 | E105: 31300 | F105: 18000 | G105: 18000 | I105: 75000 | J105: 35000 | K105: 30000 | L105: 30000 | M105: 58250
A106: Ma'anshan City | D106: 58000 | E106: 31300 | F106: 18000 | G106: 18000 | I106: 75000 | J106: 35000 | K106: 30000 | L106: 30000 | M106: 58250
A107: Huaibei City | D107: 58000 | E107: 31300 | F107: 18000 | G107: 18000 | I107: 75000 | J107: 35000 | K107: 30000 | L107: 30000 | M107: 58250
A108: Tongling City | D108: 58000 | E108: 31300 | F108: 18000 | G108: 18000 | I108: 75000 | J108: 35000 | K108: 30000 | L108: 30000 | M108: 58250
A109: Anqing City | D109: 58000 | E109: 31300 | F109: 18000 | G109: 18000 | I109: 75000 | J109: 35000 | K109: 30000 | L109: 30000 | M109: 58250
A110: Huangshan City | D110: 58000 | E110: 31300 | F110: 18000 | G110: 18000 | I110: 75000 | J110: 35000 | K110: 30000 | L110: 30000 | M110: 58250
A111: Fuyang City | D111: 58000 | E111: 31300 | F111: 18000 | G111: 18000 | I111: 75000 | J111: 35000 | K111: 30000 | L111: 30000 | M111: 58250
A112: Suzhou City | D112: 58000 | E112: 31300 | F112: 18000 | G112: 18000 | I112: 75000 | J112: 35000 | K112: 30000 | L112: 30000 | M112: 58250
A113: Chuzhou City | D113: 58000 | E113: 31300 | F113: 18000 | G113: 18000 | I113: 75000 | J113: 35000 | K113: 30000 | L113: 30000 | M113: 58250
A114: Lu'an City | D114: 58000 | E114: 31300 | F114: 18000 | G114: 18000 | I114: 75000 | J114: 35000 | K114: 30000 | L114: 30000 | M114: 58250
A115: Xuancheng City | D115: 58000 | E115: 31300 | F115: 18000 | G115: 18000 | I115: 75000 | J115: 35000 | K115: 30000 | L115: 30000 | M115: 58250
A116: Chizhou City | D116: 58000 | E116: 31300 | F116: 18000 | G116: 18000 | I116: 75000 | J116: 35000 | K116: 30000 | L116: 30000 | M116: 58250
A117: Bozhou City | D117: 58000 | E117: 31300 | F117: 18000 | G117: 18000 | I117: 75000 | J117: 35000 | K117: 30000 | L117: 30000 | M117: 58250
A118: Fuzhou City, Fujian Province | D118: 58000 | E118: 31300 | F118: 18000 | G118: 18000 | I118: 75000 | J118: 35000 | K118: 30000 | L118: 30000 | M118: 58250
A119: Xiamen | D119: 58000 | E119: 31300 | F119: 18000 | G119: 18000 | I119: 75000 | J119: 35000 | K119: 30000 | L119: 30000 | M119: 58250
A120: Quanzhou | D120: 58000 | E120: 31300 | F120: 18000 | G120: 18000 | I120: 75000 | J120: 35000 | K120: 30000 | L120: 30000 | M120: 58250
A121: Zhangzhou City | D121: 58000 | E121: 31300 | F121: 18000 | G121: 18000 | I121: 75000 | J121: 35000 | K121: 30000 | L121: 30000 | M121: 58250
A122: Putian City | D122: 58000 | E122: 31300 | F122: 18000 | G122: 18000 | I122: 75000 | J122: 35000 | K122: 30000 | L122: 30000 | M122: 58250
A123: Ningde City | D123: 58000 | E123: 31300 | F123: 18000 | G123: 18000 | I123: 75000 | J123: 35000 | K123: 30000 | L123: 30000 | M123: 58250
A124: Longyan City | D124: 58000 | E124: 31300 | F124: 18000 | G124: 18000 | I124: 75000 | J124: 35000 | K124: 30000 | L124: 30000 | M124: 58250
A125: Sanming City | D125: 58000 | E125: 31300 | F125: 18000 | G125: 18000 | I125: 75000 | J125: 35000 | K125: 30000 | L125: 30000 | M125: 58250
A126: Nanping City | D126: 58000 | E126: 31300 | F126: 18000 | G126: 18000 | I126: 75000 | J126: 35000 | K126: 30000 | L126: 30000 | M126: 58250
A127: Nanchang City, Jiangxi Province | D127: 58000 | E127: 31300 | F127: 18000 | G127: 18000 | I127: 75000 | J127: 35000 | K127: 30000 | L127: 30000 | M127: 58250
A128: Jiujiang City | D128: 58000 | E128: 31300 | F128: 18000 | G128: 18000 | I128: 75000 | J128: 35000 | K128: 30000 | L128: 30000 | M128: 58250
A129: Pingxiang City | D129: 58000 | E129: 31300 | F129: 18000 | G129: 18000 | I129: 75000 | J129: 35000 | K129: 30000 | L129: 30000 | M129: 58250
A130: Yingtan City | D130: 58000 | E130: 31300 | F130: 18000 | G130: 18000 | I130: 75000 | J130: 35000 | K130: 30000 | L130: 30000 | M130: 58250
A131: Shangrao City | D131: 58000 | E131: 31300 | F131: 18000 | G131: 18000 | I131: 75000 | J131: 35000 | K131: 30000 | L131: 30000 | M131: 58250
A132: Fuzhou City | D132: 58000 | E132: 31300 | F132: 18000 | G132: 18000 | I132: 75000 | J132: 35000 | K132: 30000 | L132: 30000 | M132: 58250
A133: Xinyu City | D133: 58000 | E133: 31300 | F133: 18000 | G133: 18000 | I133: 75000 | J133: 35000 | K133: 30000 | L133: 30000 | M133: 58250
A134: Yichun City | D134: 58000 | E134: 31300 | F134: 18000 | G134: 18000 | I134: 75000 | J134: 35000 | K134: 30000 | L134: 30000 | M134: 58250
A135: Jingdezhen City | D135: 58000 | E135: 31300 | F135: 18000 | G135: 18000 | I135: 75000 | J135: 35000 | K135: 30000 | L135: 30000 | M135: 58250
A136: Ji'an City | D136: 58000 | E136: 31300 | F136: 18000 | G136: 18000 | I136: 75000 | J136: 35000 | K136: 30000 | L136: 30000 | M136: 58250
A137: Ganzhou City | D137: 58000 | E137: 31300 | F137: 18000 | G137: 18000 | I137: 75000 | J137: 35000 | K137: 30000 | L137: 30000 | M137: 58250
A138: Jinan City, Shandong Province | D138: 48800 | E138: 20400 | F138: 14500 | G138: 18600 | I138: 75000 | J138: 28000 | K138: 30000 | L138: 30000 | M138: 58250
A139: Qingdao | D139: 48800 | E139: 20400 | F139: 14500 | G139: 18600 | I139: 75000 | J139: 28000 | K139: 30000 | L139: 30000 | M139: 58250
A140: Zibo City | D140: 48800 | E140: 20400 | F140: 14500 | G140: 18600 | I140: 75000 | J140: 28000 | K140: 30000 | L140: 30000 | M140: 58250
A141: Zaozhuang City | D141: 48800 | E141: 20400 | F141: 14500 | G141: 18600 | I141: 75000 | J141: 28000 | K141: 30000 | L141: 30000 | M141: 58250
A142: Dongying City | D142: 48800 | E142: 20400 | F142: 14500 | G142: 18600 | I142: 75000 | J142: 28000 | K142: 30000 | L142: 30000 | M142: 58250
A143: Yantai City | D143: 48800 | E143: 20400 | F143: 14500 | G143: 18600 | I143: 75000 | J143: 28000 | K143: 30000 | L143: 30000 | M143: 58250
A144: Weifang City | D144: 48800 | E144: 20400 | F144: 14500 | G144: 18600 | I144: 75000 | J144: 28000 | K144: 30000 | L144: 30000 | M144: 58250
A145: Jining City | D145: 48800 | E145: 20400 | F145: 14500 | G145: 18600 | I145: 75000 | J145: 28000 | K145: 30000 | L145: 30000 | M145: 58250
A146: Tai'an City | D146: 48800 | E146: 20400 | F146: 14500 | G146: 18600 | I146: 75000 | J146: 28000 | K146: 30000 | L146: 30000 | M146: 58250
A147: Weihai City | D147: 48800 | E147: 20400 | F147: 14500 | G147: 18600 | I147: 75000 | J147: 28000 | K147: 30000 | L147: 30000 | M147: 58250
A148: Rizhao City | D148: 48800 | E148: 20400 | F148: 14500 | G148: 18600 | I148: 75000 | J148: 28000 | K148: 30000 | L148: 30000 | M148: 58250
A149: Binzhou City | D149: 48800 | E149: 20400 | F149: 14500 | G149: 18600 | I149: 75000 | J149: 28000 | K149: 30000 | L149: 30000 | M149: 58250
A150: Dezhou City | D150: 48800 | E150: 20400 | F150: 14500 | G150: 18600 | I150: 75000 | J150: 28000 | K150: 30000 | L150: 30000 | M150: 58250
A151: Liaocheng City | D151: 48800 | E151: 20400 | F151: 14500 | G151: 18600 | I151: 75000 | J151: 28000 | K151: 30000 | L151: 30000 | M151: 58250
A152: Linyi City | D152: 48800 | E152: 20400 | F152: 14500 | G152: 18600 | I152: 75000 | J152: 28000 | K152: 30000 | L152: 30000 | M152: 58250
A153: Heze City | D153: 48800 | E153: 20400 | F153: 14500 | G153: 18600 | I153: 75000 | J153: 28000 | K153: 30000 | L153: 30000 | M153: 58250
A154: Zhengzhou City, Henan Province | D154: 64000 | E154: 31300 | F154: 18000 | G154: 18000 | I154: 80000 | J154: 38500 | K154: 39000 | L154: 39000 | M154: 58250
A155: Luoyang City | D155: 64000 | E155: 31300 | F155: 18000 | G155: 18000 | I155: 80000 | J155: 38500 | K155: 39000 | L155: 39000 | M155: 58250
A156: Kaifeng City | D156: 64000 | E156: 31300 | F156: 18000 | G156: 18000 | I156: 80000 | J156: 38500 | K156: 39000 | L156: 39000 | M156: 58250
A157: Luohe City | D157: 64000 | E157: 31300 | F157: 18000 | G157: 18000 | I157: 80000 | J157: 38500 | K157: 39000 | L157: 39000 | M157: 58250
A158: Anyang City | D158: 64000 | E158: 31300 | F158: 18000 | G158: 18000 | I158: 80000 | J158: 38500 | K158: 39000 | L158: 39000 | M158: 58250
A159: Xinyang City | D159: 64000 | E159: 31300 | F159: 18000 | G159: 18000 | I159: 80000 | J159: 38500 | K159: 39000 | L159: 39000 | M159: 58250
A160: Nanyang City | D160: 64000 | E160: 31300 | F160: 18000 | G160: 18000 | I160: 80000 | J160: 38500 | K160: 39000 | L160: 39000 | M160: 58250
A161: Puyang City | D161: 64000 | E161: 31300 | F161: 18000 | G161: 18000 | I161: 80000 | J161: 38500 | K161: 39000 | L161: 39000 | M161: 58250
A162: Zhoukou City | D162: 64000 | E162: 31300 | F162: 18000 | G162: 18000 | I162: 80000 | J162: 38500 | K162: 39000 | L162: 39000 | M162: 58250
A163: Xinxiang City | D163: 64000 | E163: 31300 | F163: 18000 | G163: 18000 | I163: 80000 | J163: 38500 | K163: 39000 | L163: 39000 | M163: 58250
A164: Sanmenxia City | D164: 64000 | E164: 31300 | F164: 18000 | G164: 18000 | I164: 80000 | J164: 38500 | K164: 39000 | L164: 39000 | M164: 58250
A165: Zhumadian City | D165: 64000 | E165: 31300 | F165: 18000 | G165: 18000 | I165: 80000 | J165: 38500 | K165: 39000 | L165: 39000 | M165: 58250
A166: Pingdingshan City | D166: 64000 | E166: 31300 | F166: 18000 | G166: 18000 | I166: 80000 | J166: 38500 | K166: 39000 | L166: 39000 | M166: 58250
A167: Hebi City | D167: 64000 | E167: 31300 | F167: 18000 | G167: 18000 | I167: 80000 | J167: 38500 | K167: 39000 | L167: 39000 | M167: 58250
A168: Shangqiu City | D168: 64000 | E168: 31300 | F168: 18000 | G168: 18000 | I168: 80000 | J168: 38500 | K168: 39000 | L168: 39000 | M168: 58250
A169: Jiaozuo City | D169: 64000 | E169: 31300 | F169: 18000 | G169: 18000 | I169: 80000 | J169: 38500 | K169: 39000 | L169: 39000 | M169: 58250
A170: Xuchang City | D170: 64000 | E170: 31300 | F170: 18000 | G170: 18000 | I170: 80000 | J170: 38500 | K170: 39000 | L170: 39000 | M170: 58250
A171: Wuhan City, Hubei Province | D171: 58000 | E171: 31300 | F171: 18000 | G171: 18000 | I171: 75000 | J171: 35000 | K171: 30000 | L171: 30000 | M171: 58250
A172: Huangshi City | D172: 58000 | E172: 31300 | F172: 18000 | G172: 18000 | I172: 75000 | J172: 35000 | K172: 30000 | L172: 30000 | M172: 58250
A173: Xiangyang City | D173: 58000 | E173: 31300 | F173: 18000 | G173: 18000 | I173: 75000 | J173: 35000 | K173: 30000 | L173: 30000 | M173: 58250
A174: Jingzhou City | D174: 58000 | E174: 31300 | F174: 18000 | G174: 18000 | I174: 75000 | J174: 35000 | K174: 30000 | L174: 30000 | M174: 58250
A175: Yichang City | D175: 58000 | E175: 31300 | F175: 18000 | G175: 18000 | I175: 75000 | J175: 35000 | K175: 25200 | L175: 25200 | M175: 58250
A176: Shiyan city | D176: 58000 | E176: 31300 | F176: 18000 | G176: 18000 | I176: 75000 | J176: 35000 | K176: 30000 | L176: 30000 | M176: 58250
A177: Xiaogan City | D177: 58000 | E177: 31300 | F177: 18000 | G177: 18000 | I177: 75000 | J177: 35000 | K177: 30000 | L177: 30000 | M177: 58250
A178: Jingmen City | D178: 58000 | E178: 31300 | F178: 18000 | G178: 18000 | I178: 75000 | J178: 35000 | K178: 30000 | L178: 30000 | M178: 58250
A179: Ezhou City | D179: 58000 | E179: 31300 | F179: 18000 | G179: 18000 | I179: 75000 | J179: 35000 | K179: 30000 | L179: 30000 | M179: 58250
A180: Huanggang City | D180: 58000 | E180: 31300 | F180: 18000 | G180: 18000 | I180: 75000 | J180: 35000 | K180: 30000 | L180: 30000 | M180: 58250
A181: Xianning City | D181: 58000 | E181: 31300 | F181: 18000 | G181: 18000 | I181: 75000 | J181: 35000 | K181: 30000 | L181: 30000 | M181: 58250
A182: Suizhou City | D182: 58000 | E182: 31300 | F182: 18000 | G182: 18000 | I182: 75000 | J182: 35000 | K182: 30000 | L182: 30000 | M182: 58250
A183: Enshi Tujia and Miao Autonomous Prefecture | D183: 58000 | E183: 31300 | F183: 18000 | G183: 18000 | I183: 75000 | J183: 35000 | K183: 30000 | L183: 30000 | M183: 58250
A184: Xiantao City | D184: 58000 | E184: 31300 | F184: 18000 | G184: 18000 | I184: 75000 | J184: 35000 | K184: 30000 | L184: 30000 | M184: 58250
A185: Tianmen City | D185: 58000 | E185: 31300 | F185: 18000 | G185: 18000 | I185: 75000 | J185: 35000 | K185: 30000 | L185: 30000 | M185: 58250
A186: Qianjiang City | D186: 58000 | E186: 31300 | F186: 18000 | G186: 18000 | I186: 75000 | J186: 35000 | K186: 30000 | L186: 30000 | M186: 58250
A187: Shennongjia forest area | D187: 58000 | E187: 31300 | F187: 18000 | G187: 18000 | I187: 75000 | J187: 35000 | K187: 30000 | L187: 30000 | M187: 58250
A188: Changsha City, Hunan Province | D188: 58000 | E188: 31300 | F188: 18000 | G188: 18000 | I188: 75000 | J188: 35000 | K188: 30000 | L188: 30000 | M188: 58250
A189: Zhuzhou City | D189: 58000 | E189: 31300 | F189: 18000 | G189: 18000 | I189: 75000 | J189: 35000 | K189: 30000 | L189: 30000 | M189: 58250
A190: Xiangtan City | D190: 58000 | E190: 31300 | F190: 18000 | G190: 18000 | I190: 75000 | J190: 35000 | K190: 30000 | L190: 30000 | M190: 58250
A191: Hengyang City | D191: 58000 | E191: 31300 | F191: 18000 | G191: 18000 | I191: 75000 | J191: 35000 | K191: 30000 | L191: 30000 | M191: 58250
A192: Shaoyang City | D192: 58000 | E192: 31300 | F192: 18000 | G192: 18000 | I192: 75000 | J192: 35000 | K192: 30000 | L192: 30000 | M192: 58250
A193: Yueyang City | D193: 58000 | E193: 31300 | F193: 18000 | G193: 18000 | I193: 75000 | J193: 35000 | K193: 30000 | L193: 30000 | M193: 58250
A194: Changde City | D194: 58000 | E194: 31300 | F194: 18000 | G194: 18000 | I194: 75000 | J194: 35000 | K194: 30000 | L194: 30000 | M194: 58250
A195: Zhangjiajie City | D195: 58000 | E195: 31300 | F195: 18000 | G195: 18000 | I195: 75000 | J195: 35000 | K195: 30000 | L195: 30000 | M195: 58250
A196: Yiyang City | D196: 58000 | E196: 31300 | F196: 18000 | G196: 18000 | I196: 75000 | J196: 35000 | K196: 30000 | L196: 30000 | M196: 58250
A197: Chenzhou City | D197: 58000 | E197: 31300 | F197: 18000 | G197: 18000 | I197: 75000 | J197: 35000 | K197: 30000 | L197: 30000 | M197: 58250
A198: Yongzhou City | D198: 58000 | E198: 31300 | F198: 18000 | G198: 18000 | I198: 75000 | J198: 35000 | K198: 30000 | L198: 30000 | M198: 58250
A199: Huaihua City | D199: 58000 | E199: 31300 | F199: 18000 | G199: 18000 | I199: 75000 | J199: 35000 | K199: 30000 | L199: 30000 | M199: 58250
A200: Loudi City | D200: 58000 | E200: 31300 | F200: 18000 | G200: 18000 | I200: 75000 | J200: 35000 | K200: 30000 | L200: 30000 | M200: 58250
A201: Xiangxi Tujia and Miao Autonomous Prefecture | D201: 58000 | E201: 31300 | F201: 18000 | G201: 18000 | I201: 75000 | J201: 35000 | K201: 30000 | L201: 30000 | M201: 58250
... 144 more rows

Sheet VKT2001
A1: Car Kilometers Travel in China/km
A3: Year | B3: 2001 | C3: Passenger Vehicles | H3: Trucks | M3: Others
A4: region | D4: Large | E4: Medium | F4: Small | G4: Minicar | I4: Heavy | J4: Medium | K4: Light | L4: Mini
A5: Beijing | D5: 58646.33333 | E5: 31300 | F5: 18000 | G5: 18000 | I5: 75000 | J5: 36379 | K5: 33609 | L5: 33609 | M5: 58250
A6: Tianjin | D6: 58000 | E6: 31300 | F6: 20150 | G6: 20150 | I6: 60000 | J6: 35000 | K6: 30000 | L6: 30000 | M6: 58250
A7: Shijiazhuang City, Hebei Province | D7: 58000 | E7: 31300 | F7: 20000 | G7: 20000 | I7: 60000 | J7: 35000 | K7: 30000 | L7: 30000 | M7: 58250
A8: Tangshan City | D8: 58000 | E8: 31300 | F8: 20000 | G8: 20000 | I8: 60000 | J8: 35000 | K8: 30000 | L8: 30000 | M8: 58250
A9: Qinhuangdao City | D9: 58000 | E9: 31300 | F9: 20000 | G9: 20000 | I9: 60000 | J9: 35000 | K9: 30000 | L9: 30000 | M9: 58250
A10: Handan City | D10: 58000 | E10: 31300 | F10: 20000 | G10: 20000 | I10: 60000 | J10: 35000 | K10: 30000 | L10: 30000 | M10: 58250
A11: Xingtai City | D11: 58000 | E11: 31300 | F11: 20000 | G11: 20000 | I11: 60000 | J11: 35000 | K11: 30000 | L11: 30000 | M11: 58250
A12: Baoding City | D12: 58000 | E12: 31300 | F12: 20000 | G12: 20000 | I12: 60000 | J12: 35000 | K12: 30000 | L12: 30000 | M12: 58250
A13: Zhangjiakou City | D13: 58000 | E13: 31300 | F13: 20000 | G13: 20000 | I13: 60000 | J13: 35000 | K13: 30000 | L13: 30000 | M13: 58250
A14: Chengde City | D14: 58000 | E14: 31300 | F14: 20000 | G14: 20000 | I14: 60000 | J14: 35000 | K14: 30000 | L14: 30000 | M14: 58250
A15: Cangzhou City | D15: 58000 | E15: 31300 | F15: 20000 | G15: 20000 | I15: 60000 | J15: 35000 | K15: 30000 | L15: 30000 | M15: 58250
A16: Langfang City | D16: 58000 | E16: 31300 | F16: 20000 | G16: 20000 | I16: 60000 | J16: 35000 | K16: 30000 | L16: 30000 | M16: 58250
A17: Hengshui City | D17: 58000 | E17: 31300 | F17: 20000 | G17: 20000 | I17: 60000 | J17: 35000 | K17: 30000 | L17: 30000 | M17: 58250
A18: Taiyuan City, Shanxi Province | D18: 58000 | E18: 31300 | F18: 18000 | G18: 18000 | I18: 75000 | J18: 35000 | K18: 30000 | L18: 30000 | M18: 58250
A19: Yangquan City | D19: 58000 | E19: 31300 | F19: 18000 | G19: 18000 | I19: 75000 | J19: 35000 | K19: 30000 | L19: 30000 | M19: 58250
A20: Changzhi City | D20: 58000 | E20: 31300 | F20: 18000 | G20: 18000 | I20: 75000 | J20: 35000 | K20: 30000 | L20: 30000 | M20: 58250
A21: Jincheng City | D21: 58000 | E21: 31300 | F21: 18000 | G21: 18000 | I21: 75000 | J21: 35000 | K21: 30000 | L21: 30000 | M21: 58250
A22: Shuozhou City | D22: 58000 | E22: 31300 | F22: 18000 | G22: 18000 | I22: 75000 | J22: 35000 | K22: 30000 | L22: 30000 | M22: 58250
A23: Qizhou City | D23: 58000 | E23: 31300 | F23: 18000 | G23: 18000 | I23: 75000 | J23: 35000 | K23: 30000 | L23: 30000 | M23: 58250
A24: Luliang City | D24: 58000 | E24: 31300 | F24: 18000 | G24: 18000 | I24: 75000 | J24: 35000 | K24: 30000 | L24: 30000 | M24: 58250
A25: Jinzhong City | D25: 58000 | E25: 31300 | F25: 18000 | G25: 18000 | I25: 75000 | J25: 35000 | K25: 30000 | L25: 30000 | M25: 58250
A26: Linfen City | D26: 58000 | E26: 31300 | F26: 18000 | G26: 18000 | I26: 75000 | J26: 35000 | K26: 30000 | L26: 30000 | M26: 58250
A27: Yuncheng City | D27: 58000 | E27: 31300 | F27: 18000 | G27: 18000 | I27: 75000 | J27: 35000 | K27: 30000 | L27: 30000 | M27: 58250
A28: Datong City | D28: 58000 | E28: 31300 | F28: 18000 | G28: 18000 | I28: 75000 | J28: 35000 | K28: 30000 | L28: 30000 | M28: 58250
A29: Hohhot, Inner Mongolia Autonomous Region | D29: 58000 | E29: 31700 | F29: 18000 | G29: 18000 | I29: 75000 | J29: 35000 | K29: 30000 | L29: 30000 | M29: 58250
A30: Baotou City | D30: 58000 | E30: 31300 | F30: 18000 | G30: 18000 | I30: 75000 | J30: 35000 | K30: 30000 | L30: 30000 | M30: 58250
A31: Wuhai City | D31: 58000 | E31: 31300 | F31: 18000 | G31: 18000 | I31: 75000 | J31: 35000 | K31: 30000 | L31: 30000 | M31: 58250
A32: Chifeng City | D32: 58000 | E32: 31300 | F32: 18000 | G32: 18000 | I32: 75000 | J32: 35000 | K32: 30000 | L32: 30000 | M32: 58250
A33: Tongliao City | D33: 58000 | E33: 31300 | F33: 18000 | G33: 18000 | I33: 75000 | J33: 35000 | K33: 30000 | L33: 30000 | M33: 58250
A34: Ordos City | D34: 58000 | E34: 31300 | F34: 18000 | G34: 18000 | I34: 75000 | J34: 35000 | K34: 30000 | L34: 30000 | M34: 58250
A35: Hulun Buir City | D35: 58000 | E35: 31300 | F35: 18000 | G35: 18000 | I35: 75000 | J35: 35000 | K35: 30000 | L35: 30000 | M35: 58250
A36: Bayannaoer City | D36: 58000 | E36: 31300 | F36: 18000 | G36: 18000 | I36: 75000 | J36: 35000 | K36: 30000 | L36: 30000 | M36: 58250
A37: Ulanqab City | D37: 58000 | E37: 31300 | F37: 18000 | G37: 18000 | I37: 75000 | J37: 35000 | K37: 30000 | L37: 30000 | M37: 58250
A38: Xilin Gol League | D38: 58000 | E38: 31300 | F38: 18000 | G38: 18000 | I38: 75000 | J38: 35000 | K38: 30000 | L38: 30000 | M38: 58250
A39: Xing'an League | D39: 58000 | E39: 31300 | F39: 18000 | G39: 18000 | I39: 75000 | J39: 35000 | K39: 30000 | L39: 30000 | M39: 58250
A40: Alxa League | D40: 58000 | E40: 31300 | F40: 18000 | G40: 18000 | I40: 75000 | J40: 35000 | K40: 30000 | L40: 30000 | M40: 58250
A41: Shenyang City, Liaoning Province | D41: 58000 | E41: 31300 | F41: 18000 | G41: 18000 | I41: 75000 | J41: 35000 | K41: 30000 | L41: 30000 | M41: 58250
A42: Dalian City | D42: 58000 | E42: 31300 | F42: 18000 | G42: 18000 | I42: 75000 | J42: 35000 | K42: 30000 | L42: 30000 | M42: 58250
A43: Anshan City | D43: 58000 | E43: 31300 | F43: 18000 | G43: 18000 | I43: 75000 | J43: 35000 | K43: 30000 | L43: 30000 | M43: 58250
A44: Fushun City | D44: 58000 | E44: 31300 | F44: 18000 | G44: 18000 | I44: 75000 | J44: 35000 | K44: 30000 | L44: 30000 | M44: 58250
A45: Benxi City | D45: 58000 | E45: 31300 | F45: 18000 | G45: 18000 | I45: 75000 | J45: 35000 | K45: 30000 | L45: 30000 | M45: 58250
A46: Dandong City | D46: 58000 | E46: 31300 | F46: 18000 | G46: 18000 | I46: 75000 | J46: 35000 | K46: 30000 | L46: 30000 | M46: 58250
A47: Jinzhou City | D47: 58000 | E47: 31300 | F47: 18000 | G47: 18000 | I47: 75000 | J47: 35000 | K47: 30000 | L47: 30000 | M47: 58250
A48: Yingkou City | D48: 58000 | E48: 31300 | F48: 18000 | G48: 18000 | I48: 75000 | J48: 35000 | K48: 30000 | L48: 30000 | M48: 58250
A49: Fuxin City | D49: 58000 | E49: 31300 | F49: 18000 | G49: 18000 | I49: 75000 | J49: 35000 | K49: 30000 | L49: 30000 | M49: 58250
A50: Liaoyang City | D50: 58000 | E50: 31300 | F50: 18000 | G50: 18000 | I50: 75000 | J50: 35000 | K50: 30000 | L50: 30000 | M50: 58250
A51: Panjin City | D51: 58000 | E51: 31300 | F51: 18000 | G51: 18000 | I51: 75000 | J51: 35000 | K51: 30000 | L51: 30000 | M51: 58250
A52: Tieling City | D52: 58000 | E52: 31300 | F52: 18000 | G52: 18000 | I52: 75000 | J52: 35000 | K52: 30000 | L52: 30000 | M52: 58250
A53: Chaoyang City | D53: 58000 | E53: 31300 | F53: 18000 | G53: 18000 | I53: 75000 | J53: 35000 | K53: 30000 | L53: 30000 | M53: 58250
A54: Huludao City | D54: 58000 | E54: 31300 | F54: 18000 | G54: 18000 | I54: 75000 | J54: 35000 | K54: 30000 | L54: 30000 | M54: 58250
A55: Changchun City, Jilin Province | D55: 58000 | E55: 31300 | F55: 18000 | G55: 18000 | I55: 75000 | J55: 35000 | K55: 30000 | L55: 30000 | M55: 58250
A56: Jilin City | D56: 58000 | E56: 31300 | F56: 18000 | G56: 18000 | I56: 75000 | J56: 35000 | K56: 30000 | L56: 30000 | M56: 58250
A57: Siping City | D57: 58000 | E57: 31300 | F57: 18000 | G57: 18000 | I57: 75000 | J57: 35000 | K57: 30000 | L57: 30000 | M57: 58250
A58: Liaoyuan City | D58: 58000 | E58: 31300 | F58: 18000 | G58: 18000 | I58: 75000 | J58: 35000 | K58: 30000 | L58: 30000 | M58: 58250
A59: Tonghua City | D59: 58000 | E59: 31300 | F59: 18000 | G59: 18000 | I59: 75000 | J59: 35000 | K59: 30000 | L59: 30000 | M59: 58250
A60: Baishan City | D60: 58000 | E60: 31300 | F60: 18000 | G60: 18000 | I60: 75000 | J60: 35000 | K60: 30000 | L60: 30000 | M60: 58250
A61: Songyuan City | D61: 58000 | E61: 31300 | F61: 18000 | G61: 18000 | I61: 75000 | J61: 35000 | K61: 30000 | L61: 30000 | M61: 58250
A62: Baicheng City | D62: 58000 | E62: 31300 | F62: 18000 | G62: 18000 | I62: 75000 | J62: 35000 | K62: 30000 | L62: 30000 | M62: 58250
A63: Yanbian Korean Autonomous Prefecture | D63: 58000 | E63: 31300 | F63: 18000 | G63: 18000 | I63: 75000 | J63: 35000 | K63: 30000 | L63: 30000 | M63: 58250
A64: Harbin City, Heilongjiang Province | D64: 58000 | E64: 31300 | F64: 18000 | G64: 18000 | I64: 75000 | J64: 35000 | K64: 30000 | L64: 30000 | M64: 58250
A65: Qiqihar City | D65: 58000 | E65: 31300 | F65: 18000 | G65: 18000 | I65: 75000 | J65: 35000 | K65: 30000 | L65: 30000 | M65: 58250
A66: Jixi City | D66: 58000 | E66: 31300 | F66: 18000 | G66: 18000 | I66: 75000 | J66: 35000 | K66: 30000 | L66: 30000 | M66: 58250
A67: Hegang City | D67: 58000 | E67: 31300 | F67: 18000 | G67: 18000 | I67: 75000 | J67: 35000 | K67: 30000 | L67: 30000 | M67: 58250
A68: Shuangyashan City | D68: 58000 | E68: 31300 | F68: 18000 | G68: 18000 | I68: 75000 | J68: 35000 | K68: 30000 | L68: 30000 | M68: 58250
A69: Daqing City | D69: 58000 | E69: 31300 | F69: 18000 | G69: 18000 | I69: 75000 | J69: 35000 | K69: 30000 | L69: 30000 | M69: 58250
A70: Yichun City | D70: 58000 | E70: 31300 | F70: 18000 | G70: 18000 | I70: 75000 | J70: 35000 | K70: 30000 | L70: 30000 | M70: 58250
A71: Jiamusi City | D71: 58000 | E71: 31300 | F71: 18000 | G71: 18000 | I71: 75000 | J71: 35000 | K71: 30000 | L71: 30000 | M71: 58250
A72: Qitaihe City | D72: 58000 | E72: 31300 | F72: 18000 | G72: 18000 | I72: 75000 | J72: 35000 | K72: 30000 | L72: 30000 | M72: 58250
A73: Mudanjiang City | D73: 58000 | E73: 31300 | F73: 18000 | G73: 18000 | I73: 75000 | J73: 35000 | K73: 30000 | L73: 30000 | M73: 58250
A74: Heihe City | D74: 58000 | E74: 31300 | F74: 18000 | G74: 18000 | I74: 75000 | J74: 35000 | K74: 30000 | L74: 30000 | M74: 58250
A75: Suihua City | D75: 58000 | E75: 31300 | F75: 18000 | G75: 18000 | I75: 75000 | J75: 35000 | K75: 30000 | L75: 30000 | M75: 58250
A76: Daxing'anling region | D76: 58000 | E76: 31300 | F76: 18000 | G76: 18000 | I76: 75000 | J76: 35000 | K76: 30000 | L76: 30000 | M76: 58250
A77: Shanghai | D77: 58000 | E77: 35059.66667 | F77: 25144.5 | G77: 25144.5 | I77: 75000 | J77: 42890.33333 | K77: 27591.33333 | L77: 27591.33333 | M77: 58250
A78: Nanjing City, Jiangsu Province | D78: 58000 | E78: 31300 | F78: 18000 | G78: 18000 | I78: 75000 | J78: 35000 | K78: 30000 | L78: 30000 | M78: 58250
A79: Wuxi City | D79: 58000 | E79: 31300 | F79: 18000 | G79: 18000 | I79: 75000 | J79: 35000 | K79: 30000 | L79: 30000 | M79: 58250
A80: Xuzhou City | D80: 58000 | E80: 31300 | F80: 18000 | G80: 18000 | I80: 75000 | J80: 35000 | K80: 30000 | L80: 30000 | M80: 58250
A81: Changzhou | D81: 58000 | E81: 31300 | F81: 18000 | G81: 18000 | I81: 75000 | J81: 35000 | K81: 30000 | L81: 30000 | M81: 58250
A82: Suzhou City | D82: 58000 | E82: 31300 | F82: 18000 | G82: 18000 | I82: 75000 | J82: 35000 | K82: 30000 | L82: 30000 | M82: 58250
A83: Nantong City | D83: 58000 | E83: 31300 | F83: 18000 | G83: 18000 | I83: 75000 | J83: 35000 | K83: 30000 | L83: 30000 | M83: 58250
A84: Lianyungang City | D84: 58000 | E84: 31300 | F84: 18000 | G84: 18000 | I84: 75000 | J84: 35000 | K84: 30000 | L84: 30000 | M84: 58250
A85: Huai'an City | D85: 58000 | E85: 31300 | F85: 18000 | G85: 18000 | I85: 75000 | J85: 35000 | K85: 30000 | L85: 30000 | M85: 58250
A86: Yancheng City | D86: 58000 | E86: 31300 | F86: 18000 | G86: 18000 | I86: 75000 | J86: 35000 | K86: 30000 | L86: 30000 | M86: 58250
A87: Yangzhou City | D87: 58000 | E87: 31300 | F87: 18000 | G87: 18000 | I87: 75000 | J87: 35000 | K87: 30000 | L87: 30000 | M87: 58250
A88: Zhenjiang City | D88: 58000 | E88: 31300 | F88: 18000 | G88: 18000 | I88: 75000 | J88: 35000 | K88: 30000 | L88: 30000 | M88: 58250
A89: Taizhou City | D89: 58000 | E89: 31300 | F89: 18000 | G89: 18000 | I89: 75000 | J89: 35000 | K89: 30000 | L89: 30000 | M89: 58250
A90: Suqian City | D90: 58000 | E90: 31300 | F90: 18000 | G90: 18000 | I90: 75000 | J90: 35000 | K90: 30000 | L90: 30000 | M90: 58250
A91: Hangzhou City, Zhejiang Province | D91: 40000 | E91: 40000 | F91: 18000 | G91: 18000 | I91: 75000 | J91: 30000 | K91: 40 000 | L91: 40 000 | M91: 58250
A92: Ningbo City | D92: 58000 | E92: 31300 | F92: 18000 | G92: 18000 | I92: 75000 | J92: 35000 | K92: 30000 | L92: 30000 | M92: 58250
A93: Wenzhou City | D93: 58000 | E93: 31300 | F93: 18000 | G93: 18000 | I93: 75000 | J93: 35000 | K93: 30000 | L93: 30000 | M93: 58250
A94: Jiaxing City | D94: 58000 | E94: 31300 | F94: 18000 | G94: 18000 | I94: 75000 | J94: 35000 | K94: 30000 | L94: 30000 | M94: 58250
A95: Huzhou City | D95: 58000 | E95: 31300 | F95: 18000 | G95: 18000 | I95: 75000 | J95: 35000 | K95: 30000 | L95: 30000 | M95: 58250
A96: Shaoxing City | D96: 58000 | E96: 31300 | F96: 18000 | G96: 18000 | I96: 75000 | J96: 35000 | K96: 30000 | L96: 30000 | M96: 58250
A97: Jinhua City | D97: 58000 | E97: 31300 | F97: 18000 | G97: 18000 | I97: 75000 | J97: 35000 | K97: 30000 | L97: 30000 | M97: 58250
A98: Quzhou City | D98: 58000 | E98: 31300 | F98: 18000 | G98: 18000 | I98: 75000 | J98: 35000 | K98: 30000 | L98: 30000 | M98: 58250
A99: Zhoushan City | D99: 58000 | E99: 31300 | F99: 18000 | G99: 18000 | I99: 75000 | J99: 35000 | K99: 30000 | L99: 30000 | M99: 58250
A100: Taizhou City | D100: 58000 | E100: 31300 | F100: 18000 | G100: 18000 | I100: 75000 | J100: 35000 | K100: 30000 | L100: 30000 | M100: 58250
A101: Lishui City | D101: 58000 | E101: 31300 | F101: 18000 | G101: 18000 | I101: 75000 | J101: 35000 | K101: 30000 | L101: 30000 | M101: 58250
A102: Hefei City, Anhui Province | D102: 58000 | E102: 33600 | F102: 23000 | G102: 18400 | I102: 73900 | J102: 43000 | K102: 27600 | L102: 30000 | M102: 58250
A103: Wuhu City | D103: 58000 | E103: 31300 | F103: 18000 | G103: 18000 | I103: 75000 | J103: 35000 | K103: 30000 | L103: 30000 | M103: 58250
A104: Bengbu City | D104: 58000 | E104: 31300 | F104: 18000 | G104: 18000 | I104: 75000 | J104: 35000 | K104: 30000 | L104: 30000 | M104: 58250
A105: Huainan City | D105: 58000 | E105: 31300 | F105: 18000 | G105: 18000 | I105: 75000 | J105: 35000 | K105: 30000 | L105: 30000 | M105: 58250
A106: Ma'anshan City | D106: 58000 | E106: 31300 | F106: 18000 | G106: 18000 | I106: 75000 | J106: 35000 | K106: 30000 | L106: 30000 | M106: 58250
A107: Huaibei City | D107: 58000 | E107: 31300 | F107: 18000 | G107: 18000 | I107: 75000 | J107: 35000 | K107: 30000 | L107: 30000 | M107: 58250
A108: Tongling City | D108: 58000 | E108: 31300 | F108: 18000 | G108: 18000 | I108: 75000 | J108: 35000 | K108: 30000 | L108: 30000 | M108: 58250
A109: Anqing City | D109: 58000 | E109: 31300 | F109: 18000 | G109: 18000 | I109: 75000 | J109: 35000 | K109: 30000 | L109: 30000 | M109: 58250
A110: Huangshan City | D110: 58000 | E110: 31300 | F110: 18000 | G110: 18000 | I110: 75000 | J110: 35000 | K110: 30000 | L110: 30000 | M110: 58250
A111: Fuyang City | D111: 58000 | E111: 31300 | F111: 18000 | G111: 18000 | I111: 75000 | J111: 35000 | K111: 30000 | L111: 30000 | M111: 58250
A112: Suzhou City | D112: 58000 | E112: 31300 | F112: 18000 | G112: 18000 | I112: 75000 | J112: 35000 | K112: 30000 | L112: 30000 | M112: 58250
A113: Chuzhou City | D113: 58000 | E113: 31300 | F113: 18000 | G113: 18000 | I113: 75000 | J113: 35000 | K113: 30000 | L113: 30000 | M113: 58250
A114: Lu'an City | D114: 58000 | E114: 31300 | F114: 18000 | G114: 18000 | I114: 75000 | J114: 35000 | K114: 30000 | L114: 30000 | M114: 58250
A115: Xuancheng City | D115: 58000 | E115: 31300 | F115: 18000 | G115: 18000 | I115: 75000 | J115: 35000 | K115: 30000 | L115: 30000 | M115: 58250
A116: Chizhou City | D116: 58000 | E116: 31300 | F116: 18000 | G116: 18000 | I116: 75000 | J116: 35000 | K116: 30000 | L116: 30000 | M116: 58250
A117: Bozhou City | D117: 58000 | E117: 31300 | F117: 18000 | G117: 18000 | I117: 75000 | J117: 35000 | K117: 30000 | L117: 30000 | M117: 58250
A118: Fuzhou City, Fujian Province | D118: 58000 | E118: 31300 | F118: 18000 | G118: 18000 | I118: 75000 | J118: 35000 | K118: 30000 | L118: 30000 | M118: 58250
A119: Xiamen | D119: 58000 | E119: 31300 | F119: 18000 | G119: 18000 | I119: 75000 | J119: 35000 | K119: 30000 | L119: 30000 | M119: 58250
A120: Quanzhou | D120: 58000 | E120: 31300 | F120: 18000 | G120: 18000 | I120: 75000 | J120: 35000 | K120: 30000 | L120: 30000 | M120: 58250
A121: Zhangzhou City | D121: 58000 | E121: 31300 | F121: 18000 | G121: 18000 | I121: 75000 | J121: 35000 | K121: 30000 | L121: 30000 | M121: 58250
A122: Putian City | D122: 58000 | E122: 31300 | F122: 18000 | G122: 18000 | I122: 75000 | J122: 35000 | K122: 30000 | L122: 30000 | M122: 58250
A123: Ningde City | D123: 58000 | E123: 31300 | F123: 18000 | G123: 18000 | I123: 75000 | J123: 35000 | K123: 30000 | L123: 30000 | M123: 58250
A124: Longyan City | D124: 58000 | E124: 31300 | F124: 18000 | G124: 18000 | I124: 75000 | J124: 35000 | K124: 30000 | L124: 30000 | M124: 58250
A125: Sanming City | D125: 58000 | E125: 31300 | F125: 18000 | G125: 18000 | I125: 75000 | J125: 35000 | K125: 30000 | L125: 30000 | M125: 58250
A126: Nanping City | D126: 58000 | E126: 31300 | F126: 18000 | G126: 18000 | I126: 75000 | J126: 35000 | K126: 30000 | L126: 30000 | M126: 58250
A127: Nanchang City, Jiangxi Province | D127: 58000 | E127: 31300 | F127: 18000 | G127: 18000 | I127: 75000 | J127: 35000 | K127: 30000 | L127: 30000 | M127: 58250
A128: Jiujiang City | D128: 58000 | E128: 31300 | F128: 18000 | G128: 18000 | I128: 75000 | J128: 35000 | K128: 30000 | L128: 30000 | M128: 58250
A129: Pingxiang City | D129: 58000 | E129: 31300 | F129: 18000 | G129: 18000 | I129: 75000 | J129: 35000 | K129: 30000 | L129: 30000 | M129: 58250
A130: Yingtan City | D130: 58000 | E130: 31300 | F130: 18000 | G130: 18000 | I130: 75000 | J130: 35000 | K130: 30000 | L130: 30000 | M130: 58250
A131: Shangrao City | D131: 58000 | E131: 31300 | F131: 18000 | G131: 18000 | I131: 75000 | J131: 35000 | K131: 30000 | L131: 30000 | M131: 58250
A132: Fuzhou City | D132: 58000 | E132: 31300 | F132: 18000 | G132: 18000 | I132: 75000 | J132: 35000 | K132: 30000 | L132: 30000 | M132: 58250
A133: Xinyu City | D133: 58000 | E133: 31300 | F133: 18000 | G133: 18000 | I133: 75000 | J133: 35000 | K133: 30000 | L133: 30000 | M133: 58250
A134: Yichun City | D134: 58000 | E134: 31300 | F134: 18000 | G134: 18000 | I134: 75000 | J134: 35000 | K134: 30000 | L134: 30000 | M134: 58250
A135: Jingdezhen City | D135: 58000 | E135: 31300 | F135: 18000 | G135: 18000 | I135: 75000 | J135: 35000 | K135: 30000 | L135: 30000 | M135: 58250
A136: Ji'an City | D136: 58000 | E136: 31300 | F136: 18000 | G136: 18000 | I136: 75000 | J136: 35000 | K136: 30000 | L136: 30000 | M136: 58250
A137: Ganzhou City | D137: 58000 | E137: 31300 | F137: 18000 | G137: 18000 | I137: 75000 | J137: 35000 | K137: 30000 | L137: 30000 | M137: 58250
A138: Jinan City, Shandong Province | D138: 48800 | E138: 20400 | F138: 14500 | G138: 18600 | I138: 75000 | J138: 28000 | K138: 30000 | L138: 30000 | M138: 58250
A139: Qingdao | D139: 48800 | E139: 20400 | F139: 14500 | G139: 18600 | I139: 75000 | J139: 28000 | K139: 30000 | L139: 30000 | M139: 58250
A140: Zibo City | D140: 48800 | E140: 20400 | F140: 14500 | G140: 18600 | I140: 75000 | J140: 28000 | K140: 30000 | L140: 30000 | M140: 58250
A141: Zaozhuang City | D141: 48800 | E141: 20400 | F141: 14500 | G141: 18600 | I141: 75000 | J141: 28000 | K141: 30000 | L141: 30000 | M141: 58250
A142: Dongying City | D142: 48800 | E142: 20400 | F142: 14500 | G142: 18600 | I142: 75000 | J142: 28000 | K142: 30000 | L142: 30000 | M142: 58250
A143: Yantai City | D143: 48800 | E143: 20400 | F143: 14500 | G143: 18600 | I143: 75000 | J143: 28000 | K143: 30000 | L143: 30000 | M143: 58250
A144: Weifang City | D144: 48800 | E144: 20400 | F144: 14500 | G144: 18600 | I144: 75000 | J144: 28000 | K144: 30000 | L144: 30000 | M144: 58250
A145: Jining City | D145: 48800 | E145: 20400 | F145: 14500 | G145: 18600 | I145: 75000 | J145: 28000 | K145: 30000 | L145: 30000 | M145: 58250
A146: Tai'an City | D146: 48800 | E146: 20400 | F146: 14500 | G146: 18600 | I146: 75000 | J146: 28000 | K146: 30000 | L146: 30000 | M146: 58250
A147: Weihai City | D147: 48800 | E147: 20400 | F147: 14500 | G147: 18600 | I147: 75000 | J147: 28000 | K147: 30000 | L147: 30000 | M147: 58250
A148: Rizhao City | D148: 48800 | E148: 20400 | F148: 14500 | G148: 18600 | I148: 75000 | J148: 28000 | K148: 30000 | L148: 30000 | M148: 58250
A149: Binzhou City | D149: 48800 | E149: 20400 | F149: 14500 | G149: 18600 | I149: 75000 | J149: 28000 | K149: 30000 | L149: 30000 | M149: 58250
A150: Dezhou City | D150: 48800 | E150: 20400 | F150: 14500 | G150: 18600 | I150: 75000 | J150: 28000 | K150: 30000 | L150: 30000 | M150: 58250
A151: Liaocheng City | D151: 48800 | E151: 20400 | F151: 14500 | G151: 18600 | I151: 75000 | J151: 28000 | K151: 30000 | L151: 30000 | M151: 58250
A152: Linyi City | D152: 48800 | E152: 20400 | F152: 14500 | G152: 18600 | I152: 75000 | J152: 28000 | K152: 30000 | L152: 30000 | M152: 58250
A153: Heze City | D153: 48800 | E153: 20400 | F153: 14500 | G153: 18600 | I153: 75000 | J153: 28000 | K153: 30000 | L153: 30000 | M153: 58250
A154: Zhengzhou City, Henan Province | D154: 64000 | E154: 365000 | F154: 34000 | G154: 34000 | I154: 80000 | J154: 38500 | K154: 39000 | L154: 39000 | M154: 91000
A155: Luoyang City | D155: 64000 | E155: 365000 | F155: 34000 | G155: 34000 | I155: 80000 | J155: 38500 | K155: 39000 | L155: 39000 | M155: 91000
A156: Kaifeng City | D156: 64000 | E156: 365000 | F156: 34000 | G156: 34000 | I156: 80000 | J156: 38500 | K156: 39000 | L156: 39000 | M156: 91000
A157: Luohe City | D157: 64000 | E157: 365000 | F157: 34000 | G157: 34000 | I157: 80000 | J157: 38500 | K157: 39000 | L157: 39000 | M157: 91000
A158: Anyang City | D158: 64000 | E158: 365000 | F158: 34000 | G158: 34000 | I158: 80000 | J158: 38500 | K158: 39000 | L158: 39000 | M158: 91000
A159: Xinyang City | D159: 64000 | E159: 365000 | F159: 34000 | G159: 34000 | I159: 80000 | J159: 38500 | K159: 39000 | L159: 39000 | M159: 91000
A160: Nanyang City | D160: 64000 | E160: 365000 | F160: 34000 | G160: 34000 | I160: 80000 | J160: 38500 | K160: 39000 | L160: 39000 | M160: 91000
A161: Puyang City | D161: 64000 | E161: 365000 | F161: 34000 | G161: 34000 | I161: 80000 | J161: 38500 | K161: 39000 | L161: 39000 | M161: 91000
A162: Zhoukou City | D162: 64000 | E162: 365000 | F162: 34000 | G162: 34000 | I162: 80000 | J162: 38500 | K162: 39000 | L162: 39000 | M162: 91000
A163: Xinxiang City | D163: 64000 | E163: 365000 | F163: 34000 | G163: 34000 | I163: 80000 | J163: 38500 | K163: 39000 | L163: 39000 | M163: 91000
A164: Sanmenxia City | D164: 64000 | E164: 365000 | F164: 34000 | G164: 34000 | I164: 80000 | J164: 38500 | K164: 39000 | L164: 39000 | M164: 91000
A165: Zhumadian City | D165: 64000 | E165: 365000 | F165: 34000 | G165: 34000 | I165: 80000 | J165: 38500 | K165: 39000 | L165: 39000 | M165: 91000
A166: Pingdingshan City | D166: 64000 | E166: 365000 | F166: 34000 | G166: 34000 | I166: 80000 | J166: 38500 | K166: 39000 | L166: 39000 | M166: 91000
A167: Hebi City | D167: 64000 | E167: 365000 | F167: 34000 | G167: 34000 | I167: 80000 | J167: 38500 | K167: 39000 | L167: 39000 | M167: 91000
A168: Shangqiu City | D168: 64000 | E168: 365000 | F168: 34000 | G168: 34000 | I168: 80000 | J168: 38500 | K168: 39000 | L168: 39000 | M168: 91000
A169: Jiaozuo City | D169: 64000 | E169: 365000 | F169: 34000 | G169: 34000 | I169: 80000 | J169: 38500 | K169: 39000 | L169: 39000 | M169: 91000
A170: Xuchang City | D170: 64000 | E170: 365000 | F170: 34000 | G170: 34000 | I170: 80000 | J170: 38500 | K170: 39000 | L170: 39000 | M170: 91000
A171: Wuhan City, Hubei Province | D171: 58000 | E171: 31300 | F171: 18000 | G171: 18000 | I171: 75000 | J171: 35000 | K171: 30000 | L171: 30000 | M171: 58250
A172: Huangshi City | D172: 58000 | E172: 31300 | F172: 18000 | G172: 18000 | I172: 75000 | J172: 35000 | K172: 30000 | L172: 30000 | M172: 58250
A173: Xiangyang City | D173: 58000 | E173: 31300 | F173: 18000 | G173: 18000 | I173: 75000 | J173: 35000 | K173: 30000 | L173: 30000 | M173: 58250
A174: Jingzhou City | D174: 58000 | E174: 31300 | F174: 18000 | G174: 18000 | I174: 75000 | J174: 35000 | K174: 30000 | L174: 30000 | M174: 58250
A175: Yichang City | D175: 58000 | E175: 31300 | F175: 18000 | G175: 18000 | I175: 75000 | J175: 35000 | K175: 25200 | L175: 25200 | M175: 58250
A176: Shiyan city | D176: 58000 | E176: 31300 | F176: 18000 | G176: 18000 | I176: 75000 | J176: 35000 | K176: 30000 | L176: 30000 | M176: 58250
A177: Xiaogan City | D177: 58000 | E177: 31300 | F177: 18000 | G177: 18000 | I177: 75000 | J177: 35000 | K177: 30000 | L177: 30000 | M177: 58250
A178: Jingmen City | D178: 58000 | E178: 31300 | F178: 18000 | G178: 18000 | I178: 75000 | J178: 35000 | K178: 30000 | L178: 30000 | M178: 58250
A179: Ezhou City | D179: 58000 | E179: 31300 | F179: 18000 | G179: 18000 | I179: 75000 | J179: 35000 | K179: 30000 | L179: 30000 | M179: 58250
A180: Huanggang City | D180: 58000 | E180: 31300 | F180: 18000 | G180: 18000 | I180: 75000 | J180: 35000 | K180: 30000 | L180: 30000 | M180: 58250
A181: Xianning City | D181: 58000 | E181: 31300 | F181: 18000 | G181: 18000 | I181: 75000 | J181: 35000 | K181: 30000 | L181: 30000 | M181: 58250
A182: Suizhou City | D182: 58000 | E182: 31300 | F182: 18000 | G182: 18000 | I182: 75000 | J182: 35000 | K182: 30000 | L182: 30000 | M182: 58250
A183: Enshi Tujia and Miao Autonomous Prefecture | D183: 58000 | E183: 31300 | F183: 18000 | G183: 18000 | I183: 75000 | J183: 35000 | K183: 30000 | L183: 30000 | M183: 58250
A184: Xiantao City | D184: 58000 | E184: 31300 | F184: 18000 | G184: 18000 | I184: 75000 | J184: 35000 | K184: 30000 | L184: 30000 | M184: 58250
A185: Tianmen City | D185: 58000 | E185: 31300 | F185: 18000 | G185: 18000 | I185: 75000 | J185: 35000 | K185: 30000 | L185: 30000 | M185: 58250
A186: Qianjiang City | D186: 58000 | E186: 31300 | F186: 18000 | G186: 18000 | I186: 75000 | J186: 35000 | K186: 30000 | L186: 30000 | M186: 58250
A187: Shennongjia forest area | D187: 58000 | E187: 31300 | F187: 18000 | G187: 18000 | I187: 75000 | J187: 35000 | K187: 30000 | L187: 30000 | M187: 58250
A188: Changsha City, Hunan Province | D188: 58000 | E188: 31300 | F188: 18000 | G188: 18000 | I188: 75000 | J188: 35000 | K188: 30000 | L188: 30000 | M188: 58250
A189: Zhuzhou City | D189: 58000 | E189: 31300 | F189: 18000 | G189: 18000 | I189: 75000 | J189: 35000 | K189: 30000 | L189: 30000 | M189: 58250
A190: Xiangtan City | D190: 58000 | E190: 31300 | F190: 18000 | G190: 18000 | I190: 75000 | J190: 35000 | K190: 30000 | L190: 30000 | M190: 58250
A191: Hengyang City | D191: 58000 | E191: 31300 | F191: 18000 | G191: 18000 | I191: 75000 | J191: 35000 | K191: 30000 | L191: 30000 | M191: 58250
A192: Shaoyang City | D192: 58000 | E192: 31300 | F192: 18000 | G192: 18000 | I192: 75000 | J192: 35000 | K192: 30000 | L192: 30000 | M192: 58250
A193: Yueyang City | D193: 58000 | E193: 31300 | F193: 18000 | G193: 18000 | I193: 75000 | J193: 35000 | K193: 30000 | L193: 30000 | M193: 58250
A194: Changde City | D194: 58000 | E194: 31300 | F194: 18000 | G194: 18000 | I194: 75000 | J194: 35000 | K194: 30000 | L194: 30000 | M194: 58250
A195: Zhangjiajie City | D195: 58000 | E195: 31300 | F195: 18000 | G195: 18000 | I195: 75000 | J195: 35000 | K195: 30000 | L195: 30000 | M195: 58250
A196: Yiyang City | D196: 58000 | E196: 31300 | F196: 18000 | G196: 18000 | I196: 75000 | J196: 35000 | K196: 30000 | L196: 30000 | M196: 58250
A197: Chenzhou City | D197: 58000 | E197: 31300 | F197: 18000 | G197: 18000 | I197: 75000 | J197: 35000 | K197: 30000 | L197: 30000 | M197: 58250
A198: Yongzhou City | D198: 58000 | E198: 31300 | F198: 18000 | G198: 18000 | I198: 75000 | J198: 35000 | K198: 30000 | L198: 30000 | M198: 58250
A199: Huaihua City | D199: 58000 | E199: 31300 | F199: 18000 | G199: 18000 | I199: 75000 | J199: 35000 | K199: 30000 | L199: 30000 | M199: 58250
A200: Loudi City | D200: 58000 | E200: 31300 | F200: 18000 | G200: 18000 | I200: 75000 | J200: 35000 | K200: 30000 | L200: 30000 | M200: 58250
